Workbook

Sheet Home
B1: Click the top left cell in any tab to return Home
B2: Weekly Reports | C2: Useful Info | D2: Admin (Weekly) | E2: Admin (Other)
B3: League Table | C3: Pics for Publication | D3: Add Matches | E3: Calculations
B4: Weekly Results | C4: Prizes - Summary | D4: Add Predictions | E4: Entrants
B5: Cup Draw | C5: Prizes - Divisional Splits | D5: Add Predictions (double-week) | E5: Last Season Places
B6: Season Diary | C6: FAQ | D6: 1-2-3 Pivot | E6: Brought Forward
B7: Current Week Fixtures | C7: Sample Bets | D7: Top Picks | E7: End of Season Finance
B8: Current Week Predictions | D8: Cup Draw Raw | E8: Mini Leagues

Sheet Players
A1: Prev/Final Pos | B1: Prev/Final Div | C1: Players | D1: Resigned? | E1: Next Div | F1: Closing Balance
A2: 1 | B2: A | C2: Gerard Ventom | D2: N | E2: A | H2: Row Labels | I2: Count of Players
A3: 2 | B3: A | C3: Steve Baxter | D3: N | E3: A | H3: A | I3: 16
A4: 3 | B4: A | C4: Nigel Heyes | D4: N | E4: A | H4: B | I4: 16
A5: 4 | B5: A | C5: Barry Birchall | D5: N | E5: A | H5: C | I5: 16
A6: 5 | B6: A | C6: Kei Lok Ma | D6: N | E6: A | H6: D | I6: 14
A7: 6 | B7: A | C7: Mark Bunn | D7: N | E7: A | H7: E | I7: 2
A8: 7 | B8: A | C8: Mark Saunders | D8: N | E8: A | H8: (blank)
A9: 8 | B9: A | C9: Alfie Davies | D9: N | E9: A | H9: Grand Total | I9: 64
A10: 1 | B10: B | C10: Mal Stott | D10: N | E10: A
A11: 2 | B11: B | C11: Kevin Carter | D11: N | E11: A
A12: 3 | B12: B | C12: Paul Fairhurst | D12: N | E12: A
A13: 4 | B13: B | C13: Sally Williams | D13: N | E13: A
A14: 5 | B14: B | C14: Chris Bow | D14: N | E14: A
A15: 6 | B15: B | C15: Phil Miller | D15: N | E15: A
A16: 7 | B16: B | C16: Steve Carter | D16: N | E16: A
A17: 8 | B17: B | C17: Lennie Bow | D17: N | E17: A
A18: 9 | B18: A | C18: Pete Baron | D18: N | E18: B
A19: 10 | B19: A | C19: Chris Luck | D19: N | E19: B
A20: 11 | B20: A | C20: Stephen Troop | D20: N | E20: B
A21: 12 | B21: A | C21: Mike Penk | D21: N | E21: B
A22: 13 | B22: A | C22: Alick Rocca | D22: N | E22: B
A23: 14 | B23: A | C23: Andy White | D23: N | E23: B
A24: 15 | B24: A | C24: Alan Rogers | D24: N | E24: B
A25: 16 | B25: A | C25: Stephen Barr | D25: N | E25: B
A26: 9 | B26: B | C26: Charlie Griffiths | D26: N | E26: B
A27: 10 | B27: B | C27: Mo Sudell | D27: N | E27: B
A28: 1 | B28: C | C28: Howard Bradley | D28: N | E28: B
A29: 2 | B29: C | C29: John Ronan | D29: N | E29: B
A30: 3 | B30: C | C30: Vinny Topping | D30: N | E30: B
A31: 4 | B31: C | C31: Simon Greenhalgh | D31: N | E31: B
A32: 5 | B32: C | C32: James Bell | D32: N | E32: B
A33: 6 | B33: C | C33: Dave Orrell | D33: N | E33: B
A34: 11 | B34: B | C34: Rob England | D34: N | E34: C
A35: 12 | B35: B | C35: Chris Griffin | D35: N | E35: C
A36: 13 | B36: B | C36: Chris Townsend | D36: N | E36: C
A37: 14 | B37: B | C37: Paul Fiddler | D37: N | E37: C
A38: 15 | B38: B | C38: Andy Charleston | D38: N | E38: C
A39: 16 | B39: B | C39: Oscar Jackson | D39: N | E39: C
A40: 7 | B40: C | C40: Tom Robinson | D40: N | E40: C
A41: 8 | B41: C | C41: Graham Miller | D41: N | E41: C
A42: 9 | B42: C | C42: Paul Allen | D42: N | E42: C
A43: 1 | B43: D | C43: Alan White | D43: N | E43: C
A44: 2 | B44: D | C44: Ben Rosser | D44: N | E44: C
A45: 3 | B45: D | C45: Jack Walsh | D45: N | E45: C
A46: 5 | B46: D | C46: Nick Blocksidge | D46: N | E46: C
A47: 6 | B47: D | C47: Gareth McGuire | D47: N | E47: C
A48: 7 | B48: D | C48: David Dunn | D48: N | E48: C
A49: 8 | B49: D | C49: Paul Adderley | D49: N | E49: C
A50: 11 | B50: C | C50: Martin Molyneux | D50: N | E50: D
A51: 12 | B51: C | C51: Dave Bell | D51: N | E51: D
A52: 13 | B52: C | C52: Gareth Powell | D52: N | E52: D
A53: 14 | B53: C | C53: Martin Tarbuck | D53: N | E53: D
A54: 15 | B54: C | C54: Ashley Houghton | D54: N | E54: D
A55: 9 | B55: D | C55: Liam Wah | D55: N | E55: D
A56: 10 | B56: D | C56: Ian Davies | D56: N | E56: D
C57: Andy Hargreaves | D57: X | E57: D
C58: Alan Bond | D58: X | E58: D
C59: John Murphy | D59: X | E59: D
C60: Bob Bailey | D60: X | E60: D
C61: Dan Gibbard | D61: X | E61: D
C62: Frank Allen | D62: X | E62: D
A63: 10 | B63: C | C63: Paul Barnes | D63: Y | E63: D
A64: 16 | B64: C | C64: Joel Bent | D64: Y | E64: E
A65: 4 | B65: D | C65: Paul Ridgeway | D65: Y | E65: E

Sheet Fixture
A1: Date | B1: Competition | C1: Odds | D1: Result
A2: =IF(Match!B2="","",Match!B2) -> 2021-08-27 | B2: =IF(Match!D2="","",Match!D2) -> League 1 | C2: =IF(Match!U2="","",Match!U2) -> Burton v Cheltenham 1/1 5/2 27/10 | D2: =IF(Match!V2="","",Match!V2) -> Burton 1-1 Cheltenham
A3: =IF(Match!B3="","",Match!B3) -> 2021-08-27 | B3: =IF(Match!D3="","",Match!D3) -> League 2 | C3: =IF(Match!U3="","",Match!U3) -> Rochdale v Colchester 11/8 11/5 21/10 | D3: =IF(Match!V3="","",Match!V3) -> Rochdale 1-1 Colchester
A4: =IF(Match!B4="","",Match!B4) -> 2021-08-28 | B4: =IF(Match!D4="","",Match!D4) -> Premier | C4: =IF(Match!U4="","",Match!U4) -> Brighton v Everton 11/8 11/5 11/5 | D4: =IF(Match!V4="","",Match!V4) -> Brighton 0-2 Everton
A5: =IF(Match!B5="","",Match!B5) -> 2021-08-28 | B5: =IF(Match!D5="","",Match!D5) -> Premier | C5: =IF(Match!U5="","",Match!U5) -> Liverpool v Chelsea 8/5 23/10 7/4 | D5: =IF(Match!V5="","",Match!V5) -> Liverpool 1-1 Chelsea
A6: =IF(Match!B6="","",Match!B6) -> 2021-08-28 | B6: =IF(Match!D6="","",Match!D6) -> Premier | C6: =IF(Match!U6="","",Match!U6) -> Man C v Arsenal 1/4 24/5 11/1 | D6: =IF(Match!V6="","",Match!V6) -> Man C 5-0 Arsenal
A7: =IF(Match!B7="","",Match!B7) -> 2021-08-28 | B7: =IF(Match!D7="","",Match!D7) -> Premier | C7: =IF(Match!U7="","",Match!U7) -> Newcastle v Southampton 13/8 5/2 13/8 | D7: =IF(Match!V7="","",Match!V7) -> Newcastle 2-2 Southampton
A8: =IF(Match!B8="","",Match!B8) -> 2021-08-28 | B8: =IF(Match!D8="","",Match!D8) -> Premier | C8: =IF(Match!U8="","",Match!U8) -> Norwich v Leicester 4/1 27/10 8/11 | D8: =IF(Match!V8="","",Match!V8) -> Norwich 1-2 Leicester
A9: =IF(Match!B9="","",Match!B9) -> 2021-08-28 | B9: =IF(Match!D9="","",Match!D9) -> Premier | C9: =IF(Match!U9="","",Match!U9) -> Villa v Brentford 1/1 13/5 27/10 | D9: =IF(Match!V9="","",Match!V9) -> Villa 1-1 Brentford
A10: =IF(Match!B10="","",Match!B10) -> 2021-08-28 | B10: =IF(Match!D10="","",Match!D10) -> Premier | C10: =IF(Match!U10="","",Match!U10) -> West Ham v Palace 6/10 29/10 24/5 | D10: =IF(Match!V10="","",Match!V10) -> West Ham 2-2 Palace
A11: =IF(Match!B11="","",Match!B11) -> 2021-08-28 | B11: =IF(Match!D11="","",Match!D11) -> Champ | C11: =IF(Match!U11="","",Match!U11) -> Barnsley v Birmingham 23/20 21/10 27/10 | D11: =IF(Match!V11="","",Match!V11) -> Barnsley 1-1 Birmingham
A12: =IF(Match!B12="","",Match!B12) -> 2021-08-28 | B12: =IF(Match!D12="","",Match!D12) -> Champ | C12: =IF(Match!U12="","",Match!U12) -> Cardiff v Bristol C 19/20 23/10 16/5 | D12: =IF(Match!V12="","",Match!V12) -> Cardiff 1-2 Bristol C
A13: =IF(Match!B13="","",Match!B13) -> 2021-08-28 | B13: =IF(Match!D13="","",Match!D13) -> Champ | C13: =IF(Match!U13="","",Match!U13) -> Derby v Forest 7/4 2/1 7/4 | D13: =IF(Match!V13="","",Match!V13) -> Derby 1-1 Forest
A14: =IF(Match!B14="","",Match!B14) -> 2021-08-28 | B14: =IF(Match!D14="","",Match!D14) -> Champ | C14: =IF(Match!U14="","",Match!U14) -> Fulham v Stoke 1/1 11/5 3/1 | D14: =IF(Match!V14="","",Match!V14) -> Fulham 3-0 Stoke
A15: =IF(Match!B15="","",Match!B15) -> 2021-08-28 | B15: =IF(Match!D15="","",Match!D15) -> Champ | C15: =IF(Match!U15="","",Match!U15) -> Huddersfield v Reading 13/8 12/5 2/1 | D15: =IF(Match!V15="","",Match!V15) -> Huddersfield 4-0 Reading
A16: =IF(Match!B16="","",Match!B16) -> 2021-08-28 | B16: =IF(Match!D16="","",Match!D16) -> Champ | C16: =IF(Match!U16="","",Match!U16) -> Hull v Bournemouth 9/4 11/5 13/10 | D16: =IF(Match!V16="","",Match!V16) -> Hull 0-0 Bournemouth
A17: =IF(Match!B17="","",Match!B17) -> 2021-08-28 | B17: =IF(Match!D17="","",Match!D17) -> Champ | C17: =IF(Match!U17="","",Match!U17) -> Luton v Sheff U 11/5 21/10 11/8 | D17: =IF(Match!V17="","",Match!V17) -> Luton 0-0 Sheff U
A18: =IF(Match!B18="","",Match!B18) -> 2021-08-28 | B18: =IF(Match!D18="","",Match!D18) -> Champ | C18: =IF(Match!U18="","",Match!U18) -> Middlesbro v Blackburn 6/5 11/5 17/5 | D18: =IF(Match!V18="","",Match!V18) -> Middlesbro 1-1 Blackburn
A19: =IF(Match!B19="","",Match!B19) -> 2021-08-28 | B19: =IF(Match!D19="","",Match!D19) -> Champ | C19: =IF(Match!U19="","",Match!U19) -> Millwall v Blackpool 10/11 11/5 17/5 | D19: =IF(Match!V19="","",Match!V19) -> Millwall 2-1 Blackpool
A20: =IF(Match!B20="","",Match!B20) -> 2021-08-28 | B20: =IF(Match!D20="","",Match!D20) -> Champ | C20: =IF(Match!U20="","",Match!U20) -> Peterborough v West Brom 16/5 5/2 17/20 | D20: =IF(Match!V20="","",Match!V20) -> Peterborough 0-1 West Brom
A21: =IF(Match!B21="","",Match!B21) -> 2021-08-28 | B21: =IF(Match!D21="","",Match!D21) -> Champ | C21: =IF(Match!U21="","",Match!U21) -> Preston v Swansea 8/5 21/10 9/5 | D21: =IF(Match!V21="","",Match!V21) -> Preston 3-1 Swansea
A22: =IF(Match!B22="","",Match!B22) -> 2021-08-28 | B22: =IF(Match!D22="","",Match!D22) -> Champ | C22: =IF(Match!U22="","",Match!U22) -> QPR v Coventry 23/20 11/5 13/5 | D22: =IF(Match!V22="","",Match!V22) -> QPR 2-0 Coventry
A23: =IF(Match!B23="","",Match!B23) -> 2021-08-28 | B23: =IF(Match!D23="","",Match!D23) -> League 1 | C23: =IF(Match!U23="","",Match!U23) -> Cambridge v Bolton 2/1 12/5 13/10 | D23: =IF(Match!V23="","",Match!V23) -> Cambridge 1-0 Bolton
A24: =IF(Match!B24="","",Match!B24) -> 2021-08-28 | B24: =IF(Match!D24="","",Match!D24) -> League 1 | C24: =IF(Match!U24="","",Match!U24) -> Charlton v Crewe 17/20 5/2 16/5 | D24: =IF(Match!V24="","",Match!V24) -> Charlton 2-0 Crewe
A25: =IF(Match!B25="","",Match!B25) -> 2021-08-28 | B25: =IF(Match!D25="","",Match!D25) -> League 1 | C25: =IF(Match!U25="","",Match!U25) -> Ipswich v Wimbledon 1/1 23/10 29/10 | D25: =IF(Match!V25="","",Match!V25) -> Ipswich 2-2 Wimbledon
A26: =IF(Match!B26="","",Match!B26) -> 2021-08-28 | B26: =IF(Match!D26="","",Match!D26) -> League 1 | C26: =IF(Match!U26="","",Match!U26) -> MK Dons v Accrington 11/10 12/5 12/5 | D26: =IF(Match!V26="","",Match!V26) -> MK Dons 2-0 Accrington
A27: =IF(Match!B27="","",Match!B27) -> 2021-08-28 | B27: =IF(Match!D27="","",Match!D27) -> League 1 | C27: =IF(Match!U27="","",Match!U27) -> Morecambe v Sheff W 3/1 5/2 10/11 | D27: =IF(Match!V27="","",Match!V27) -> Morecambe 1-0 Sheff W
A28: =IF(Match!B28="","",Match!B28) -> 2021-08-28 | B28: =IF(Match!D28="","",Match!D28) -> League 1 | C28: =IF(Match!U28="","",Match!U28) -> Oxford v Lincoln 11/10 12/5 12/5 | D28: =IF(Match!V28="","",Match!V28) -> Oxford 3-1 Lincoln
A29: =IF(Match!B29="","",Match!B29) -> 2021-08-28 | B29: =IF(Match!D29="","",Match!D29) -> League 1 | C29: =IF(Match!U29="","",Match!U29) -> Plymouth v Fleetwood 29/20 9/4 19/10 | D29: =IF(Match!V29="","",Match!V29) -> Plymouth 1-1 Fleetwood
A30: =IF(Match!B30="","",Match!B30) -> 2021-08-28 | B30: =IF(Match!D30="","",Match!D30) -> League 1 | C30: =IF(Match!U30="","",Match!U30) -> Rotherham v Doncaster 13/20 11/4 9/2 | D30: =IF(Match!V30="","",Match!V30) -> Rotherham 2-0 Doncaster
A31: =IF(Match!B31="","",Match!B31) -> 2021-08-28 | B31: =IF(Match!D31="","",Match!D31) -> League 1 | C31: =IF(Match!U31="","",Match!U31) -> Shrewsbury v Gillingham 29/20 9/4 15/8 | D31: =IF(Match!V31="","",Match!V31) -> Shrewsbury 2-1 Gillingham
A32: =IF(Match!B32="","",Match!B32) -> 2021-08-28 | B32: =IF(Match!D32="","",Match!D32) -> League 1 | C32: =IF(Match!U32="","",Match!U32) -> Sunderland v Wycombe 1/1 12/5 14/5 | D32: =IF(Match!V32="","",Match!V32) -> Sunderland 3-1 Wycombe
A33: =IF(Match!B33="","",Match!B33) -> 2021-08-28 | B33: =IF(Match!D33="","",Match!D33) -> League 1 | C33: =IF(Match!U33="","",Match!U33) -> Wigan v Portsmouth 8/5 21/10 15/8 | D33: =IF(Match!V33="","",Match!V33) -> Wigan 1-0 Portsmouth
A34: =IF(Match!B34="","",Match!B34) -> 2021-08-28 | B34: =IF(Match!D34="","",Match!D34) -> League 2 | C34: =IF(Match!U34="","",Match!U34) -> Barrow v Bristol R 29/20 11/5 2/1 | D34: =IF(Match!V34="","",Match!V34) -> Barrow 1-1 Bristol R
A35: =IF(Match!B35="","",Match!B35) -> 2021-08-28 | B35: =IF(Match!D35="","",Match!D35) -> League 2 | C35: =IF(Match!U35="","",Match!U35) -> Crawley v Northampton 15/8 23/10 29/20 | D35: =IF(Match!V35="","",Match!V35) -> Crawley 0-0 Northampton
A36: =IF(Match!B36="","",Match!B36) -> 2021-08-28 | B36: =IF(Match!D36="","",Match!D36) -> League 2 | C36: =IF(Match!U36="","",Match!U36) -> Forest Green v Port Vale 23/20 21/10 27/10 | D36: =IF(Match!V36="","",Match!V36) -> Forest Green 0-2 Port Vale
A37: =IF(Match!B37="","",Match!B37) -> 2021-08-28 | B37: =IF(Match!D37="","",Match!D37) -> League 2 | C37: =IF(Match!U37="","",Match!U37) -> Harrogate v Exeter 8/5 12/5 13/8 | D37: =IF(Match!V37="","",Match!V37) -> Harrogate 1-1 Exeter
A38: =IF(Match!B38="","",Match!B38) -> 2021-08-28 | B38: =IF(Match!D38="","",Match!D38) -> League 2 | C38: =IF(Match!U38="","",Match!U38) -> Hartlepool v Carlisle 15/8 11/5 6/4 | D38: =IF(Match!V38="","",Match!V38) -> Hartlepool 2-1 Carlisle
A39: =IF(Match!B39="","",Match!B39) -> 2021-08-28 | B39: =IF(Match!D39="","",Match!D39) -> League 2 | C39: =IF(Match!U39="","",Match!U39) -> Orient v Bradford 2/1 21/10 21/10 | D39: =IF(Match!V39="","",Match!V39) -> Orient 2-0 Bradford
A40: =IF(Match!B40="","",Match!B40) -> 2021-08-28 | B40: =IF(Match!D40="","",Match!D40) -> League 2 | C40: =IF(Match!U40="","",Match!U40) -> Salford v Newport 7/5 21/10 29/20 | D40: =IF(Match!V40="","",Match!V40) -> Salford 3-0 Newport
A41: =IF(Match!B41="","",Match!B41) -> 2021-08-28 | B41: =IF(Match!D41="","",Match!D41) -> League 2 | C41: =IF(Match!U41="","",Match!U41) -> Scunthorpe v Tranmere 27/10 11/5 11/10 | D41: =IF(Match!V41="","",Match!V41) -> Scunthorpe 1-0 Tranmere | E41: 1
A42: =IF(Match!B42="","",Match!B42) -> 2021-08-28 | B42: =IF(Match!D42="","",Match!D42) -> League 2 | C42: =IF(Match!U42="","",Match!U42) -> Sutton v Oldham 11/10 9/4 13/5 | D42: =IF(Match!V42="","",Match!V42) -> Sutton 1-2 Oldham
A43: =IF(Match!B43="","",Match!B43) -> 2021-08-28 | B43: =IF(Match!D43="","",Match!D43) -> League 2 | C43: =IF(Match!U43="","",Match!U43) -> Swindon v Mansfield 21/10 23/10 13/10 | D43: =IF(Match!V43="","",Match!V43) -> Swindon 1-0 Mansfield
A44: =IF(Match!B44="","",Match!B44) -> 2021-08-28 | B44: =IF(Match!D44="","",Match!D44) -> League 2 | C44: =IF(Match!U44="","",Match!U44) -> Walsall v Stevenage 15/8 21/10 8/5 | D44: =IF(Match!V44="","",Match!V44) -> Walsall 1-0 Stevenage
A45: =IF(Match!B45="","",Match!B45) -> 2021-08-29 | B45: =IF(Match!D45="","",Match!D45) -> Premier | C45: =IF(Match!U45="","",Match!U45) -> Burnley v Leeds 21/10 5/2 5/4 | D45: =IF(Match!V45="","",Match!V45) -> Burnley 1-1 Leeds
A46: =IF(Match!B46="","",Match!B46) -> 2021-08-29 | B46: =IF(Match!D46="","",Match!D46) -> Premier | C46: =IF(Match!U46="","",Match!U46) -> Spurs v Watford 2/5 17/5 15/2 | D46: =IF(Match!V46="","",Match!V46) -> Spurs 1-0 Watford
A47: =IF(Match!B47="","",Match!B47) -> 2021-08-29 | B47: =IF(Match!D47="","",Match!D47) -> Premier | C47: =IF(Match!U47="","",Match!U47) -> Wolves v Man U 4/1 12/5 4/5 | D47: =IF(Match!V47="","",Match!V47) -> Wolves 0-1 Man U

Sheet Table
A1: =CONCATENATE(CurrentSeason,"/Week ",CurrentWeek) -> PL38/Week 3 | B1: Place Prize | C1: Promotion/ Relegation | D1: Pos | E1: Div | F1: Player | G1: ↓ | H1: New Div | I1: Total Score | J1: Total correct | K1: Week Score | L1: Week Correct | M1: Brought Forward | N1: League Place Prize | O1: Weekly Prizes | P1: Cup Prize | Q1: Total Prize | R1: Season Balance
A2: Division A | B2: =CONCATENATE(E2,D2) -> A1 | D2: 1 | E2: A | F2: Phil Miller | I2: =INDEX(Weekly!F:F,MATCH($F2,Weekly!$E:$E,0)) -> 43.29545455 | J2: =INDEX(Weekly!G:G,MATCH($F2,Weekly!$E:$E,0)) -> 7 | K2: =INDEX(Weekly!H:H,MATCH($F2,Weekly!$E:$E,0)) -> 37.81818182 | L2: =INDEX(Weekly!I:I,MATCH($F2,Weekly!$E:$E,0)) -> 3 | M2: =INDEX(Players!F:F,MATCH($F2,Players!#REF!,0)) ->  | N2: =INDEX(Prizes!F:F,MATCH($B2,Prizes!A:A,0)) -> 108.675 | O2: =INDEX(Weekly!J:J,MATCH($F2,Weekly!$E:$E,0)) -> 10 | P2: =INDEX(Weekly!K:K,MATCH($F2,Weekly!$E:$E,0)) -> 0 | Q2: =INDEX(Weekly!M:M,MATCH($F2,Weekly!$E:$E,0)) -> 118.675 | R2: =Q2+M2 -> 
B3: A2 | D3: 2 | E3: A | F3: Barry Birchall | I3: =INDEX(Weekly!F:F,MATCH($F3,Weekly!$E:$E,0)) -> 16.745 | J3: =INDEX(Weekly!G:G,MATCH($F3,Weekly!$E:$E,0)) -> 6 | K3: =INDEX(Weekly!H:H,MATCH($F3,Weekly!$E:$E,0)) -> -5.35 | L3: =INDEX(Weekly!I:I,MATCH($F3,Weekly!$E:$E,0)) -> 1 | M3: =INDEX(Players!F:F,MATCH($F3,Players!#REF!,0)) ->  | N3: =INDEX(Prizes!F:F,MATCH($B3,Prizes!A:A,0)) -> 77.625 | O3: =INDEX(Weekly!J:J,MATCH($F3,Weekly!$E:$E,0)) -> 0 | P3: =INDEX(Weekly!K:K,MATCH($F3,Weekly!$E:$E,0)) -> 0 | Q3: =INDEX(Weekly!M:M,MATCH($F3,Weekly!$E:$E,0)) -> 77.625 | R3: =Q3+M3 -> 
B4: A3 | D4: 3 | E4: A | F4: Chris Bow | I4: =INDEX(Weekly!F:F,MATCH($F4,Weekly!$E:$E,0)) -> 9.62 | J4: =INDEX(Weekly!G:G,MATCH($F4,Weekly!$E:$E,0)) -> 5 | K4: =INDEX(Weekly!H:H,MATCH($F4,Weekly!$E:$E,0)) -> 2.8 | L4: =INDEX(Weekly!I:I,MATCH($F4,Weekly!$E:$E,0)) -> 2 | M4: =INDEX(Players!F:F,MATCH($F4,Players!#REF!,0)) ->  | N4: =INDEX(Prizes!F:F,MATCH($B4,Prizes!A:A,0)) -> 55.89 | O4: =INDEX(Weekly!J:J,MATCH($F4,Weekly!$E:$E,0)) -> 0 | P4: =INDEX(Weekly!K:K,MATCH($F4,Weekly!$E:$E,0)) -> 0 | Q4: =INDEX(Weekly!M:M,MATCH($F4,Weekly!$E:$E,0)) -> 55.89 | U4: Promotion and Relegation Key
B5: A4 | D5: 4 | E5: A | F5: Mark Saunders | I5: =INDEX(Weekly!F:F,MATCH($F5,Weekly!$E:$E,0)) -> 6.645454545 | J5: =INDEX(Weekly!G:G,MATCH($F5,Weekly!$E:$E,0)) -> 6 | K5: =INDEX(Weekly!H:H,MATCH($F5,Weekly!$E:$E,0)) -> 4.9 | L5: =INDEX(Weekly!I:I,MATCH($F5,Weekly!$E:$E,0)) -> 2 | M5: =INDEX(Players!F:F,MATCH($F5,Players!#REF!,0)) ->  | N5: =INDEX(Prizes!F:F,MATCH($B5,Prizes!A:A,0)) -> 37.26 | O5: =INDEX(Weekly!J:J,MATCH($F5,Weekly!$E:$E,0)) -> 0 | P5: =INDEX(Weekly!K:K,MATCH($F5,Weekly!$E:$E,0)) -> 0 | Q5: =INDEX(Weekly!M:M,MATCH($F5,Weekly!$E:$E,0)) -> 37.26 | U5: No change
B6: A5 | D6: 5 | E6: A | F6: Kevin Carter | I6: =INDEX(Weekly!F:F,MATCH($F6,Weekly!$E:$E,0)) -> 5.729393939 | J6: =INDEX(Weekly!G:G,MATCH($F6,Weekly!$E:$E,0)) -> 7 | K6: =INDEX(Weekly!H:H,MATCH($F6,Weekly!$E:$E,0)) -> -0.2272727273 | L6: =INDEX(Weekly!I:I,MATCH($F6,Weekly!$E:$E,0)) -> 2 | M6: =INDEX(Players!F:F,MATCH($F6,Players!#REF!,0)) ->  | N6: =INDEX(Prizes!F:F,MATCH($B6,Prizes!A:A,0)) -> 21.735 | O6: =INDEX(Weekly!J:J,MATCH($F6,Weekly!$E:$E,0)) -> 0 | P6: =INDEX(Weekly!K:K,MATCH($F6,Weekly!$E:$E,0)) -> 0 | Q6: =INDEX(Weekly!M:M,MATCH($F6,Weekly!$E:$E,0)) -> 21.735 | U6: Promoted to Division above
B7: A6 | D7: 6 | E7: A | F7: Mal Stott | I7: =INDEX(Weekly!F:F,MATCH($F7,Weekly!$E:$E,0)) -> 0.9081818182 | J7: =INDEX(Weekly!G:G,MATCH($F7,Weekly!$E:$E,0)) -> 5 | K7: =INDEX(Weekly!H:H,MATCH($F7,Weekly!$E:$E,0)) -> -5.15 | L7: =INDEX(Weekly!I:I,MATCH($F7,Weekly!$E:$E,0)) -> 1 | M7: =INDEX(Players!F:F,MATCH($F7,Players!#REF!,0)) ->  | N7: =INDEX(Prizes!F:F,MATCH($B7,Prizes!A:A,0)) -> 9.315 | O7: =INDEX(Weekly!J:J,MATCH($F7,Weekly!$E:$E,0)) -> 0 | P7: =INDEX(Weekly!K:K,MATCH($F7,Weekly!$E:$E,0)) -> 0 | Q7: =INDEX(Weekly!M:M,MATCH($F7,Weekly!$E:$E,0)) -> 9.315 | U7: Relegated to Division below
B8: A7 | D8: 7 | E8: A | F8: Lennie Bow | I8: =INDEX(Weekly!F:F,MATCH($F8,Weekly!$E:$E,0)) -> 0.2761363636 | J8: =INDEX(Weekly!G:G,MATCH($F8,Weekly!$E:$E,0)) -> 5 | K8: =INDEX(Weekly!H:H,MATCH($F8,Weekly!$E:$E,0)) -> -4.9 | L8: =INDEX(Weekly!I:I,MATCH($F8,Weekly!$E:$E,0)) -> 1 | M8: =INDEX(Players!F:F,MATCH($F8,Players!#REF!,0)) ->  | N8: =INDEX(Prizes!F:F,MATCH($B8,Prizes!A:A,0)) -> 0 | O8: =INDEX(Weekly!J:J,MATCH($F8,Weekly!$E:$E,0)) -> 0 | P8: =INDEX(Weekly!K:K,MATCH($F8,Weekly!$E:$E,0)) -> 0 | Q8: =INDEX(Weekly!M:M,MATCH($F8,Weekly!$E:$E,0)) -> 0 | U8: Best two up to Div A, Worst two down to Div B
B9: A8 | D9: 8 | E9: A | F9: Nigel Heyes | I9: =INDEX(Weekly!F:F,MATCH($F9,Weekly!$E:$E,0)) -> -0.2354545455 | J9: =INDEX(Weekly!G:G,MATCH($F9,Weekly!$E:$E,0)) -> 5 | K9: =INDEX(Weekly!H:H,MATCH($F9,Weekly!$E:$E,0)) -> 3.16 | L9: =INDEX(Weekly!I:I,MATCH($F9,Weekly!$E:$E,0)) -> 2 | M9: =INDEX(Players!F:F,MATCH($F9,Players!#REF!,0)) ->  | N9: =INDEX(Prizes!F:F,MATCH($B9,Prizes!A:A,0)) -> 0 | O9: =INDEX(Weekly!J:J,MATCH($F9,Weekly!$E:$E,0)) -> 0 | P9: =INDEX(Weekly!K:K,MATCH($F9,Weekly!$E:$E,0)) -> 0 | Q9: =INDEX(Weekly!M:M,MATCH($F9,Weekly!$E:$E,0)) -> 0 | U9: Best two up to Div B, Worst two down to Div C
B10: A9 | C10: Play-off | D10: 9 | E10: A | F10: Steve Baxter | I10: =INDEX(Weekly!F:F,MATCH($F10,Weekly!$E:$E,0)) -> -1.980909091 | J10: =INDEX(Weekly!G:G,MATCH($F10,Weekly!$E:$E,0)) -> 6 | K10: =INDEX(Weekly!H:H,MATCH($F10,Weekly!$E:$E,0)) -> -5.2 | L10: =INDEX(Weekly!I:I,MATCH($F10,Weekly!$E:$E,0)) -> 1 | M10: =INDEX(Players!F:F,MATCH($F10,Players!#REF!,0)) ->  | N10: =INDEX(Prizes!F:F,MATCH($B10,Prizes!A:A,0)) -> 0 | O10: =INDEX(Weekly!J:J,MATCH($F10,Weekly!$E:$E,0)) -> 0 | P10: =INDEX(Weekly!K:K,MATCH($F10,Weekly!$E:$E,0)) -> 0 | Q10: =INDEX(Weekly!M:M,MATCH($F10,Weekly!$E:$E,0)) -> 0 | U10: Best two up to Div C, Worst two down to Div D
B11: A10 | C11: Play-off | D11: 10 | E11: A | F11: Sally Williams | I11: =INDEX(Weekly!F:F,MATCH($F11,Weekly!$E:$E,0)) -> -2.1 | J11: =INDEX(Weekly!G:G,MATCH($F11,Weekly!$E:$E,0)) -> 3 | K11: =INDEX(Weekly!H:H,MATCH($F11,Weekly!$E:$E,0)) -> 8.8 | L11: =INDEX(Weekly!I:I,MATCH($F11,Weekly!$E:$E,0)) -> 2 | M11: =INDEX(Players!F:F,MATCH($F11,Players!#REF!,0)) ->  | N11: =INDEX(Prizes!F:F,MATCH($B11,Prizes!A:A,0)) -> 0 | O11: =INDEX(Weekly!J:J,MATCH($F11,Weekly!$E:$E,0)) -> 0 | P11: =INDEX(Weekly!K:K,MATCH($F11,Weekly!$E:$E,0)) -> 0 | Q11: =INDEX(Weekly!M:M,MATCH($F11,Weekly!$E:$E,0)) -> 0
B12: A11 | C12: ↓ | D12: 11 | E12: A | F12: Gerard Ventom | I12: =INDEX(Weekly!F:F,MATCH($F12,Weekly!$E:$E,0)) -> -2.15 | J12: =INDEX(Weekly!G:G,MATCH($F12,Weekly!$E:$E,0)) -> 4 | K12: =INDEX(Weekly!H:H,MATCH($F12,Weekly!$E:$E,0)) -> -3.8 | L12: =INDEX(Weekly!I:I,MATCH($F12,Weekly!$E:$E,0)) -> 1 | M12: =INDEX(Players!F:F,MATCH($F12,Players!#REF!,0)) ->  | N12: =INDEX(Prizes!F:F,MATCH($B12,Prizes!A:A,0)) -> 0 | O12: =INDEX(Weekly!J:J,MATCH($F12,Weekly!$E:$E,0)) -> 0 | P12: =INDEX(Weekly!K:K,MATCH($F12,Weekly!$E:$E,0)) -> 0 | Q12: =INDEX(Weekly!M:M,MATCH($F12,Weekly!$E:$E,0)) -> 0
B13: A12 | C13: ↓ | D13: 12 | E13: A | F13: Alfie Davies | I13: =INDEX(Weekly!F:F,MATCH($F13,Weekly!$E:$E,0)) -> -14.25 | J13: =INDEX(Weekly!G:G,MATCH($F13,Weekly!$E:$E,0)) -> 3 | K13: =INDEX(Weekly!H:H,MATCH($F13,Weekly!$E:$E,0)) -> -5.15 | L13: =INDEX(Weekly!I:I,MATCH($F13,Weekly!$E:$E,0)) -> 1 | M13: =INDEX(Players!F:F,MATCH($F13,Players!#REF!,0)) ->  | N13: =INDEX(Prizes!F:F,MATCH($B13,Prizes!A:A,0)) -> 0 | O13: =INDEX(Weekly!J:J,MATCH($F13,Weekly!$E:$E,0)) -> 0 | P13: =INDEX(Weekly!K:K,MATCH($F13,Weekly!$E:$E,0)) -> 0 | Q13: =INDEX(Weekly!M:M,MATCH($F13,Weekly!$E:$E,0)) -> 0
B14: A13 | C14: ↓ | D14: 13 | E14: A | F14: Steve Carter | I14: =INDEX(Weekly!F:F,MATCH($F14,Weekly!$E:$E,0)) -> -15.4 | J14: =INDEX(Weekly!G:G,MATCH($F14,Weekly!$E:$E,0)) -> 5 | K14: =INDEX(Weekly!H:H,MATCH($F14,Weekly!$E:$E,0)) -> -3.7 | L14: =INDEX(Weekly!I:I,MATCH($F14,Weekly!$E:$E,0)) -> 1 | M14: =INDEX(Players!F:F,MATCH($F14,Players!#REF!,0)) ->  | N14: =INDEX(Prizes!F:F,MATCH($B14,Prizes!A:A,0)) -> 0 | O14: =INDEX(Weekly!J:J,MATCH($F14,Weekly!$E:$E,0)) -> 0 | P14: =INDEX(Weekly!K:K,MATCH($F14,Weekly!$E:$E,0)) -> 0 | Q14: =INDEX(Weekly!M:M,MATCH($F14,Weekly!$E:$E,0)) -> 0
B15: A14 | C15: ↓ | D15: 14 | E15: A | F15: Mark Bunn | I15: =INDEX(Weekly!F:F,MATCH($F15,Weekly!$E:$E,0)) -> -15.65 | J15: =INDEX(Weekly!G:G,MATCH($F15,Weekly!$E:$E,0)) -> 2 | K15: =INDEX(Weekly!H:H,MATCH($F15,Weekly!$E:$E,0)) -> -3.8 | L15: =INDEX(Weekly!I:I,MATCH($F15,Weekly!$E:$E,0)) -> 1 | M15: =INDEX(Players!F:F,MATCH($F15,Players!#REF!,0)) ->  | N15: =INDEX(Prizes!F:F,MATCH($B15,Prizes!A:A,0)) -> 0 | O15: =INDEX(Weekly!J:J,MATCH($F15,Weekly!$E:$E,0)) -> 0 | P15: =INDEX(Weekly!K:K,MATCH($F15,Weekly!$E:$E,0)) -> 0 | Q15: =INDEX(Weekly!M:M,MATCH($F15,Weekly!$E:$E,0)) -> 0
B16: A15 | C16: ↓ | D16: 15 | E16: A | F16: Kei Lok Ma | I16: =INDEX(Weekly!F:F,MATCH($F16,Weekly!$E:$E,0)) -> -18.75 | J16: =INDEX(Weekly!G:G,MATCH($F16,Weekly!$E:$E,0)) -> 1 | K16: =INDEX(Weekly!H:H,MATCH($F16,Weekly!$E:$E,0)) -> -7 | L16: =INDEX(Weekly!I:I,MATCH($F16,Weekly!$E:$E,0)) -> 0 | M16: =INDEX(Players!F:F,MATCH($F16,Players!#REF!,0)) ->  | N16: =INDEX(Prizes!F:F,MATCH($B16,Prizes!A:A,0)) -> 0 | O16: =INDEX(Weekly!J:J,MATCH($F16,Weekly!$E:$E,0)) -> 0 | P16: =INDEX(Weekly!K:K,MATCH($F16,Weekly!$E:$E,0)) -> 0 | Q16: =INDEX(Weekly!M:M,MATCH($F16,Weekly!$E:$E,0)) -> 0
B17: A16 | C17: ↓ | D17: 16 | E17: A | F17: Paul Fairhurst | I17: =INDEX(Weekly!F:F,MATCH($F17,Weekly!$E:$E,0)) -> -18.95 | J17: =INDEX(Weekly!G:G,MATCH($F17,Weekly!$E:$E,0)) -> 1 | K17: =INDEX(Weekly!H:H,MATCH($F17,Weekly!$E:$E,0)) -> -7 | L17: =INDEX(Weekly!I:I,MATCH($F17,Weekly!$E:$E,0)) -> 0 | M17: =INDEX(Players!F:F,MATCH($F17,Players!#REF!,0)) ->  | N17: =INDEX(Prizes!F:F,MATCH($B17,Prizes!A:A,0)) -> 0 | O17: =INDEX(Weekly!J:J,MATCH($F17,Weekly!$E:$E,0)) -> 0 | P17: =INDEX(Weekly!K:K,MATCH($F17,Weekly!$E:$E,0)) -> 0 | Q17: =INDEX(Weekly!M:M,MATCH($F17,Weekly!$E:$E,0)) -> 0
A18: Division B | B18: B1 | C18: ↑ | D18: 1 | E18: B | F18: Dave Orrell | I18: =INDEX(Weekly!F:F,MATCH($F18,Weekly!$E:$E,0)) -> 30.54 | J18: =INDEX(Weekly!G:G,MATCH($F18,Weekly!$E:$E,0)) -> 6 | K18: =INDEX(Weekly!H:H,MATCH($F18,Weekly!$E:$E,0)) -> 2.71 | L18: =INDEX(Weekly!I:I,MATCH($F18,Weekly!$E:$E,0)) -> 2 | M18: =INDEX(Players!F:F,MATCH($F18,Players!#REF!,0)) ->  | N18: =INDEX(Prizes!F:F,MATCH($B18,Prizes!A:A,0)) -> 72.45 | O18: =INDEX(Weekly!J:J,MATCH($F18,Weekly!$E:$E,0)) -> 5 | P18: =INDEX(Weekly!K:K,MATCH($F18,Weekly!$E:$E,0)) -> 0 | Q18: =INDEX(Weekly!M:M,MATCH($F18,Weekly!$E:$E,0)) -> 77.45
B19: B2 | C19: ↑ | D19: 2 | E19: B | F19: Stephen Troop | I19: =INDEX(Weekly!F:F,MATCH($F19,Weekly!$E:$E,0)) -> 26.38135198 | J19: =INDEX(Weekly!G:G,MATCH($F19,Weekly!$E:$E,0)) -> 8 | K19: =INDEX(Weekly!H:H,MATCH($F19,Weekly!$E:$E,0)) -> 12.94545455 | L19: =INDEX(Weekly!I:I,MATCH($F19,Weekly!$E:$E,0)) -> 3 | M19: =INDEX(Players!F:F,MATCH($F19,Players!#REF!,0)) ->  | N19: =INDEX(Prizes!F:F,MATCH($B19,Prizes!A:A,0)) -> 51.75 | O19: =INDEX(Weekly!J:J,MATCH($F19,Weekly!$E:$E,0)) -> 0 | P19: =INDEX(Weekly!K:K,MATCH($F19,Weekly!$E:$E,0)) -> 0 | Q19: =INDEX(Weekly!M:M,MATCH($F19,Weekly!$E:$E,0)) -> 51.75
B20: B3 | C20: ↑ | D20: 3 | E20: B | F20: John Ronan | I20: =INDEX(Weekly!F:F,MATCH($F20,Weekly!$E:$E,0)) -> 24.7195 | J20: =INDEX(Weekly!G:G,MATCH($F20,Weekly!$E:$E,0)) -> 5 | K20: =INDEX(Weekly!H:H,MATCH($F20,Weekly!$E:$E,0)) -> -4.9 | L20: =INDEX(Weekly!I:I,MATCH($F20,Weekly!$E:$E,0)) -> 1 | M20: =INDEX(Players!F:F,MATCH($F20,Players!#REF!,0)) ->  | N20: =INDEX(Prizes!F:F,MATCH($B20,Prizes!A:A,0)) -> 37.26 | O20: =INDEX(Weekly!J:J,MATCH($F20,Weekly!$E:$E,0)) -> 10 | P20: =INDEX(Weekly!K:K,MATCH($F20,Weekly!$E:$E,0)) -> 0 | Q20: =INDEX(Weekly!M:M,MATCH($F20,Weekly!$E:$E,0)) -> 47.26
B21: B4 | C21: ↑ | D21: 4 | E21: B | F21: Howard Bradley | I21: =INDEX(Weekly!F:F,MATCH($F21,Weekly!$E:$E,0)) -> 22.254 | J21: =INDEX(Weekly!G:G,MATCH($F21,Weekly!$E:$E,0)) -> 6 | K21: =INDEX(Weekly!H:H,MATCH($F21,Weekly!$E:$E,0)) -> -3.5 | L21: =INDEX(Weekly!I:I,MATCH($F21,Weekly!$E:$E,0)) -> 1 | M21: =INDEX(Players!F:F,MATCH($F21,Players!#REF!,0)) ->  | N21: =INDEX(Prizes!F:F,MATCH($B21,Prizes!A:A,0)) -> 24.84 | O21: =INDEX(Weekly!J:J,MATCH($F21,Weekly!$E:$E,0)) -> 0 | P21: =INDEX(Weekly!K:K,MATCH($F21,Weekly!$E:$E,0)) -> 0 | Q21: =INDEX(Weekly!M:M,MATCH($F21,Weekly!$E:$E,0)) -> 24.84
B22: B5 | C22: ↑ | D22: 5 | E22: B | F22: Charlie Griffiths | I22: =INDEX(Weekly!F:F,MATCH($F22,Weekly!$E:$E,0)) -> 13.556875 | J22: =INDEX(Weekly!G:G,MATCH($F22,Weekly!$E:$E,0)) -> 4 | K22: =INDEX(Weekly!H:H,MATCH($F22,Weekly!$E:$E,0)) -> -7 | L22: =INDEX(Weekly!I:I,MATCH($F22,Weekly!$E:$E,0)) -> 0 | M22: =INDEX(Players!F:F,MATCH($F22,Players!#REF!,0)) ->  | N22: =INDEX(Prizes!F:F,MATCH($B22,Prizes!A:A,0)) -> 14.49 | O22: =INDEX(Weekly!J:J,MATCH($F22,Weekly!$E:$E,0)) -> 5 | P22: =INDEX(Weekly!K:K,MATCH($F22,Weekly!$E:$E,0)) -> 0 | Q22: =INDEX(Weekly!M:M,MATCH($F22,Weekly!$E:$E,0)) -> 19.49
B23: B6 | C23: ↑ | D23: 6 | E23: B | F23: Alick Rocca | I23: =INDEX(Weekly!F:F,MATCH($F23,Weekly!$E:$E,0)) -> 8.023076923 | J23: =INDEX(Weekly!G:G,MATCH($F23,Weekly!$E:$E,0)) -> 5 | K23: =INDEX(Weekly!H:H,MATCH($F23,Weekly!$E:$E,0)) -> 9.2 | L23: =INDEX(Weekly!I:I,MATCH($F23,Weekly!$E:$E,0)) -> 2 | M23: =INDEX(Players!F:F,MATCH($F23,Players!#REF!,0)) ->  | N23: =INDEX(Prizes!F:F,MATCH($B23,Prizes!A:A,0)) -> 6.21 | O23: =INDEX(Weekly!J:J,MATCH($F23,Weekly!$E:$E,0)) -> 0 | P23: =INDEX(Weekly!K:K,MATCH($F23,Weekly!$E:$E,0)) -> 0 | Q23: =INDEX(Weekly!M:M,MATCH($F23,Weekly!$E:$E,0)) -> 6.21
B24: B7 | C24: Play-off | D24: 7 | E24: B | F24: Stephen Barr | I24: =INDEX(Weekly!F:F,MATCH($F24,Weekly!$E:$E,0)) -> 4.193939394 | J24: =INDEX(Weekly!G:G,MATCH($F24,Weekly!$E:$E,0)) -> 6 | K24: =INDEX(Weekly!H:H,MATCH($F24,Weekly!$E:$E,0)) -> 4 | L24: =INDEX(Weekly!I:I,MATCH($F24,Weekly!$E:$E,0)) -> 2 | M24: =INDEX(Players!F:F,MATCH($F24,Players!#REF!,0)) ->  | N24: =INDEX(Prizes!F:F,MATCH($B24,Prizes!A:A,0)) -> 0 | O24: =INDEX(Weekly!J:J,MATCH($F24,Weekly!$E:$E,0)) -> 0 | P24: =INDEX(Weekly!K:K,MATCH($F24,Weekly!$E:$E,0)) -> 0 | Q24: =INDEX(Weekly!M:M,MATCH($F24,Weekly!$E:$E,0)) -> 0
B25: B8 | C25: Play-off | D25: 8 | E25: B | F25: Pete Baron | I25: =INDEX(Weekly!F:F,MATCH($F25,Weekly!$E:$E,0)) -> -0.6 | J25: =INDEX(Weekly!G:G,MATCH($F25,Weekly!$E:$E,0)) -> 3 | K25: =INDEX(Weekly!H:H,MATCH($F25,Weekly!$E:$E,0)) -> 9.2 | L25: =INDEX(Weekly!I:I,MATCH($F25,Weekly!$E:$E,0)) -> 2 | M25: =INDEX(Players!F:F,MATCH($F25,Players!#REF!,0)) ->  | N25: =INDEX(Prizes!F:F,MATCH($B25,Prizes!A:A,0)) -> 0 | O25: =INDEX(Weekly!J:J,MATCH($F25,Weekly!$E:$E,0)) -> 0 | P25: =INDEX(Weekly!K:K,MATCH($F25,Weekly!$E:$E,0)) -> 0 | Q25: =INDEX(Weekly!M:M,MATCH($F25,Weekly!$E:$E,0)) -> 0
B26: B9 | C26: Play-off | D26: 9 | E26: B | F26: Chris Luck | I26: =INDEX(Weekly!F:F,MATCH($F26,Weekly!$E:$E,0)) -> -5.45 | J26: =INDEX(Weekly!G:G,MATCH($F26,Weekly!$E:$E,0)) -> 4 | K26: =INDEX(Weekly!H:H,MATCH($F26,Weekly!$E:$E,0)) -> -3.8 | L26: =INDEX(Weekly!I:I,MATCH($F26,Weekly!$E:$E,0)) -> 1 | M26: =INDEX(Players!F:F,MATCH($F26,Players!#REF!,0)) ->  | N26: =INDEX(Prizes!F:F,MATCH($B26,Prizes!A:A,0)) -> 0 | O26: =INDEX(Weekly!J:J,MATCH($F26,Weekly!$E:$E,0)) -> 0 | P26: =INDEX(Weekly!K:K,MATCH($F26,Weekly!$E:$E,0)) -> 0 | Q26: =INDEX(Weekly!M:M,MATCH($F26,Weekly!$E:$E,0)) -> 0
B27: B10 | C27: Play-off | D27: 10 | E27: B | F27: Simon Greenhalgh | I27: =INDEX(Weekly!F:F,MATCH($F27,Weekly!$E:$E,0)) -> -7.265 | J27: =INDEX(Weekly!G:G,MATCH($F27,Weekly!$E:$E,0)) -> 4 | K27: =INDEX(Weekly!H:H,MATCH($F27,Weekly!$E:$E,0)) -> -5 | L27: =INDEX(Weekly!I:I,MATCH($F27,Weekly!$E:$E,0)) -> 1 | M27: =INDEX(Players!F:F,MATCH($F27,Players!#REF!,0)) ->  | N27: =INDEX(Prizes!F:F,MATCH($B27,Prizes!A:A,0)) -> 0 | O27: =INDEX(Weekly!J:J,MATCH($F27,Weekly!$E:$E,0)) -> 0 | P27: =INDEX(Weekly!K:K,MATCH($F27,Weekly!$E:$E,0)) -> 0 | Q27: =INDEX(Weekly!M:M,MATCH($F27,Weekly!$E:$E,0)) -> 0
B28: B11 | C28: ↓ | D28: 11 | E28: B | F28: Andy White | I28: =INDEX(Weekly!F:F,MATCH($F28,Weekly!$E:$E,0)) -> -9.018181818 | J28: =INDEX(Weekly!G:G,MATCH($F28,Weekly!$E:$E,0)) -> 4 | K28: =INDEX(Weekly!H:H,MATCH($F28,Weekly!$E:$E,0)) -> -5.272727273 | L28: =INDEX(Weekly!I:I,MATCH($F28,Weekly!$E:$E,0)) -> 1 | M28: =INDEX(Players!F:F,MATCH($F28,Players!#REF!,0)) ->  | N28: =INDEX(Prizes!F:F,MATCH($B28,Prizes!A:A,0)) -> 0 | O28: =INDEX(Weekly!J:J,MATCH($F28,Weekly!$E:$E,0)) -> 0 | P28: =INDEX(Weekly!K:K,MATCH($F28,Weekly!$E:$E,0)) -> 0 | Q28: =INDEX(Weekly!M:M,MATCH($F28,Weekly!$E:$E,0)) -> 0
B29: B12 | C29: ↓ | D29: 12 | E29: B | F29: Mo Sudell | I29: =INDEX(Weekly!F:F,MATCH($F29,Weekly!$E:$E,0)) -> -10.16 | J29: =INDEX(Weekly!G:G,MATCH($F29,Weekly!$E:$E,0)) -> 3 | K29: =INDEX(Weekly!H:H,MATCH($F29,Weekly!$E:$E,0)) -> -4.4 | L29: =INDEX(Weekly!I:I,MATCH($F29,Weekly!$E:$E,0)) -> 1 | M29: =INDEX(Players!F:F,MATCH($F29,Players!#REF!,0)) ->  | N29: =INDEX(Prizes!F:F,MATCH($B29,Prizes!A:A,0)) -> 0 | O29: =INDEX(Weekly!J:J,MATCH($F29,Weekly!$E:$E,0)) -> 0 | P29: =INDEX(Weekly!K:K,MATCH($F29,Weekly!$E:$E,0)) -> 0 | Q29: =INDEX(Weekly!M:M,MATCH($F29,Weekly!$E:$E,0)) -> 0
B30: B13 | C30: ↓ | D30: 13 | E30: B | F30: Vinny Topping | I30: =INDEX(Weekly!F:F,MATCH($F30,Weekly!$E:$E,0)) -> -10.609375 | J30: =INDEX(Weekly!G:G,MATCH($F30,Weekly!$E:$E,0)) -> 2 | K30: =INDEX(Weekly!H:H,MATCH($F30,Weekly!$E:$E,0)) -> -7 | L30: =INDEX(Weekly!I:I,MATCH($F30,Weekly!$E:$E,0)) -> 0 | M30: =INDEX(Players!F:F,MATCH($F30,Players!#REF!,0)) ->  | N30: =INDEX(Prizes!F:F,MATCH($B30,Prizes!A:A,0)) -> 0 | O30: =INDEX(Weekly!J:J,MATCH($F30,Weekly!$E:$E,0)) -> 0 | P30: =INDEX(Weekly!K:K,MATCH($F30,Weekly!$E:$E,0)) -> 0 | Q30: =INDEX(Weekly!M:M,MATCH($F30,Weekly!$E:$E,0)) -> 0
B31: B14 | C31: ↓ | D31: 14 | E31: B | F31: Alan Rogers | I31: =INDEX(Weekly!F:F,MATCH($F31,Weekly!$E:$E,0)) -> -14.9 | J31: =INDEX(Weekly!G:G,MATCH($F31,Weekly!$E:$E,0)) -> 2 | K31: =INDEX(Weekly!H:H,MATCH($F31,Weekly!$E:$E,0)) -> -4.6 | L31: =INDEX(Weekly!I:I,MATCH($F31,Weekly!$E:$E,0)) -> 1 | M31: =INDEX(Players!F:F,MATCH($F31,Players!#REF!,0)) ->  | N31: =INDEX(Prizes!F:F,MATCH($B31,Prizes!A:A,0)) -> 0 | O31: =INDEX(Weekly!J:J,MATCH($F31,Weekly!$E:$E,0)) -> 0 | P31: =INDEX(Weekly!K:K,MATCH($F31,Weekly!$E:$E,0)) -> 0 | Q31: =INDEX(Weekly!M:M,MATCH($F31,Weekly!$E:$E,0)) -> 0
B32: B15 | C32: ↓ | D32: 15 | E32: B | F32: Mike Penk | I32: =INDEX(Weekly!F:F,MATCH($F32,Weekly!$E:$E,0)) -> -17.1 | J32: =INDEX(Weekly!G:G,MATCH($F32,Weekly!$E:$E,0)) -> 2 | K32: =INDEX(Weekly!H:H,MATCH($F32,Weekly!$E:$E,0)) -> -7 | L32: =INDEX(Weekly!I:I,MATCH($F32,Weekly!$E:$E,0)) -> 0 | M32: =INDEX(Players!F:F,MATCH($F32,Players!#REF!,0)) ->  | N32: =INDEX(Prizes!F:F,MATCH($B32,Prizes!A:A,0)) -> 0 | O32: =INDEX(Weekly!J:J,MATCH($F32,Weekly!$E:$E,0)) -> 0 | P32: =INDEX(Weekly!K:K,MATCH($F32,Weekly!$E:$E,0)) -> 0 | Q32: =INDEX(Weekly!M:M,MATCH($F32,Weekly!$E:$E,0)) -> 0
B33: B16 | C33: ↓ | D33: 16 | E33: B | F33: James Bell | I33: =INDEX(Weekly!F:F,MATCH($F33,Weekly!$E:$E,0)) -> -18.625 | J33: =INDEX(Weekly!G:G,MATCH($F33,Weekly!$E:$E,0)) -> 1 | K33: =INDEX(Weekly!H:H,MATCH($F33,Weekly!$E:$E,0)) -> -7 | L33: =INDEX(Weekly!I:I,MATCH($F33,Weekly!$E:$E,0)) -> 0 | M33: =INDEX(Players!F:F,MATCH($F33,Players!#REF!,0)) ->  | N33: =INDEX(Prizes!F:F,MATCH($B33,Prizes!A:A,0)) -> 0 | O33: =INDEX(Weekly!J:J,MATCH($F33,Weekly!$E:$E,0)) -> 0 | P33: =INDEX(Weekly!K:K,MATCH($F33,Weekly!$E:$E,0)) -> 0 | Q33: =INDEX(Weekly!M:M,MATCH($F33,Weekly!$E:$E,0)) -> 0
A34: Division C | B34: =CONCATENATE(E34,D34) -> C1 | C34: ↑ | D34: 1 | E34: C | F34: Gareth McGuire | I34: =INDEX(Weekly!F:F,MATCH($F34,Weekly!$E:$E,0)) -> 14.02545455 | J34: =INDEX(Weekly!G:G,MATCH($F34,Weekly!$E:$E,0)) -> 6 | K34: =INDEX(Weekly!H:H,MATCH($F34,Weekly!$E:$E,0)) -> -5 | L34: =INDEX(Weekly!I:I,MATCH($F34,Weekly!$E:$E,0)) -> 1 | M34: =INDEX(Players!F:F,MATCH($F34,Players!#REF!,0)) ->  | N34: =INDEX(Prizes!F:F,MATCH($B34,Prizes!A:A,0)) -> 36.225 | O34: =INDEX(Weekly!J:J,MATCH($F34,Weekly!$E:$E,0)) -> 5 | P34: =INDEX(Weekly!K:K,MATCH($F34,Weekly!$E:$E,0)) -> 0 | Q34: =INDEX(Weekly!M:M,MATCH($F34,Weekly!$E:$E,0)) -> 41.225
B35: C2 | C35: ↑ | D35: 2 | E35: C | F35: Chris Griffin | I35: =INDEX(Weekly!F:F,MATCH($F35,Weekly!$E:$E,0)) -> 13.70979021 | J35: =INDEX(Weekly!G:G,MATCH($F35,Weekly!$E:$E,0)) -> 7 | K35: =INDEX(Weekly!H:H,MATCH($F35,Weekly!$E:$E,0)) -> -3.7 | L35: =INDEX(Weekly!I:I,MATCH($F35,Weekly!$E:$E,0)) -> 1 | M35: =INDEX(Players!F:F,MATCH($F35,Players!#REF!,0)) ->  | N35: =INDEX(Prizes!F:F,MATCH($B35,Prizes!A:A,0)) -> 25.875 | O35: =INDEX(Weekly!J:J,MATCH($F35,Weekly!$E:$E,0)) -> 5 | P35: =INDEX(Weekly!K:K,MATCH($F35,Weekly!$E:$E,0)) -> 0 | Q35: =INDEX(Weekly!M:M,MATCH($F35,Weekly!$E:$E,0)) -> 30.875
B36: C3 | C36: ↑ | D36: 3 | E36: C | F36: Nick Blocksidge | I36: =INDEX(Weekly!F:F,MATCH($F36,Weekly!$E:$E,0)) -> 12.07333333 | J36: =INDEX(Weekly!G:G,MATCH($F36,Weekly!$E:$E,0)) -> 5 | K36: =INDEX(Weekly!H:H,MATCH($F36,Weekly!$E:$E,0)) -> 22.24 | L36: =INDEX(Weekly!I:I,MATCH($F36,Weekly!$E:$E,0)) -> 3 | M36: =INDEX(Players!F:F,MATCH($F36,Players!#REF!,0)) ->  | N36: =INDEX(Prizes!F:F,MATCH($B36,Prizes!A:A,0)) -> 18.63 | O36: =INDEX(Weekly!J:J,MATCH($F36,Weekly!$E:$E,0)) -> 5 | P36: =INDEX(Weekly!K:K,MATCH($F36,Weekly!$E:$E,0)) -> 0 | Q36: =INDEX(Weekly!M:M,MATCH($F36,Weekly!$E:$E,0)) -> 23.63
B37: C4 | C37: ↑ | D37: 4 | E37: C | F37: Rob England | I37: =INDEX(Weekly!F:F,MATCH($F37,Weekly!$E:$E,0)) -> 12.02795455 | J37: =INDEX(Weekly!G:G,MATCH($F37,Weekly!$E:$E,0)) -> 6 | K37: =INDEX(Weekly!H:H,MATCH($F37,Weekly!$E:$E,0)) -> -0.4475 | L37: =INDEX(Weekly!I:I,MATCH($F37,Weekly!$E:$E,0)) -> 2 | M37: =INDEX(Players!F:F,MATCH($F37,Players!#REF!,0)) ->  | N37: =INDEX(Prizes!F:F,MATCH($B37,Prizes!A:A,0)) -> 12.42 | O37: =INDEX(Weekly!J:J,MATCH($F37,Weekly!$E:$E,0)) -> 0 | P37: =INDEX(Weekly!K:K,MATCH($F37,Weekly!$E:$E,0)) -> 0 | Q37: =INDEX(Weekly!M:M,MATCH($F37,Weekly!$E:$E,0)) -> 12.42
B38: C5 | C38: ↑ | D38: 5 | E38: C | F38: Ben Rosser | I38: =INDEX(Weekly!F:F,MATCH($F38,Weekly!$E:$E,0)) -> 10.18727273 | J38: =INDEX(Weekly!G:G,MATCH($F38,Weekly!$E:$E,0)) -> 4 | K38: =INDEX(Weekly!H:H,MATCH($F38,Weekly!$E:$E,0)) -> 10.06 | L38: =INDEX(Weekly!I:I,MATCH($F38,Weekly!$E:$E,0)) -> 2 | M38: =INDEX(Players!F:F,MATCH($F38,Players!#REF!,0)) ->  | N38: =INDEX(Prizes!F:F,MATCH($B38,Prizes!A:A,0)) -> 7.245 | O38: =INDEX(Weekly!J:J,MATCH($F38,Weekly!$E:$E,0)) -> 0 | P38: =INDEX(Weekly!K:K,MATCH($F38,Weekly!$E:$E,0)) -> 0 | Q38: =INDEX(Weekly!M:M,MATCH($F38,Weekly!$E:$E,0)) -> 7.245
B39: C6 | C39: ↑ | D39: 6 | E39: C | F39: Chris Townsend | I39: =INDEX(Weekly!F:F,MATCH($F39,Weekly!$E:$E,0)) -> 10 | J39: =INDEX(Weekly!G:G,MATCH($F39,Weekly!$E:$E,0)) -> 3 | K39: =INDEX(Weekly!H:H,MATCH($F39,Weekly!$E:$E,0)) -> -7 | L39: =INDEX(Weekly!I:I,MATCH($F39,Weekly!$E:$E,0)) -> 0 | M39: =INDEX(Players!F:F,MATCH($F39,Players!#REF!,0)) ->  | N39: =INDEX(Prizes!F:F,MATCH($B39,Prizes!A:A,0)) -> 3.105 | O39: =INDEX(Weekly!J:J,MATCH($F39,Weekly!$E:$E,0)) -> 5 | P39: =INDEX(Weekly!K:K,MATCH($F39,Weekly!$E:$E,0)) -> 0 | Q39: =INDEX(Weekly!M:M,MATCH($F39,Weekly!$E:$E,0)) -> 8.105
B40: C7 | C40: Play-off | D40: 7 | E40: C | F40: Paul Allen | I40: =INDEX(Weekly!F:F,MATCH($F40,Weekly!$E:$E,0)) -> 4.97 | J40: =INDEX(Weekly!G:G,MATCH($F40,Weekly!$E:$E,0)) -> 4 | K40: =INDEX(Weekly!H:H,MATCH($F40,Weekly!$E:$E,0)) -> -7 | L40: =INDEX(Weekly!I:I,MATCH($F40,Weekly!$E:$E,0)) -> 0 | M40: =INDEX(Players!F:F,MATCH($F40,Players!#REF!,0)) ->  | N40: =INDEX(Prizes!F:F,MATCH($B40,Prizes!A:A,0)) -> 0 | O40: =INDEX(Weekly!J:J,MATCH($F40,Weekly!$E:$E,0)) -> 0 | P40: =INDEX(Weekly!K:K,MATCH($F40,Weekly!$E:$E,0)) -> 0 | Q40: =INDEX(Weekly!M:M,MATCH($F40,Weekly!$E:$E,0)) -> 0
B41: C8 | C41: Play-off | D41: 8 | E41: C | F41: Alan White | I41: =INDEX(Weekly!F:F,MATCH($F41,Weekly!$E:$E,0)) -> 3.95 | J41: =INDEX(Weekly!G:G,MATCH($F41,Weekly!$E:$E,0)) -> 4 | K41: =INDEX(Weekly!H:H,MATCH($F41,Weekly!$E:$E,0)) -> -7 | L41: =INDEX(Weekly!I:I,MATCH($F41,Weekly!$E:$E,0)) -> 0 | M41: =INDEX(Players!F:F,MATCH($F41,Players!#REF!,0)) ->  | N41: =INDEX(Prizes!F:F,MATCH($B41,Prizes!A:A,0)) -> 0 | O41: =INDEX(Weekly!J:J,MATCH($F41,Weekly!$E:$E,0)) -> 0 | P41: =INDEX(Weekly!K:K,MATCH($F41,Weekly!$E:$E,0)) -> 0 | Q41: =INDEX(Weekly!M:M,MATCH($F41,Weekly!$E:$E,0)) -> 0
B42: C9 | C42: Play-off | D42: 9 | E42: C | F42: Tom Robinson | I42: =INDEX(Weekly!F:F,MATCH($F42,Weekly!$E:$E,0)) -> 1.421666667 | J42: =INDEX(Weekly!G:G,MATCH($F42,Weekly!$E:$E,0)) -> 4 | K42: =INDEX(Weekly!H:H,MATCH($F42,Weekly!$E:$E,0)) -> -7 | L42: =INDEX(Weekly!I:I,MATCH($F42,Weekly!$E:$E,0)) -> 0 | M42: =INDEX(Players!F:F,MATCH($F42,Players!#REF!,0)) ->  | N42: =INDEX(Prizes!F:F,MATCH($B42,Prizes!A:A,0)) -> 0 | O42: =INDEX(Weekly!J:J,MATCH($F42,Weekly!$E:$E,0)) -> 0 | P42: =INDEX(Weekly!K:K,MATCH($F42,Weekly!$E:$E,0)) -> 0 | Q42: =INDEX(Weekly!M:M,MATCH($F42,Weekly!$E:$E,0)) -> 0
B43: C10 | C43: Play-off | D43: 10 | E43: C | F43: David Dunn | I43: =INDEX(Weekly!F:F,MATCH($F43,Weekly!$E:$E,0)) -> -0.5113636364 | J43: =INDEX(Weekly!G:G,MATCH($F43,Weekly!$E:$E,0)) -> 5 | K43: =INDEX(Weekly!H:H,MATCH($F43,Weekly!$E:$E,0)) -> 2.125 | L43: =INDEX(Weekly!I:I,MATCH($F43,Weekly!$E:$E,0)) -> 2 | M43: =INDEX(Players!F:F,MATCH($F43,Players!#REF!,0)) ->  | N43: =INDEX(Prizes!F:F,MATCH($B43,Prizes!A:A,0)) -> 0 | O43: =INDEX(Weekly!J:J,MATCH($F43,Weekly!$E:$E,0)) -> 0 | P43: =INDEX(Weekly!K:K,MATCH($F43,Weekly!$E:$E,0)) -> 0 | Q43: =INDEX(Weekly!M:M,MATCH($F43,Weekly!$E:$E,0)) -> 0
B44: C11 | C44: ↓ | D44: 11 | E44: C | F44: Graham Miller | I44: =INDEX(Weekly!F:F,MATCH($F44,Weekly!$E:$E,0)) -> -1.105 | J44: =INDEX(Weekly!G:G,MATCH($F44,Weekly!$E:$E,0)) -> 4 | K44: =INDEX(Weekly!H:H,MATCH($F44,Weekly!$E:$E,0)) -> -4.375 | L44: =INDEX(Weekly!I:I,MATCH($F44,Weekly!$E:$E,0)) -> 1 | M44: =INDEX(Players!F:F,MATCH($F44,Players!#REF!,0)) ->  | N44: =INDEX(Prizes!F:F,MATCH($B44,Prizes!A:A,0)) -> 0 | O44: =INDEX(Weekly!J:J,MATCH($F44,Weekly!$E:$E,0)) -> 0 | P44: =INDEX(Weekly!K:K,MATCH($F44,Weekly!$E:$E,0)) -> 0 | Q44: =INDEX(Weekly!M:M,MATCH($F44,Weekly!$E:$E,0)) -> 0
B45: C12 | C45: ↓ | D45: 12 | E45: C | F45: Paul Fiddler | I45: =INDEX(Weekly!F:F,MATCH($F45,Weekly!$E:$E,0)) -> -4.201282051 | J45: =INDEX(Weekly!G:G,MATCH($F45,Weekly!$E:$E,0)) -> 5 | K45: =INDEX(Weekly!H:H,MATCH($F45,Weekly!$E:$E,0)) -> -5.15 | L45: =INDEX(Weekly!I:I,MATCH($F45,Weekly!$E:$E,0)) -> 1 | M45: =INDEX(Players!F:F,MATCH($F45,Players!#REF!,0)) ->  | N45: =INDEX(Prizes!F:F,MATCH($B45,Prizes!A:A,0)) -> 0 | O45: =INDEX(Weekly!J:J,MATCH($F45,Weekly!$E:$E,0)) -> 0 | P45: =INDEX(Weekly!K:K,MATCH($F45,Weekly!$E:$E,0)) -> 0 | Q45: =INDEX(Weekly!M:M,MATCH($F45,Weekly!$E:$E,0)) -> 0
B46: C13 | C46: ↓ | D46: 13 | E46: C | F46: Paul Adderley | I46: =INDEX(Weekly!F:F,MATCH($F46,Weekly!$E:$E,0)) -> -5.383333333 | J46: =INDEX(Weekly!G:G,MATCH($F46,Weekly!$E:$E,0)) -> 4 | K46: =INDEX(Weekly!H:H,MATCH($F46,Weekly!$E:$E,0)) -> 1.45 | L46: =INDEX(Weekly!I:I,MATCH($F46,Weekly!$E:$E,0)) -> 2 | M46: =INDEX(Players!F:F,MATCH($F46,Players!#REF!,0)) ->  | N46: =INDEX(Prizes!F:F,MATCH($B46,Prizes!A:A,0)) -> 0 | O46: =INDEX(Weekly!J:J,MATCH($F46,Weekly!$E:$E,0)) -> 0 | P46: =INDEX(Weekly!K:K,MATCH($F46,Weekly!$E:$E,0)) -> 0 | Q46: =INDEX(Weekly!M:M,MATCH($F46,Weekly!$E:$E,0)) -> 0
B47: C14 | C47: ↓ | D47: 14 | E47: C | F47: Jack Walsh | I47: =INDEX(Weekly!F:F,MATCH($F47,Weekly!$E:$E,0)) -> -10.65454545 | J47: =INDEX(Weekly!G:G,MATCH($F47,Weekly!$E:$E,0)) -> 4 | K47: =INDEX(Weekly!H:H,MATCH($F47,Weekly!$E:$E,0)) -> -0.3636363636 | L47: =INDEX(Weekly!I:I,MATCH($F47,Weekly!$E:$E,0)) -> 2 | M47: =INDEX(Players!F:F,MATCH($F47,Players!#REF!,0)) ->  | N47: =INDEX(Prizes!F:F,MATCH($B47,Prizes!A:A,0)) -> 0 | O47: =INDEX(Weekly!J:J,MATCH($F47,Weekly!$E:$E,0)) -> 0 | P47: =INDEX(Weekly!K:K,MATCH($F47,Weekly!$E:$E,0)) -> 0 | Q47: =INDEX(Weekly!M:M,MATCH($F47,Weekly!$E:$E,0)) -> 0
B48: C15 | C48: ↓ | D48: 15 | E48: C | F48: Oscar Jackson | I48: =INDEX(Weekly!F:F,MATCH($F48,Weekly!$E:$E,0)) -> -11.8 | J48: =INDEX(Weekly!G:G,MATCH($F48,Weekly!$E:$E,0)) -> 3 | K48: =INDEX(Weekly!H:H,MATCH($F48,Weekly!$E:$E,0)) -> -7 | L48: =INDEX(Weekly!I:I,MATCH($F48,Weekly!$E:$E,0)) -> 0 | M48: =INDEX(Players!F:F,MATCH($F48,Players!#REF!,0)) ->  | N48: =INDEX(Prizes!F:F,MATCH($B48,Prizes!A:A,0)) -> 0 | O48: =INDEX(Weekly!J:J,MATCH($F48,Weekly!$E:$E,0)) -> 0 | P48: =INDEX(Weekly!K:K,MATCH($F48,Weekly!$E:$E,0)) -> 0 | Q48: =INDEX(Weekly!M:M,MATCH($F48,Weekly!$E:$E,0)) -> 0
B49: C16 | C49: ↓ | D49: 16 | E49: C | F49: Andy Charleston | I49: =INDEX(Weekly!F:F,MATCH($F49,Weekly!$E:$E,0)) -> -18.3 | J49: =INDEX(Weekly!G:G,MATCH($F49,Weekly!$E:$E,0)) -> 2 | K49: =INDEX(Weekly!H:H,MATCH($F49,Weekly!$E:$E,0)) -> -5.6 | L49: =INDEX(Weekly!I:I,MATCH($F49,Weekly!$E:$E,0)) -> 1 | M49: =INDEX(Players!F:F,MATCH($F49,Players!#REF!,0)) ->  | N49: =INDEX(Prizes!F:F,MATCH($B49,Prizes!A:A,0)) -> 0 | O49: =INDEX(Weekly!J:J,MATCH($F49,Weekly!$E:$E,0)) -> 0 | P49: =INDEX(Weekly!K:K,MATCH($F49,Weekly!$E:$E,0)) -> 0 | Q49: =INDEX(Weekly!M:M,MATCH($F49,Weekly!$E:$E,0)) -> 0
A50: Division D | B50: D1 | C50: ↑ | D50: 1 | E50: D | F50: Martin Molyneux | I50: =INDEX(Weekly!F:F,MATCH($F50,Weekly!$E:$E,0)) -> 53.16545455 | J50: =INDEX(Weekly!G:G,MATCH($F50,Weekly!$E:$E,0)) -> 6 | K50: =INDEX(Weekly!H:H,MATCH($F50,Weekly!$E:$E,0)) -> 15.22 | L50: =INDEX(Weekly!I:I,MATCH($F50,Weekly!$E:$E,0)) -> 3 | M50: =INDEX(Players!F:F,MATCH($F50,Players!#REF!,0)) ->  | N50: =INDEX(Prizes!F:F,MATCH($B50,Prizes!A:A,0)) -> 24.15 | O50: =INDEX(Weekly!J:J,MATCH($F50,Weekly!$E:$E,0)) -> 15 | P50: =INDEX(Weekly!K:K,MATCH($F50,Weekly!$E:$E,0)) -> 0 | Q50: =INDEX(Weekly!M:M,MATCH($F50,Weekly!$E:$E,0)) -> 39.15
B51: D2 | C51: ↑ | D51: 2 | E51: D | F51: Dan Gibbard | I51: =INDEX(Weekly!F:F,MATCH($F51,Weekly!$E:$E,0)) -> 22.08306818 | J51: =INDEX(Weekly!G:G,MATCH($F51,Weekly!$E:$E,0)) -> 7 | K51: =INDEX(Weekly!H:H,MATCH($F51,Weekly!$E:$E,0)) -> 22.47625 | L51: =INDEX(Weekly!I:I,MATCH($F51,Weekly!$E:$E,0)) -> 3 | M51: =INDEX(Players!F:F,MATCH($F51,Players!#REF!,0)) ->  | N51: =INDEX(Prizes!F:F,MATCH($B51,Prizes!A:A,0)) -> 17.25 | O51: =INDEX(Weekly!J:J,MATCH($F51,Weekly!$E:$E,0)) -> 5 | P51: =INDEX(Weekly!K:K,MATCH($F51,Weekly!$E:$E,0)) -> 0 | Q51: =INDEX(Weekly!M:M,MATCH($F51,Weekly!$E:$E,0)) -> 22.25
B52: D3 | C52: ↑ | D52: 3 | E52: D | F52: Alan Bond | I52: =INDEX(Weekly!F:F,MATCH($F52,Weekly!$E:$E,0)) -> 20.80363636 | J52: =INDEX(Weekly!G:G,MATCH($F52,Weekly!$E:$E,0)) -> 6 | K52: =INDEX(Weekly!H:H,MATCH($F52,Weekly!$E:$E,0)) -> -4.4 | L52: =INDEX(Weekly!I:I,MATCH($F52,Weekly!$E:$E,0)) -> 1 | M52: =INDEX(Players!F:F,MATCH($F52,Players!#REF!,0)) ->  | N52: =INDEX(Prizes!F:F,MATCH($B52,Prizes!A:A,0)) -> 12.42 | O52: =INDEX(Weekly!J:J,MATCH($F52,Weekly!$E:$E,0)) -> 5 | P52: =INDEX(Weekly!K:K,MATCH($F52,Weekly!$E:$E,0)) -> 0 | Q52: =INDEX(Weekly!M:M,MATCH($F52,Weekly!$E:$E,0)) -> 17.42
B53: D4 | C53: ↑ | D53: 4 | E53: D | F53: Paul Barnes | I53: =INDEX(Weekly!F:F,MATCH($F53,Weekly!$E:$E,0)) -> 10.84125874 | J53: =INDEX(Weekly!G:G,MATCH($F53,Weekly!$E:$E,0)) -> 6 | K53: =INDEX(Weekly!H:H,MATCH($F53,Weekly!$E:$E,0)) -> 4.9 | L53: =INDEX(Weekly!I:I,MATCH($F53,Weekly!$E:$E,0)) -> 2 | M53: =INDEX(Players!F:F,MATCH($F53,Players!#REF!,0)) ->  | N53: =INDEX(Prizes!F:F,MATCH($B53,Prizes!A:A,0)) -> 8.28 | O53: =INDEX(Weekly!J:J,MATCH($F53,Weekly!$E:$E,0)) -> 0 | P53: =INDEX(Weekly!K:K,MATCH($F53,Weekly!$E:$E,0)) -> 0 | Q53: =INDEX(Weekly!M:M,MATCH($F53,Weekly!$E:$E,0)) -> 8.28
B54: D5 | C54: ↑ | D54: 5 | E54: D | F54: Gareth Powell | I54: =INDEX(Weekly!F:F,MATCH($F54,Weekly!$E:$E,0)) -> 4.35 | J54: =INDEX(Weekly!G:G,MATCH($F54,Weekly!$E:$E,0)) -> 4 | K54: =INDEX(Weekly!H:H,MATCH($F54,Weekly!$E:$E,0)) -> 11.35 | L54: =INDEX(Weekly!I:I,MATCH($F54,Weekly!$E:$E,0)) -> 2 | M54: =INDEX(Players!F:F,MATCH($F54,Players!#REF!,0)) ->  | N54: =INDEX(Prizes!F:F,MATCH($B54,Prizes!A:A,0)) -> 4.83 | O54: =INDEX(Weekly!J:J,MATCH($F54,Weekly!$E:$E,0)) -> 0 | P54: =INDEX(Weekly!K:K,MATCH($F54,Weekly!$E:$E,0)) -> 0 | Q54: =INDEX(Weekly!M:M,MATCH($F54,Weekly!$E:$E,0)) -> 4.83
B55: D6 | C55: ↑ | D55: 6 | E55: D | F55: John Murphy | I55: =INDEX(Weekly!F:F,MATCH($F55,Weekly!$E:$E,0)) -> -1.85 | J55: =INDEX(Weekly!G:G,MATCH($F55,Weekly!$E:$E,0)) -> 2 | K55: =INDEX(Weekly!H:H,MATCH($F55,Weekly!$E:$E,0)) -> -7 | L55: =INDEX(Weekly!I:I,MATCH($F55,Weekly!$E:$E,0)) -> 0 | M55: =INDEX(Players!F:F,MATCH($F55,Players!#REF!,0)) ->  | N55: =INDEX(Prizes!F:F,MATCH($B55,Prizes!A:A,0)) -> 2.07 | O55: =INDEX(Weekly!J:J,MATCH($F55,Weekly!$E:$E,0)) -> 0 | P55: =INDEX(Weekly!K:K,MATCH($F55,Weekly!$E:$E,0)) -> 0 | Q55: =INDEX(Weekly!M:M,MATCH($F55,Weekly!$E:$E,0)) -> 2.07
B56: D7 | C56: Play-off | D56: 7 | E56: D | F56: Ian Davies | I56: =INDEX(Weekly!F:F,MATCH($F56,Weekly!$E:$E,0)) -> -3.96 | J56: =INDEX(Weekly!G:G,MATCH($F56,Weekly!$E:$E,0)) -> 2 | K56: =INDEX(Weekly!H:H,MATCH($F56,Weekly!$E:$E,0)) -> -7 | L56: =INDEX(Weekly!I:I,MATCH($F56,Weekly!$E:$E,0)) -> 0 | M56: =INDEX(Players!F:F,MATCH($F56,Players!#REF!,0)) ->  | N56: =INDEX(Prizes!F:F,MATCH($B56,Prizes!A:A,0)) -> 0 | O56: =INDEX(Weekly!J:J,MATCH($F56,Weekly!$E:$E,0)) -> 0 | P56: =INDEX(Weekly!K:K,MATCH($F56,Weekly!$E:$E,0)) -> 0 | Q56: =INDEX(Weekly!M:M,MATCH($F56,Weekly!$E:$E,0)) -> 0
B57: D8 | C57: Play-off | D57: 8 | E57: D | F57: Frank Allen | I57: =INDEX(Weekly!F:F,MATCH($F57,Weekly!$E:$E,0)) -> -5.520909091 | J57: =INDEX(Weekly!G:G,MATCH($F57,Weekly!$E:$E,0)) -> 5 | K57: =INDEX(Weekly!H:H,MATCH($F57,Weekly!$E:$E,0)) -> -5.090909091 | L57: =INDEX(Weekly!I:I,MATCH($F57,Weekly!$E:$E,0)) -> 1 | M57: =INDEX(Players!F:F,MATCH($F57,Players!#REF!,0)) ->  | N57: =INDEX(Prizes!F:F,MATCH($B57,Prizes!A:A,0)) -> 0 | O57: =INDEX(Weekly!J:J,MATCH($F57,Weekly!$E:$E,0)) -> 0 | P57: =INDEX(Weekly!K:K,MATCH($F57,Weekly!$E:$E,0)) -> 0 | Q57: =INDEX(Weekly!M:M,MATCH($F57,Weekly!$E:$E,0)) -> 0
B58: D9 | D58: 9 | E58: D | F58: Bob Bailey | I58: =INDEX(Weekly!F:F,MATCH($F58,Weekly!$E:$E,0)) -> -9.725 | J58: =INDEX(Weekly!G:G,MATCH($F58,Weekly!$E:$E,0)) -> 3 | K58: =INDEX(Weekly!H:H,MATCH($F58,Weekly!$E:$E,0)) -> -7 | L58: =INDEX(Weekly!I:I,MATCH($F58,Weekly!$E:$E,0)) -> 0 | M58: =INDEX(Players!F:F,MATCH($F58,Players!#REF!,0)) ->  | N58: =INDEX(Prizes!F:F,MATCH($B58,Prizes!A:A,0)) -> 0 | O58: =INDEX(Weekly!J:J,MATCH($F58,Weekly!$E:$E,0)) -> 0 | P58: =INDEX(Weekly!K:K,MATCH($F58,Weekly!$E:$E,0)) -> 0 | Q58: =INDEX(Weekly!M:M,MATCH($F58,Weekly!$E:$E,0)) -> 0
B59: D10 | D59: 10 | E59: D | F59: Liam Wah | I59: =INDEX(Weekly!F:F,MATCH($F59,Weekly!$E:$E,0)) -> -13.48 | J59: =INDEX(Weekly!G:G,MATCH($F59,Weekly!$E:$E,0)) -> 3 | K59: =INDEX(Weekly!H:H,MATCH($F59,Weekly!$E:$E,0)) -> -1.28 | L59: =INDEX(Weekly!I:I,MATCH($F59,Weekly!$E:$E,0)) -> 2 | M59: =INDEX(Players!F:F,MATCH($F59,Players!#REF!,0)) ->  | N59: =INDEX(Prizes!F:F,MATCH($B59,Prizes!A:A,0)) -> 0 | O59: =INDEX(Weekly!J:J,MATCH($F59,Weekly!$E:$E,0)) -> 0 | P59: =INDEX(Weekly!K:K,MATCH($F59,Weekly!$E:$E,0)) -> 0 | Q59: =INDEX(Weekly!M:M,MATCH($F59,Weekly!$E:$E,0)) -> 0
B60: D11 | D60: 11 | E60: D | F60: Ashley Houghton | I60: =INDEX(Weekly!F:F,MATCH($F60,Weekly!$E:$E,0)) -> -15.28 | J60: =INDEX(Weekly!G:G,MATCH($F60,Weekly!$E:$E,0)) -> 2 | K60: =INDEX(Weekly!H:H,MATCH($F60,Weekly!$E:$E,0)) -> -1.28 | L60: =INDEX(Weekly!I:I,MATCH($F60,Weekly!$E:$E,0)) -> 2 | M60: =INDEX(Players!F:F,MATCH($F60,Players!#REF!,0)) ->  | N60: =INDEX(Prizes!F:F,MATCH($B60,Prizes!A:A,0)) -> 0 | O60: =INDEX(Weekly!J:J,MATCH($F60,Weekly!$E:$E,0)) -> 0 | P60: =INDEX(Weekly!K:K,MATCH($F60,Weekly!$E:$E,0)) -> 0 | Q60: =INDEX(Weekly!M:M,MATCH($F60,Weekly!$E:$E,0)) -> 0 | R60: =Q60+M60 -> 
B61: D12 | D61: 12 | E61: D | F61: Martin Tarbuck | I61: =INDEX(Weekly!F:F,MATCH($F61,Weekly!$E:$E,0)) -> -16.15 | J61: =INDEX(Weekly!G:G,MATCH($F61,Weekly!$E:$E,0)) -> 2 | K61: =INDEX(Weekly!H:H,MATCH($F61,Weekly!$E:$E,0)) -> -7 | L61: =INDEX(Weekly!I:I,MATCH($F61,Weekly!$E:$E,0)) -> 0 | M61: =INDEX(Players!F:F,MATCH($F61,Players!#REF!,0)) ->  | N61: =INDEX(Prizes!F:F,MATCH($B61,Prizes!A:A,0)) -> 0 | O61: =INDEX(Weekly!J:J,MATCH($F61,Weekly!$E:$E,0)) -> 0 | P61: =INDEX(Weekly!K:K,MATCH($F61,Weekly!$E:$E,0)) -> 0 | Q61: =INDEX(Weekly!M:M,MATCH($F61,Weekly!$E:$E,0)) -> 0
B62: D13 | D62: 13 | E62: D | F62: Dave Bell | I62: =INDEX(Weekly!F:F,MATCH($F62,Weekly!$E:$E,0)) -> -21 | J62: =INDEX(Weekly!G:G,MATCH($F62,Weekly!$E:$E,0)) -> 0 | K62: =INDEX(Weekly!H:H,MATCH($F62,Weekly!$E:$E,0)) -> -7 | L62: =INDEX(Weekly!I:I,MATCH($F62,Weekly!$E:$E,0)) -> 0 | M62: =INDEX(Players!F:F,MATCH($F62,Players!#REF!,0)) ->  | N62: =INDEX(Prizes!F:F,MATCH($B62,Prizes!A:A,0)) -> 0 | O62: =INDEX(Weekly!J:J,MATCH($F62,Weekly!$E:$E,0)) -> 0 | P62: =INDEX(Weekly!K:K,MATCH($F62,Weekly!$E:$E,0)) -> 0 | Q62: =INDEX(Weekly!M:M,MATCH($F62,Weekly!$E:$E,0)) -> 0
B63: D14 | D63: 14 | E63: D | F63: Andy Hargreaves | I63: =INDEX(Weekly!F:F,MATCH($F63,Weekly!$E:$E,0)) -> -21 | J63: =INDEX(Weekly!G:G,MATCH($F63,Weekly!$E:$E,0)) -> 0 | K63: =INDEX(Weekly!H:H,MATCH($F63,Weekly!$E:$E,0)) -> -7 | L63: =INDEX(Weekly!I:I,MATCH($F63,Weekly!$E:$E,0)) -> 0 | M63: =INDEX(Players!F:F,MATCH($F63,Players!#REF!,0)) ->  | N63: =INDEX(Prizes!F:F,MATCH($B63,Prizes!A:A,0)) -> 0 | O63: =INDEX(Weekly!J:J,MATCH($F63,Weekly!$E:$E,0)) -> 0 | P63: =INDEX(Weekly!K:K,MATCH($F63,Weekly!$E:$E,0)) -> 0 | Q63: =INDEX(Weekly!M:M,MATCH($F63,Weekly!$E:$E,0)) -> 0
N66: =SUM(N2:N64) -> 690 | O66: =SUM(O2:O64) -> 75 | P66: =SUM(P2:P64) -> 0 | Q66: =SUM(Q2:Q64) -> 765

Sheet Weekly
A1: Rank Seas | B1: Rank Wk | C1: Pos L/W | D1: Div | E1: Player | F1: Season Score | G1: Season Correct | H1: Week Score | I1: Week ? of 3 | J1: Weekly Prizes | K1: Cup Prize | L1: League Place Prize | M1: Total Prize | N1: W1 | O1: W1Q | P1: W1P | Q1: W2 | R1: W2Q | S1: W2P | T1: W3 | U1: W3Q | V1: W3P | W1: W4 | X1: W4Q | Y1: W4P | Z1: W5 | AA1: W5Q | AB1: W5P | AC1: W6 | AD1: W6Q | AE1: W6P | AF1: W7 | AG1: W7Q | AH1: W7P | AI1: W8 | AJ1: W8Q | AK1: W8P | AL1: W9 | AM1: W9Q | AN1: W9P | AO1: W10 | AP1: W10Q | AQ1: W10P | AR1: W11 | AS1: W11Q | AT1: W11P | AU1: W12 | AV1: W12Q | AW1: W12P | AX1: W13 | AY1: W13Q | AZ1: W13P | BA1: W14 | BB1: W14Q | BC1: W14P | BD1: W15 | BE1: W15Q | BF1: W15P | BG1: W16 | BH1: W16Q | BI1: W16P | BJ1: W17 | BK1: W17Q | BL1: W17P | BM1: W18 | BN1: W18Q | BO1: W18P | BP1: W19 | BQ1: W19Q | BR1: W19P | BS1: W20 | BT1: W20Q | BU1: W20P | BV1: Seas | BW1: SeasQ | BX1: SeasP
A2: =_xlfn.RANK.EQ(F2,totalscores,0) -> 8 | B2: =_xlfn.RANK.EQ(H2,thisweekscore,0) -> 31 | C2: 5 | D2: =INDEX(Table!E:E,MATCH(E2,Table!F:F,0)) -> D | E2: Alan Bond | F2: =+N2+Q2+T2+W2+Z2+AC2+AF2+AI2+AL2+AO2+AR2+AU2+AX2+BA2+BD2+BG2+BJ2+BM2+BP2+BS2 -> 20.80363636 | G2: =+O2+R2+U2+X2+AA2+AD2+AG2+AJ2+AM2+AP2+AS2+AV2+AY2+BB2+BE2+BH2+BK2+BN2+BQ2+BT2 -> 6 | H2: -4.4 | I2: 1 | J2: =P2+S2+V2+Y2+AB2+AE2+AH2+AK2+AN2+AQ2+AT2+AW2+AZ2+BC2+BF2+BI2+BL2+BO2+BR2+BU2 -> 5 | L2: =INDEX(Table!N:N,MATCH(E2,Table!F:F,0)) -> 12.42 | M2: =K2+J2+L2 -> 17.42 | N2: 21.32363636 | O2: 3 | P2: 5 | Q2: 3.88 | R2: 2 | T2: -4.4 | U2: 1 | BV2: =BS2+BP2+BM2+BJ2+BG2+BD2+BA2+AX2+AU2+AR2+AO2+AL2+AI2+AF2+AC2+Z2+W2+T2+Q2+N2 -> 20.80363636 | BW2: =BT2+BQ2+BN2+BK2+BH2+BE2+BB2+AY2+AV2+AS2+AP2+AM2+AJ2+AG2+AD2+AA2+X2+U2+R2+O2 -> 6 | BX2: =BU2+BR2+BO2+BL2+BI2+BF2+BC2+AZ2+AW2+AT2+AQ2+AN2+AK2+AH2+AE2+AB2+Y2+V2+S2+P2 -> 5
A3: 51 | B3: 33 | C3: 51 | D3: =INDEX(Table!E:E,MATCH(E3,Table!F:F,0)) -> B | E3: Alan Rogers | F3: -14.9 | G3: 2 | H3: -4.6 | I3: 1 | J3: =P3+S3+V3+Y3+AB3+AE3+AH3+AK3+AN3+AQ3+AT3+AW3+AZ3+BC3+BF3+BI3+BL3+BO3+BR3+BU3 -> 0 | L3: =INDEX(Table!N:N,MATCH(E3,Table!F:F,0)) -> 0 | M3: =K3+J3+L3 -> 0 | N3: -7 | O3: 0 | Q3: -3.3 | R3: 1 | T3: -4.6 | U3: 1 | BV3: -14.9 | BW3: 2 | BX3: 0
A4: 25 | B4: 46 | C4: 14 | D4: =INDEX(Table!E:E,MATCH(E4,Table!F:F,0)) -> C | E4: Alan White | F4: 3.95 | G4: 4 | H4: -7 | I4: 0 | J4: 0 | L4: =INDEX(Table!N:N,MATCH(E4,Table!F:F,0)) -> 0 | M4: 0 | N4: 15.8 | O4: 3 | Q4: -4.85 | R4: 1 | T4: -7 | U4: 0 | BV4: 3.95 | BW4: 4 | BX4: 0
A5: 50 | B5: 39 | C5: 45 | D5: =INDEX(Table!E:E,MATCH(E5,Table!F:F,0)) -> A | E5: Alfie Davies | F5: -14.25 | G5: 3 | H5: -5.15 | I5: 1 | J5: 0 | L5: =INDEX(Table!N:N,MATCH(E5,Table!F:F,0)) -> 0 | M5: 0 | N5: -5.7 | O5: 1 | Q5: -3.4 | R5: 1 | T5: -5.15 | U5: 1 | BV5: -14.25 | BW5: 3 | BX5: 0
A6: 19 | B6: 8 | C6: 33 | D6: =INDEX(Table!E:E,MATCH(E6,Table!F:F,0)) -> B | E6: Alick Rocca | F6: 8.023076923 | G6: 5 | H6: 9.2 | I6: 2 | J6: 0 | L6: =INDEX(Table!N:N,MATCH(E6,Table!F:F,0)) -> 6.21 | M6: 6.21 | N6: 2.723076923 | O6: 2 | Q6: -3.9 | R6: 1 | T6: 9.2 | U6: 2 | BV6: 8.023076923 | BW6: 5 | BX6: 0
A7: 57 | B7: 45 | C7: 59 | D7: =INDEX(Table!E:E,MATCH(E7,Table!F:F,0)) -> C | E7: Andy Charleston | F7: -18.3 | G7: 2 | H7: -5.6 | I7: 1 | J7: 0 | L7: =INDEX(Table!N:N,MATCH(E7,Table!F:F,0)) -> 0 | M7: 0 | N7: -5.7 | O7: 1 | Q7: -7 | R7: 0 | T7: -5.6 | U7: 1 | BV7: -18.3 | BW7: 2 | BX7: 0
A8: 61 | B8: 46 | C8: 60 | D8: =INDEX(Table!E:E,MATCH(E8,Table!F:F,0)) -> D | E8: Andy Hargreaves | F8: -21 | G8: 0 | H8: -7 | I8: 0 | J8: 0 | L8: =INDEX(Table!N:N,MATCH(E8,Table!F:F,0)) -> 0 | M8: 0 | N8: -7 | O8: 0 | Q8: -7 | R8: 0 | T8: -7 | U8: 0 | BV8: -21 | BW8: 0 | BX8: 0
A9: 43 | B9: 43 | C9: 40 | D9: =INDEX(Table!E:E,MATCH(E9,Table!F:F,0)) -> B | E9: Andy White | F9: -9.018181818 | G9: 4 | H9: -5.272727273 | I9: 1 | J9: 0 | L9: =INDEX(Table!N:N,MATCH(E9,Table!F:F,0)) -> 0 | M9: 0 | N9: 1.454545455 | O9: 2 | Q9: -5.2 | R9: 1 | T9: -5.272727273 | U9: 1 | BV9: -9.018181818 | BW9: 4 | BX9: 0
A10: 52 | B10: 22 | C10: 60 | D10: =INDEX(Table!E:E,MATCH(E10,Table!F:F,0)) -> D | E10: Ashley Houghton | F10: -15.28 | G10: 2 | H10: -1.28 | I10: 2 | J10: 0 | L10: =INDEX(Table!N:N,MATCH(E10,Table!F:F,0)) -> 0 | M10: 0 | N10: -7 | O10: 0 | Q10: -7 | R10: 0 | T10: -1.28 | U10: 2 | BV10: -15.28 | BW10: 2 | BX10: 0
A11: 9 | B11: 44 | C11: 6 | D11: =INDEX(Table!E:E,MATCH(E11,Table!F:F,0)) -> A | E11: Barry Birchall | F11: 16.745 | G11: 6 | H11: -5.35 | I11: 1 | J11: 0 | L11: =INDEX(Table!N:N,MATCH(E11,Table!F:F,0)) -> 77.625 | M11: 77.625 | N11: 21.295 | O11: 3 | Q11: 0.8 | R11: 2 | T11: -5.35 | U11: 1 | BV11: 16.745 | BW11: 6 | BX11: 0
A12: 16 | B12: 7 | C12: 30 | D12: =INDEX(Table!E:E,MATCH(E12,Table!F:F,0)) -> C | E12: Ben Rosser | F12: 10.18727273 | G12: 4 | H12: 10.06 | I12: 2 | J12: 0 | L12: =INDEX(Table!N:N,MATCH(E12,Table!F:F,0)) -> 7.245 | M12: 7.245 | N12: 7.127272727 | O12: 2 | Q12: -7 | R12: 0 | T12: 10.06 | U12: 2 | BV12: 10.18727273 | BW12: 4 | BX12: 0
A13: 44 | B13: 46 | C13: 37 | D13: =INDEX(Table!E:E,MATCH(E13,Table!F:F,0)) -> D | E13: Bob Bailey | F13: -9.725 | G13: 3 | H13: -7 | I13: 0 | J13: 0 | L13: =INDEX(Table!N:N,MATCH(E13,Table!F:F,0)) -> 0 | M13: 0 | N13: -4.625 | O13: 1 | Q13: 1.9 | R13: 2 | T13: -7 | U13: 0 | BV13: -9.725 | BW13: 3 | BX13: 0
A14: 12 | B14: 46 | C14: 7 | D14: =INDEX(Table!E:E,MATCH(E14,Table!F:F,0)) -> B | E14: Charlie Griffiths | F14: 13.556875 | G14: 4 | H14: -7 | I14: 0 | J14: 5 | L14: =INDEX(Table!N:N,MATCH(E14,Table!F:F,0)) -> 14.49 | M14: 19.49 | N14: 24.956875 | O14: 3 | P14: 5 | Q14: -4.4 | R14: 1 | T14: -7 | U14: 0 | BV14: 13.556875 | BW14: 4 | BX14: 5
A15: 18 | B15: 15 | C15: 16 | D15: =INDEX(Table!E:E,MATCH(E15,Table!F:F,0)) -> A | E15: Chris Bow | F15: 9.62 | G15: 5 | H15: 2.8 | I15: 2 | J15: 0 | L15: =INDEX(Table!N:N,MATCH(E15,Table!F:F,0)) -> 55.89 | M15: 55.89 | N15: 10.72 | O15: 2 | Q15: -3.9 | R15: 1 | T15: 2.8 | U15: 2 | BV15: 9.62 | BW15: 5 | BX15: 0
A16: 11 | B16: 25 | C16: 9 | D16: =INDEX(Table!E:E,MATCH(E16,Table!F:F,0)) -> C | E16: Chris Griffin | F16: 13.70979021 | G16: 7 | H16: -3.7 | I16: 1 | J16: 5 | L16: =INDEX(Table!N:N,MATCH(E16,Table!F:F,0)) -> 25.875 | M16: 30.875 | N16: 9.118881119 | O16: 3 | Q16: 8.290909091 | R16: 3 | S16: 5 | T16: -3.7 | U16: 1 | BV16: 13.70979021 | BW16: 7 | BX16: 5
A17: 40 | B17: 27 | C17: 34 | D17: =INDEX(Table!E:E,MATCH(E17,Table!F:F,0)) -> B | E17: Chris Luck | F17: -5.45 | G17: 4 | H17: -3.8 | I17: 1 | J17: 0 | L17: =INDEX(Table!N:N,MATCH(E17,Table!F:F,0)) -> 0 | M17: 0 | N17: 3.05 | O17: 2 | Q17: -4.7 | R17: 1 | T17: -3.8 | U17: 1 | BV17: -5.45 | BW17: 4 | BX17: 0
A18: 17 | B18: 46 | C18: 10 | D18: =INDEX(Table!E:E,MATCH(E18,Table!F:F,0)) -> C | E18: Chris Townsend | F18: 10 | G18: 3 | H18: -7 | I18: 0 | J18: 5 | L18: =INDEX(Table!N:N,MATCH(E18,Table!F:F,0)) -> 3.105 | M18: 8.105 | N18: -3.6 | O18: 1 | Q18: 20.6 | R18: 2 | S18: 5 | T18: -7 | U18: 0 | BV18: 10 | BW18: 3 | BX18: 5
A19: 7 | B19: 2 | C19: 31 | D19: =INDEX(Table!E:E,MATCH(E19,Table!F:F,0)) -> D | E19: Dan Gibbard | F19: 22.08306818 | G19: 7 | H19: 22.47625 | I19: 3 | J19: 5 | L19: =INDEX(Table!N:N,MATCH(E19,Table!F:F,0)) -> 17.25 | M19: 22.25 | N19: 3.025 | O19: 2 | Q19: -3.418181818 | R19: 2 | T19: 22.47625 | U19: 3 | V19: 5 | BV19: 22.08306818 | BW19: 7 | BX19: 5
A20: 61 | B20: 46 | C20: 60 | D20: =INDEX(Table!E:E,MATCH(E20,Table!F:F,0)) -> D | E20: Dave Bell | F20: -21 | G20: 0 | H20: -7 | I20: 0 | J20: 0 | L20: =INDEX(Table!N:N,MATCH(E20,Table!F:F,0)) -> 0 | M20: 0 | N20: -7 | O20: 0 | Q20: -7 | R20: 0 | T20: -7 | U20: 0 | BV20: -21 | BW20: 0 | BX20: 0
A21: 3 | B21: 16 | C21: 3 | D21: =INDEX(Table!E:E,MATCH(E21,Table!F:F,0)) -> B | E21: Dave Orrell | F21: 30.54 | G21: 6 | H21: 2.71 | I21: 2 | J21: 5 | L21: =INDEX(Table!N:N,MATCH(E21,Table!F:F,0)) -> 72.45 | M21: 77.45 | N21: 32.455 | O21: 3 | P21: 5 | Q21: -4.625 | R21: 1 | T21: 2.71 | U21: 2 | BV21: 30.54 | BW21: 6 | BX21: 5
A22: 30 | B22: 17 | C22: 36 | D22: =INDEX(Table!E:E,MATCH(E22,Table!F:F,0)) -> C | E22: David Dunn | F22: -0.5113636364 | G22: 5 | H22: 2.125 | I22: 2 | J22: 0 | L22: =INDEX(Table!N:N,MATCH(E22,Table!F:F,0)) -> 0 | M22: 0 | N22: 1.163636364 | O22: 2 | Q22: -3.8 | R22: 1 | T22: 2.125 | U22: 2 | BV22: -0.5113636364 | BW22: 5 | BX22: 0
A23: 41 | B23: 38 | C23: 32 | D23: =INDEX(Table!E:E,MATCH(E23,Table!F:F,0)) -> D | E23: Frank Allen | F23: -5.520909091 | G23: 5 | H23: -5.090909091 | I23: 1 | J23: 0 | L23: =INDEX(Table!N:N,MATCH(E23,Table!F:F,0)) -> 0 | M23: 0 | N23: -1.25 | O23: 2 | Q23: 0.82 | R23: 2 | T23: -5.090909091 | U23: 1 | BV23: -5.520909091 | BW23: 5 | BX23: 0
A24: 10 | B24: 36 | C24: 8 | D24: =INDEX(Table!E:E,MATCH(E24,Table!F:F,0)) -> C | E24: Gareth McGuire | F24: 14.02545455 | G24: 6 | H24: -5 | I24: 1 | J24: 5 | L24: =INDEX(Table!N:N,MATCH(E24,Table!F:F,0)) -> 36.225 | M24: 41.225 | N24: 0.1454545455 | O24: 2 | Q24: 18.88 | R24: 3 | S24: 5 | T24: -5 | U24: 1 | BV24: 14.02545455 | BW24: 6 | BX24: 5
A25: 23 | B25: 6 | C25: 44 | D25: =INDEX(Table!E:E,MATCH(E25,Table!F:F,0)) -> D | E25: Gareth Powell | F25: 4.35 | G25: 4 | H25: 11.35 | I25: 2 | J25: 0 | L25: =INDEX(Table!N:N,MATCH(E25,Table!F:F,0)) -> 4.83 | M25: 4.83 | N25: -3.6 | O25: 1 | Q25: -3.4 | R25: 1 | T25: 11.35 | U25: 2 | BV25: 4.35 | BW25: 4 | BX25: 0
A26: 36 | B26: 27 | C26: 27 | D26: =INDEX(Table!E:E,MATCH(E26,Table!F:F,0)) -> A | E26: Gerard Ventom | F26: -2.15 | G26: 4 | H26: -3.8 | I26: 1 | J26: 0 | L26: =INDEX(Table!N:N,MATCH(E26,Table!F:F,0)) -> 0 | M26: 0 | N26: -4.75 | O26: 1 | Q26: 6.4 | R26: 2 | T26: -3.8 | U26: 1 | BV26: -2.15 | BW26: 4 | BX26: 0
A27: 32 | B27: 30 | C27: 23 | D27: =INDEX(Table!E:E,MATCH(E27,Table!F:F,0)) -> C | E27: Graham Miller | F27: -1.105 | G27: 4 | H27: -4.375 | I27: 1 | J27: 0 | L27: =INDEX(Table!N:N,MATCH(E27,Table!F:F,0)) -> 0 | M27: 0 | N27: 8.12 | O27: 2 | Q27: -4.85 | R27: 1 | T27: -4.375 | U27: 1 | BV27: -1.105 | BW27: 4 | BX27: 0
A28: 6 | B28: 24 | C28: 4 | D28: =INDEX(Table!E:E,MATCH(E28,Table!F:F,0)) -> B | E28: Howard Bradley | F28: 22.254 | G28: 6 | H28: -3.5 | I28: 1 | J28: 0 | L28: =INDEX(Table!N:N,MATCH(E28,Table!F:F,0)) -> 24.84 | M28: 24.84 | N28: 20.224 | O28: 3 | Q28: 5.53 | R28: 2 | T28: -3.5 | U28: 1 | BV28: 22.254 | BW28: 6 | BX28: 0
A29: 37 | B29: 46 | C29: 25 | D29: =INDEX(Table!E:E,MATCH(E29,Table!F:F,0)) -> D | E29: Ian Davies | F29: -3.96 | G29: 2 | H29: -7 | I29: 0 | J29: 0 | L29: =INDEX(Table!N:N,MATCH(E29,Table!F:F,0)) -> 0 | M29: 0 | N29: 10.04 | O29: 2 | Q29: -7 | R29: 0 | T29: -7 | U29: 0 | BV29: -3.96 | BW29: 2 | BX29: 0
A30: 47 | B30: 20 | C30: 50 | D30: =INDEX(Table!E:E,MATCH(E30,Table!F:F,0)) -> C | E30: Jack Walsh | F30: -10.65454545 | G30: 4 | H30: -0.3636363636 | I30: 2 | J30: 0 | L30: =INDEX(Table!N:N,MATCH(E30,Table!F:F,0)) -> 0 | M30: 0 | N30: -5.090909091 | O30: 1 | Q30: -5.2 | R30: 1 | T30: -0.3636363636 | U30: 2 | BV30: -10.65454545 | BW30: 4 | BX30: 0
A31: 58 | B31: 46 | C31: 53 | D31: =INDEX(Table!E:E,MATCH(E31,Table!F:F,0)) -> B | E31: James Bell | F31: -18.625 | G31: 1 | H31: -7 | I31: 0 | J31: 0 | L31: =INDEX(Table!N:N,MATCH(E31,Table!F:F,0)) -> 0 | M31: 0 | N31: -7 | O31: 0 | Q31: -4.625 | R31: 1 | T31: -7 | U31: 0 | BV31: -18.625 | BW31: 1 | BX31: 0
A32: 33 | B32: 46 | C32: 22 | D32: =INDEX(Table!E:E,MATCH(E32,Table!F:F,0)) -> D | E32: John Murphy | F32: -1.85 | G32: 2 | H32: -7 | I32: 0 | J32: 0 | L32: =INDEX(Table!N:N,MATCH(E32,Table!F:F,0)) -> 2.07 | M32: 2.07 | N32: 12.15 | O32: 2 | Q32: -7 | R32: 0 | T32: -7 | U32: 0 | BV32: -1.85 | BW32: 2 | BX32: 0
A33: 5 | B33: 34 | C33: 2 | D33: =INDEX(Table!E:E,MATCH(E33,Table!F:F,0)) -> B | E33: John Ronan | F33: 24.7195 | G33: 5 | H33: -4.9 | I33: 1 | J33: 10 | L33: =INDEX(Table!N:N,MATCH(E33,Table!F:F,0)) -> 37.26 | M33: 47.26 | N33: -5 | O33: 1 | Q33: 34.6195 | R33: 3 | S33: 10 | T33: -4.9 | U33: 1 | BV33: 24.7195 | BW33: 5 | BX33: 10
A34: =_xlfn.RANK.EQ(F34,totalscores,0) -> 59 | B34: 46 | C34: 55 | D34: =INDEX(Table!E:E,MATCH(E34,Table!F:F,0)) -> A | E34: Kei Lok Ma | F34: =+N34+Q34+T34+W34+Z34+AC34+AF34+AI34+AL34+AO34+AR34+AU34+AX34+BA34+BD34+BG34+BJ34+BM34+BP34+BS34 -> -18.75 | G34: =+O34+R34+U34+X34+AA34+AD34+AG34+AJ34+AM34+AP34+AS34+AV34+AY34+BB34+BE34+BH34+BK34+BN34+BQ34+BT34 -> 1 | H34: -7 | I34: 0 | J34: 0 | L34: =INDEX(Table!N:N,MATCH(E34,Table!F:F,0)) -> 0 | M34: 0 | N34: -4.75 | O34: 1 | Q34: -7 | R34: 0 | T34: -7 | U34: 0 | BV34: =BS34+BP34+BM34+BJ34+BG34+BD34+BA34+AX34+AU34+AR34+AO34+AL34+AI34+AF34+AC34+Z34+W34+T34+Q34+N34 -> -18.75 | BW34: =BT34+BQ34+BN34+BK34+BH34+BE34+BB34+AY34+AV34+AS34+AP34+AM34+AJ34+AG34+AD34+AA34+X34+U34+R34+O34 -> 1 | BX34: =BU34+BR34+BO34+BL34+BI34+BF34+BC34+AZ34+AW34+AT34+AQ34+AN34+AK34+AH34+AE34+AB34+Y34+V34+S34+P34 -> 0
A35: 21 | B35: 19 | C35: 18 | D35: =INDEX(Table!E:E,MATCH(E35,Table!F:F,0)) -> A | E35: Kevin Carter | F35: 5.729393939 | G35: 7 | H35: -0.2272727273 | I35: 2 | J35: 0 | L35: =INDEX(Table!N:N,MATCH(E35,Table!F:F,0)) -> 21.735 | M35: 21.735 | N35: 6.49 | O35: 3 | Q35: -0.5333333333 | R35: 2 | T35: -0.2272727273 | U35: 2 | BV35: 5.729393939 | BW35: 7 | BX35: 0
A36: 28 | B36: 34 | C36: 21 | D36: =INDEX(Table!E:E,MATCH(E36,Table!F:F,0)) -> A | E36: Lennie Bow | F36: 0.2761363636 | G36: 5 | H36: -4.9 | I36: 1 | J36: 0 | L36: =INDEX(Table!N:N,MATCH(E36,Table!F:F,0)) -> 0 | M36: 0 | N36: 4.0125 | O36: 2 | Q36: 1.163636364 | R36: 2 | T36: -4.9 | U36: 1 | BV36: 0.2761363636 | BW36: 5 | BX36: 0
A37: 49 | B37: 22 | C37: 58 | D37: =INDEX(Table!E:E,MATCH(E37,Table!F:F,0)) -> D | E37: Liam Wah | F37: -13.48 | G37: 3 | H37: -1.28 | I37: 2 | J37: 0 | L37: =INDEX(Table!N:N,MATCH(E37,Table!F:F,0)) -> 0 | M37: 0 | N37: -7 | O37: 0 | Q37: -5.2 | R37: 1 | T37: -1.28 | U37: 2 | BV37: -13.48 | BW37: 3 | BX37: 0
A38: 27 | B38: 39 | C38: 17 | D38: =INDEX(Table!E:E,MATCH(E38,Table!F:F,0)) -> A | E38: Mal Stott | F38: 0.9081818182 | G38: 5 | H38: -5.15 | I38: 1 | J38: 0 | L38: =INDEX(Table!N:N,MATCH(E38,Table!F:F,0)) -> 9.315 | M38: 9.315 | N38: 4.24 | O38: 2 | Q38: 1.818181818 | R38: 2 | T38: -5.15 | U38: 1 | BV38: 0.9081818182 | BW38: 5 | BX38: 0
A39: 54 | B39: 27 | C39: 56 | D39: =INDEX(Table!E:E,MATCH(E39,Table!F:F,0)) -> A | E39: Mark Bunn | F39: -15.65 | G39: 2 | H39: -3.8 | I39: 1 | J39: 0 | L39: =INDEX(Table!N:N,MATCH(E39,Table!F:F,0)) -> 0 | M39: 0 | N39: -7 | O39: 0 | Q39: -4.85 | R39: 1 | T39: -3.8 | U39: 1 | BV39: -15.65 | BW39: 2 | BX39: 0
A40: 20 | B40: 11 | C40: 26 | D40: =INDEX(Table!E:E,MATCH(E40,Table!F:F,0)) -> A | E40: Mark Saunders | F40: 6.645454545 | G40: 6 | H40: 4.9 | I40: 2 | J40: 0 | L40: =INDEX(Table!N:N,MATCH(E40,Table!F:F,0)) -> 37.26 | M40: 37.26 | N40: 0.1454545455 | O40: 2 | Q40: 1.6 | R40: 2 | T40: 4.9 | U40: 2 | BV40: 6.645454545 | BW40: 6 | BX40: 0
A41: 1 | B41: 4 | C41: 1 | D41: =INDEX(Table!E:E,MATCH(E41,Table!F:F,0)) -> D | E41: Martin Molyneux | F41: 53.16545455 | G41: 6 | H41: 15.22 | I41: 3 | J41: 15 | L41: =INDEX(Table!N:N,MATCH(E41,Table!F:F,0)) -> 24.15 | M41: 39.15 | N41: 44.94545455 | O41: 3 | P41: 10 | Q41: -7 | R41: 0 | T41: 15.22 | U41: 3 | V41: 5 | BV41: 53.16545455 | BW41: 6 | BX41: 15
A42: 55 | B42: 46 | C42: 46 | D42: =INDEX(Table!E:E,MATCH(E42,Table!F:F,0)) -> D | E42: Martin Tarbuck | F42: -16.15 | G42: 2 | H42: -7 | I42: 0 | J42: 0 | L42: =INDEX(Table!N:N,MATCH(E42,Table!F:F,0)) -> 0 | M42: 0 | N42: -4.75 | O42: 1 | Q42: -4.4 | R42: 1 | T42: -7 | U42: 0 | BV42: -16.15 | BW42: 2 | BX42: 0
A43: 56 | B43: 46 | C43: 48 | D43: =INDEX(Table!E:E,MATCH(E43,Table!F:F,0)) -> B | E43: Mike Penk | F43: -17.1 | G43: 2 | H43: -7 | I43: 0 | J43: 0 | L43: =INDEX(Table!N:N,MATCH(E43,Table!F:F,0)) -> 0 | M43: 0 | N43: -5.7 | O43: 1 | Q43: -4.4 | R43: 1 | T43: -7 | U43: 0 | BV43: -17.1 | BW43: 2 | BX43: 0
A44: 45 | B44: 31 | C44: 42 | D44: =INDEX(Table!E:E,MATCH(E44,Table!F:F,0)) -> B | E44: Mo Sudell | F44: -10.16 | G44: 3 | H44: -4.4 | I44: 1 | J44: 0 | L44: =INDEX(Table!N:N,MATCH(E44,Table!F:F,0)) -> 0 | M44: 0 | N44: -7 | O44: 0 | Q44: 1.24 | R44: 2 | T44: -4.4 | U44: 1 | BV44: -10.16 | BW44: 3 | BX44: 0
A45: 13 | B45: 3 | C45: 49 | D45: =INDEX(Table!E:E,MATCH(E45,Table!F:F,0)) -> C | E45: Nick Blocksidge | F45: 12.07333333 | G45: 5 | H45: 22.24 | I45: 3 | J45: 5 | L45: =INDEX(Table!N:N,MATCH(E45,Table!F:F,0)) -> 18.63 | M45: 23.63 | N45: -5.466666667 | O45: 1 | Q45: -4.7 | R45: 1 | T45: 22.24 | U45: 3 | V45: 5 | BV45: 12.07333333 | BW45: 5 | BX45: 5
A46: 29 | B46: 14 | C46: 38 | D46: =INDEX(Table!E:E,MATCH(E46,Table!F:F,0)) -> A | E46: Nigel Heyes | F46: -0.2354545455 | G46: 5 | H46: 3.16 | I46: 2 | J46: 0 | L46: =INDEX(Table!N:N,MATCH(E46,Table!F:F,0)) -> 0 | M46: 0 | N46: 1.454545455 | O46: 2 | Q46: -4.85 | R46: 1 | T46: 3.16 | U46: 2 | BV46: -0.2354545455 | BW46: 5 | BX46: 0
A47: 48 | B47: 46 | C47: 41 | D47: =INDEX(Table!E:E,MATCH(E47,Table!F:F,0)) -> C | E47: Oscar Jackson | F47: -11.8 | G47: 3 | H47: -7 | I47: 0 | J47: 0 | L47: =INDEX(Table!N:N,MATCH(E47,Table!F:F,0)) -> 0 | M47: 0 | N47: -5.2 | O47: 1 | Q47: 0.4 | R47: 2 | T47: -7 | U47: 0 | BV47: -11.8 | BW47: 3 | BX47: 0
A48: 39 | B48: 18 | C48: 43 | D48: =INDEX(Table!E:E,MATCH(E48,Table!F:F,0)) -> C | E48: Paul Adderley | F48: -5.383333333 | G48: 4 | H48: 1.45 | I48: 2 | J48: 0 | L48: =INDEX(Table!N:N,MATCH(E48,Table!F:F,0)) -> 0 | M48: 0 | N48: -1.5 | O48: 1 | Q48: -5.333333333 | R48: 1 | T48: 1.45 | U48: 2 | BV48: -5.383333333 | BW48: 4 | BX48: 0
A49: 22 | B49: 46 | C49: 13 | D49: =INDEX(Table!E:E,MATCH(E49,Table!F:F,0)) -> C | E49: Paul Allen | F49: 4.97 | G49: 4 | H49: -7 | I49: 0 | J49: 0 | L49: =INDEX(Table!N:N,MATCH(E49,Table!F:F,0)) -> 0 | M49: 0 | N49: 15.87 | O49: 3 | Q49: -3.9 | R49: 1 | T49: -7 | U49: 0 | BV49: 4.97 | BW49: 4 | BX49: 0
A50: 15 | B50: 11 | C50: 19 | D50: =INDEX(Table!E:E,MATCH(E50,Table!F:F,0)) -> D | E50: Paul Barnes | F50: 10.84125874 | G50: 6 | H50: 4.9 | I50: 2 | J50: 0 | L50: =INDEX(Table!N:N,MATCH(E50,Table!F:F,0)) -> 8.28 | M50: 8.28 | N50: 11.27459207 | O50: 3 | Q50: -5.333333333 | R50: 1 | T50: 4.9 | U50: 2 | BV50: 10.84125874 | BW50: 6 | BX50: 0
A51: 60 | B51: 46 | C51: 57 | D51: =INDEX(Table!E:E,MATCH(E51,Table!F:F,0)) -> A | E51: Paul Fairhurst | F51: -18.95 | G51: 1 | H51: -7 | I51: 0 | J51: 0 | L51: =INDEX(Table!N:N,MATCH(E51,Table!F:F,0)) -> 0 | M51: 0 | N51: -7 | O51: 0 | Q51: -4.95 | R51: 1 | T51: -7 | U51: 0 | BV51: -18.95 | BW51: 1 | BX51: 0
A52: 38 | B52: 39 | C52: 28 | D52: =INDEX(Table!E:E,MATCH(E52,Table!F:F,0)) -> C | E52: Paul Fiddler | F52: -4.201282051 | G52: 5 | H52: -5.15 | I52: 1 | J52: 0 | L52: =INDEX(Table!N:N,MATCH(E52,Table!F:F,0)) -> 0 | M52: 0 | N52: -1.984615385 | O52: 2 | Q52: 2.933333333 | R52: 2 | T52: -5.15 | U52: 1 | BV52: -4.201282051 | BW52: 5 | BX52: 0
A53: 31 | B53: 8 | C53: 47 | D53: =INDEX(Table!E:E,MATCH(E53,Table!F:F,0)) -> B | E53: Pete Baron | F53: -0.6 | G53: 3 | H53: 9.2 | I53: 2 | J53: 0 | L53: =INDEX(Table!N:N,MATCH(E53,Table!F:F,0)) -> 0 | M53: 0 | N53: -2.8 | O53: 1 | Q53: -7 | R53: 0 | T53: 9.2 | U53: 2 | BV53: -0.6 | BW53: 3 | BX53: 0
A54: 2 | B54: 1 | C54: 20 | D54: =INDEX(Table!E:E,MATCH(E54,Table!F:F,0)) -> A | E54: Phil Miller | F54: 43.29545455 | G54: 7 | H54: 37.81818182 | I54: 3 | J54: 10 | L54: =INDEX(Table!N:N,MATCH(E54,Table!F:F,0)) -> 108.675 | M54: 118.675 | N54: 10.32727273 | O54: 3 | Q54: -4.85 | R54: 1 | T54: 37.81818182 | U54: 3 | V54: 10 | BV54: 43.29545455 | BW54: 7 | BX54: 10
A55: 14 | B55: 21 | C55: 12 | D55: =INDEX(Table!E:E,MATCH(E55,Table!F:F,0)) -> C | E55: Rob England | F55: 12.02795455 | G55: 6 | H55: -0.4475 | I55: 2 | J55: 0 | L55: =INDEX(Table!N:N,MATCH(E55,Table!F:F,0)) -> 12.42 | M55: 12.42 | N55: 17.42545455 | O55: 3 | Q55: -4.95 | R55: 1 | T55: -0.4475 | U55: 2 | BV55: 12.02795455 | BW55: 6 | BX55: 0
A56: 35 | B56: 10 | C56: 52 | D56: =INDEX(Table!E:E,MATCH(E56,Table!F:F,0)) -> A | E56: Sally Williams | F56: -2.1 | G56: 3 | H56: 8.8 | I56: 2 | J56: 0 | L56: =INDEX(Table!N:N,MATCH(E56,Table!F:F,0)) -> 0 | M56: 0 | N56: -3.9 | O56: 1 | Q56: -7 | R56: 0 | T56: 8.8 | U56: 2 | BV56: -2.1 | BW56: 3 | BX56: 0
A57: 42 | B57: 36 | C57: 35 | D57: =INDEX(Table!E:E,MATCH(E57,Table!F:F,0)) -> B | E57: Simon Greenhalgh | F57: -7.265 | G57: 4 | H57: -5 | I57: 1 | J57: 0 | L57: =INDEX(Table!N:N,MATCH(E57,Table!F:F,0)) -> 0 | M57: 0 | N57: -4.625 | O57: 1 | Q57: 2.36 | R57: 2 | T57: -5 | U57: 1 | BV57: -7.265 | BW57: 4 | BX57: 0
A58: 24 | B58: 13 | C58: 29 | D58: =INDEX(Table!E:E,MATCH(E58,Table!F:F,0)) -> B | E58: Stephen Barr | F58: 4.193939394 | G58: 6 | H58: 4 | I58: 2 | J58: 0 | L58: =INDEX(Table!N:N,MATCH(E58,Table!F:F,0)) -> 0 | M58: 0 | N58: 0.7272727273 | O58: 2 | Q58: -0.5333333333 | R58: 2 | T58: 4 | U58: 2 | BV58: 4.193939394 | BW58: 6 | BX58: 0
A59: 4 | B59: 5 | C59: 11 | D59: =INDEX(Table!E:E,MATCH(E59,Table!F:F,0)) -> B | E59: Stephen Troop | F59: 26.38135198 | G59: 8 | H59: 12.94545455 | I59: 3 | J59: 0 | L59: =INDEX(Table!N:N,MATCH(E59,Table!F:F,0)) -> 51.75 | M59: 51.75 | N59: 13.96923077 | O59: 3 | Q59: -0.5333333333 | R59: 2 | T59: 12.94545455 | U59: 3 | BV59: 26.38135198 | BW59: 8 | BX59: 0
A60: =_xlfn.RANK.EQ(F60,totalscores,0) -> 34 | B60: =_xlfn.RANK.EQ(H60,thisweekscore,0) -> 42 | C60: 24 | D60: =INDEX(Table!E:E,MATCH(E60,Table!F:F,0)) -> A | E60: Steve Baxter | F60: =+N60+Q60+T60+W60+Z60+AC60+AF60+AI60+AL60+AO60+AR60+AU60+AX60+BA60+BD60+BG60+BJ60+BM60+BP60+BS60 -> -1.980909091 | G60: =+O60+R60+U60+X60+AA60+AD60+AG60+AJ60+AM60+AP60+AS60+AV60+AY60+BB60+BE60+BH60+BK60+BN60+BQ60+BT60 -> 6 | H60: -5.2 | I60: 1 | J60: =P60+S60+V60+Y60+AB60+AE60+AH60+AK60+AN60+AQ60+AT60+AW60+AZ60+BC60+BF60+BI60+BL60+BO60+BR60+BU60 -> 0 | L60: =INDEX(Table!N:N,MATCH(E60,Table!F:F,0)) -> 0 | M60: =K60+J60+L60 -> 0 | N60: 5.11 | O60: 3 | Q60: -1.890909091 | R60: 2 | T60: -5.2 | U60: 1 | BV60: =BS60+BP60+BM60+BJ60+BG60+BD60+BA60+AX60+AU60+AR60+AO60+AL60+AI60+AF60+AC60+Z60+W60+T60+Q60+N60 -> -1.980909091 | BW60: =BT60+BQ60+BN60+BK60+BH60+BE60+BB60+AY60+AV60+AS60+AP60+AM60+AJ60+AG60+AD60+AA60+X60+U60+R60+O60 -> 6 | BX60: =BU60+BR60+BO60+BL60+BI60+BF60+BC60+AZ60+AW60+AT60+AQ60+AN60+AK60+AH60+AE60+AB60+Y60+V60+S60+P60 -> 0
A61: 53 | B61: 25 | C61: 54 | D61: =INDEX(Table!E:E,MATCH(E61,Table!F:F,0)) -> A | E61: Steve Carter | F61: -15.4 | G61: 5 | H61: -3.7 | I61: 1 | J61: 0 | L61: =INDEX(Table!N:N,MATCH(E61,Table!F:F,0)) -> 0 | M61: 0 | N61: -7 | O61: 3 | Q61: -4.7 | R61: 1 | T61: -3.7 | U61: 1 | BV61: -15.4 | BW61: 5 | BX61: 0
A62: 26 | B62: 46 | C62: 15 | D62: =INDEX(Table!E:E,MATCH(E62,Table!F:F,0)) -> C | E62: Tom Robinson | F62: 1.421666667 | G62: 4 | H62: -7 | I62: 0 | J62: 0 | L62: =INDEX(Table!N:N,MATCH(E62,Table!F:F,0)) -> 0 | M62: 0 | N62: 13.12166667 | O62: 3 | Q62: -4.7 | R62: 1 | T62: -7 | U62: 0 | BV62: 1.421666667 | BW62: 4 | BX62: 0
A63: 46 | B63: 46 | C63: 39 | D63: =INDEX(Table!E:E,MATCH(E63,Table!F:F,0)) -> B | E63: Vinny Topping | F63: -10.609375 | G63: 2 | H63: -7 | I63: 0 | J63: 0 | L63: =INDEX(Table!N:N,MATCH(E63,Table!F:F,0)) -> 0 | M63: 0 | N63: -7 | O63: 0 | Q63: 3.390625 | R63: 2 | T63: -7 | U63: 0 | BV63: -10.609375 | BW63: 2 | BX63: 0
J66: =SUM(J2:J59) -> 75 | K66: =SUM(K2:K59) -> 0 | P66: =SUM(P2:P59) -> 25 | S66: =SUM(S2:S59) -> 25 | V66: =SUM(V2:V59) -> 25 | Y66: =SUM(Y2:Y59) -> 0 | AB66: =SUM(AB2:AB59) -> 0 | AE66: =SUM(AE2:AE59) -> 0 | AH66: =SUM(AH2:AH59) -> 0 | AK66: =SUM(AK2:AK59) -> 0 | AN66: =SUM(AN2:AN59) -> 0 | AQ66: =SUM(AQ2:AQ59) -> 0 | AT66: =SUM(AT2:AT59) -> 0 | AW66: =SUM(AW2:AW59) -> 0 | AZ66: =SUM(AZ2:AZ59) -> 0 | BC66: =SUM(BC2:BC59) -> 0 | BF66: =SUM(BF2:BF59) -> 0 | BI66: =SUM(BI2:BI59) -> 0 | BL66: =SUM(BL2:BL59) -> 0 | BO66: =SUM(BO2:BO59) -> 0 | BR66: =SUM(BR2:BR59) -> 0 | BU66: =SUM(BU2:BU59) -> 0 | BX66: =SUM(BX2:BX59) -> 75

Sheet Cup
A1: Menu!A1
B2: Prelim | C2: =IF(CupDraw!J1="","",CupDraw!J1) ->  | H2: =CupDraw!O1 -> R1 (64) | I2: =CupDraw!P1 -> 2021-01-16 | N2: =CupDraw!U1 -> R2 (32) | O2: =CupDraw!V1 -> 2021-02-06 | T2: =CupDraw!AA1 -> R3 (16) | U2: =CupDraw!AB1 -> 2021-02-20 | Y2: =CupDraw!AG1 -> R4 (QF) | Z2: =CupDraw!AH1 -> 2021-03-13 | AD2: =CupDraw!AM1 -> R5 (SF) | AE2: =CupDraw!AN1 -> 2021-04-03 | AI2: =CupDraw!AS1 -> Final | AJ2: =CupDraw!AT1 -> 2021-04-24
B3: =CupDraw!I2 -> 1 | C3: =IF(CupDraw!J2="","",CupDraw!J2) ->  | D3: =IF(CupDraw!K2="","",CupDraw!K2) ->  | E3: =IF(CupDraw!L2="","",CupDraw!L2) ->  | H3: =CupDraw!O2 -> 1 | I3: =IF(CupDraw!P2="","",CupDraw!P2) -> Mal Stott | J3: =IF(CupDraw!Q2="","",CupDraw!Q2) -> 2.065 | K3: =IF(CupDraw!R2="","",CupDraw!R2) ->  | N3: =CupDraw!U2 -> 1 | O3: =CupDraw!V2 -> Mal Stott | P3: =IF(CupDraw!W2="","",CupDraw!W2) -> 0.7272727273 | Q3: =IF(CupDraw!X2="","",CupDraw!X2) ->  | T3: =CupDraw!AA2 -> 1 | U3: =CupDraw!AB2 -> Mal Stott | V3: =IF(CupDraw!AC2="","",CupDraw!AC2) -> -0.85 | W3: =CupDraw!AD2 ->  | Y3: =CupDraw!AG2 -> 1 | Z3: =CupDraw!AH2 -> Vinny Topping | AA3: =IF(CupDraw!AI2="","",CupDraw!AI2) -> -3.3 | AB3: =IF(CupDraw!AJ2="","",CupDraw!AJ2) ->  | AD3: =CupDraw!AM2 -> 1 | AE3: =IF(CupDraw!AN2="","",CupDraw!AN2) -> Vinny Topping | AF3: =IF(CupDraw!AO2="","",CupDraw!AO2) -> 31.30875 | AG3: =CupDraw!AP2 ->  | AI3: =CupDraw!AS2 -> 1 | AJ3: =CupDraw!AT2 -> Vinny Topping | AK3: =IF(CupDraw!AU2="","",CupDraw!AU2) -> -4.8 | AL3: =CupDraw!AV2 -> 
C4: =IF(CupDraw!J3="","",CupDraw!J3) ->  | D4: =IF(CupDraw!K3="","",CupDraw!K3) ->  | E4: =IF(CupDraw!L3="","",CupDraw!L3) ->  | H4: =CupDraw!O3 -> 0 | I4: =IF(CupDraw!P3="","",CupDraw!P3) -> Alfie Davies | J4: =IF(CupDraw!Q3="","",CupDraw!Q3) -> -4.3 | K4: =IF(CupDraw!R3="","",CupDraw!R3) ->  | O4: =CupDraw!V3 -> Stephen Troop | P4: =IF(CupDraw!W3="","",CupDraw!W3) -> -2.046666667 | Q4: =IF(CupDraw!X3="","",CupDraw!X3) ->  | U4: =CupDraw!AB3 -> Vinny Topping | V4: =IF(CupDraw!AC3="","",CupDraw!AC3) -> 0.415 | Z4: =CupDraw!AH3 -> John Ronan | AA4: =IF(CupDraw!AI3="","",CupDraw!AI3) -> -7 | AB4: =IF(CupDraw!AJ3="","",CupDraw!AJ3) ->  | AE4: =CupDraw!AN3 -> Dave Orrell | AF4: =IF(CupDraw!AO3="","",CupDraw!AO3) -> -5.5 | AJ4: =CupDraw!AT3 -> Nick Blocksidge | AK4: =IF(CupDraw!AU3="","",CupDraw!AU3) -> -5.454545455
B5: =CupDraw!I4 -> 2 | C5: =IF(CupDraw!J4="","",CupDraw!J4) ->  | D5: =IF(CupDraw!K4="","",CupDraw!K4) ->  | E5: =IF(CupDraw!L4="","",CupDraw!L4) ->  | H5: =CupDraw!O4 -> 2 | I5: =IF(CupDraw!P4="","",CupDraw!P4) -> Stephen Troop | J5: =IF(CupDraw!Q4="","",CupDraw!Q4) -> 1.1 | K5: =IF(CupDraw!R4="","",CupDraw!R4) ->  | N5: =CupDraw!U4 -> 2 | O5: =CupDraw!V4 -> Vinny Topping | P5: =IF(CupDraw!W4="","",CupDraw!W4) -> 9.94 | Q5: =IF(CupDraw!X4="","",CupDraw!X4) ->  | T5: =CupDraw!AA4 -> 2 | U5: =CupDraw!AB4 -> John Ronan | V5: =IF(CupDraw!AC4="","",CupDraw!AC4) -> 26.56 | W5: =CupDraw!AD4 ->  | Y5: =CupDraw!AG4 -> 2 | Z5: =CupDraw!AH4 -> Dave Orrell | AA5: =IF(CupDraw!AI4="","",CupDraw!AI4) -> 33.536 | AB5: =IF(CupDraw!AJ4="","",CupDraw!AJ4) ->  | AD5: =CupDraw!AM4 -> 2 | AE5: =CupDraw!AN4 -> Alick Rocca | AF5: =IF(CupDraw!AO4="","",CupDraw!AO4) -> -7 | AG5: =CupDraw!AP4 -> 
C6: =IF(CupDraw!J5="","",CupDraw!J5) ->  | D6: =IF(CupDraw!K5="","",CupDraw!K5) ->  | E6: =IF(CupDraw!L5="","",CupDraw!L5) ->  | I6: =IF(CupDraw!P5="","",CupDraw!P5) -> Mark Saunders | J6: =IF(CupDraw!Q5="","",CupDraw!Q5) -> -1.333333333 | K6: =IF(CupDraw!R5="","",CupDraw!R5) ->  | O6: =CupDraw!V5 -> Charlie Griffiths | P6: =IF(CupDraw!W5="","",CupDraw!W5) -> -1 | Q6: =IF(CupDraw!X5="","",CupDraw!X5) ->  | U6: =CupDraw!AB5 -> Chris Bow | V6: =IF(CupDraw!AC5="","",CupDraw!AC5) -> -7 | Z6: =CupDraw!AH5 -> James Bell | AA6: =IF(CupDraw!AI5="","",CupDraw!AI5) -> -7 | AB6: =IF(CupDraw!AJ5="","",CupDraw!AJ5) ->  | AE6: =CupDraw!AN5 -> Nick Blocksidge | AF6: =IF(CupDraw!AO5="","",CupDraw!AO5) -> -5.466666667
B7: =CupDraw!I6 -> 3 | C7: =IF(CupDraw!J6="","",CupDraw!J6) ->  | D7: =IF(CupDraw!K6="","",CupDraw!K6) ->  | E7: =IF(CupDraw!L6="","",CupDraw!L6) ->  | H7: =CupDraw!O6 -> 3 | I7: =IF(CupDraw!P6="","",CupDraw!P6) -> Liam Wah | J7: =IF(CupDraw!Q6="","",CupDraw!Q6) -> -5.090909091 | K7: =IF(CupDraw!R6="","",CupDraw!R6) ->  | N7: =CupDraw!U6 -> 3 | O7: =CupDraw!V6 -> John Ronan | P7: =IF(CupDraw!W6="","",CupDraw!W6) -> -4.1 | Q7: =IF(CupDraw!X6="","",CupDraw!X6) ->  | T7: =CupDraw!AA6 -> 3 | U7: =CupDraw!AB6 -> Barry Birchall | V7: =IF(CupDraw!AC6="","",CupDraw!AC6) -> -5.4 | W7: =CupDraw!AD6 ->  | Y7: =CupDraw!AG6 -> 3 | Z7: =CupDraw!AH6 -> Rob England | AA7: =IF(CupDraw!AI6="","",CupDraw!AI6) -> -5.25 | AB7: =IF(CupDraw!AJ6="","",CupDraw!AJ6) ->  | AF7: =IF(CupDraw!AO6="","",CupDraw!AO6) ->  | AI7: =CupDraw!AS6 -> Earlier ties
C8: =IF(CupDraw!J7="","",CupDraw!J7) ->  | D8: =IF(CupDraw!K7="","",CupDraw!K7) ->  | E8: =IF(CupDraw!L7="","",CupDraw!L7) ->  | I8: =IF(CupDraw!P7="","",CupDraw!P7) -> Vinny Topping | J8: =IF(CupDraw!Q7="","",CupDraw!Q7) -> -4.95 | K8: =IF(CupDraw!R7="","",CupDraw!R7) ->  | O8: =CupDraw!V7 -> Paul Ridgeway | P8: =IF(CupDraw!W7="","",CupDraw!W7) -> -5.466666667 | Q8: =IF(CupDraw!X7="","",CupDraw!X7) ->  | U8: =CupDraw!AB7 -> Dave Orrell | V8: =IF(CupDraw!AC7="","",CupDraw!AC7) -> 0 | Z8: =CupDraw!AH7 -> Alick Rocca | AA8: =IF(CupDraw!AI7="","",CupDraw!AI7) -> -3.8 | AB8: =IF(CupDraw!AJ7="","",CupDraw!AJ7) ->  | AD8: =CupDraw!AM7 -> Earlier ties | AF8: =IF(CupDraw!AO7="","",CupDraw!AO7) ->  | AJ8: =IF(CupDraw!AT7="","",CupDraw!AT7) ->  | AK8: =IF(CupDraw!AU7="","",CupDraw!AU7) ->  | AL8: =IF(CupDraw!AV7="","",CupDraw!AV7) -> 
B9: =CupDraw!I8 -> 4 | C9: =IF(CupDraw!J8="","",CupDraw!J8) ->  | D9: =IF(CupDraw!K8="","",CupDraw!K8) ->  | E9: =IF(CupDraw!L8="","",CupDraw!L8) ->  | H9: =CupDraw!O8 -> 4 | I9: =IF(CupDraw!P8="","",CupDraw!P8) -> Paul Allen | J9: =IF(CupDraw!Q8="","",CupDraw!Q8) -> -4.625 | K9: =IF(CupDraw!R8="","",CupDraw!R8) ->  | N9: =CupDraw!U8 -> 4 | O9: =CupDraw!V8 -> Chris Townsend | P9: =IF(CupDraw!W8="","",CupDraw!W8) -> -7 | Q9: =IF(CupDraw!X8="","",CupDraw!X8) ->  | T9: =CupDraw!AA8 -> 4 | U9: =CupDraw!AB8 -> Gerard Ventom | V9: =IF(CupDraw!AC8="","",CupDraw!AC8) -> -7 | W9: =CupDraw!AD8 ->  | Y9: =CupDraw!AG8 -> 4 | Z9: =CupDraw!AH8 -> Gareth McGuire | AA9: =IF(CupDraw!AI8="","",CupDraw!AI8) -> -10 | AB9: =IF(CupDraw!AJ8="","",CupDraw!AJ8) ->  | AE9: =IF(CupDraw!AN8="","",CupDraw!AN8) ->  | AF9: =IF(CupDraw!AO8="","",CupDraw!AO8) ->  | AG9: =CupDraw!AP8 ->  | AJ9: =IF(CupDraw!AT8="","",CupDraw!AT8) ->  | AK9: =IF(CupDraw!AU8="","",CupDraw!AU8) ->  | AL9: =IF(CupDraw!AV8="","",CupDraw!AV8) -> 
C10: =IF(CupDraw!J9="","",CupDraw!J9) ->  | D10: =IF(CupDraw!K9="","",CupDraw!K9) ->  | E10: =IF(CupDraw!L9="","",CupDraw!L9) ->  | I10: =IF(CupDraw!P9="","",CupDraw!P9) -> Charlie Griffiths | J10: =IF(CupDraw!Q9="","",CupDraw!Q9) -> 1.9125 | K10: =IF(CupDraw!R9="","",CupDraw!R9) ->  | O10: =CupDraw!V9 -> Chris Bow | P10: =IF(CupDraw!W9="","",CupDraw!W9) -> -3.8 | Q10: =IF(CupDraw!X9="","",CupDraw!X9) ->  | U10: =CupDraw!AB9 -> James Bell | V10: =IF(CupDraw!AC9="","",CupDraw!AC9) -> 10.92 | Z10: =CupDraw!AH9 -> Nick Blocksidge | AA10: =IF(CupDraw!AI9="","",CupDraw!AI9) -> 15.52777778 | AB10: =IF(CupDraw!AJ9="","",CupDraw!AJ9) ->  | AE10: =IF(CupDraw!AN9="","",CupDraw!AN9) ->  | AF10: =IF(CupDraw!AO9="","",CupDraw!AO9) ->  | AJ10: =IF(CupDraw!AT9="","",CupDraw!AT9) ->  | AK10: =IF(CupDraw!AU9="","",CupDraw!AU9) ->  | AL10: =IF(CupDraw!AV9="","",CupDraw!AV9) -> 
B11: =CupDraw!I10 -> 5 | C11: =IF(CupDraw!J10="","",CupDraw!J10) ->  | D11: =IF(CupDraw!K10="","",CupDraw!K10) ->  | E11: =IF(CupDraw!L10="","",CupDraw!L10) ->  | H11: =CupDraw!O10 -> 5 | I11: =IF(CupDraw!P10="","",CupDraw!P10) -> John Ronan | J11: =IF(CupDraw!Q10="","",CupDraw!Q10) -> 0.8727272727 | K11: =IF(CupDraw!R10="","",CupDraw!R10) ->  | N11: =CupDraw!U10 -> 5 | O11: =CupDraw!V10 -> Tom Robinson | P11: =IF(CupDraw!W10="","",CupDraw!W10) -> 1.2925 | Q11: =IF(CupDraw!X10="","",CupDraw!X10) ->  | T11: =CupDraw!AA10 -> 5 | U11: =CupDraw!AB10 -> Rob England | V11: =IF(CupDraw!AC10="","",CupDraw!AC10) -> -1.714285714 | W11: =CupDraw!AD10 ->  | AE11: =IF(CupDraw!AN10="","",CupDraw!AN10) ->  | AF11: =IF(CupDraw!AO10="","",CupDraw!AO10) ->  | AG11: =CupDraw!AP10 ->  | AJ11: =IF(CupDraw!AT10="","",CupDraw!AT10) ->  | AK11: =IF(CupDraw!AU10="","",CupDraw!AU10) ->  | AL11: =IF(CupDraw!AV10="","",CupDraw!AV10) -> 
C12: =IF(CupDraw!J11="","",CupDraw!J11) ->  | D12: =IF(CupDraw!K11="","",CupDraw!K11) ->  | E12: =IF(CupDraw!L11="","",CupDraw!L11) ->  | I12: =IF(CupDraw!P11="","",CupDraw!P11) -> Kei Lok Ma | J12: =IF(CupDraw!Q11="","",CupDraw!Q11) -> -5.090909091 | K12: =IF(CupDraw!R11="","",CupDraw!R11) ->  | O12: =CupDraw!V11 -> Barry Birchall | P12: =IF(CupDraw!W11="","",CupDraw!W11) -> 1.735 | Q12: =IF(CupDraw!X11="","",CupDraw!X11) ->  | U12: =CupDraw!AB11 -> Howard Bradley | V12: =IF(CupDraw!AC11="","",CupDraw!AC11) -> -5.555555556 | AE12: =IF(CupDraw!AN11="","",CupDraw!AN11) ->  | AF12: =IF(CupDraw!AO11="","",CupDraw!AO11) -> 
B13: =CupDraw!I12 -> 6 | C13: =IF(CupDraw!J12="","",CupDraw!J12) ->  | D13: =IF(CupDraw!K12="","",CupDraw!K12) ->  | E13: =IF(CupDraw!L12="","",CupDraw!L12) ->  | H13: =CupDraw!O12 -> 6 | I13: =IF(CupDraw!P12="","",CupDraw!P12) -> Paul Ridgeway | J13: =IF(CupDraw!Q12="","",CupDraw!Q12) -> 4.5 | K13: =IF(CupDraw!R12="","",CupDraw!R12) ->  | N13: =CupDraw!U12 -> 6 | O13: =CupDraw!V12 -> Dave Orrell | P13: =IF(CupDraw!W12="","",CupDraw!W12) -> -4.625 | Q13: =IF(CupDraw!X12="","",CupDraw!X12) ->  | T13: =CupDraw!AA12 -> 6 | U13: =CupDraw!AB12 -> Chris Luck | V13: =IF(CupDraw!AC12="","",CupDraw!AC12) -> -4.8 | W13: =CupDraw!AD12 ->  | Y13: =CupDraw!AG12 -> Earlier Ties
C14: =IF(CupDraw!J13="","",CupDraw!J13) ->  | D14: =IF(CupDraw!K13="","",CupDraw!K13) ->  | E14: =IF(CupDraw!L13="","",CupDraw!L13) ->  | I14: =IF(CupDraw!P13="","",CupDraw!P13) -> Paul Fairhurst | J14: =IF(CupDraw!Q13="","",CupDraw!Q13) -> -4.75 | K14: =IF(CupDraw!R13="","",CupDraw!R13) ->  | O14: =CupDraw!V13 -> Chris Griffin | P14: =IF(CupDraw!W13="","",CupDraw!W13) -> -5.384615385 | Q14: =IF(CupDraw!X13="","",CupDraw!X13) ->  | U14: =CupDraw!AB13 -> Alick Rocca | V14: =IF(CupDraw!AC13="","",CupDraw!AC13) -> -3.9 | Z14: =IF(CupDraw!AH13="","",CupDraw!AH13) ->  | AA14: =IF(CupDraw!AI13="","",CupDraw!AI13) ->  | AB14: =IF(CupDraw!AJ13="","",CupDraw!AJ13) -> 
B15: =CupDraw!I14 -> 7 | C15: =IF(CupDraw!J14="","",CupDraw!J14) ->  | D15: =IF(CupDraw!K14="","",CupDraw!K14) ->  | E15: =IF(CupDraw!L14="","",CupDraw!L14) ->  | H15: =CupDraw!O14 -> 7 | I15: =IF(CupDraw!P14="","",CupDraw!P14) -> Chris Townsend | J15: =IF(CupDraw!Q14="","",CupDraw!Q14) -> 32.5 | K15: =IF(CupDraw!R14="","",CupDraw!R14) ->  | N15: =CupDraw!U14 -> 7 | O15: =CupDraw!V14 -> Ian Davies | P15: =IF(CupDraw!W14="","",CupDraw!W14) -> -3.7 | Q15: =IF(CupDraw!X14="","",CupDraw!X14) ->  | T15: =CupDraw!AA14 -> 7 | U15: =CupDraw!AB14 -> Gareth McGuire | V15: =IF(CupDraw!AC14="","",CupDraw!AC14) -> -5.272727273 | W15: =CupDraw!AD14 ->  | Z15: =IF(CupDraw!AH14="","",CupDraw!AH14) ->  | AA15: =IF(CupDraw!AI14="","",CupDraw!AI14) ->  | AB15: =IF(CupDraw!AJ14="","",CupDraw!AJ14) -> 
C16: =IF(CupDraw!J15="","",CupDraw!J15) ->  | D16: =IF(CupDraw!K15="","",CupDraw!K15) ->  | E16: =IF(CupDraw!L15="","",CupDraw!L15) ->  | I16: =IF(CupDraw!P15="","",CupDraw!P15) -> Graham Miller | J16: =IF(CupDraw!Q15="","",CupDraw!Q15) -> -5.333333333 | K16: =IF(CupDraw!R15="","",CupDraw!R15) ->  | O16: =CupDraw!V15 -> Gerard Ventom | P16: =IF(CupDraw!W15="","",CupDraw!W15) -> 6.5125 | Q16: =IF(CupDraw!X15="","",CupDraw!X15) ->  | U16: =CupDraw!AB15 -> Paul Adderley | V16: =IF(CupDraw!AC15="","",CupDraw!AC15) -> -5.45 | Z16: =IF(CupDraw!AH15="","",CupDraw!AH15) ->  | AA16: =IF(CupDraw!AI15="","",CupDraw!AI15) ->  | AB16: =IF(CupDraw!AJ15="","",CupDraw!AJ15) -> 
B17: =CupDraw!I16 -> 8 | C17: =IF(CupDraw!J16="","",CupDraw!J16) ->  | D17: =IF(CupDraw!K16="","",CupDraw!K16) ->  | E17: =IF(CupDraw!L16="","",CupDraw!L16) ->  | H17: =CupDraw!O16 -> 8 | I17: =IF(CupDraw!P16="","",CupDraw!P16) -> Chris Bow | J17: =IF(CupDraw!Q16="","",CupDraw!Q16) -> -3.7 | K17: =IF(CupDraw!R16="","",CupDraw!R16) ->  | N17: =CupDraw!U16 -> 8 | O17: =CupDraw!V16 -> Simon Greenhalgh | P17: =IF(CupDraw!W16="","",CupDraw!W16) -> -4.625 | Q17: =IF(CupDraw!X16="","",CupDraw!X16) ->  | T17: =CupDraw!AA16 -> 8 | U17: =CupDraw!AB16 -> Sally Williams | V17: =IF(CupDraw!AC16="","",CupDraw!AC16) -> -4 | W17: =CupDraw!AD16 ->  | Z17: =IF(CupDraw!AH16="","",CupDraw!AH16) ->  | AA17: =IF(CupDraw!AI16="","",CupDraw!AI16) ->  | AB17: =IF(CupDraw!AJ16="","",CupDraw!AJ16) -> 
C18: =IF(CupDraw!J17="","",CupDraw!J17) ->  | D18: =IF(CupDraw!K17="","",CupDraw!K17) ->  | E18: =IF(CupDraw!L17="","",CupDraw!L17) ->  | I18: =IF(CupDraw!P17="","",CupDraw!P17) -> Jack Walsh | J18: =IF(CupDraw!Q17="","",CupDraw!Q17) -> -10 | K18: =IF(CupDraw!R17="","",CupDraw!R17) ->  | O18: =CupDraw!V17 -> James Bell | P18: =IF(CupDraw!W17="","",CupDraw!W17) -> -0.6 | Q18: =IF(CupDraw!X17="","",CupDraw!X17) ->  | U18: =CupDraw!AB17 -> Nick Blocksidge | V18: =IF(CupDraw!AC17="","",CupDraw!AC17) -> -3.9 | Z18: =IF(CupDraw!AH17="","",CupDraw!AH17) ->  | AA18: =IF(CupDraw!AI17="","",CupDraw!AI17) ->  | AB18: =IF(CupDraw!AJ17="","",CupDraw!AJ17) -> 
B19: =CupDraw!I18 -> 9 | C19: =IF(CupDraw!J18="","",CupDraw!J18) ->  | D19: =IF(CupDraw!K18="","",CupDraw!K18) ->  | E19: =IF(CupDraw!L18="","",CupDraw!L18) ->  | H19: =CupDraw!O18 -> 9 | I19: =IF(CupDraw!P18="","",CupDraw!P18) -> Tom Robinson | J19: =IF(CupDraw!Q18="","",CupDraw!Q18) -> 2.123076923 | K19: =IF(CupDraw!R18="","",CupDraw!R18) ->  | N19: =CupDraw!U18 -> 9 | O19: =CupDraw!V18 -> Rob England | P19: =IF(CupDraw!W18="","",CupDraw!W18) -> -2.046666667 | Q19: =IF(CupDraw!X18="","",CupDraw!X18) ->  | Z19: =IF(CupDraw!AH18="","",CupDraw!AH18) ->  | AA19: =IF(CupDraw!AI18="","",CupDraw!AI18) ->  | AB19: =IF(CupDraw!AJ18="","",CupDraw!AJ18) -> 
C20: =IF(CupDraw!J19="","",CupDraw!J19) ->  | D20: =IF(CupDraw!K19="","",CupDraw!K19) ->  | E20: =IF(CupDraw!L19="","",CupDraw!L19) ->  | I20: =IF(CupDraw!P19="","",CupDraw!P19) -> Phil Miller | J20: =IF(CupDraw!Q19="","",CupDraw!Q19) -> -4.75 | K20: =IF(CupDraw!R19="","",CupDraw!R19) ->  | O20: =CupDraw!V19 -> Mark Bunn | P20: =IF(CupDraw!W19="","",CupDraw!W19) -> -4.25 | Q20: =IF(CupDraw!X19="","",CupDraw!X19) ->  | Z20: =IF(CupDraw!AH19="","",CupDraw!AH19) ->  | AA20: =IF(CupDraw!AI19="","",CupDraw!AI19) ->  | AB20: =IF(CupDraw!AJ19="","",CupDraw!AJ19) -> 
B21: =CupDraw!I20 -> 10 | C21: =IF(CupDraw!J20="","",CupDraw!J20) ->  | D21: =IF(CupDraw!K20="","",CupDraw!K20) ->  | E21: =IF(CupDraw!L20="","",CupDraw!L20) ->  | H21: =CupDraw!O20 -> 10 | I21: =IF(CupDraw!P20="","",CupDraw!P20) -> Barry Birchall | J21: =IF(CupDraw!Q20="","",CupDraw!Q20) -> 5.115 | K21: =IF(CupDraw!R20="","",CupDraw!R20) ->  | N21: =CupDraw!U20 -> 10 | O21: =CupDraw!V20 -> Howard Bradley | P21: =IF(CupDraw!W20="","",CupDraw!W20) -> -4.7 | Q21: =IF(CupDraw!X20="","",CupDraw!X20) ->  | Z21: =IF(CupDraw!AH20="","",CupDraw!AH20) ->  | AA21: =IF(CupDraw!AI20="","",CupDraw!AI20) ->  | AB21: =IF(CupDraw!AJ20="","",CupDraw!AJ20) -> 
C22: =IF(CupDraw!J21="","",CupDraw!J21) ->  | D22: =IF(CupDraw!K21="","",CupDraw!K21) ->  | E22: =IF(CupDraw!L21="","",CupDraw!L21) ->  | I22: =IF(CupDraw!P21="","",CupDraw!P21) -> Andy White | J22: =IF(CupDraw!Q21="","",CupDraw!Q21) -> 0.4628099174 | K22: =IF(CupDraw!R21="","",CupDraw!R21) ->  | O22: =CupDraw!V21 -> Kevin Carter | P22: =IF(CupDraw!W21="","",CupDraw!W21) -> -5.466666667 | Q22: =IF(CupDraw!X21="","",CupDraw!X21) ->  | T22: =CupDraw!AA21 -> Earlier Ties
B23: =CupDraw!I22 -> 11 | C23: =IF(CupDraw!J22="","",CupDraw!J22) ->  | D23: =IF(CupDraw!K22="","",CupDraw!K22) ->  | E23: =IF(CupDraw!L22="","",CupDraw!L22) ->  | H23: =CupDraw!O22 -> 11 | I23: =IF(CupDraw!P22="","",CupDraw!P22) -> Ashley Houghton | J23: =IF(CupDraw!Q22="","",CupDraw!Q22) -> 1.3025 | K23: =IF(CupDraw!R22="","",CupDraw!R22) ->  | N23: =CupDraw!U22 -> 11 | O23: =CupDraw!V22 -> Chris Luck | P23: =IF(CupDraw!W22="","",CupDraw!W22) -> -4.7 | Q23: =IF(CupDraw!X22="","",CupDraw!X22) -> 
C24: =IF(CupDraw!J23="","",CupDraw!J23) ->  | D24: =IF(CupDraw!K23="","",CupDraw!K23) ->  | E24: =IF(CupDraw!L23="","",CupDraw!L23) ->  | I24: =IF(CupDraw!P23="","",CupDraw!P23) -> Dave Orrell | J24: =IF(CupDraw!Q23="","",CupDraw!Q23) -> 2.23 | K24: =IF(CupDraw!R23="","",CupDraw!R23) ->  | O24: =CupDraw!V23 -> Joel Bent | P24: =IF(CupDraw!W23="","",CupDraw!W23) -> -7 | Q24: =IF(CupDraw!X23="","",CupDraw!X23) -> 
B25: =CupDraw!I24 -> 12 | C25: =IF(CupDraw!J24="","",CupDraw!J24) ->  | D25: =IF(CupDraw!K24="","",CupDraw!K24) ->  | E25: =IF(CupDraw!L24="","",CupDraw!L24) ->  | H25: =CupDraw!O24 -> 12 | I25: =IF(CupDraw!P24="","",CupDraw!P24) -> Chris Griffin | J25: =IF(CupDraw!Q24="","",CupDraw!Q24) -> -4.95 | K25: =IF(CupDraw!R24="","",CupDraw!R24) ->  | N25: =CupDraw!U24 -> 12 | O25: =CupDraw!V24 -> Paul Fiddler | P25: =IF(CupDraw!W24="","",CupDraw!W24) -> -7 | Q25: =IF(CupDraw!X24="","",CupDraw!X24) ->  | U25: =IF(CupDraw!AB24="","",CupDraw!AB24) -> Sally Williams | V25: =IF(CupDraw!AC24="","",CupDraw!AC24) -> -7
C26: =IF(CupDraw!J25="","",CupDraw!J25) ->  | D26: =IF(CupDraw!K25="","",CupDraw!K25) ->  | E26: =IF(CupDraw!L25="","",CupDraw!L25) ->  | I26: =IF(CupDraw!P25="","",CupDraw!P25) -> Ben Rosser | J26: =IF(CupDraw!Q25="","",CupDraw!Q25) -> -7 | K26: =IF(CupDraw!R25="","",CupDraw!R25) ->  | O26: =CupDraw!V25 -> Alick Rocca | P26: =IF(CupDraw!W25="","",CupDraw!W25) -> -3.75 | Q26: =IF(CupDraw!X25="","",CupDraw!X25) ->  | U26: =IF(CupDraw!AB25="","",CupDraw!AB25) -> Nick Blocksidge | V26: =IF(CupDraw!AC25="","",CupDraw!AC25) -> -7
B27: =CupDraw!I26 -> 13 | C27: =IF(CupDraw!J26="","",CupDraw!J26) ->  | D27: =IF(CupDraw!K26="","",CupDraw!K26) ->  | E27: =IF(CupDraw!L26="","",CupDraw!L26) ->  | H27: =CupDraw!O26 -> 13 | I27: =IF(CupDraw!P26="","",CupDraw!P26) -> Andy Charleston | J27: =IF(CupDraw!Q26="","",CupDraw!Q26) -> -7 | K27: =IF(CupDraw!R26="","",CupDraw!R26) ->  | N27: =CupDraw!U26 -> 13 | O27: =CupDraw!V26 -> Gareth McGuire | P27: =IF(CupDraw!W26="","",CupDraw!W26) -> 0.8269230769 | Q27: =IF(CupDraw!X26="","",CupDraw!X26) ->  | U27: =IF(CupDraw!AB26="","",CupDraw!AB26) ->  | V27: =IF(CupDraw!AC26="","",CupDraw!AC26) ->  | W27: =CupDraw!AD26 -> 
C28: =IF(CupDraw!J27="","",CupDraw!J27) ->  | D28: =IF(CupDraw!K27="","",CupDraw!K27) ->  | E28: =IF(CupDraw!L27="","",CupDraw!L27) ->  | I28: =IF(CupDraw!P27="","",CupDraw!P27) -> Ian Davies | J28: =IF(CupDraw!Q27="","",CupDraw!Q27) -> -1 | K28: =IF(CupDraw!R27="","",CupDraw!R27) ->  | O28: =CupDraw!V27 -> Steve Baxter | P28: =IF(CupDraw!W27="","",CupDraw!W27) -> -5.466666667 | Q28: =IF(CupDraw!X27="","",CupDraw!X27) ->  | U28: =IF(CupDraw!AB27="","",CupDraw!AB27) ->  | V28: =IF(CupDraw!AC27="","",CupDraw!AC27) -> 
B29: =CupDraw!I28 -> 14 | C29: =IF(CupDraw!J28="","",CupDraw!J28) ->  | D29: =IF(CupDraw!K28="","",CupDraw!K28) ->  | E29: =IF(CupDraw!L28="","",CupDraw!L28) ->  | H29: =CupDraw!O28 -> 14 | I29: =IF(CupDraw!P28="","",CupDraw!P28) -> Gerard Ventom | J29: =IF(CupDraw!Q28="","",CupDraw!Q28) -> -4.625 | K29: =IF(CupDraw!R28="","",CupDraw!R28) ->  | N29: =CupDraw!U28 -> 14 | O29: =CupDraw!V28 -> Paul Adderley | P29: =IF(CupDraw!W28="","",CupDraw!W28) -> 22.6 | Q29: =IF(CupDraw!X28="","",CupDraw!X28) ->  | U29: =IF(CupDraw!AB28="","",CupDraw!AB28) ->  | V29: =IF(CupDraw!AC28="","",CupDraw!AC28) ->  | W29: =CupDraw!AD28 -> 
C30: =IF(CupDraw!J29="","",CupDraw!J29) ->  | D30: =IF(CupDraw!K29="","",CupDraw!K29) ->  | E30: =IF(CupDraw!L29="","",CupDraw!L29) ->  | I30: =IF(CupDraw!P29="","",CupDraw!P29) -> Oscar Jackson | J30: =IF(CupDraw!Q29="","",CupDraw!Q29) -> -4.95 | K30: =IF(CupDraw!R29="","",CupDraw!R29) ->  | O30: =CupDraw!V29 -> Nigel Heyes | P30: =IF(CupDraw!W29="","",CupDraw!W29) -> -4.625 | Q30: =IF(CupDraw!X29="","",CupDraw!X29) ->  | U30: =IF(CupDraw!AB29="","",CupDraw!AB29) ->  | V30: =IF(CupDraw!AC29="","",CupDraw!AC29) -> 
B31: =CupDraw!I30 -> 15 | C31: =IF(CupDraw!J30="","",CupDraw!J30) ->  | D31: =IF(CupDraw!K30="","",CupDraw!K30) ->  | E31: =IF(CupDraw!L30="","",CupDraw!L30) ->  | H31: =CupDraw!O30 -> 15 | I31: =IF(CupDraw!P30="","",CupDraw!P30) -> Alan Rogers | J31: =IF(CupDraw!Q30="","",CupDraw!Q30) -> -4.9 | K31: =IF(CupDraw!R30="","",CupDraw!R30) ->  | N31: =CupDraw!U30 -> 15 | O31: =CupDraw!V30 -> Stephen Barr | P31: =IF(CupDraw!W30="","",CupDraw!W30) -> -4.625 | Q31: =IF(CupDraw!X30="","",CupDraw!X30) -> 
C32: =IF(CupDraw!J31="","",CupDraw!J31) ->  | D32: =IF(CupDraw!K31="","",CupDraw!K31) ->  | E32: =IF(CupDraw!L31="","",CupDraw!L31) ->  | I32: =IF(CupDraw!P31="","",CupDraw!P31) -> Simon Greenhalgh | J32: =IF(CupDraw!Q31="","",CupDraw!Q31) -> -4.625 | K32: =IF(CupDraw!R31="","",CupDraw!R31) ->  | O32: =CupDraw!V31 -> Sally Williams | P32: =IF(CupDraw!W31="","",CupDraw!W31) -> -3.4 | Q32: =IF(CupDraw!X31="","",CupDraw!X31) -> 
B33: =CupDraw!I32 -> 16 | C33: =IF(CupDraw!J32="","",CupDraw!J32) ->  | D33: =IF(CupDraw!K32="","",CupDraw!K32) ->  | E33: =IF(CupDraw!L32="","",CupDraw!L32) ->  | H33: =CupDraw!O32 -> 16 | I33: =IF(CupDraw!P32="","",CupDraw!P32) -> Dave Bell | J33: =IF(CupDraw!Q32="","",CupDraw!Q32) -> -7 | K33: =IF(CupDraw!R32="","",CupDraw!R32) ->  | N33: =CupDraw!U32 -> 16 | O33: =CupDraw!V32 -> Mike Penk | P33: =IF(CupDraw!W32="","",CupDraw!W32) -> -4.7 | Q33: =IF(CupDraw!X32="","",CupDraw!X32) -> 
C34: =IF(CupDraw!J33="","",CupDraw!J33) ->  | D34: =IF(CupDraw!K33="","",CupDraw!K33) ->  | E34: =IF(CupDraw!L33="","",CupDraw!L33) ->  | I34: =IF(CupDraw!P33="","",CupDraw!P33) -> James Bell | J34: =IF(CupDraw!Q33="","",CupDraw!Q33) -> -4.85 | K34: =IF(CupDraw!R33="","",CupDraw!R33) ->  | O34: =CupDraw!V33 -> Nick Blocksidge | P34: =IF(CupDraw!W33="","",CupDraw!W33) -> 7.525 | Q34: =IF(CupDraw!X33="","",CupDraw!X33) -> 
B35: =CupDraw!I34 -> 17 | C35: =IF(CupDraw!J34="","",CupDraw!J34) ->  | D35: =IF(CupDraw!K34="","",CupDraw!K34) ->  | E35: =IF(CupDraw!L34="","",CupDraw!L34) ->  | H35: =CupDraw!O34 -> 17 | I35: =IF(CupDraw!P34="","",CupDraw!P34) -> Paul Barnes | J35: =IF(CupDraw!Q34="","",CupDraw!Q34) -> -7 | K35: =IF(CupDraw!R34="","",CupDraw!R34) ->  | Q35: =IF(CupDraw!X34="","",CupDraw!X34) -> 
C36: =IF(CupDraw!J35="","",CupDraw!J35) ->  | D36: =IF(CupDraw!K35="","",CupDraw!K35) ->  | E36: =IF(CupDraw!L35="","",CupDraw!L35) ->  | I36: =IF(CupDraw!P35="","",CupDraw!P35) -> Rob England | J36: =IF(CupDraw!Q35="","",CupDraw!Q35) -> -5.846153846 | K36: =IF(CupDraw!R35="","",CupDraw!R35) ->  | Q36: =IF(CupDraw!X35="","",CupDraw!X35) -> 
B37: =CupDraw!I36 -> 18 | C37: =IF(CupDraw!J36="","",CupDraw!J36) ->  | D37: =IF(CupDraw!K36="","",CupDraw!K36) ->  | E37: =IF(CupDraw!L36="","",CupDraw!L36) ->  | H37: =CupDraw!O36 -> 18 | I37: =IF(CupDraw!P36="","",CupDraw!P36) -> Martin Tarbuck | J37: =IF(CupDraw!Q36="","",CupDraw!Q36) -> 1.25 | K37: =IF(CupDraw!R36="","",CupDraw!R36) ->  | Q37: =IF(CupDraw!X36="","",CupDraw!X36) -> 
C38: =IF(CupDraw!J37="","",CupDraw!J37) ->  | D38: =IF(CupDraw!K37="","",CupDraw!K37) ->  | E38: =IF(CupDraw!L37="","",CupDraw!L37) ->  | I38: =IF(CupDraw!P37="","",CupDraw!P37) -> Mark Bunn | J38: =IF(CupDraw!Q37="","",CupDraw!Q37) -> 32.584375 | K38: =IF(CupDraw!R37="","",CupDraw!R37) ->  | N38: =CupDraw!U37 -> Replay | Q38: =IF(CupDraw!X37="","",CupDraw!X37) -> 
B39: =CupDraw!I38 -> 19 | C39: =IF(CupDraw!J38="","",CupDraw!J38) ->  | D39: =IF(CupDraw!K38="","",CupDraw!K38) ->  | E39: =IF(CupDraw!L38="","",CupDraw!L38) ->  | H39: =CupDraw!O38 -> 19 | I39: =IF(CupDraw!P38="","",CupDraw!P38) -> Howard Bradley | J39: =IF(CupDraw!Q38="","",CupDraw!Q38) -> 0.54 | K39: =IF(CupDraw!R38="","",CupDraw!R38) ->  | O39: =IF(CupDraw!V38="","",CupDraw!V38) ->  | P39: =IF(CupDraw!W38="","",CupDraw!W38) ->  | Q39: =IF(CupDraw!X38="","",CupDraw!X38) -> 
C40: =IF(CupDraw!J39="","",CupDraw!J39) ->  | D40: =IF(CupDraw!K39="","",CupDraw!K39) ->  | E40: =IF(CupDraw!L39="","",CupDraw!L39) ->  | I40: =IF(CupDraw!P39="","",CupDraw!P39) -> Martin Molyneux | J40: =IF(CupDraw!Q39="","",CupDraw!Q39) -> -3.3 | K40: =IF(CupDraw!R39="","",CupDraw!R39) ->  | O40: =IF(CupDraw!V39="","",CupDraw!V39) ->  | P40: =IF(CupDraw!W39="","",CupDraw!W39) ->  | Q40: =IF(CupDraw!X39="","",CupDraw!X39) -> 
B41: =CupDraw!I40 -> 20 | C41: =IF(CupDraw!J40="","",CupDraw!J40) ->  | D41: =IF(CupDraw!K40="","",CupDraw!K40) ->  | E41: =IF(CupDraw!L40="","",CupDraw!L40) ->  | H41: =CupDraw!O40 -> 20 | I41: =IF(CupDraw!P40="","",CupDraw!P40) -> Mo Sudell | J41: =IF(CupDraw!Q40="","",CupDraw!Q40) -> -5.846153846 | K41: =IF(CupDraw!R40="","",CupDraw!R40) ->  | O41: =IF(CupDraw!V40="","",CupDraw!V40) ->  | P41: =IF(CupDraw!W40="","",CupDraw!W40) ->  | Q41: =IF(CupDraw!X40="","",CupDraw!X40) -> 
C42: =IF(CupDraw!J41="","",CupDraw!J41) ->  | D42: =IF(CupDraw!K41="","",CupDraw!K41) ->  | E42: =IF(CupDraw!L41="","",CupDraw!L41) ->  | I42: =IF(CupDraw!P41="","",CupDraw!P41) -> Kevin Carter | J42: =IF(CupDraw!Q41="","",CupDraw!Q41) -> 2.29375 | K42: =IF(CupDraw!R41="","",CupDraw!R41) ->  | O42: =IF(CupDraw!V41="","",CupDraw!V41) ->  | P42: =IF(CupDraw!W41="","",CupDraw!W41) ->  | Q42: =IF(CupDraw!X41="","",CupDraw!X41) -> 
B43: =CupDraw!I42 -> 21 | C43: =IF(CupDraw!J42="","",CupDraw!J42) ->  | D43: =IF(CupDraw!K42="","",CupDraw!K42) ->  | E43: =IF(CupDraw!L42="","",CupDraw!L42) ->  | H43: =CupDraw!O42 -> 21 | I43: =IF(CupDraw!P42="","",CupDraw!P42) -> David Dunn | J43: =IF(CupDraw!Q42="","",CupDraw!Q42) -> 5.672727273 | K43: =IF(CupDraw!R42="","",CupDraw!R42) ->  | O43: =IF(CupDraw!V42="","",CupDraw!V42) ->  | P43: =IF(CupDraw!W42="","",CupDraw!W42) ->  | Q43: =IF(CupDraw!X42="","",CupDraw!X42) -> 
C44: =IF(CupDraw!J43="","",CupDraw!J43) ->  | D44: =IF(CupDraw!K43="","",CupDraw!K43) ->  | E44: =IF(CupDraw!L43="","",CupDraw!L43) ->  | I44: =IF(CupDraw!P43="","",CupDraw!P43) -> Chris Luck | J44: =IF(CupDraw!Q43="","",CupDraw!Q43) -> 35.70625 | K44: =IF(CupDraw!R43="","",CupDraw!R43) ->  | O44: =IF(CupDraw!V43="","",CupDraw!V43) ->  | P44: =IF(CupDraw!W43="","",CupDraw!W43) ->  | Q44: =IF(CupDraw!X43="","",CupDraw!X43) -> 
B45: =CupDraw!I44 -> 22 | C45: =IF(CupDraw!J44="","",CupDraw!J44) ->  | D45: =IF(CupDraw!K44="","",CupDraw!K44) ->  | E45: =IF(CupDraw!L44="","",CupDraw!L44) ->  | H45: =CupDraw!O44 -> 22 | I45: =IF(CupDraw!P44="","",CupDraw!P44) -> Joel Bent | J45: =IF(CupDraw!Q44="","",CupDraw!Q44) -> -3 | K45: =IF(CupDraw!R44="","",CupDraw!R44) ->  | O45: =IF(CupDraw!V44="","",CupDraw!V44) ->  | P45: =IF(CupDraw!W44="","",CupDraw!W44) ->  | Q45: =IF(CupDraw!X44="","",CupDraw!X44) -> 
C46: =IF(CupDraw!J45="","",CupDraw!J45) ->  | D46: =IF(CupDraw!K45="","",CupDraw!K45) ->  | E46: =IF(CupDraw!L45="","",CupDraw!L45) ->  | I46: =IF(CupDraw!P45="","",CupDraw!P45) -> Pete Baron | J46: =IF(CupDraw!Q45="","",CupDraw!Q45) -> -7 | K46: =IF(CupDraw!R45="","",CupDraw!R45) ->  | O46: =IF(CupDraw!V45="","",CupDraw!V45) ->  | P46: =IF(CupDraw!W45="","",CupDraw!W45) ->  | Q46: =IF(CupDraw!X45="","",CupDraw!X45) -> 
B47: =CupDraw!I46 -> 23 | C47: =IF(CupDraw!J46="","",CupDraw!J46) ->  | D47: =IF(CupDraw!K46="","",CupDraw!K46) ->  | E47: =IF(CupDraw!L46="","",CupDraw!L46) ->  | H47: =CupDraw!O46 -> 23 | I47: =IF(CupDraw!P46="","",CupDraw!P46) -> Paul Fiddler | J47: =IF(CupDraw!Q46="","",CupDraw!Q46) -> 9.226666667 | K47: =IF(CupDraw!R46="","",CupDraw!R46) ->  | O47: =IF(CupDraw!V46="","",CupDraw!V46) ->  | P47: =IF(CupDraw!W46="","",CupDraw!W46) ->  | Q47: =IF(CupDraw!X46="","",CupDraw!X46) -> 
C48: =IF(CupDraw!J47="","",CupDraw!J47) ->  | D48: =IF(CupDraw!K47="","",CupDraw!K47) ->  | E48: =IF(CupDraw!L47="","",CupDraw!L47) ->  | I48: =IF(CupDraw!P47="","",CupDraw!P47) -> Steve Carter | J48: =IF(CupDraw!Q47="","",CupDraw!Q47) -> 3.48 | K48: =IF(CupDraw!R47="","",CupDraw!R47) ->  | O48: =IF(CupDraw!V47="","",CupDraw!V47) ->  | P48: =IF(CupDraw!W47="","",CupDraw!W47) ->  | Q48: =IF(CupDraw!X47="","",CupDraw!X47) -> 
B49: =CupDraw!I48 -> 24 | C49: =IF(CupDraw!J48="","",CupDraw!J48) ->  | D49: =IF(CupDraw!K48="","",CupDraw!K48) ->  | E49: =IF(CupDraw!L48="","",CupDraw!L48) ->  | H49: =CupDraw!O48 -> 24 | I49: =IF(CupDraw!P48="","",CupDraw!P48) -> Gareth Powell | J49: =IF(CupDraw!Q48="","",CupDraw!Q48) -> 9.39 | K49: =IF(CupDraw!R48="","",CupDraw!R48) -> 
C50: =IF(CupDraw!J49="","",CupDraw!J49) ->  | D50: =IF(CupDraw!K49="","",CupDraw!K49) ->  | E50: =IF(CupDraw!L49="","",CupDraw!L49) ->  | I50: =IF(CupDraw!P49="","",CupDraw!P49) -> Alick Rocca | J50: =IF(CupDraw!Q49="","",CupDraw!Q49) -> 14.92 | K50: =IF(CupDraw!R49="","",CupDraw!R49) -> 
B51: =CupDraw!I50 -> 25 | C51: =IF(CupDraw!J50="","",CupDraw!J50) ->  | D51: =IF(CupDraw!K50="","",CupDraw!K50) ->  | E51: =IF(CupDraw!L50="","",CupDraw!L50) ->  | H51: =CupDraw!O50 -> 25 | I51: =IF(CupDraw!P50="","",CupDraw!P50) -> Lennie Bow | J51: =IF(CupDraw!Q50="","",CupDraw!Q50) -> -5.333333333 | K51: =IF(CupDraw!R50="","",CupDraw!R50) -> 
C52: =IF(CupDraw!J51="","",CupDraw!J51) ->  | D52: =IF(CupDraw!K51="","",CupDraw!K51) ->  | E52: =IF(CupDraw!L51="","",CupDraw!L51) ->  | I52: =IF(CupDraw!P51="","",CupDraw!P51) -> Gareth McGuire | J52: =IF(CupDraw!Q51="","",CupDraw!Q51) -> -1.333333333 | K52: =IF(CupDraw!R51="","",CupDraw!R51) -> 
B53: =CupDraw!I52 -> 26 | C53: =IF(CupDraw!J52="","",CupDraw!J52) ->  | D53: =IF(CupDraw!K52="","",CupDraw!K52) ->  | E53: =IF(CupDraw!L52="","",CupDraw!L52) ->  | H53: =CupDraw!O52 -> 26 | I53: =IF(CupDraw!P52="","",CupDraw!P52) -> Alan White | J53: =IF(CupDraw!Q52="","",CupDraw!Q52) -> -5.090909091 | K53: =IF(CupDraw!R52="","",CupDraw!R52) -> 
C54: =IF(CupDraw!J53="","",CupDraw!J53) ->  | D54: =IF(CupDraw!K53="","",CupDraw!K53) ->  | E54: =IF(CupDraw!L53="","",CupDraw!L53) ->  | I54: =IF(CupDraw!P53="","",CupDraw!P53) -> Steve Baxter | J54: =IF(CupDraw!Q53="","",CupDraw!Q53) -> -0.7272727273 | K54: =IF(CupDraw!R53="","",CupDraw!R53) -> 
B55: =CupDraw!I54 -> 27 | C55: =IF(CupDraw!J54="","",CupDraw!J54) ->  | D55: =IF(CupDraw!K54="","",CupDraw!K54) ->  | E55: =IF(CupDraw!L54="","",CupDraw!L54) ->  | H55: =CupDraw!O54 -> 27 | I55: =IF(CupDraw!P54="","",CupDraw!P54) -> Paul Adderley | J55: =IF(CupDraw!Q54="","",CupDraw!Q54) -> -5.090909091 | K55: =IF(CupDraw!R54="","",CupDraw!R54) -> 
C56: =IF(CupDraw!J55="","",CupDraw!J55) ->  | D56: =IF(CupDraw!K55="","",CupDraw!K55) ->  | E56: =IF(CupDraw!L55="","",CupDraw!L55) ->  | I56: =IF(CupDraw!P55="","",CupDraw!P55) -> Bye | J56: =IF(CupDraw!Q55="","",CupDraw!Q55) -> -10 | K56: =IF(CupDraw!R55="","",CupDraw!R55) -> 
B57: =CupDraw!I56 -> 28 | C57: =IF(CupDraw!J56="","",CupDraw!J56) ->  | D57: =IF(CupDraw!K56="","",CupDraw!K56) ->  | E57: =IF(CupDraw!L56="","",CupDraw!L56) ->  | H57: =CupDraw!O56 -> 28 | I57: =IF(CupDraw!P56="","",CupDraw!P56) -> Nigel Heyes | J57: =IF(CupDraw!Q56="","",CupDraw!Q56) -> 0.4628099174 | K57: =IF(CupDraw!R56="","",CupDraw!R56) -> 
C58: =IF(CupDraw!J57="","",CupDraw!J57) ->  | D58: =IF(CupDraw!K57="","",CupDraw!K57) ->  | E58: =IF(CupDraw!L57="","",CupDraw!L57) ->  | I58: =IF(CupDraw!P57="","",CupDraw!P57) -> Bye | J58: =IF(CupDraw!Q57="","",CupDraw!Q57) -> -10 | K58: =IF(CupDraw!R57="","",CupDraw!R57) -> 
B59: =CupDraw!I58 -> 29 | C59: =IF(CupDraw!J58="","",CupDraw!J58) ->  | D59: =IF(CupDraw!K58="","",CupDraw!K58) ->  | E59: =IF(CupDraw!L58="","",CupDraw!L58) ->  | H59: =CupDraw!O58 -> 29 | I59: =IF(CupDraw!P58="","",CupDraw!P58) -> Stephen Barr | J59: =IF(CupDraw!Q58="","",CupDraw!Q58) -> -5.333333333 | K59: =IF(CupDraw!R58="","",CupDraw!R58) -> 
C60: =IF(CupDraw!J59="","",CupDraw!J59) ->  | D60: =IF(CupDraw!K59="","",CupDraw!K59) ->  | E60: =IF(CupDraw!L59="","",CupDraw!L59) ->  | I60: =IF(CupDraw!P59="","",CupDraw!P59) -> Bye | J60: =IF(CupDraw!Q59="","",CupDraw!Q59) -> -10 | K60: =IF(CupDraw!R59="","",CupDraw!R59) -> 
B61: =CupDraw!I60 -> 30 | C61: =IF(CupDraw!J60="","",CupDraw!J60) ->  | D61: =IF(CupDraw!K60="","",CupDraw!K60) ->  | E61: =IF(CupDraw!L60="","",CupDraw!L60) ->  | H61: =CupDraw!O60 -> 30 | I61: =IF(CupDraw!P60="","",CupDraw!P60) -> Sally Williams | J61: =IF(CupDraw!Q60="","",CupDraw!Q60) -> -7 | K61: =IF(CupDraw!R60="","",CupDraw!R60) -> 
C62: =IF(CupDraw!J61="","",CupDraw!J61) ->  | D62: =IF(CupDraw!K61="","",CupDraw!K61) ->  | E62: =IF(CupDraw!L61="","",CupDraw!L61) ->  | I62: =IF(CupDraw!P61="","",CupDraw!P61) -> Bye | J62: =IF(CupDraw!Q61="","",CupDraw!Q61) -> -10 | K62: =IF(CupDraw!R61="","",CupDraw!R61) -> 
B63: =CupDraw!I62 -> 31 | C63: =IF(CupDraw!J62="","",CupDraw!J62) ->  | D63: =IF(CupDraw!K62="","",CupDraw!K62) ->  | E63: =IF(CupDraw!L62="","",CupDraw!L62) ->  | H63: =CupDraw!O62 -> 31 | I63: =IF(CupDraw!P62="","",CupDraw!P62) -> Mike Penk | J63: =IF(CupDraw!Q62="","",CupDraw!Q62) -> -7 | K63: =IF(CupDraw!R62="","",CupDraw!R62) -> 
C64: =IF(CupDraw!J63="","",CupDraw!J63) ->  | D64: =IF(CupDraw!K63="","",CupDraw!K63) ->  | E64: =IF(CupDraw!L63="","",CupDraw!L63) ->  | I64: =IF(CupDraw!P63="","",CupDraw!P63) -> Bye | J64: =IF(CupDraw!Q63="","",CupDraw!Q63) -> -10 | K64: =IF(CupDraw!R63="","",CupDraw!R63) -> 
B65: =CupDraw!I64 -> 32 | C65: =IF(CupDraw!J64="","",CupDraw!J64) ->  | D65: =IF(CupDraw!K64="","",CupDraw!K64) ->  | E65: =IF(CupDraw!L64="","",CupDraw!L64) ->  | H65: =CupDraw!O64 -> 32 | I65: =IF(CupDraw!P64="","",CupDraw!P64) -> Nick Blocksidge | J65: =IF(CupDraw!Q64="","",CupDraw!Q64) -> -1.090909091 | K65: =IF(CupDraw!R64="","",CupDraw!R64) -> 
C66: =IF(CupDraw!J65="","",CupDraw!J65) ->  | D66: =IF(CupDraw!K65="","",CupDraw!K65) ->  | E66: =IF(CupDraw!L65="","",CupDraw!L65) ->  | I66: =IF(CupDraw!P65="","",CupDraw!P65) -> Bye | J66: =IF(CupDraw!Q65="","",CupDraw!Q65) -> -10 | K66: =IF(CupDraw!R65="","",CupDraw!R65) -> 
B67: =CupDraw!I66 -> 33 | C67: =IF(CupDraw!J66="","",CupDraw!J66) ->  | D67: =IF(CupDraw!K66="","",CupDraw!K66) ->  | E67: =IF(CupDraw!L66="","",CupDraw!L66) -> 
C68: =IF(CupDraw!J67="","",CupDraw!J67) ->  | D68: =IF(CupDraw!K67="","",CupDraw!K67) ->  | E68: =IF(CupDraw!L67="","",CupDraw!L67) -> 
B69: =CupDraw!I68 -> 34 | C69: =IF(CupDraw!J68="","",CupDraw!J68) ->  | D69: =IF(CupDraw!K68="","",CupDraw!K68) ->  | E69: =IF(CupDraw!L68="","",CupDraw!L68) ->  | H69: =CupDraw!O68 -> Earlier ties
C70: =IF(CupDraw!J69="","",CupDraw!J69) ->  | D70: =IF(CupDraw!K69="","",CupDraw!K69) ->  | E70: =IF(CupDraw!L69="","",CupDraw!L69) ->  | H70: =IF(CupDraw!O69="","",CupDraw!O69) -> 16 | I70: =IF(CupDraw!P69="","",CupDraw!P69) -> Dave Bell | J70: =IF(CupDraw!Q69="","",CupDraw!Q69) -> -7 | K70: =IF(CupDraw!R69="","",CupDraw!R69) -> R
B71: =CupDraw!I70 -> 35 | C71: =IF(CupDraw!J70="","",CupDraw!J70) ->  | D71: =IF(CupDraw!K70="","",CupDraw!K70) ->  | E71: =IF(CupDraw!L70="","",CupDraw!L70) ->  | H71: =CupDraw!O70 -> 0 | I71: =IF(CupDraw!P70="","",CupDraw!P70) -> James Bell | J71: =IF(CupDraw!Q70="","",CupDraw!Q70) -> -7 | K71: =IF(CupDraw!R70="","",CupDraw!R70) -> 
C72: =IF(CupDraw!J71="","",CupDraw!J71) ->  | D72: =IF(CupDraw!K71="","",CupDraw!K71) ->  | E72: =IF(CupDraw!L71="","",CupDraw!L71) ->  | H72: =IF(CupDraw!O71="","",CupDraw!O71) -> 23 | I72: =IF(CupDraw!P71="","",CupDraw!P71) -> Paul Fiddler | J72: =IF(CupDraw!Q71="","",CupDraw!Q71) -> -5.090909091 | K72: =IF(CupDraw!R71="","",CupDraw!R71) -> R
B73: =CupDraw!I72 -> 36 | C73: =IF(CupDraw!J72="","",CupDraw!J72) ->  | D73: =IF(CupDraw!K72="","",CupDraw!K72) ->  | E73: =IF(CupDraw!L72="","",CupDraw!L72) ->  | H73: =CupDraw!O72 -> 0 | I73: =IF(CupDraw!P72="","",CupDraw!P72) -> Steve Carter | J73: =IF(CupDraw!Q72="","",CupDraw!Q72) -> -5.090909091 | K73: =IF(CupDraw!R72="","",CupDraw!R72) -> 
C74: =IF(CupDraw!J73="","",CupDraw!J73) ->  | D74: =IF(CupDraw!K73="","",CupDraw!K73) ->  | E74: =IF(CupDraw!L73="","",CupDraw!L73) ->  | H74: =IF(CupDraw!O73="","",CupDraw!O73) ->  | I74: =IF(CupDraw!P73="","",CupDraw!P73) ->  | J74: =IF(CupDraw!Q73="","",CupDraw!Q73) ->  | K74: =IF(CupDraw!R73="","",CupDraw!R73) -> 
H75: =CupDraw!O74 -> 0 | I75: =IF(CupDraw!P74="","",CupDraw!P74) ->  | J75: =IF(CupDraw!Q74="","",CupDraw!Q74) ->  | K75: =IF(CupDraw!R74="","",CupDraw!R74) -> 
H76: =IF(CupDraw!O75="","",CupDraw!O75) ->  | I76: =IF(CupDraw!P75="","",CupDraw!P75) ->  | J76: =IF(CupDraw!Q75="","",CupDraw!Q75) ->  | K76: =IF(CupDraw!R75="","",CupDraw!R75) -> 
B77: Earlier ties | H77: =CupDraw!O76 -> 0 | I77: =IF(CupDraw!P76="","",CupDraw!P76) ->  | J77: =IF(CupDraw!Q76="","",CupDraw!Q76) ->  | K77: =IF(CupDraw!R76="","",CupDraw!R76) -> 
C78: =IF(CupDraw!J79="","",CupDraw!J79) ->  | D78: =IF(CupDraw!K79="","",CupDraw!K79) ->  | E78: =IF(CupDraw!L79="","",CupDraw!L79) ->  | H78: =IF(CupDraw!O77="","",CupDraw!O77) ->  | I78: =IF(CupDraw!P77="","",CupDraw!P77) ->  | J78: =IF(CupDraw!Q77="","",CupDraw!Q77) ->  | K78: =IF(CupDraw!R77="","",CupDraw!R77) -> 
C79: =IF(CupDraw!J80="","",CupDraw!J80) ->  | D79: =IF(CupDraw!K80="","",CupDraw!K80) ->  | H79: =CupDraw!O78 -> 0 | I79: =IF(CupDraw!P78="","",CupDraw!P78) ->  | J79: =IF(CupDraw!Q78="","",CupDraw!Q78) ->  | K79: =IF(CupDraw!R78="","",CupDraw!R78) -> 
C80: =IF(CupDraw!J81="","",CupDraw!J81) ->  | D80: =IF(CupDraw!K81="","",CupDraw!K81) ->  | E80: =IF(CupDraw!L81="","",CupDraw!L81) ->  | H80: =IF(CupDraw!O79="","",CupDraw!O79) ->  | I80: =IF(CupDraw!P79="","",CupDraw!P79) ->  | J80: =IF(CupDraw!Q79="","",CupDraw!Q79) ->  | K80: =IF(CupDraw!R79="","",CupDraw!R79) -> 
C81: =IF(CupDraw!J82="","",CupDraw!J82) ->  | D81: =IF(CupDraw!K82="","",CupDraw!K82) ->  | H81: =CupDraw!O80 -> 0 | I81: =IF(CupDraw!P80="","",CupDraw!P80) ->  | J81: =IF(CupDraw!Q80="","",CupDraw!Q80) ->  | K81: =IF(CupDraw!R80="","",CupDraw!R80) -> 
C82: =IF(CupDraw!J83="","",CupDraw!J83) ->  | D82: =IF(CupDraw!K83="","",CupDraw!K83) ->  | E82: =IF(CupDraw!L83="","",CupDraw!L83) ->  | H82: =IF(CupDraw!O81="","",CupDraw!O81) ->  | I82: =IF(CupDraw!P81="","",CupDraw!P81) ->  | J82: =IF(CupDraw!Q81="","",CupDraw!Q81) ->  | K82: =IF(CupDraw!R81="","",CupDraw!R81) -> 
C83: =IF(CupDraw!J84="","",CupDraw!J84) ->  | D83: =IF(CupDraw!K84="","",CupDraw!K84) ->  | E83: =IF(CupDraw!L84="","",CupDraw!L84) ->  | H83: =CupDraw!O82 -> 0 | I83: =IF(CupDraw!P82="","",CupDraw!P82) ->  | J83: =IF(CupDraw!Q82="","",CupDraw!Q82) ->  | K83: =IF(CupDraw!R82="","",CupDraw!R82) -> 
C84: =IF(CupDraw!J85="","",CupDraw!J85) ->  | D84: =IF(CupDraw!K85="","",CupDraw!K85) ->  | E84: =IF(CupDraw!L85="","",CupDraw!L85) ->  | H84: =IF(CupDraw!O83="","",CupDraw!O83) ->  | I84: =IF(CupDraw!P83="","",CupDraw!P83) ->  | J84: =IF(CupDraw!Q83="","",CupDraw!Q83) ->  | K84: =IF(CupDraw!R83="","",CupDraw!R83) -> 
C85: =IF(CupDraw!J86="","",CupDraw!J86) ->  | D85: =IF(CupDraw!K86="","",CupDraw!K86) ->  | E85: =IF(CupDraw!L86="","",CupDraw!L86) ->  | H85: =CupDraw!O84 -> 0 | I85: =IF(CupDraw!P84="","",CupDraw!P84) ->  | J85: =IF(CupDraw!Q84="","",CupDraw!Q84) ->  | K85: =IF(CupDraw!R84="","",CupDraw!R84) -> 
C86: =IF(CupDraw!J87="","",CupDraw!J87) ->  | D86: =IF(CupDraw!K87="","",CupDraw!K87) ->  | E86: =IF(CupDraw!L87="","",CupDraw!L87) ->  | H86: =IF(CupDraw!O85="","",CupDraw!O85) ->  | I86: =IF(CupDraw!P85="","",CupDraw!P85) ->  | J86: =IF(CupDraw!Q85="","",CupDraw!Q85) ->  | K86: =IF(CupDraw!R85="","",CupDraw!R85) -> 
C87: =IF(CupDraw!J88="","",CupDraw!J88) ->  | D87: =IF(CupDraw!K88="","",CupDraw!K88) ->  | E87: =IF(CupDraw!L88="","",CupDraw!L88) ->  | H87: =CupDraw!O86 -> 0 | I87: =IF(CupDraw!P86="","",CupDraw!P86) ->  | J87: =IF(CupDraw!Q86="","",CupDraw!Q86) ->  | K87: =IF(CupDraw!R86="","",CupDraw!R86) -> 
C88: =IF(CupDraw!J89="","",CupDraw!J89) ->  | D88: =IF(CupDraw!K89="","",CupDraw!K89) ->  | E88: =IF(CupDraw!L89="","",CupDraw!L89) ->  | H88: =IF(CupDraw!O87="","",CupDraw!O87) ->  | I88: =IF(CupDraw!P87="","",CupDraw!P87) ->  | J88: =IF(CupDraw!Q87="","",CupDraw!Q87) ->  | K88: =IF(CupDraw!R87="","",CupDraw!R87) -> 
C89: =IF(CupDraw!J90="","",CupDraw!J90) ->  | D89: =IF(CupDraw!K90="","",CupDraw!K90) ->  | E89: =IF(CupDraw!L90="","",CupDraw!L90) ->  | H89: =CupDraw!O88 -> 0 | I89: =IF(CupDraw!P88="","",CupDraw!P88) ->  | J89: =IF(CupDraw!Q88="","",CupDraw!Q88) ->  | K89: =IF(CupDraw!R88="","",CupDraw!R88) -> 
C90: =IF(CupDraw!J91="","",CupDraw!J91) ->  | D90: =IF(CupDraw!K91="","",CupDraw!K91) ->  | E90: =IF(CupDraw!L91="","",CupDraw!L91) ->  | H90: =IF(CupDraw!O89="","",CupDraw!O89) ->  | I90: =IF(CupDraw!P89="","",CupDraw!P89) ->  | J90: =IF(CupDraw!Q89="","",CupDraw!Q89) ->  | K90: =IF(CupDraw!R89="","",CupDraw!R89) -> 
C91: =IF(CupDraw!J92="","",CupDraw!J92) ->  | D91: =IF(CupDraw!K92="","",CupDraw!K92) ->  | E91: =IF(CupDraw!L92="","",CupDraw!L92) ->  | H91: =CupDraw!O90 -> 0 | I91: =IF(CupDraw!P90="","",CupDraw!P90) ->  | J91: =IF(CupDraw!Q90="","",CupDraw!Q90) ->  | K91: =IF(CupDraw!R90="","",CupDraw!R90) -> 
C92: =IF(CupDraw!J93="","",CupDraw!J93) ->  | D92: =IF(CupDraw!K93="","",CupDraw!K93) ->  | E92: =IF(CupDraw!L93="","",CupDraw!L93) ->  | H92: =IF(CupDraw!O91="","",CupDraw!O91) ->  | I92: =IF(CupDraw!P91="","",CupDraw!P91) ->  | J92: =IF(CupDraw!Q91="","",CupDraw!Q91) ->  | K92: =IF(CupDraw!R91="","",CupDraw!R91) -> 
C93: =IF(CupDraw!J94="","",CupDraw!J94) ->  | D93: =IF(CupDraw!K94="","",CupDraw!K94) ->  | E93: =IF(CupDraw!L94="","",CupDraw!L94) ->  | H93: =CupDraw!O92 -> 0 | I93: =IF(CupDraw!P92="","",CupDraw!P92) ->  | J93: =IF(CupDraw!Q92="","",CupDraw!Q92) ->  | K93: =IF(CupDraw!R92="","",CupDraw!R92) -> 
C94: =IF(CupDraw!J95="","",CupDraw!J95) -> 

Sheet Predictions
A1: =IF(Picks!A1="","",Picks!A1) -> Player | B1: =IF(Picks!B1="","",Picks!B1) -> Prediction | C1: =IF(Picks!C1="","",Picks!C1) -> Match Day | D1: =IF(Picks!D1="","",Picks!D1) -> Decimal | E1: =IF(Picks!E1="","",Picks!E1) -> Bet in? | F1: =IF(Picks!F1="","",Picks!F1) -> Score | G1: =IF(Picks!G1="","",Picks!G1) -> Max
A2: =IF(Picks!A2="","",Picks!A2) -> Alan Bond | B2: =IF(Picks!B2="","",Picks!B2) -> Wigan | C2: =IF(Picks!C2="","",Picks!C2) -> 1900-01-07 | D2: =IF(Picks!D2="","",Picks!D2) -> 2.6 | E2: =IF(Picks!E2="","",Picks!E2) -> √ | F2: =IF(Picks!F2="","",Picks!F2) -> -4.4 | G2: =IF(Picks!G2="","",Picks!G2) -> 30.502
B3: =IF(Picks!B3="","",Picks!B3) -> Barrow | C3: =IF(Picks!C3="","",Picks!C3) -> 1900-01-07 | D3: =IF(Picks!D3="","",Picks!D3) -> 2.45 | E3: =IF(Picks!E3="","",Picks!E3) -> x | F3: =IF(Picks!F3="","",Picks!F3) ->  | G3: =IF(Picks!G3="","",Picks!G3) -> 
B4: =IF(Picks!B4="","",Picks!B4) -> Sutton | C4: =IF(Picks!C4="","",Picks!C4) -> 1900-01-07 | D4: =IF(Picks!D4="","",Picks!D4) -> 2.1 | E4: =IF(Picks!E4="","",Picks!E4) -> x | F4: =IF(Picks!F4="","",Picks!F4) ->  | G4: =IF(Picks!G4="","",Picks!G4) -> 
A5: =IF(Picks!A5="","",Picks!A5) -> Alan Rogers | B5: =IF(Picks!B5="","",Picks!B5) -> Crawley | C5: =IF(Picks!C5="","",Picks!C5) -> 1900-01-07 | D5: =IF(Picks!D5="","",Picks!D5) -> 2.875 | E5: =IF(Picks!E5="","",Picks!E5) -> x | F5: =IF(Picks!F5="","",Picks!F5) -> -4.6 | G5: =IF(Picks!G5="","",Picks!G5) -> 46.0175
B6: =IF(Picks!B6="","",Picks!B6) -> Orient draw | C6: =IF(Picks!C6="","",Picks!C6) -> 1900-01-07 | D6: =IF(Picks!D6="","",Picks!D6) -> 3.1 | E6: =IF(Picks!E6="","",Picks!E6) -> x | F6: =IF(Picks!F6="","",Picks!F6) ->  | G6: =IF(Picks!G6="","",Picks!G6) -> 
B7: =IF(Picks!B7="","",Picks!B7) -> Salford | C7: =IF(Picks!C7="","",Picks!C7) -> 1900-01-07 | D7: =IF(Picks!D7="","",Picks!D7) -> 2.4 | E7: =IF(Picks!E7="","",Picks!E7) -> √ | F7: =IF(Picks!F7="","",Picks!F7) ->  | G7: =IF(Picks!G7="","",Picks!G7) -> 
A8: =IF(Picks!A8="","",Picks!A8) -> Alan White | B8: =IF(Picks!B8="","",Picks!B8) -> Luton | C8: =IF(Picks!C8="","",Picks!C8) -> 1900-01-07 | D8: =IF(Picks!D8="","",Picks!D8) -> 3.2 | E8: =IF(Picks!E8="","",Picks!E8) -> x | F8: =IF(Picks!F8="","",Picks!F8) -> -7 | G8: =IF(Picks!G8="","",Picks!G8) -> 39.628
B9: =IF(Picks!B9="","",Picks!B9) -> Forest Green | C9: =IF(Picks!C9="","",Picks!C9) -> 1900-01-07 | D9: =IF(Picks!D9="","",Picks!D9) -> 2.15 | E9: =IF(Picks!E9="","",Picks!E9) -> x | F9: =IF(Picks!F9="","",Picks!F9) ->  | G9: =IF(Picks!G9="","",Picks!G9) -> 
B10: =IF(Picks!B10="","",Picks!B10) -> Harrogate | C10: =IF(Picks!C10="","",Picks!C10) -> 1900-01-07 | D10: =IF(Picks!D10="","",Picks!D10) -> 2.6 | E10: =IF(Picks!E10="","",Picks!E10) -> x | F10: =IF(Picks!F10="","",Picks!F10) ->  | G10: =IF(Picks!G10="","",Picks!G10) -> 
A11: =IF(Picks!A11="","",Picks!A11) -> Alfie Davies | B11: =IF(Picks!B11="","",Picks!B11) -> Blackpool | C11: =IF(Picks!C11="","",Picks!C11) -> 1900-01-07 | D11: =IF(Picks!D11="","",Picks!D11) -> 4.4 | E11: =IF(Picks!E11="","",Picks!E11) -> x | F11: =IF(Picks!F11="","",Picks!F11) -> -5.15 | G11: =IF(Picks!G11="","",Picks!G11) -> 50.482
B12: =IF(Picks!B12="","",Picks!B12) -> Swansea | C12: =IF(Picks!C12="","",Picks!C12) -> 1900-01-07 | D12: =IF(Picks!D12="","",Picks!D12) -> 2.8 | E12: =IF(Picks!E12="","",Picks!E12) -> x | F12: =IF(Picks!F12="","",Picks!F12) ->  | G12: =IF(Picks!G12="","",Picks!G12) -> 
B13: =IF(Picks!B13="","",Picks!B13) -> West Brom | C13: =IF(Picks!C13="","",Picks!C13) -> 1900-01-07 | D13: =IF(Picks!D13="","",Picks!D13) -> 1.85 | E13: =IF(Picks!E13="","",Picks!E13) -> √ | F13: =IF(Picks!F13="","",Picks!F13) ->  | G13: =IF(Picks!G13="","",Picks!G13) -> 
A14: =IF(Picks!A14="","",Picks!A14) -> Alick Rocca | B14: =IF(Picks!B14="","",Picks!B14) -> Liverpool Draw | C14: =IF(Picks!C14="","",Picks!C14) -> 1900-01-07 | D14: =IF(Picks!D14="","",Picks!D14) -> 3.3 | E14: =IF(Picks!E14="","",Picks!E14) -> √ | F14: =IF(Picks!F14="","",Picks!F14) -> 9.2 | G14: =IF(Picks!G14="","",Picks!G14) -> 64.24
B15: =IF(Picks!B15="","",Picks!B15) -> Derby Draw | C15: =IF(Picks!C15="","",Picks!C15) -> 1900-01-07 | D15: =IF(Picks!D15="","",Picks!D15) -> 3 | E15: =IF(Picks!E15="","",Picks!E15) -> √ | F15: =IF(Picks!F15="","",Picks!F15) ->  | G15: =IF(Picks!G15="","",Picks!G15) -> 
B16: =IF(Picks!B16="","",Picks!B16) -> Brighton Draw | C16: =IF(Picks!C16="","",Picks!C16) -> 1900-01-07 | D16: =IF(Picks!D16="","",Picks!D16) -> 3.2 | E16: =IF(Picks!E16="","",Picks!E16) -> x | F16: =IF(Picks!F16="","",Picks!F16) ->  | G16: =IF(Picks!G16="","",Picks!G16) -> 
A17: =IF(Picks!A17="","",Picks!A17) -> Andy Charleston | B17: =IF(Picks!B17="","",Picks!B17) -> Leeds | C17: =IF(Picks!C17="","",Picks!C17) -> 1900-01-01 | D17: =IF(Picks!D17="","",Picks!D17) -> 2.25 | E17: =IF(Picks!E17="","",Picks!E17) -> x | F17: =IF(Picks!F17="","",Picks!F17) -> -5.6 | G17: =IF(Picks!G17="","",Picks!G17) -> 38.8
B18: =IF(Picks!B18="","",Picks!B18) -> Spurs | C18: =IF(Picks!C18="","",Picks!C18) -> 1900-01-01 | D18: =IF(Picks!D18="","",Picks!D18) -> 1.4 | E18: =IF(Picks!E18="","",Picks!E18) -> √ | F18: =IF(Picks!F18="","",Picks!F18) ->  | G18: =IF(Picks!G18="","",Picks!G18) -> 
B19: =IF(Picks!B19="","",Picks!B19) -> Wolves | C19: =IF(Picks!C19="","",Picks!C19) -> 1900-01-01 | D19: =IF(Picks!D19="","",Picks!D19) -> 5 | E19: =IF(Picks!E19="","",Picks!E19) -> x | F19: =IF(Picks!F19="","",Picks!F19) ->  | G19: =IF(Picks!G19="","",Picks!G19) -> 
A20: =IF(Picks!A20="","",Picks!A20) -> Andy Hargreaves | B20: =IF(Picks!B20="","",Picks!B20) ->  | C20: =IF(Picks!C20="","",Picks!C20) ->  | D20: =IF(Picks!D20="","",Picks!D20) ->  | E20: =IF(Picks!E20="","",Picks!E20) ->  | F20: =IF(Picks!F20="","",Picks!F20) -> -10 | G20: =IF(Picks!G20="","",Picks!G20) -> 
B21: =IF(Picks!B21="","",Picks!B21) ->  | C21: =IF(Picks!C21="","",Picks!C21) ->  | D21: =IF(Picks!D21="","",Picks!D21) ->  | E21: =IF(Picks!E21="","",Picks!E21) ->  | F21: =IF(Picks!F21="","",Picks!F21) ->  | G21: =IF(Picks!G21="","",Picks!G21) -> 
B22: =IF(Picks!B22="","",Picks!B22) ->  | C22: =IF(Picks!C22="","",Picks!C22) ->  | D22: =IF(Picks!D22="","",Picks!D22) ->  | E22: =IF(Picks!E22="","",Picks!E22) ->  | F22: =IF(Picks!F22="","",Picks!F22) ->  | G22: =IF(Picks!G22="","",Picks!G22) -> 
A23: =IF(Picks!A23="","",Picks!A23) -> Andy White | B23: =IF(Picks!B23="","",Picks!B23) -> Villa | C23: =IF(Picks!C23="","",Picks!C23) -> 1900-01-07 | D23: =IF(Picks!D23="","",Picks!D23) -> 2 | E23: =IF(Picks!E23="","",Picks!E23) -> x | F23: =IF(Picks!F23="","",Picks!F23) -> -5.272727273 | G23: =IF(Picks!G23="","",Picks!G23) -> 22.68181818
B24: =IF(Picks!B24="","",Picks!B24) -> Leicester | C24: =IF(Picks!C24="","",Picks!C24) -> 1900-01-07 | D24: =IF(Picks!D24="","",Picks!D24) -> 1.727272727 | E24: =IF(Picks!E24="","",Picks!E24) -> √ | F24: =IF(Picks!F24="","",Picks!F24) ->  | G24: =IF(Picks!G24="","",Picks!G24) -> 
B25: =IF(Picks!B25="","",Picks!B25) -> Chelsea | C25: =IF(Picks!C25="","",Picks!C25) -> 1900-01-07 | D25: =IF(Picks!D25="","",Picks!D25) -> 2.75 | E25: =IF(Picks!E25="","",Picks!E25) -> x | F25: =IF(Picks!F25="","",Picks!F25) ->  | G25: =IF(Picks!G25="","",Picks!G25) -> 
A26: =IF(Picks!A26="","",Picks!A26) -> Ashley Houghton | B26: =IF(Picks!B26="","",Picks!B26) -> Leeds | C26: =IF(Picks!C26="","",Picks!C26) -> 1900-01-01 | D26: =IF(Picks!D26="","",Picks!D26) -> 2.25 | E26: =IF(Picks!E26="","",Picks!E26) -> x | F26: =IF(Picks!F26="","",Picks!F26) -> -1.28 | G26: =IF(Picks!G26="","",Picks!G26) -> 13.84
B27: =IF(Picks!B27="","",Picks!B27) -> Spurs | C27: =IF(Picks!C27="","",Picks!C27) -> 1900-01-01 | D27: =IF(Picks!D27="","",Picks!D27) -> 1.4 | E27: =IF(Picks!E27="","",Picks!E27) -> √ | F27: =IF(Picks!F27="","",Picks!F27) ->  | G27: =IF(Picks!G27="","",Picks!G27) -> 
B28: =IF(Picks!B28="","",Picks!B28) -> Man U | C28: =IF(Picks!C28="","",Picks!C28) -> 1900-01-01 | D28: =IF(Picks!D28="","",Picks!D28) -> 1.8 | E28: =IF(Picks!E28="","",Picks!E28) -> √ | F28: =IF(Picks!F28="","",Picks!F28) ->  | G28: =IF(Picks!G28="","",Picks!G28) -> 
A29: =IF(Picks!A29="","",Picks!A29) -> Barry Birchall | B29: =IF(Picks!B29="","",Picks!B29) -> Burton | C29: =IF(Picks!C29="","",Picks!C29) -> 1900-01-06 | D29: =IF(Picks!D29="","",Picks!D29) -> 2 | E29: =IF(Picks!E29="","",Picks!E29) -> x | F29: =IF(Picks!F29="","",Picks!F29) -> -5.35 | G29: =IF(Picks!G29="","",Picks!G29) -> 24.595
B30: =IF(Picks!B30="","",Picks!B30) -> Rotherham | C30: =IF(Picks!C30="","",Picks!C30) -> 1900-01-07 | D30: =IF(Picks!D30="","",Picks!D30) -> 1.65 | E30: =IF(Picks!E30="","",Picks!E30) -> √ | F30: =IF(Picks!F30="","",Picks!F30) ->  | G30: =IF(Picks!G30="","",Picks!G30) -> 
B31: =IF(Picks!B31="","",Picks!B31) -> Bradford | C31: =IF(Picks!C31="","",Picks!C31) -> 1900-01-07 | D31: =IF(Picks!D31="","",Picks!D31) -> 3.1 | E31: =IF(Picks!E31="","",Picks!E31) -> x | F31: =IF(Picks!F31="","",Picks!F31) ->  | G31: =IF(Picks!G31="","",Picks!G31) -> 
A32: =IF(Picks!A32="","",Picks!A32) -> Ben Rosser | B32: =IF(Picks!B32="","",Picks!B32) -> Everton | C32: =IF(Picks!C32="","",Picks!C32) -> 1900-01-07 | D32: =IF(Picks!D32="","",Picks!D32) -> 3.2 | E32: =IF(Picks!E32="","",Picks!E32) -> √ | F32: =IF(Picks!F32="","",Picks!F32) -> 10.06 | G32: =IF(Picks!G32="","",Picks!G32) -> 57.4675
B33: =IF(Picks!B33="","",Picks!B33) -> Liverpool draw | C33: =IF(Picks!C33="","",Picks!C33) -> 1900-01-07 | D33: =IF(Picks!D33="","",Picks!D33) -> 3.3 | E33: =IF(Picks!E33="","",Picks!E33) -> √ | F33: =IF(Picks!F33="","",Picks!F33) ->  | G33: =IF(Picks!G33="","",Picks!G33) -> 
B34: =IF(Picks!B34="","",Picks!B34) -> Newcastle | C34: =IF(Picks!C34="","",Picks!C34) -> 1900-01-07 | D34: =IF(Picks!D34="","",Picks!D34) -> 2.625 | E34: =IF(Picks!E34="","",Picks!E34) -> x | F34: =IF(Picks!F34="","",Picks!F34) ->  | G34: =IF(Picks!G34="","",Picks!G34) -> 
A35: =IF(Picks!A35="","",Picks!A35) -> Bob Bailey | B35: =IF(Picks!B35="","",Picks!B35) -> Norwich | C35: =IF(Picks!C35="","",Picks!C35) -> 1900-01-07 | D35: =IF(Picks!D35="","",Picks!D35) -> 5 | E35: =IF(Picks!E35="","",Picks!E35) -> x | F35: =IF(Picks!F35="","",Picks!F35) -> -7 | G35: =IF(Picks!G35="","",Picks!G35) -> 65.2375
B36: =IF(Picks!B36="","",Picks!B36) -> Barnsley | C36: =IF(Picks!C36="","",Picks!C36) -> 1900-01-07 | D36: =IF(Picks!D36="","",Picks!D36) -> 2.15 | E36: =IF(Picks!E36="","",Picks!E36) -> x | F36: =IF(Picks!F36="","",Picks!F36) ->  | G36: =IF(Picks!G36="","",Picks!G36) -> 
B37: =IF(Picks!B37="","",Picks!B37) -> Portsmouth | C37: =IF(Picks!C37="","",Picks!C37) -> 1900-01-07 | D37: =IF(Picks!D37="","",Picks!D37) -> 2.875 | E37: =IF(Picks!E37="","",Picks!E37) -> x | F37: =IF(Picks!F37="","",Picks!F37) ->  | G37: =IF(Picks!G37="","",Picks!G37) -> 
A38: =IF(Picks!A38="","",Picks!A38) -> Charlie Griffiths | B38: =IF(Picks!B38="","",Picks!B38) -> Portsmouth | C38: =IF(Picks!C38="","",Picks!C38) -> 1900-01-07 | D38: =IF(Picks!D38="","",Picks!D38) -> 2.875 | E38: =IF(Picks!E38="","",Picks!E38) -> x | F38: =IF(Picks!F38="","",Picks!F38) -> -7 | G38: =IF(Picks!G38="","",Picks!G38) -> 48.265
B39: =IF(Picks!B39="","",Picks!B39) -> Bournemouth | C39: =IF(Picks!C39="","",Picks!C39) -> 1900-01-07 | D39: =IF(Picks!D39="","",Picks!D39) -> 2.3 | E39: =IF(Picks!E39="","",Picks!E39) -> x | F39: =IF(Picks!F39="","",Picks!F39) ->  | G39: =IF(Picks!G39="","",Picks!G39) -> 
B40: =IF(Picks!B40="","",Picks!B40) -> MK Dons draw | C40: =IF(Picks!C40="","",Picks!C40) -> 1900-01-07 | D40: =IF(Picks!D40="","",Picks!D40) -> 3.4 | E40: =IF(Picks!E40="","",Picks!E40) -> x | F40: =IF(Picks!F40="","",Picks!F40) ->  | G40: =IF(Picks!G40="","",Picks!G40) -> 
A41: =IF(Picks!A41="","",Picks!A41) -> Chris Bow | B41: =IF(Picks!B41="","",Picks!B41) -> Brighton draw | C41: =IF(Picks!C41="","",Picks!C41) -> 1900-01-07 | D41: =IF(Picks!D41="","",Picks!D41) -> 3.2 | E41: =IF(Picks!E41="","",Picks!E41) -> x | F41: =IF(Picks!F41="","",Picks!F41) -> 2.8 | G41: =IF(Picks!G41="","",Picks!G41) -> 37.36
B42: =IF(Picks!B42="","",Picks!B42) -> Fulham | C42: =IF(Picks!C42="","",Picks!C42) -> 1900-01-07 | D42: =IF(Picks!D42="","",Picks!D42) -> 2 | E42: =IF(Picks!E42="","",Picks!E42) -> √ | F42: =IF(Picks!F42="","",Picks!F42) ->  | G42: =IF(Picks!G42="","",Picks!G42) -> 
B43: =IF(Picks!B43="","",Picks!B43) -> Wigan | C43: =IF(Picks!C43="","",Picks!C43) -> 1900-01-07 | D43: =IF(Picks!D43="","",Picks!D43) -> 2.6 | E43: =IF(Picks!E43="","",Picks!E43) -> √ | F43: =IF(Picks!F43="","",Picks!F43) ->  | G43: =IF(Picks!G43="","",Picks!G43) -> 
A44: =IF(Picks!A44="","",Picks!A44) -> Chris Griffin | B44: =IF(Picks!B44="","",Picks!B44) -> Liverpool draw | C44: =IF(Picks!C44="","",Picks!C44) -> 1900-01-07 | D44: =IF(Picks!D44="","",Picks!D44) -> 3.3 | E44: =IF(Picks!E44="","",Picks!E44) -> √ | F44: =IF(Picks!F44="","",Picks!F44) -> -3.7 | G44: =IF(Picks!G44="","",Picks!G44) -> 59.725
B45: =IF(Picks!B45="","",Picks!B45) -> Derby | C45: =IF(Picks!C45="","",Picks!C45) -> 1900-01-07 | D45: =IF(Picks!D45="","",Picks!D45) -> 2.75 | E45: =IF(Picks!E45="","",Picks!E45) -> x | F45: =IF(Picks!F45="","",Picks!F45) ->  | G45: =IF(Picks!G45="","",Picks!G45) -> 
B46: =IF(Picks!B46="","",Picks!B46) -> Fulham draw | C46: =IF(Picks!C46="","",Picks!C46) -> 1900-01-07 | D46: =IF(Picks!D46="","",Picks!D46) -> 3.2 | E46: =IF(Picks!E46="","",Picks!E46) -> x | F46: =IF(Picks!F46="","",Picks!F46) ->  | G46: =IF(Picks!G46="","",Picks!G46) -> 
A47: =IF(Picks!A47="","",Picks!A47) -> Chris Luck | B47: =IF(Picks!B47="","",Picks!B47) -> Everton | C47: =IF(Picks!C47="","",Picks!C47) -> 1900-01-07 | D47: =IF(Picks!D47="","",Picks!D47) -> 3.2 | E47: =IF(Picks!E47="","",Picks!E47) -> √ | F47: =IF(Picks!F47="","",Picks!F47) -> -3.8 | G47: =IF(Picks!G47="","",Picks!G47) -> 41.6125
B48: =IF(Picks!B48="","",Picks!B48) -> Chelsea | C48: =IF(Picks!C48="","",Picks!C48) -> 1900-01-07 | D48: =IF(Picks!D48="","",Picks!D48) -> 2.75 | E48: =IF(Picks!E48="","",Picks!E48) -> x | F48: =IF(Picks!F48="","",Picks!F48) ->  | G48: =IF(Picks!G48="","",Picks!G48) -> 
B49: =IF(Picks!B49="","",Picks!B49) -> Barnsley | C49: =IF(Picks!C49="","",Picks!C49) -> 1900-01-07 | D49: =IF(Picks!D49="","",Picks!D49) -> 2.15 | E49: =IF(Picks!E49="","",Picks!E49) -> x | F49: =IF(Picks!F49="","",Picks!F49) ->  | G49: =IF(Picks!G49="","",Picks!G49) -> 
A50: =IF(Picks!A50="","",Picks!A50) -> Chris Townsend | B50: =IF(Picks!B50="","",Picks!B50) -> Birmingham | C50: =IF(Picks!C50="","",Picks!C50) -> 1900-01-07 | D50: =IF(Picks!D50="","",Picks!D50) -> 3.7 | E50: =IF(Picks!E50="","",Picks!E50) -> x | F50: =IF(Picks!F50="","",Picks!F50) -> -7 | G50: =IF(Picks!G50="","",Picks!G50) -> 151.8
B51: =IF(Picks!B51="","",Picks!B51) -> Palace | C51: =IF(Picks!C51="","",Picks!C51) -> 1900-01-07 | D51: =IF(Picks!D51="","",Picks!D51) -> 5.8 | E51: =IF(Picks!E51="","",Picks!E51) -> x | F51: =IF(Picks!F51="","",Picks!F51) ->  | G51: =IF(Picks!G51="","",Picks!G51) -> 
B52: =IF(Picks!B52="","",Picks!B52) -> Stoke | C52: =IF(Picks!C52="","",Picks!C52) -> 1900-01-07 | D52: =IF(Picks!D52="","",Picks!D52) -> 4 | E52: =IF(Picks!E52="","",Picks!E52) -> x | F52: =IF(Picks!F52="","",Picks!F52) ->  | G52: =IF(Picks!G52="","",Picks!G52) -> 
A53: =IF(Picks!A53="","",Picks!A53) -> Dan Gibbard | B53: =IF(Picks!B53="","",Picks!B53) -> Liverpool Draw | C53: =IF(Picks!C53="","",Picks!C53) -> 1900-01-07 | D53: =IF(Picks!D53="","",Picks!D53) -> 3.3 | E53: =IF(Picks!E53="","",Picks!E53) -> √ | F53: =IF(Picks!F53="","",Picks!F53) -> 22.47625 | G53: =IF(Picks!G53="","",Picks!G53) -> 22.47625
B54: =IF(Picks!B54="","",Picks!B54) -> Man C | C54: =IF(Picks!C54="","",Picks!C54) -> 1900-01-07 | D54: =IF(Picks!D54="","",Picks!D54) -> 1.25 | E54: =IF(Picks!E54="","",Picks!E54) -> √ | F54: =IF(Picks!F54="","",Picks!F54) ->  | G54: =IF(Picks!G54="","",Picks!G54) -> 
B55: =IF(Picks!B55="","",Picks!B55) -> QPR | C55: =IF(Picks!C55="","",Picks!C55) -> 1900-01-07 | D55: =IF(Picks!D55="","",Picks!D55) -> 2.15 | E55: =IF(Picks!E55="","",Picks!E55) -> √ | F55: =IF(Picks!F55="","",Picks!F55) ->  | G55: =IF(Picks!G55="","",Picks!G55) -> 
A56: =IF(Picks!A56="","",Picks!A56) -> Dave Bell | B56: =IF(Picks!B56="","",Picks!B56) -> Arsenal | C56: =IF(Picks!C56="","",Picks!C56) -> 1900-01-07 | D56: =IF(Picks!D56="","",Picks!D56) -> 12 | E56: =IF(Picks!E56="","",Picks!E56) -> x | F56: =IF(Picks!F56="","",Picks!F56) -> -7 | G56: =IF(Picks!G56="","",Picks!G56) -> 831.8
B57: =IF(Picks!B57="","",Picks!B57) -> Watford | C57: =IF(Picks!C57="","",Picks!C57) -> 1900-01-01 | D57: =IF(Picks!D57="","",Picks!D57) -> 8.5 | E57: =IF(Picks!E57="","",Picks!E57) -> x | F57: =IF(Picks!F57="","",Picks!F57) ->  | G57: =IF(Picks!G57="","",Picks!G57) -> 
B58: =IF(Picks!B58="","",Picks!B58) -> Palace | C58: =IF(Picks!C58="","",Picks!C58) -> 1900-01-07 | D58: =IF(Picks!D58="","",Picks!D58) -> 5.8 | E58: =IF(Picks!E58="","",Picks!E58) -> x | F58: =IF(Picks!F58="","",Picks!F58) ->  | G58: =IF(Picks!G58="","",Picks!G58) -> 
A59: =IF(Picks!A59="","",Picks!A59) -> Dave Orrell | B59: =IF(Picks!B59="","",Picks!B59) -> QPR | C59: =IF(Picks!C59="","",Picks!C59) -> 1900-01-07 | D59: =IF(Picks!D59="","",Picks!D59) -> 2.15 | E59: =IF(Picks!E59="","",Picks!E59) -> √ | F59: =IF(Picks!F59="","",Picks!F59) -> 2.71 | G59: =IF(Picks!G59="","",Picks!G59) -> 29.485
B60: =IF(Picks!B60="","",Picks!B60) -> Carlisle | C60: =IF(Picks!C60="","",Picks!C60) -> 1900-01-07 | D60: =IF(Picks!D60="","",Picks!D60) -> 2.5 | E60: =IF(Picks!E60="","",Picks!E60) -> x | F60: =IF(Picks!F60="","",Picks!F60) ->  | G60: =IF(Picks!G60="","",Picks!G60) -> 
B61: =IF(Picks!B61="","",Picks!B61) -> Salford | C61: =IF(Picks!C61="","",Picks!C61) -> 1900-01-07 | D61: =IF(Picks!D61="","",Picks!D61) -> 2.4 | E61: =IF(Picks!E61="","",Picks!E61) -> √ | F61: =IF(Picks!F61="","",Picks!F61) ->  | G61: =IF(Picks!G61="","",Picks!G61) -> 
A62: =IF(Picks!A62="","",Picks!A62) -> David Dunn | B62: =IF(Picks!B62="","",Picks!B62) -> Chelsea | C62: =IF(Picks!C62="","",Picks!C62) -> 1900-01-07 | D62: =IF(Picks!D62="","",Picks!D62) -> 2.75 | E62: =IF(Picks!E62="","",Picks!E62) -> x | F62: =IF(Picks!F62="","",Picks!F62) -> 2.125 | G62: =IF(Picks!G62="","",Picks!G62) -> 29.96875
B63: =IF(Picks!B63="","",Picks!B63) -> Man C | C63: =IF(Picks!C63="","",Picks!C63) -> 1900-01-07 | D63: =IF(Picks!D63="","",Picks!D63) -> 1.25 | E63: =IF(Picks!E63="","",Picks!E63) -> √ | F63: =IF(Picks!F63="","",Picks!F63) ->  | G63: =IF(Picks!G63="","",Picks!G63) -> 
B64: =IF(Picks!B64="","",Picks!B64) -> Newcastle Draw | C64: =IF(Picks!C64="","",Picks!C64) -> 1900-01-07 | D64: =IF(Picks!D64="","",Picks!D64) -> 3.5 | E64: =IF(Picks!E64="","",Picks!E64) -> √ | F64: =IF(Picks!F64="","",Picks!F64) ->  | G64: =IF(Picks!G64="","",Picks!G64) -> 
A65: =IF(Picks!A65="","",Picks!A65) -> Frank Allen | B65: =IF(Picks!B65="","",Picks!B65) -> Villa | C65: =IF(Picks!C65="","",Picks!C65) -> 1900-01-07 | D65: =IF(Picks!D65="","",Picks!D65) -> 2 | E65: =IF(Picks!E65="","",Picks!E65) -> x | F65: =IF(Picks!F65="","",Picks!F65) -> -5.090909091 | G65: =IF(Picks!G65="","",Picks!G65) -> 20.8
B66: =IF(Picks!B66="","",Picks!B66) -> Bournemouth | C66: =IF(Picks!C66="","",Picks!C66) -> 1900-01-07 | D66: =IF(Picks!D66="","",Picks!D66) -> 2.3 | E66: =IF(Picks!E66="","",Picks!E66) -> x | F66: =IF(Picks!F66="","",Picks!F66) ->  | G66: =IF(Picks!G66="","",Picks!G66) -> 
B67: =IF(Picks!B67="","",Picks!B67) -> Millwall | C67: =IF(Picks!C67="","",Picks!C67) -> 1900-01-07 | D67: =IF(Picks!D67="","",Picks!D67) -> 1.909090909 | E67: =IF(Picks!E67="","",Picks!E67) -> √ | F67: =IF(Picks!F67="","",Picks!F67) ->  | G67: =IF(Picks!G67="","",Picks!G67) -> 
A68: =IF(Picks!A68="","",Picks!A68) -> Gareth McGuire | B68: =IF(Picks!B68="","",Picks!B68) -> Fulham | C68: =IF(Picks!C68="","",Picks!C68) -> 1900-01-07 | D68: =IF(Picks!D68="","",Picks!D68) -> 2 | E68: =IF(Picks!E68="","",Picks!E68) -> √ | F68: =IF(Picks!F68="","",Picks!F68) -> -5 | G68: =IF(Picks!G68="","",Picks!G68) -> 20.8
B69: =IF(Picks!B69="","",Picks!B69) -> Bournemouth | C69: =IF(Picks!C69="","",Picks!C69) -> 1900-01-07 | D69: =IF(Picks!D69="","",Picks!D69) -> 2.3 | E69: =IF(Picks!E69="","",Picks!E69) -> x | F69: =IF(Picks!F69="","",Picks!F69) ->  | G69: =IF(Picks!G69="","",Picks!G69) -> 
B70: =IF(Picks!B70="","",Picks!B70) -> Sheff W | C70: =IF(Picks!C70="","",Picks!C70) -> 1900-01-07 | D70: =IF(Picks!D70="","",Picks!D70) -> 1.909090909 | E70: =IF(Picks!E70="","",Picks!E70) -> x | F70: =IF(Picks!F70="","",Picks!F70) ->  | G70: =IF(Picks!G70="","",Picks!G70) -> 
A71: =IF(Picks!A71="","",Picks!A71) -> Gareth Powell | B71: =IF(Picks!B71="","",Picks!B71) -> Liverpool draw | C71: =IF(Picks!C71="","",Picks!C71) -> 1900-01-07 | D71: =IF(Picks!D71="","",Picks!D71) -> 3.3 | E71: =IF(Picks!E71="","",Picks!E71) -> √ | F71: =IF(Picks!F71="","",Picks!F71) -> 11.35 | G71: =IF(Picks!G71="","",Picks!G71) -> 77.14
B72: =IF(Picks!B72="","",Picks!B72) -> Newcastle draw | C72: =IF(Picks!C72="","",Picks!C72) -> 1900-01-07 | D72: =IF(Picks!D72="","",Picks!D72) -> 3.5 | E72: =IF(Picks!E72="","",Picks!E72) -> √ | F72: =IF(Picks!F72="","",Picks!F72) ->  | G72: =IF(Picks!G72="","",Picks!G72) -> 
B73: =IF(Picks!B73="","",Picks!B73) -> Huddersfield draw | C73: =IF(Picks!C73="","",Picks!C73) -> 1900-01-07 | D73: =IF(Picks!D73="","",Picks!D73) -> 3.4 | E73: =IF(Picks!E73="","",Picks!E73) -> x | F73: =IF(Picks!F73="","",Picks!F73) ->  | G73: =IF(Picks!G73="","",Picks!G73) -> 
A74: =IF(Picks!A74="","",Picks!A74) -> Gerard Ventom | B74: =IF(Picks!B74="","",Picks!B74) -> Everton | C74: =IF(Picks!C74="","",Picks!C74) -> 1900-01-07 | D74: =IF(Picks!D74="","",Picks!D74) -> 3.2 | E74: =IF(Picks!E74="","",Picks!E74) -> √ | F74: =IF(Picks!F74="","",Picks!F74) -> -3.8 | G74: =IF(Picks!G74="","",Picks!G74) -> 43.384375
B75: =IF(Picks!B75="","",Picks!B75) -> Southampton | C75: =IF(Picks!C75="","",Picks!C75) -> 1900-01-07 | D75: =IF(Picks!D75="","",Picks!D75) -> 2.625 | E75: =IF(Picks!E75="","",Picks!E75) -> x | F75: =IF(Picks!F75="","",Picks!F75) ->  | G75: =IF(Picks!G75="","",Picks!G75) -> 
B76: =IF(Picks!B76="","",Picks!B76) -> Sheff U | C76: =IF(Picks!C76="","",Picks!C76) -> 1900-01-07 | D76: =IF(Picks!D76="","",Picks!D76) -> 2.375 | E76: =IF(Picks!E76="","",Picks!E76) -> x | F76: =IF(Picks!F76="","",Picks!F76) ->  | G76: =IF(Picks!G76="","",Picks!G76) -> 
A77: =IF(Picks!A77="","",Picks!A77) -> Graham Miller | B77: =IF(Picks!B77="","",Picks!B77) -> Huddersfield | C77: =IF(Picks!C77="","",Picks!C77) -> 1900-01-07 | D77: =IF(Picks!D77="","",Picks!D77) -> 2.625 | E77: =IF(Picks!E77="","",Picks!E77) -> √ | F77: =IF(Picks!F77="","",Picks!F77) -> -4.375 | G77: =IF(Picks!G77="","",Picks!G77) -> 42.2425
B78: =IF(Picks!B78="","",Picks!B78) -> Luton | C78: =IF(Picks!C78="","",Picks!C78) -> 1900-01-07 | D78: =IF(Picks!D78="","",Picks!D78) -> 3.2 | E78: =IF(Picks!E78="","",Picks!E78) -> x | F78: =IF(Picks!F78="","",Picks!F78) ->  | G78: =IF(Picks!G78="","",Picks!G78) -> 
B79: =IF(Picks!B79="","",Picks!B79) -> Bournemouth | C79: =IF(Picks!C79="","",Picks!C79) -> 1900-01-07 | D79: =IF(Picks!D79="","",Picks!D79) -> 2.3 | E79: =IF(Picks!E79="","",Picks!E79) -> x | F79: =IF(Picks!F79="","",Picks!F79) ->  | G79: =IF(Picks!G79="","",Picks!G79) -> 
A80: =IF(Picks!A80="","",Picks!A80) -> Howard Bradley | B80: =IF(Picks!B80="","",Picks!B80) -> Burnley draw | C80: =IF(Picks!C80="","",Picks!C80) -> 1900-01-01 | D80: =IF(Picks!D80="","",Picks!D80) -> 3.5 | E80: =IF(Picks!E80="","",Picks!E80) -> √ | F80: =IF(Picks!F80="","",Picks!F80) -> -3.5 | G80: =IF(Picks!G80="","",Picks!G80) -> 98.92
B81: =IF(Picks!B81="","",Picks!B81) -> Spurs draw | C81: =IF(Picks!C81="","",Picks!C81) -> 1900-01-01 | D81: =IF(Picks!D81="","",Picks!D81) -> 4.4 | E81: =IF(Picks!E81="","",Picks!E81) -> x | F81: =IF(Picks!F81="","",Picks!F81) ->  | G81: =IF(Picks!G81="","",Picks!G81) -> 
B82: =IF(Picks!B82="","",Picks!B82) -> Wolves draw | C82: =IF(Picks!C82="","",Picks!C82) -> 1900-01-01 | D82: =IF(Picks!D82="","",Picks!D82) -> 3.4 | E82: =IF(Picks!E82="","",Picks!E82) -> x | F82: =IF(Picks!F82="","",Picks!F82) ->  | G82: =IF(Picks!G82="","",Picks!G82) -> 
A83: =IF(Picks!A83="","",Picks!A83) -> Ian Davies | B83: =IF(Picks!B83="","",Picks!B83) -> Accrington | C83: =IF(Picks!C83="","",Picks!C83) -> 1900-01-07 | D83: =IF(Picks!D83="","",Picks!D83) -> 3.4 | E83: =IF(Picks!E83="","",Picks!E83) -> x | F83: =IF(Picks!F83="","",Picks!F83) -> -7 | G83: =IF(Picks!G83="","",Picks!G83) -> 55.756
B84: =IF(Picks!B84="","",Picks!B84) -> Plymouth | C84: =IF(Picks!C84="","",Picks!C84) -> 1900-01-07 | D84: =IF(Picks!D84="","",Picks!D84) -> 2.45 | E84: =IF(Picks!E84="","",Picks!E84) -> x | F84: =IF(Picks!F84="","",Picks!F84) ->  | G84: =IF(Picks!G84="","",Picks!G84) -> 
B85: =IF(Picks!B85="","",Picks!B85) -> QPR draw | C85: =IF(Picks!C85="","",Picks!C85) -> 1900-01-07 | D85: =IF(Picks!D85="","",Picks!D85) -> 3.2 | E85: =IF(Picks!E85="","",Picks!E85) -> x | F85: =IF(Picks!F85="","",Picks!F85) ->  | G85: =IF(Picks!G85="","",Picks!G85) -> 
A86: =IF(Picks!A86="","",Picks!A86) -> Jack Walsh | B86: =IF(Picks!B86="","",Picks!B86) -> Newcastle | C86: =IF(Picks!C86="","",Picks!C86) -> 1900-01-07 | D86: =IF(Picks!D86="","",Picks!D86) -> 2.625 | E86: =IF(Picks!E86="","",Picks!E86) -> x | F86: =IF(Picks!F86="","",Picks!F86) -> -0.3636363636 | G86: =IF(Picks!G86="","",Picks!G86) -> 19.68181818
B87: =IF(Picks!B87="","",Picks!B87) -> Leicester | C87: =IF(Picks!C87="","",Picks!C87) -> 1900-01-07 | D87: =IF(Picks!D87="","",Picks!D87) -> 1.727272727 | E87: =IF(Picks!E87="","",Picks!E87) -> √ | F87: =IF(Picks!F87="","",Picks!F87) ->  | G87: =IF(Picks!G87="","",Picks!G87) -> 
B88: =IF(Picks!B88="","",Picks!B88) -> Man U | C88: =IF(Picks!C88="","",Picks!C88) -> 1900-01-01 | D88: =IF(Picks!D88="","",Picks!D88) -> 1.8 | E88: =IF(Picks!E88="","",Picks!E88) -> √ | F88: =IF(Picks!F88="","",Picks!F88) ->  | G88: =IF(Picks!G88="","",Picks!G88) -> 
A89: =IF(Picks!A89="","",Picks!A89) -> James Bell | B89: =IF(Picks!B89="","",Picks!B89) -> Preston draw | C89: =IF(Picks!C89="","",Picks!C89) -> 1900-01-07 | D89: =IF(Picks!D89="","",Picks!D89) -> 3.1 | E89: =IF(Picks!E89="","",Picks!E89) -> x | F89: =IF(Picks!F89="","",Picks!F89) -> -7 | G89: =IF(Picks!G89="","",Picks!G89) -> 60.921
B90: =IF(Picks!B90="","",Picks!B90) -> Orient draw | C90: =IF(Picks!C90="","",Picks!C90) -> 1900-01-07 | D90: =IF(Picks!D90="","",Picks!D90) -> 3.1 | E90: =IF(Picks!E90="","",Picks!E90) -> x | F90: =IF(Picks!F90="","",Picks!F90) ->  | G90: =IF(Picks!G90="","",Picks!G90) -> 
B91: =IF(Picks!B91="","",Picks!B91) -> Forest Green draw | C91: =IF(Picks!C91="","",Picks!C91) -> 1900-01-07 | D91: =IF(Picks!D91="","",Picks!D91) -> 3.1 | E91: =IF(Picks!E91="","",Picks!E91) -> x | F91: =IF(Picks!F91="","",Picks!F91) ->  | G91: =IF(Picks!G91="","",Picks!G91) -> 
A92: =IF(Picks!A92="","",Picks!A92) -> John Murphy | B92: =IF(Picks!B92="","",Picks!B92) -> Cardiff | C92: =IF(Picks!C92="","",Picks!C92) -> 1900-01-07 | D92: =IF(Picks!D92="","",Picks!D92) -> 1.95 | E92: =IF(Picks!E92="","",Picks!E92) -> x | F92: =IF(Picks!F92="","",Picks!F92) -> -7 | G92: =IF(Picks!G92="","",Picks!G92) -> 28.09140625
B93: =IF(Picks!B93="","",Picks!B93) -> Sheff U | C93: =IF(Picks!C93="","",Picks!C93) -> 1900-01-07 | D93: =IF(Picks!D93="","",Picks!D93) -> 2.375 | E93: =IF(Picks!E93="","",Picks!E93) -> x | F93: =IF(Picks!F93="","",Picks!F93) ->  | G93: =IF(Picks!G93="","",Picks!G93) -> 
B94: =IF(Picks!B94="","",Picks!B94) -> Exeter | C94: =IF(Picks!C94="","",Picks!C94) -> 1900-01-07 | D94: =IF(Picks!D94="","",Picks!D94) -> 2.625 | E94: =IF(Picks!E94="","",Picks!E94) -> x | F94: =IF(Picks!F94="","",Picks!F94) ->  | G94: =IF(Picks!G94="","",Picks!G94) -> 
A95: =IF(Picks!A95="","",Picks!A95) -> John Ronan | B95: =IF(Picks!B95="","",Picks!B95) -> Liverpool | C95: =IF(Picks!C95="","",Picks!C95) -> 1900-01-07 | D95: =IF(Picks!D95="","",Picks!D95) -> 2.6 | E95: =IF(Picks!E95="","",Picks!E95) -> x | F95: =IF(Picks!F95="","",Picks!F95) -> -4.9 | G95: =IF(Picks!G95="","",Picks!G95) -> 33.85
B96: =IF(Picks!B96="","",Picks!B96) -> Derby | C96: =IF(Picks!C96="","",Picks!C96) -> 1900-01-07 | D96: =IF(Picks!D96="","",Picks!D96) -> 2.75 | E96: =IF(Picks!E96="","",Picks!E96) -> x | F96: =IF(Picks!F96="","",Picks!F96) ->  | G96: =IF(Picks!G96="","",Picks!G96) -> 
B97: =IF(Picks!B97="","",Picks!B97) -> MK Dons | C97: =IF(Picks!C97="","",Picks!C97) -> 1900-01-07 | D97: =IF(Picks!D97="","",Picks!D97) -> 2.1 | E97: =IF(Picks!E97="","",Picks!E97) -> √ | F97: =IF(Picks!F97="","",Picks!F97) ->  | G97: =IF(Picks!G97="","",Picks!G97) -> 
A98: =IF(Picks!A98="","",Picks!A98) -> Kei Lok Ma | B98: =IF(Picks!B98="","",Picks!B98) -> Brighton draw | C98: =IF(Picks!C98="","",Picks!C98) -> 1900-01-07 | D98: =IF(Picks!D98="","",Picks!D98) -> 3.2 | E98: =IF(Picks!E98="","",Picks!E98) -> x | F98: =IF(Picks!F98="","",Picks!F98) -> -7 | G98: =IF(Picks!G98="","",Picks!G98) -> 41.48125
B99: =IF(Picks!B99="","",Picks!B99) -> Southampton | C99: =IF(Picks!C99="","",Picks!C99) -> 1900-01-07 | D99: =IF(Picks!D99="","",Picks!D99) -> 2.625 | E99: =IF(Picks!E99="","",Picks!E99) -> x | F99: =IF(Picks!F99="","",Picks!F99) ->  | G99: =IF(Picks!G99="","",Picks!G99) -> 
B100: =IF(Picks!B100="","",Picks!B100) -> Leeds | C100: =IF(Picks!C100="","",Picks!C100) -> 1900-01-01 | D100: =IF(Picks!D100="","",Picks!D100) -> 2.25 | E100: =IF(Picks!E100="","",Picks!E100) -> x | F100: =IF(Picks!F100="","",Picks!F100) ->  | G100: =IF(Picks!G100="","",Picks!G100) -> 
A101: =IF(Picks!A101="","",Picks!A101) -> Kevin Carter | B101: =IF(Picks!B101="","",Picks!B101) -> West Brom | C101: =IF(Picks!C101="","",Picks!C101) -> 1900-01-07 | D101: =IF(Picks!D101="","",Picks!D101) -> 1.85 | E101: =IF(Picks!E101="","",Picks!E101) -> √ | F101: =IF(Picks!F101="","",Picks!F101) -> -0.2272727273 | G101: =IF(Picks!G101="","",Picks!G101) -> 12.20909091
B102: =IF(Picks!B102="","",Picks!B102) -> West Ham | C102: =IF(Picks!C102="","",Picks!C102) -> 1900-01-07 | D102: =IF(Picks!D102="","",Picks!D102) -> 1.6 | E102: =IF(Picks!E102="","",Picks!E102) -> x | F102: =IF(Picks!F102="","",Picks!F102) ->  | G102: =IF(Picks!G102="","",Picks!G102) -> 
B103: =IF(Picks!B103="","",Picks!B103) -> Leicester | C103: =IF(Picks!C103="","",Picks!C103) -> 1900-01-07 | D103: =IF(Picks!D103="","",Picks!D103) -> 1.727272727 | E103: =IF(Picks!E103="","",Picks!E103) -> √ | F103: =IF(Picks!F103="","",Picks!F103) ->  | G103: =IF(Picks!G103="","",Picks!G103) -> 
A104: =IF(Picks!A104="","",Picks!A104) -> Lennie Bow | B104: =IF(Picks!B104="","",Picks!B104) -> Oxford | C104: =IF(Picks!C104="","",Picks!C104) -> 1900-01-07 | D104: =IF(Picks!D104="","",Picks!D104) -> 2.1 | E104: =IF(Picks!E104="","",Picks!E104) -> √ | F104: =IF(Picks!F104="","",Picks!F104) -> -4.9 | G104: =IF(Picks!G104="","",Picks!G104) -> 27.154
B105: =IF(Picks!B105="","",Picks!B105) -> Forest Green | C105: =IF(Picks!C105="","",Picks!C105) -> 1900-01-07 | D105: =IF(Picks!D105="","",Picks!D105) -> 2.15 | E105: =IF(Picks!E105="","",Picks!E105) -> x | F105: =IF(Picks!F105="","",Picks!F105) ->  | G105: =IF(Picks!G105="","",Picks!G105) -> 
B106: =IF(Picks!B106="","",Picks!B106) -> Harrogate | C106: =IF(Picks!C106="","",Picks!C106) -> 1900-01-07 | D106: =IF(Picks!D106="","",Picks!D106) -> 2.6 | E106: =IF(Picks!E106="","",Picks!E106) -> x | F106: =IF(Picks!F106="","",Picks!F106) ->  | G106: =IF(Picks!G106="","",Picks!G106) -> 
A107: =IF(Picks!A107="","",Picks!A107) -> Liam Wah | B107: =IF(Picks!B107="","",Picks!B107) -> Burnley | C107: =IF(Picks!C107="","",Picks!C107) -> 1900-01-01 | D107: =IF(Picks!D107="","",Picks!D107) -> 3.1 | E107: =IF(Picks!E107="","",Picks!E107) -> x | F107: =IF(Picks!F107="","",Picks!F107) -> -1.28 | G107: =IF(Picks!G107="","",Picks!G107) -> 19.552
B108: =IF(Picks!B108="","",Picks!B108) -> Spurs | C108: =IF(Picks!C108="","",Picks!C108) -> 1900-01-01 | D108: =IF(Picks!D108="","",Picks!D108) -> 1.4 | E108: =IF(Picks!E108="","",Picks!E108) -> √ | F108: =IF(Picks!F108="","",Picks!F108) ->  | G108: =IF(Picks!G108="","",Picks!G108) -> 
B109: =IF(Picks!B109="","",Picks!B109) -> Man U | C109: =IF(Picks!C109="","",Picks!C109) -> 1900-01-01 | D109: =IF(Picks!D109="","",Picks!D109) -> 1.8 | E109: =IF(Picks!E109="","",Picks!E109) -> √ | F109: =IF(Picks!F109="","",Picks!F109) ->  | G109: =IF(Picks!G109="","",Picks!G109) -> 
A110: =IF(Picks!A110="","",Picks!A110) -> Mal Stott | B110: =IF(Picks!B110="","",Picks!B110) -> Plymouth | C110: =IF(Picks!C110="","",Picks!C110) -> 1900-01-07 | D110: =IF(Picks!D110="","",Picks!D110) -> 2.45 | E110: =IF(Picks!E110="","",Picks!E110) -> x | F110: =IF(Picks!F110="","",Picks!F110) -> -5.15 | G110: =IF(Picks!G110="","",Picks!G110) -> 22.972375
B111: =IF(Picks!B111="","",Picks!B111) -> Forest Green | C111: =IF(Picks!C111="","",Picks!C111) -> 1900-01-07 | D111: =IF(Picks!D111="","",Picks!D111) -> 2.15 | E111: =IF(Picks!E111="","",Picks!E111) -> x | F111: =IF(Picks!F111="","",Picks!F111) ->  | G111: =IF(Picks!G111="","",Picks!G111) -> 
B112: =IF(Picks!B112="","",Picks!B112) -> West Brom | C112: =IF(Picks!C112="","",Picks!C112) -> 1900-01-07 | D112: =IF(Picks!D112="","",Picks!D112) -> 1.85 | E112: =IF(Picks!E112="","",Picks!E112) -> √ | F112: =IF(Picks!F112="","",Picks!F112) ->  | G112: =IF(Picks!G112="","",Picks!G112) -> 
A113: =IF(Picks!A113="","",Picks!A113) -> Mark Bunn | B113: =IF(Picks!B113="","",Picks!B113) -> Everton | C113: =IF(Picks!C113="","",Picks!C113) -> 1900-01-07 | D113: =IF(Picks!D113="","",Picks!D113) -> 3.2 | E113: =IF(Picks!E113="","",Picks!E113) -> √ | F113: =IF(Picks!F113="","",Picks!F113) -> -3.8 | G113: =IF(Picks!G113="","",Picks!G113) -> 39.628
B114: =IF(Picks!B114="","",Picks!B114) -> Forest Green | C114: =IF(Picks!C114="","",Picks!C114) -> 1900-01-07 | D114: =IF(Picks!D114="","",Picks!D114) -> 2.15 | E114: =IF(Picks!E114="","",Picks!E114) -> x | F114: =IF(Picks!F114="","",Picks!F114) ->  | G114: =IF(Picks!G114="","",Picks!G114) -> 
B115: =IF(Picks!B115="","",Picks!B115) -> Stevenage | C115: =IF(Picks!C115="","",Picks!C115) -> 1900-01-07 | D115: =IF(Picks!D115="","",Picks!D115) -> 2.6 | E115: =IF(Picks!E115="","",Picks!E115) -> x | F115: =IF(Picks!F115="","",Picks!F115) ->  | G115: =IF(Picks!G115="","",Picks!G115) -> 
A116: =IF(Picks!A116="","",Picks!A116) -> Mark Saunders | B116: =IF(Picks!B116="","",Picks!B116) -> Liverpool draw | C116: =IF(Picks!C116="","",Picks!C116) -> 1900-01-07 | D116: =IF(Picks!D116="","",Picks!D116) -> 3.3 | E116: =IF(Picks!E116="","",Picks!E116) -> √ | F116: =IF(Picks!F116="","",Picks!F116) -> 4.9 | G116: =IF(Picks!G116="","",Picks!G116) -> 30.7
B117: =IF(Picks!B117="","",Picks!B117) -> Villa | C117: =IF(Picks!C117="","",Picks!C117) -> 1900-01-07 | D117: =IF(Picks!D117="","",Picks!D117) -> 2 | E117: =IF(Picks!E117="","",Picks!E117) -> x | F117: =IF(Picks!F117="","",Picks!F117) ->  | G117: =IF(Picks!G117="","",Picks!G117) -> 
B118: =IF(Picks!B118="","",Picks!B118) -> Fulham | C118: =IF(Picks!C118="","",Picks!C118) -> 1900-01-07 | D118: =IF(Picks!D118="","",Picks!D118) -> 2 | E118: =IF(Picks!E118="","",Picks!E118) -> √ | F118: =IF(Picks!F118="","",Picks!F118) ->  | G118: =IF(Picks!G118="","",Picks!G118) -> 
A119: =IF(Picks!A119="","",Picks!A119) -> Martin Molyneux | B119: =IF(Picks!B119="","",Picks!B119) -> Spurs | C119: =IF(Picks!C119="","",Picks!C119) -> 1900-01-01 | D119: =IF(Picks!D119="","",Picks!D119) -> 1.4 | E119: =IF(Picks!E119="","",Picks!E119) -> √ | F119: =IF(Picks!F119="","",Picks!F119) -> 15.22 | G119: =IF(Picks!G119="","",Picks!G119) -> 15.22
B120: =IF(Picks!B120="","",Picks!B120) -> Man C | C120: =IF(Picks!C120="","",Picks!C120) -> 1900-01-07 | D120: =IF(Picks!D120="","",Picks!D120) -> 1.25 | E120: =IF(Picks!E120="","",Picks!E120) -> √ | F120: =IF(Picks!F120="","",Picks!F120) ->  | G120: =IF(Picks!G120="","",Picks!G120) -> 
B121: =IF(Picks!B121="","",Picks!B121) -> Liverpool DRAW | C121: =IF(Picks!C121="","",Picks!C121) -> 1900-01-07 | D121: =IF(Picks!D121="","",Picks!D121) -> 3.3 | E121: =IF(Picks!E121="","",Picks!E121) -> √ | F121: =IF(Picks!F121="","",Picks!F121) ->  | G121: =IF(Picks!G121="","",Picks!G121) -> 
A122: =IF(Picks!A122="","",Picks!A122) -> Martin Tarbuck | B122: =IF(Picks!B122="","",Picks!B122) -> Sheff U | C122: =IF(Picks!C122="","",Picks!C122) -> 1900-01-07 | D122: =IF(Picks!D122="","",Picks!D122) -> 2.375 | E122: =IF(Picks!E122="","",Picks!E122) -> x | F122: =IF(Picks!F122="","",Picks!F122) -> -7 | G122: =IF(Picks!G122="","",Picks!G122) -> 25.345
B123: =IF(Picks!B123="","",Picks!B123) -> West Ham | C123: =IF(Picks!C123="","",Picks!C123) -> 1900-01-07 | D123: =IF(Picks!D123="","",Picks!D123) -> 1.6 | E123: =IF(Picks!E123="","",Picks!E123) -> x | F123: =IF(Picks!F123="","",Picks!F123) ->  | G123: =IF(Picks!G123="","",Picks!G123) -> 
B124: =IF(Picks!B124="","",Picks!B124) -> Swansea | C124: =IF(Picks!C124="","",Picks!C124) -> 1900-01-07 | D124: =IF(Picks!D124="","",Picks!D124) -> 2.8 | E124: =IF(Picks!E124="","",Picks!E124) -> x | F124: =IF(Picks!F124="","",Picks!F124) ->  | G124: =IF(Picks!G124="","",Picks!G124) -> 
A125: =IF(Picks!A125="","",Picks!A125) -> Mike Penk | B125: =IF(Picks!B125="","",Picks!B125) -> Leeds | C125: =IF(Picks!C125="","",Picks!C125) -> 1900-01-01 | D125: =IF(Picks!D125="","",Picks!D125) -> 2.25 | E125: =IF(Picks!E125="","",Picks!E125) -> x | F125: =IF(Picks!F125="","",Picks!F125) -> -7 | G125: =IF(Picks!G125="","",Picks!G125) -> 42.635
B126: =IF(Picks!B126="","",Picks!B126) -> Swansea | C126: =IF(Picks!C126="","",Picks!C126) -> 1900-01-07 | D126: =IF(Picks!D126="","",Picks!D126) -> 2.8 | E126: =IF(Picks!E126="","",Picks!E126) -> x | F126: =IF(Picks!F126="","",Picks!F126) ->  | G126: =IF(Picks!G126="","",Picks!G126) -> 
B127: =IF(Picks!B127="","",Picks!B127) -> Wigan draw | C127: =IF(Picks!C127="","",Picks!C127) -> 1900-01-07 | D127: =IF(Picks!D127="","",Picks!D127) -> 3.1 | E127: =IF(Picks!E127="","",Picks!E127) -> x | F127: =IF(Picks!F127="","",Picks!F127) ->  | G127: =IF(Picks!G127="","",Picks!G127) -> 
A128: =IF(Picks!A128="","",Picks!A128) -> Mo Sudell | B128: =IF(Picks!B128="","",Picks!B128) -> Forest green | C128: =IF(Picks!C128="","",Picks!C128) -> 1900-01-07 | D128: =IF(Picks!D128="","",Picks!D128) -> 2.15 | E128: =IF(Picks!E128="","",Picks!E128) -> x | F128: =IF(Picks!F128="","",Picks!F128) -> -4.4 | G128: =IF(Picks!G128="","",Picks!G128) -> 21.484
B129: =IF(Picks!B129="","",Picks!B129) -> West Ham | C129: =IF(Picks!C129="","",Picks!C129) -> 1900-01-07 | D129: =IF(Picks!D129="","",Picks!D129) -> 1.6 | E129: =IF(Picks!E129="","",Picks!E129) -> x | F129: =IF(Picks!F129="","",Picks!F129) ->  | G129: =IF(Picks!G129="","",Picks!G129) -> 
B130: =IF(Picks!B130="","",Picks!B130) -> Wigan | C130: =IF(Picks!C130="","",Picks!C130) -> 1900-01-07 | D130: =IF(Picks!D130="","",Picks!D130) -> 2.6 | E130: =IF(Picks!E130="","",Picks!E130) -> √ | F130: =IF(Picks!F130="","",Picks!F130) ->  | G130: =IF(Picks!G130="","",Picks!G130) -> 
A131: =IF(Picks!A131="","",Picks!A131) -> Nick Blocksidge | B131: =IF(Picks!B131="","",Picks!B131) -> Burnley draw | C131: =IF(Picks!C131="","",Picks!C131) -> 1900-01-01 | D131: =IF(Picks!D131="","",Picks!D131) -> 3.5 | E131: =IF(Picks!E131="","",Picks!E131) -> √ | F131: =IF(Picks!F131="","",Picks!F131) -> 22.24 | G131: =IF(Picks!G131="","",Picks!G131) -> 22.24
B132: =IF(Picks!B132="","",Picks!B132) -> Spurs | C132: =IF(Picks!C132="","",Picks!C132) -> 1900-01-01 | D132: =IF(Picks!D132="","",Picks!D132) -> 1.4 | E132: =IF(Picks!E132="","",Picks!E132) -> √ | F132: =IF(Picks!F132="","",Picks!F132) ->  | G132: =IF(Picks!G132="","",Picks!G132) -> 
B133: =IF(Picks!B133="","",Picks!B133) -> Man U | C133: =IF(Picks!C133="","",Picks!C133) -> 1900-01-01 | D133: =IF(Picks!D133="","",Picks!D133) -> 1.8 | E133: =IF(Picks!E133="","",Picks!E133) -> √ | F133: =IF(Picks!F133="","",Picks!F133) ->  | G133: =IF(Picks!G133="","",Picks!G133) -> 
A134: =IF(Picks!A134="","",Picks!A134) -> Nigel Heyes | B134: =IF(Picks!B134="","",Picks!B134) -> Wigan | C134: =IF(Picks!C134="","",Picks!C134) -> 1900-01-07 | D134: =IF(Picks!D134="","",Picks!D134) -> 2.6 | E134: =IF(Picks!E134="","",Picks!E134) -> √ | F134: =IF(Picks!F134="","",Picks!F134) -> 3.16 | G134: =IF(Picks!G134="","",Picks!G134) -> 27.154
B135: =IF(Picks!B135="","",Picks!B135) -> Oxford | C135: =IF(Picks!C135="","",Picks!C135) -> 1900-01-07 | D135: =IF(Picks!D135="","",Picks!D135) -> 2.1 | E135: =IF(Picks!E135="","",Picks!E135) -> √ | F135: =IF(Picks!F135="","",Picks!F135) ->  | G135: =IF(Picks!G135="","",Picks!G135) -> 
B136: =IF(Picks!B136="","",Picks!B136) -> Forest Green | C136: =IF(Picks!C136="","",Picks!C136) -> 1900-01-07 | D136: =IF(Picks!D136="","",Picks!D136) -> 2.15 | E136: =IF(Picks!E136="","",Picks!E136) -> x | F136: =IF(Picks!F136="","",Picks!F136) ->  | G136: =IF(Picks!G136="","",Picks!G136) -> 
A137: =IF(Picks!A137="","",Picks!A137) -> Oscar Jackson | B137: =IF(Picks!B137="","",Picks!B137) -> Plymouth | C137: =IF(Picks!C137="","",Picks!C137) -> 1900-01-07 | D137: =IF(Picks!D137="","",Picks!D137) -> 2.45 | E137: =IF(Picks!E137="","",Picks!E137) -> x | F137: =IF(Picks!F137="","",Picks!F137) -> -7 | G137: =IF(Picks!G137="","",Picks!G137) -> 25.68925
B138: =IF(Picks!B138="","",Picks!B138) -> Forest Green | C138: =IF(Picks!C138="","",Picks!C138) -> 1900-01-07 | D138: =IF(Picks!D138="","",Picks!D138) -> 2.15 | E138: =IF(Picks!E138="","",Picks!E138) -> x | F138: =IF(Picks!F138="","",Picks!F138) ->  | G138: =IF(Picks!G138="","",Picks!G138) -> 
B139: =IF(Picks!B139="","",Picks!B139) -> Sutton | C139: =IF(Picks!C139="","",Picks!C139) -> 1900-01-07 | D139: =IF(Picks!D139="","",Picks!D139) -> 2.1 | E139: =IF(Picks!E139="","",Picks!E139) -> x | F139: =IF(Picks!F139="","",Picks!F139) ->  | G139: =IF(Picks!G139="","",Picks!G139) -> 
A140: =IF(Picks!A140="","",Picks!A140) -> Paul Adderley | B140: =IF(Picks!B140="","",Picks!B140) -> Fulham | C140: =IF(Picks!C140="","",Picks!C140) -> 1900-01-07 | D140: =IF(Picks!D140="","",Picks!D140) -> 2 | E140: =IF(Picks!E140="","",Picks!E140) -> √ | F140: =IF(Picks!F140="","",Picks!F140) -> 1.45 | G140: =IF(Picks!G140="","",Picks!G140) -> 22.24
B141: =IF(Picks!B141="","",Picks!B141) -> Middlesbro | C141: =IF(Picks!C141="","",Picks!C141) -> 1900-01-07 | D141: =IF(Picks!D141="","",Picks!D141) -> 2.2 | E141: =IF(Picks!E141="","",Picks!E141) -> x | F141: =IF(Picks!F141="","",Picks!F141) ->  | G141: =IF(Picks!G141="","",Picks!G141) -> 
B142: =IF(Picks!B142="","",Picks!B142) -> QPR | C142: =IF(Picks!C142="","",Picks!C142) -> 1900-01-07 | D142: =IF(Picks!D142="","",Picks!D142) -> 2.15 | E142: =IF(Picks!E142="","",Picks!E142) -> √ | F142: =IF(Picks!F142="","",Picks!F142) ->  | G142: =IF(Picks!G142="","",Picks!G142) -> 
A143: =IF(Picks!A143="","",Picks!A143) -> Paul Allen | B143: =IF(Picks!B143="","",Picks!B143) -> Accrington | C143: =IF(Picks!C143="","",Picks!C143) -> 1900-01-07 | D143: =IF(Picks!D143="","",Picks!D143) -> 3.4 | E143: =IF(Picks!E143="","",Picks!E143) -> x | F143: =IF(Picks!F143="","",Picks!F143) -> -7 | G143: =IF(Picks!G143="","",Picks!G143) -> 84.928
B144: =IF(Picks!B144="","",Picks!B144) -> Lincoln | C144: =IF(Picks!C144="","",Picks!C144) -> 1900-01-07 | D144: =IF(Picks!D144="","",Picks!D144) -> 3.4 | E144: =IF(Picks!E144="","",Picks!E144) -> x | F144: =IF(Picks!F144="","",Picks!F144) ->  | G144: =IF(Picks!G144="","",Picks!G144) -> 
B145: =IF(Picks!B145="","",Picks!B145) -> Wycombe | C145: =IF(Picks!C145="","",Picks!C145) -> 1900-01-07 | D145: =IF(Picks!D145="","",Picks!D145) -> 3.8 | E145: =IF(Picks!E145="","",Picks!E145) -> x | F145: =IF(Picks!F145="","",Picks!F145) ->  | G145: =IF(Picks!G145="","",Picks!G145) -> 
A146: =IF(Picks!A146="","",Picks!A146) -> Paul Barnes | B146: =IF(Picks!B146="","",Picks!B146) -> Liverpool draw | C146: =IF(Picks!C146="","",Picks!C146) -> 1900-01-07 | D146: =IF(Picks!D146="","",Picks!D146) -> 3.3 | E146: =IF(Picks!E146="","",Picks!E146) -> √ | F146: =IF(Picks!F146="","",Picks!F146) -> 4.9 | G146: =IF(Picks!G146="","",Picks!G146) -> 79.72
B147: =IF(Picks!B147="","",Picks!B147) -> Man C draw | C147: =IF(Picks!C147="","",Picks!C147) -> 1900-01-07 | D147: =IF(Picks!D147="","",Picks!D147) -> 5.8 | E147: =IF(Picks!E147="","",Picks!E147) -> x | F147: =IF(Picks!F147="","",Picks!F147) ->  | G147: =IF(Picks!G147="","",Picks!G147) -> 
B148: =IF(Picks!B148="","",Picks!B148) -> Fulham | C148: =IF(Picks!C148="","",Picks!C148) -> 1900-01-07 | D148: =IF(Picks!D148="","",Picks!D148) -> 2 | E148: =IF(Picks!E148="","",Picks!E148) -> √ | F148: =IF(Picks!F148="","",Picks!F148) ->  | G148: =IF(Picks!G148="","",Picks!G148) -> 
A149: =IF(Picks!A149="","",Picks!A149) -> Paul Fairhurst | B149: =IF(Picks!B149="","",Picks!B149) -> Rotherham draw | C149: =IF(Picks!C149="","",Picks!C149) -> 1900-01-07 | D149: =IF(Picks!D149="","",Picks!D149) -> 3.75 | E149: =IF(Picks!E149="","",Picks!E149) -> x | F149: =IF(Picks!F149="","",Picks!F149) -> -7 | G149: =IF(Picks!G149="","",Picks!G149) -> 181.525
B150: =IF(Picks!B150="","",Picks!B150) -> Hartlepool draw | C150: =IF(Picks!C150="","",Picks!C150) -> 1900-01-07 | D150: =IF(Picks!D150="","",Picks!D150) -> 3.2 | E150: =IF(Picks!E150="","",Picks!E150) -> x | F150: =IF(Picks!F150="","",Picks!F150) ->  | G150: =IF(Picks!G150="","",Picks!G150) -> 
B151: =IF(Picks!B151="","",Picks!B151) -> Watford | C151: =IF(Picks!C151="","",Picks!C151) -> 1900-01-01 | D151: =IF(Picks!D151="","",Picks!D151) -> 8.5 | E151: =IF(Picks!E151="","",Picks!E151) -> x | F151: =IF(Picks!F151="","",Picks!F151) ->  | G151: =IF(Picks!G151="","",Picks!G151) -> 
A152: =IF(Picks!A152="","",Picks!A152) -> Paul Fiddler | B152: =IF(Picks!B152="","",Picks!B152) -> Bolton | C152: =IF(Picks!C152="","",Picks!C152) -> 1900-01-07 | D152: =IF(Picks!D152="","",Picks!D152) -> 2.3 | E152: =IF(Picks!E152="","",Picks!E152) -> x | F152: =IF(Picks!F152="","",Picks!F152) -> -5.15 | G152: =IF(Picks!G152="","",Picks!G152) -> 19.36
B153: =IF(Picks!B153="","",Picks!B153) -> Charlton | C153: =IF(Picks!C153="","",Picks!C153) -> 1900-01-07 | D153: =IF(Picks!D153="","",Picks!D153) -> 1.85 | E153: =IF(Picks!E153="","",Picks!E153) -> √ | F153: =IF(Picks!F153="","",Picks!F153) ->  | G153: =IF(Picks!G153="","",Picks!G153) -> 
B154: =IF(Picks!B154="","",Picks!B154) -> Sheff W | C154: =IF(Picks!C154="","",Picks!C154) -> 1900-01-07 | D154: =IF(Picks!D154="","",Picks!D154) -> 1.909090909 | E154: =IF(Picks!E154="","",Picks!E154) -> x | F154: =IF(Picks!F154="","",Picks!F154) ->  | G154: =IF(Picks!G154="","",Picks!G154) -> 
A155: =IF(Picks!A155="","",Picks!A155) -> Pete Baron | B155: =IF(Picks!B155="","",Picks!B155) -> Brighton draw | C155: =IF(Picks!C155="","",Picks!C155) -> 1900-01-07 | D155: =IF(Picks!D155="","",Picks!D155) -> 3.2 | E155: =IF(Picks!E155="","",Picks!E155) -> x | F155: =IF(Picks!F155="","",Picks!F155) -> 9.2 | G155: =IF(Picks!G155="","",Picks!G155) -> 64.24
B156: =IF(Picks!B156="","",Picks!B156) -> Liverpool draw | C156: =IF(Picks!C156="","",Picks!C156) -> 1900-01-07 | D156: =IF(Picks!D156="","",Picks!D156) -> 3.3 | E156: =IF(Picks!E156="","",Picks!E156) -> √ | F156: =IF(Picks!F156="","",Picks!F156) ->  | G156: =IF(Picks!G156="","",Picks!G156) -> 
B157: =IF(Picks!B157="","",Picks!B157) -> Derby draw | C157: =IF(Picks!C157="","",Picks!C157) -> 1900-01-07 | D157: =IF(Picks!D157="","",Picks!D157) -> 3 | E157: =IF(Picks!E157="","",Picks!E157) -> √ | F157: =IF(Picks!F157="","",Picks!F157) ->  | G157: =IF(Picks!G157="","",Picks!G157) -> 
A158: =IF(Picks!A158="","",Picks!A158) -> Phil Miller | B158: =IF(Picks!B158="","",Picks!B158) -> Everton | C158: =IF(Picks!C158="","",Picks!C158) -> 1900-01-07 | D158: =IF(Picks!D158="","",Picks!D158) -> 3.2 | E158: =IF(Picks!E158="","",Picks!E158) -> √ | F158: =IF(Picks!F158="","",Picks!F158) -> 37.81818182 | G158: =IF(Picks!G158="","",Picks!G158) -> 37.81818182
B159: =IF(Picks!B159="","",Picks!B159) -> Leicester | C159: =IF(Picks!C159="","",Picks!C159) -> 1900-01-07 | D159: =IF(Picks!D159="","",Picks!D159) -> 1.727272727 | E159: =IF(Picks!E159="","",Picks!E159) -> √ | F159: =IF(Picks!F159="","",Picks!F159) ->  | G159: =IF(Picks!G159="","",Picks!G159) -> 
B160: =IF(Picks!B160="","",Picks!B160) -> Derby draw | C160: =IF(Picks!C160="","",Picks!C160) -> 1900-01-07 | D160: =IF(Picks!D160="","",Picks!D160) -> 3 | E160: =IF(Picks!E160="","",Picks!E160) -> √ | F160: =IF(Picks!F160="","",Picks!F160) ->  | G160: =IF(Picks!G160="","",Picks!G160) -> 
A161: =IF(Picks!A161="","",Picks!A161) -> Rob England | B161: =IF(Picks!B161="","",Picks!B161) -> Rotherham | C161: =IF(Picks!C161="","",Picks!C161) -> 1900-01-07 | D161: =IF(Picks!D161="","",Picks!D161) -> 1.65 | E161: =IF(Picks!E161="","",Picks!E161) -> √ | F161: =IF(Picks!F161="","",Picks!F161) -> -0.4475 | G161: =IF(Picks!G161="","",Picks!G161) -> 22.96525
B162: =IF(Picks!B162="","",Picks!B162) -> West Brom | C162: =IF(Picks!C162="","",Picks!C162) -> 1900-01-07 | D162: =IF(Picks!D162="","",Picks!D162) -> 1.85 | E162: =IF(Picks!E162="","",Picks!E162) -> √ | F162: =IF(Picks!F162="","",Picks!F162) ->  | G162: =IF(Picks!G162="","",Picks!G162) -> 
B163: =IF(Picks!B163="","",Picks!B163) -> Bradford | C163: =IF(Picks!C163="","",Picks!C163) -> 1900-01-07 | D163: =IF(Picks!D163="","",Picks!D163) -> 3.1 | E163: =IF(Picks!E163="","",Picks!E163) -> x | F163: =IF(Picks!F163="","",Picks!F163) ->  | G163: =IF(Picks!G163="","",Picks!G163) -> 
A164: =IF(Picks!A164="","",Picks!A164) -> Sally Williams | B164: =IF(Picks!B164="","",Picks!B164) -> Derby draw | C164: =IF(Picks!C164="","",Picks!C164) -> 1900-01-07 | D164: =IF(Picks!D164="","",Picks!D164) -> 3 | E164: =IF(Picks!E164="","",Picks!E164) -> √ | F164: =IF(Picks!F164="","",Picks!F164) -> 8.8 | G164: =IF(Picks!G164="","",Picks!G164) -> 62.56
B165: =IF(Picks!B165="","",Picks!B165) -> Fulham draw | C165: =IF(Picks!C165="","",Picks!C165) -> 1900-01-07 | D165: =IF(Picks!D165="","",Picks!D165) -> 3.2 | E165: =IF(Picks!E165="","",Picks!E165) -> x | F165: =IF(Picks!F165="","",Picks!F165) ->  | G165: =IF(Picks!G165="","",Picks!G165) -> 
B166: =IF(Picks!B166="","",Picks!B166) -> Middlesbro draw | C166: =IF(Picks!C166="","",Picks!C166) -> 1900-01-07 | D166: =IF(Picks!D166="","",Picks!D166) -> 3.2 | E166: =IF(Picks!E166="","",Picks!E166) -> √ | F166: =IF(Picks!F166="","",Picks!F166) ->  | G166: =IF(Picks!G166="","",Picks!G166) -> 
A167: =IF(Picks!A167="","",Picks!A167) -> Simon Greenhalgh | B167: =IF(Picks!B167="","",Picks!B167) -> Villa | C167: =IF(Picks!C167="","",Picks!C167) -> 1900-01-07 | D167: =IF(Picks!D167="","",Picks!D167) -> 2 | E167: =IF(Picks!E167="","",Picks!E167) -> x | F167: =IF(Picks!F167="","",Picks!F167) -> -5 | G167: =IF(Picks!G167="","",Picks!G167) -> 29.8
B168: =IF(Picks!B168="","",Picks!B168) -> Fulham | C168: =IF(Picks!C168="","",Picks!C168) -> 1900-01-07 | D168: =IF(Picks!D168="","",Picks!D168) -> 2 | E168: =IF(Picks!E168="","",Picks!E168) -> √ | F168: =IF(Picks!F168="","",Picks!F168) ->  | G168: =IF(Picks!G168="","",Picks!G168) -> 
B169: =IF(Picks!B169="","",Picks!B169) -> Luton | C169: =IF(Picks!C169="","",Picks!C169) -> 1900-01-07 | D169: =IF(Picks!D169="","",Picks!D169) -> 3.2 | E169: =IF(Picks!E169="","",Picks!E169) -> x | F169: =IF(Picks!F169="","",Picks!F169) ->  | G169: =IF(Picks!G169="","",Picks!G169) -> 
A170: =IF(Picks!A170="","",Picks!A170) -> Stephen Barr | B170: =IF(Picks!B170="","",Picks!B170) -> Villa | C170: =IF(Picks!C170="","",Picks!C170) -> 1900-01-07 | D170: =IF(Picks!D170="","",Picks!D170) -> 2 | E170: =IF(Picks!E170="","",Picks!E170) -> x | F170: =IF(Picks!F170="","",Picks!F170) -> 4 | G170: =IF(Picks!G170="","",Picks!G170) -> 28
B171: =IF(Picks!B171="","",Picks!B171) -> Fulham | C171: =IF(Picks!C171="","",Picks!C171) -> 1900-01-07 | D171: =IF(Picks!D171="","",Picks!D171) -> 2 | E171: =IF(Picks!E171="","",Picks!E171) -> √ | F171: =IF(Picks!F171="","",Picks!F171) ->  | G171: =IF(Picks!G171="","",Picks!G171) -> 
B172: =IF(Picks!B172="","",Picks!B172) -> Derby draw | C172: =IF(Picks!C172="","",Picks!C172) -> 1900-01-07 | D172: =IF(Picks!D172="","",Picks!D172) -> 3 | E172: =IF(Picks!E172="","",Picks!E172) -> √ | F172: =IF(Picks!F172="","",Picks!F172) ->  | G172: =IF(Picks!G172="","",Picks!G172) -> 
A173: =IF(Picks!A173="","",Picks!A173) -> Stephen Troop | B173: =IF(Picks!B173="","",Picks!B173) -> Millwall | C173: =IF(Picks!C173="","",Picks!C173) -> 1900-01-07 | D173: =IF(Picks!D173="","",Picks!D173) -> 1.909090909 | E173: =IF(Picks!E173="","",Picks!E173) -> √ | F173: =IF(Picks!F173="","",Picks!F173) -> 12.94545455 | G173: =IF(Picks!G173="","",Picks!G173) -> 12.94545455
B174: =IF(Picks!B174="","",Picks!B174) -> Sunderland | C174: =IF(Picks!C174="","",Picks!C174) -> 1900-01-07 | D174: =IF(Picks!D174="","",Picks!D174) -> 2 | E174: =IF(Picks!E174="","",Picks!E174) -> √ | F174: =IF(Picks!F174="","",Picks!F174) ->  | G174: =IF(Picks!G174="","",Picks!G174) -> 
B175: =IF(Picks!B175="","",Picks!B175) -> Spurs | C175: =IF(Picks!C175="","",Picks!C175) -> 1900-01-01 | D175: =IF(Picks!D175="","",Picks!D175) -> 1.4 | E175: =IF(Picks!E175="","",Picks!E175) -> √ | F175: =IF(Picks!F175="","",Picks!F175) ->  | G175: =IF(Picks!G175="","",Picks!G175) -> 

Sheet Diary
A1: 38 | B1: 2021 | C1: Autumn
B3: =CONCATENATE("Season PL",$A$1," (",$C$1," ",$B$1,")") -> Season PL38 (Autumn 2021) | I3: Weekly actions
B4: Midweek\ Weekend of… | C4: 3in! PL Round No. | D4: Double/Midweek Fixtures? | E4: Qualifying Fixtures | F4: PL Cup Round | I4: Scrape Odds | J4: Issue Odds | K4: Issue Results
B5: 2021-08-14 | C5: 1 | H5: FAC\FL1\FL2 | I5: =IF($B5="","",$B5-5) -> 2021-08-09 | J5: =IF($B5="","",$B5-3) -> 2021-08-11 | K5: =IF($B5="","",$B5+2) -> 2021-08-16
B6: 2021-08-21 | C6: 2 | F6: Preliminary | H6: Prm\Chp\FL1\FL2 | I6: =IF($B6="","",$B6-5) -> 2021-08-16 | J6: =IF($B6="","",$B6-3) -> 2021-08-18 | K6: =IF($B6="","",$B6+2) -> 2021-08-23
B7: 2021-08-28 | C7: 3 | F7: Preliminary Rep | H7: INT\FL1\FL2\NL | I7: 2021-08-23 | J7: 2021-08-25 | K7: 2021-08-30
B8: 2021-09-04 | C8: 4 | H8: Prm\Chp\FAC | I8: 2021-08-30 | J8: 2021-09-01 | K8: 2021-09-06
B9: 2021-09-11 | C9: 5 | F9: Round 1 | I9: 2021-09-06 | J9: 2021-09-08 | K9: 2021-09-13
B10: 2021-09-18 | C10: 6 | F10: Round 1 Rep | I10: 2021-09-13 | J10: 2021-09-15 | K10: 2021-09-20
B11: 2021-09-25 | C11: 7 | I11: 2021-09-20 | J11: 2021-09-22 | K11: 2021-09-27
B12: 2021-10-02 | C12: 8 | F12: Round 2 | I12: 2021-09-27 | J12: 2021-09-29 | K12: 2021-10-04
B13: 2021-10-09 | C13: 9 | F13: Round 2 Rep | I13: 2021-10-04 | J13: 2021-10-06 | K13: 2021-10-11
B14: 2021-10-16 | C14: 10 | I14: 2021-10-11 | J14: 2021-10-13 | K14: 2021-10-18
B15: 2021-10-23 | C15: 11 | F15: Round 3 | I15: 2021-10-18 | J15: 2021-10-20 | K15: 2021-10-25
B16: 2021-10-30 | C16: 12 | F16: Round 3 Rep | I16: 2021-10-25 | J16: 2021-10-27 | K16: 2021-11-01
B17: 2021-11-06 | C17: 13 | I17: 2021-11-01 | J17: 2021-11-03 | K17: 2021-11-08
B18: 2021-11-13 | C18: 14 | F18: Quarter-Final | I18: 2021-11-08 | J18: 2021-11-10 | K18: 2021-11-15
B19: 2021-11-20 | C19: 15 | F19: Quarter-Final Rep | I19: 2021-11-15 | J19: 2021-11-17 | K19: 2021-11-22
B20: 2021-11-27 | C20: 16 | F20: Semi-Final | I20: 2021-11-22 | J20: 2021-11-24 | K20: 2021-11-29
B21: 2021-12-04 | C21: 17 | F21: Semi-Final Rep | I21: 2021-11-29 | J21: 2021-12-01 | K21: 2021-12-06
B22: 2021-12-11 | C22: 18 | F22: Final | I22: 2021-12-06 | J22: 2021-12-08 | K22: 2021-12-13
B23: 2021-12-18 | C23: 19 | F23: Final Rep | I23: 2021-12-13 | J23: 2021-12-15 | K23: 2021-12-20
B24: 2021-12-25 | C24: 20 | I24: 2021-12-20 | J24: 2021-12-22 | K24: 2021-12-27

Sheet Match
A1: Ref | B1: Date | C1: Sequence | D1: Comp | E1: Home | F1: Away | G1: Home score | H1: Away score | I1: H1 | J1: H2 | K1: D1 | L1: D2 | M1: A1 | N1: A2 | O1: On/Off | P1: Off? | Q1: Home Trim | R1: Away Trim | S1: HS Trim | T1: AS Trim | U1: Match Odds | V1: Results | W1: Odds | X1: Home odds | Y1: Draw Odds | Z1: Away Odds | AA1: Home Dec | AB1: Draw Dec | AC1: Away Dec
A2: 1 | B2: 2021-08-27 | C2: 12 | D2: League 1 | E2: Burton | F2: Cheltenham | G2: 1 | H2: 1 | I2: 1 | J2: 1 | K2: 5 | L2: 2 | M2: 27 | N2: 10 | O2: FALSE | P2: =IF(B2="","",IF(O2=FALSE,"","OFF")) ->  | Q2: =TRIM(E2) -> Burton | R2: =TRIM(F2) -> Cheltenham | S2: =TRIM(G2) -> 1 | T2: =TRIM(H2) -> 1 | U2: =IF(B2="","",Q2&" v "&R2&" "&W2) -> Burton v Cheltenham 1/1 5/2 27/10 | V2: =Q2&" "&S2&"-"&T2&" "&R2&" "&P2 -> Burton 1-1 Cheltenham | W2: =X2&" "&Y2&" "&Z2 -> 1/1 5/2 27/10 | X2: =CONCATENATE(I2,"/",J2) -> 1/1 | Y2: =CONCATENATE(K2,"/",L2) -> 5/2 | Z2: =CONCATENATE(M2,"/",N2) -> 27/10 | AA2: =IF(B2="","",1+(I2/J2)) -> 2 | AB2: =IF(D2="","",1+(K2/L2)) -> 3.5 | AC2: =IF(E2="","",1+(M2/N2)) -> 3.7
A3: 2 | B3: 2021-08-27 | C3: 13 | D3: League 2 | E3: Rochdale | F3: Colchester | G3: 1 | H3: 1 | I3: 11 | J3: 8 | K3: 11 | L3: 5 | M3: 21 | N3: 10 | O3: FALSE | P3: =IF(B3="","",IF(O3=FALSE,"","OFF")) ->  | Q3: Rochdale | R3: Colchester | S3: 1 | T3: 1 | U3: Rochdale v Colchester 11/8 11/5 21/10 | V3: =Q3&" "&S3&"-"&T3&" "&R3&" "&P3 -> Rochdale 1-1 Colchester | W3: =X3&" "&Y3&" "&Z3 -> 11/8 11/5 21/10 | X3: 11/8 | Y3: 11/5 | Z3: 21/10 | AA3: =IF(B3="","",1+(I3/J3)) -> 2.375 | AB3: =IF(D3="","",1+(K3/L3)) -> 3.2 | AC3: =IF(E3="","",1+(M3/N3)) -> 3.1
A4: 3 | B4: 2021-08-28 | C4: 10 | D4: Premier | E4: Brighton | F4: Everton | G4: 0 | H4: 2 | I4: 11 | J4: 8 | K4: 11 | L4: 5 | M4: 11 | N4: 5 | O4: FALSE | Q4: Brighton | R4: Everton | S4: 0 | T4: 2 | U4: Brighton v Everton 11/8 11/5 11/5 | V4: Brighton 0-2 Everton | W4: 11/8 11/5 11/5 | X4: 11/8 | Y4: 11/5 | Z4: 11/5 | AA4: 2.375 | AB4: 3.2 | AC4: 3.2
A5: 4 | B5: 2021-08-28 | C5: 10 | D5: Premier | E5: Liverpool | F5: Chelsea | G5: 1 | H5: 1 | I5: 8 | J5: 5 | K5: 23 | L5: 10 | M5: 7 | N5: 4 | O5: FALSE | Q5: Liverpool | R5: Chelsea | S5: 1 | T5: 1 | U5: Liverpool v Chelsea 8/5 23/10 7/4 | V5: Liverpool 1-1 Chelsea | W5: 8/5 23/10 7/4 | X5: 8/5 | Y5: 23/10 | Z5: 7/4 | AA5: 2.6 | AB5: 3.3 | AC5: 2.75
A6: 5 | B6: 2021-08-28 | C6: 10 | D6: Premier | E6: Man C | F6: Arsenal | G6: 5 | H6: 0 | I6: 1 | J6: 4 | K6: 24 | L6: 5 | M6: 11 | N6: 1 | O6: FALSE | Q6: Man C | R6: Arsenal | S6: 5 | T6: 0 | U6: Man C v Arsenal 1/4 24/5 11/1 | V6: Man C 5-0 Arsenal | W6: 1/4 24/5 11/1 | X6: 1/4 | Y6: 24/5 | Z6: 11/1 | AA6: 1.25 | AB6: 5.8 | AC6: 12
A7: 6 | B7: 2021-08-28 | C7: 10 | D7: Premier | E7: Newcastle | F7: Southampton | G7: 2 | H7: 2 | I7: 13 | J7: 8 | K7: 5 | L7: 2 | M7: 13 | N7: 8 | O7: FALSE | Q7: =TRIM(E7) -> Newcastle | R7: Southampton | S7: 2 | T7: 2 | U7: Newcastle v Southampton 13/8 5/2 13/8 | V7: Newcastle 2-2 Southampton | W7: 13/8 5/2 13/8 | X7: 13/8 | Y7: 5/2 | Z7: 13/8 | AA7: 2.625 | AB7: 3.5 | AC7: 2.625
A8: 7 | B8: 2021-08-28 | C8: 10 | D8: Premier | E8: Norwich | F8: Leicester | G8: 1 | H8: 2 | I8: 4 | J8: 1 | K8: 27 | L8: 10 | M8: 8 | N8: 11 | O8: FALSE | Q8: Norwich | R8: Leicester | S8: 1 | T8: 2 | U8: Norwich v Leicester 4/1 27/10 8/11 | V8: Norwich 1-2 Leicester | W8: 4/1 27/10 8/11 | X8: 4/1 | Y8: 27/10 | Z8: 8/11 | AA8: 5 | AB8: 3.7 | AC8: 1.727272727
A9: 8 | B9: 2021-08-28 | C9: 10 | D9: Premier | E9: Villa | F9: Brentford | G9: 1 | H9: 1 | I9: 1 | J9: 1 | K9: 13 | L9: 5 | M9: 27 | N9: 10 | O9: FALSE | Q9: Villa | R9: Brentford | S9: 1 | T9: 1 | U9: Villa v Brentford 1/1 13/5 27/10 | V9: Villa 1-1 Brentford | W9: 1/1 13/5 27/10 | X9: 1/1 | Y9: 13/5 | Z9: 27/10 | AA9: 2 | AB9: 3.6 | AC9: 3.7
A10: 9 | B10: 2021-08-28 | C10: 10 | D10: Premier | E10: West Ham | F10: Palace | G10: 2 | H10: 2 | I10: 6 | J10: 10 | K10: 29 | L10: 10 | M10: 24 | N10: 5 | O10: FALSE | Q10: West Ham | R10: Palace | S10: 2 | T10: 2 | U10: West Ham v Palace 6/10 29/10 24/5 | V10: West Ham 2-2 Palace | W10: 6/10 29/10 24/5 | X10: 6/10 | Y10: 29/10 | Z10: 24/5 | AA10: 1.6 | AB10: 3.9 | AC10: 5.8
A11: 10 | B11: 2021-08-28 | C11: 11 | D11: Champ | E11: Barnsley | F11: Birmingham | G11: 1 | H11: 1 | I11: 23 | J11: 20 | K11: 21 | L11: 10 | M11: 27 | N11: 10 | O11: FALSE | Q11: Barnsley | R11: Birmingham | S11: 1 | T11: 1 | U11: Barnsley v Birmingham 23/20 21/10 27/10 | V11: Barnsley 1-1 Birmingham | W11: 23/20 21/10 27/10 | X11: 23/20 | Y11: 21/10 | Z11: 27/10 | AA11: 2.15 | AB11: 3.1 | AC11: 3.7
A12: 11 | B12: 2021-08-28 | C12: 11 | D12: Champ | E12: Cardiff | F12: Bristol C | G12: 1 | H12: 2 | I12: 19 | J12: 20 | K12: 23 | L12: 10 | M12: 16 | N12: 5 | O12: FALSE | Q12: Cardiff | R12: Bristol C | S12: 1 | T12: 2 | U12: Cardiff v Bristol C 19/20 23/10 16/5 | V12: Cardiff 1-2 Bristol C | W12: 19/20 23/10 16/5 | X12: 19/20 | Y12: 23/10 | Z12: 16/5 | AA12: 1.95 | AB12: 3.3 | AC12: 4.2
A13: 12 | B13: 2021-08-28 | C13: 11 | D13: Champ | E13: Derby | F13: Forest | G13: 1 | H13: 1 | I13: 7 | J13: 4 | K13: 2 | L13: 1 | M13: 7 | N13: 4 | O13: FALSE | Q13: Derby | R13: Forest | S13: 1 | T13: 1 | U13: Derby v Forest 7/4 2/1 7/4 | V13: Derby 1-1 Forest | W13: 7/4 2/1 7/4 | X13: 7/4 | Y13: 2/1 | Z13: 7/4 | AA13: 2.75 | AB13: 3 | AC13: 2.75
A14: 13 | B14: 2021-08-28 | C14: 11 | D14: Champ | E14: Fulham | F14: Stoke | G14: 3 | H14: 0 | I14: 1 | J14: 1 | K14: 11 | L14: 5 | M14: 3 | N14: 1 | O14: FALSE | Q14: Fulham | R14: Stoke | S14: 3 | T14: 0 | U14: Fulham v Stoke 1/1 11/5 3/1 | V14: Fulham 3-0 Stoke | W14: 1/1 11/5 3/1 | X14: 1/1 | Y14: 11/5 | Z14: 3/1 | AA14: 2 | AB14: 3.2 | AC14: 4
A15: 14 | B15: 2021-08-28 | C15: 11 | D15: Champ | E15: Huddersfield | F15: Reading | G15: 4 | H15: 0 | I15: 13 | J15: 8 | K15: 12 | L15: 5 | M15: 2 | N15: 1 | O15: FALSE | Q15: Huddersfield | R15: Reading | S15: 4 | T15: 0 | U15: Huddersfield v Reading 13/8 12/5 2/1 | V15: Huddersfield 4-0 Reading | W15: 13/8 12/5 2/1 | X15: 13/8 | Y15: 12/5 | Z15: 2/1 | AA15: 2.625 | AB15: 3.4 | AC15: 3
A16: 15 | B16: 2021-08-28 | C16: 11 | D16: Champ | E16: Hull | F16: Bournemouth | G16: 0 | H16: 0 | I16: 9 | J16: 4 | K16: 11 | L16: 5 | M16: 13 | N16: 10 | O16: FALSE | Q16: Hull | R16: Bournemouth | S16: 0 | T16: 0 | U16: Hull v Bournemouth 9/4 11/5 13/10 | V16: Hull 0-0 Bournemouth | W16: 9/4 11/5 13/10 | X16: 9/4 | Y16: 11/5 | Z16: 13/10 | AA16: 3.25 | AB16: 3.2 | AC16: 2.3
A17: 16 | B17: 2021-08-28 | C17: 11 | D17: Champ | E17: Luton | F17: Sheff U | G17: 0 | H17: 0 | I17: 11 | J17: 5 | K17: 21 | L17: 10 | M17: 11 | N17: 8 | O17: FALSE | Q17: Luton | R17: Sheff U | S17: 0 | T17: 0 | U17: Luton v Sheff U 11/5 21/10 11/8 | V17: Luton 0-0 Sheff U | W17: 11/5 21/10 11/8 | X17: 11/5 | Y17: 21/10 | Z17: 11/8 | AA17: 3.2 | AB17: 3.1 | AC17: 2.375
A18: 17 | B18: 2021-08-28 | C18: 11 | D18: Champ | E18: Middlesbro | F18: Blackburn | G18: 1 | H18: 1 | I18: 6 | J18: 5 | K18: 11 | L18: 5 | M18: 17 | N18: 5 | O18: FALSE | Q18: Middlesbro | R18: Blackburn | S18: 1 | T18: 1 | U18: Middlesbro v Blackburn 6/5 11/5 17/5 | V18: Middlesbro 1-1 Blackburn | W18: 6/5 11/5 17/5 | X18: 6/5 | Y18: 11/5 | Z18: 17/5 | AA18: 2.2 | AB18: 3.2 | AC18: 4.4
A19: 18 | B19: 2021-08-28 | C19: 11 | D19: Champ | E19: Millwall | F19: Blackpool | G19: 2 | H19: 1 | I19: 10 | J19: 11 | K19: 11 | L19: 5 | M19: 17 | N19: 5 | O19: FALSE | Q19: Millwall | R19: Blackpool | S19: 2 | T19: 1 | U19: Millwall v Blackpool 10/11 11/5 17/5 | V19: Millwall 2-1 Blackpool | W19: 10/11 11/5 17/5 | X19: 10/11 | Y19: 11/5 | Z19: 17/5 | AA19: 1.909090909 | AB19: 3.2 | AC19: 4.4
A20: 19 | B20: 2021-08-28 | C20: 11 | D20: Champ | E20: Peterborough | F20: West Brom | G20: 0 | H20: 1 | I20: 16 | J20: 5 | K20: 5 | L20: 2 | M20: 17 | N20: 20 | O20: FALSE | Q20: Peterborough | R20: West Brom | S20: 0 | T20: 1 | U20: Peterborough v West Brom 16/5 5/2 17/20 | V20: Peterborough 0-1 West Brom | W20: 16/5 5/2 17/20 | X20: 16/5 | Y20: 5/2 | Z20: 17/20 | AA20: 4.2 | AB20: 3.5 | AC20: 1.85
A21: 20 | B21: 2021-08-28 | C21: 11 | D21: Champ | E21: Preston | F21: Swansea | G21: 3 | H21: 1 | I21: 8 | J21: 5 | K21: 21 | L21: 10 | M21: 9 | N21: 5 | O21: FALSE | Q21: Preston | R21: Swansea | S21: 3 | T21: 1 | U21: Preston v Swansea 8/5 21/10 9/5 | V21: Preston 3-1 Swansea | W21: 8/5 21/10 9/5 | X21: 8/5 | Y21: 21/10 | Z21: 9/5 | AA21: 2.6 | AB21: 3.1 | AC21: 2.8
A22: 21 | B22: 2021-08-28 | C22: 11 | D22: Champ | E22: QPR | F22: Coventry | G22: 2 | H22: 0 | I22: 23 | J22: 20 | K22: 11 | L22: 5 | M22: 13 | N22: 5 | O22: FALSE | Q22: QPR | R22: Coventry | S22: 2 | T22: 0 | U22: QPR v Coventry 23/20 11/5 13/5 | V22: QPR 2-0 Coventry | W22: 23/20 11/5 13/5 | X22: 23/20 | Y22: 11/5 | Z22: 13/5 | AA22: 2.15 | AB22: 3.2 | AC22: 3.6
A23: 22 | B23: 2021-08-28 | C23: 12 | D23: League 1 | E23: Cambridge | F23: Bolton | G23: 1 | H23: 0 | I23: 2 | J23: 1 | K23: 12 | L23: 5 | M23: 13 | N23: 10 | O23: FALSE | Q23: Cambridge | R23: Bolton | S23: 1 | T23: 0 | U23: Cambridge v Bolton 2/1 12/5 13/10 | V23: Cambridge 1-0 Bolton | W23: 2/1 12/5 13/10 | X23: 2/1 | Y23: 12/5 | Z23: 13/10 | AA23: 3 | AB23: 3.4 | AC23: 2.3
A24: 23 | B24: 2021-08-28 | C24: 12 | D24: League 1 | E24: Charlton | F24: Crewe | G24: 2 | H24: 0 | I24: 17 | J24: 20 | K24: 5 | L24: 2 | M24: 16 | N24: 5 | O24: FALSE | Q24: Charlton | R24: Crewe | S24: 2 | T24: 0 | U24: Charlton v Crewe 17/20 5/2 16/5 | V24: Charlton 2-0 Crewe | W24: 17/20 5/2 16/5 | X24: 17/20 | Y24: 5/2 | Z24: 16/5 | AA24: 1.85 | AB24: 3.5 | AC24: 4.2
A25: 24 | B25: 2021-08-28 | C25: 12 | D25: League 1 | E25: Ipswich | F25: Wimbledon | G25: 2 | H25: 2 | I25: 1 | J25: 1 | K25: 23 | L25: 10 | M25: 29 | N25: 10 | O25: FALSE | Q25: Ipswich | R25: Wimbledon | S25: 2 | T25: 2 | U25: Ipswich v Wimbledon 1/1 23/10 29/10 | V25: Ipswich 2-2 Wimbledon | W25: 1/1 23/10 29/10 | X25: 1/1 | Y25: 23/10 | Z25: 29/10 | AA25: 2 | AB25: 3.3 | AC25: 3.9
A26: 25 | B26: 2021-08-28 | C26: 12 | D26: League 1 | E26: MK Dons | F26: Accrington | G26: 2 | H26: 0 | I26: 11 | J26: 10 | K26: 12 | L26: 5 | M26: 12 | N26: 5 | O26: FALSE | Q26: MK Dons | R26: Accrington | S26: 2 | T26: 0 | U26: MK Dons v Accrington 11/10 12/5 12/5 | V26: MK Dons 2-0 Accrington | W26: 11/10 12/5 12/5 | X26: 11/10 | Y26: 12/5 | Z26: 12/5 | AA26: 2.1 | AB26: 3.4 | AC26: 3.4
A27: 26 | B27: 2021-08-28 | C27: 12 | D27: League 1 | E27: Morecambe | F27: Sheff W | G27: 1 | H27: 0 | I27: 3 | J27: 1 | K27: 5 | L27: 2 | M27: 10 | N27: 11 | O27: FALSE | Q27: Morecambe | R27: Sheff W | S27: 1 | T27: 0 | U27: Morecambe v Sheff W 3/1 5/2 10/11 | V27: Morecambe 1-0 Sheff W | W27: 3/1 5/2 10/11 | X27: 3/1 | Y27: 5/2 | Z27: 10/11 | AA27: 4 | AB27: 3.5 | AC27: 1.909090909
A28: 27 | B28: 2021-08-28 | C28: 12 | D28: League 1 | E28: Oxford | F28: Lincoln | G28: 3 | H28: 1 | I28: 11 | J28: 10 | K28: 12 | L28: 5 | M28: 12 | N28: 5 | O28: FALSE | Q28: Oxford | R28: Lincoln | S28: 3 | T28: 1 | U28: Oxford v Lincoln 11/10 12/5 12/5 | V28: Oxford 3-1 Lincoln | W28: 11/10 12/5 12/5 | X28: 11/10 | Y28: 12/5 | Z28: 12/5 | AA28: 2.1 | AB28: 3.4 | AC28: 3.4
A29: 28 | B29: 2021-08-28 | C29: 12 | D29: League 1 | E29: Plymouth | F29: Fleetwood | G29: 1 | H29: 1 | I29: 29 | J29: 20 | K29: 9 | L29: 4 | M29: 19 | N29: 10 | O29: FALSE | Q29: Plymouth | R29: Fleetwood | S29: 1 | T29: 1 | U29: Plymouth v Fleetwood 29/20 9/4 19/10 | V29: Plymouth 1-1 Fleetwood | W29: 29/20 9/4 19/10 | X29: 29/20 | Y29: 9/4 | Z29: 19/10 | AA29: 2.45 | AB29: 3.25 | AC29: 2.9
A30: 29 | B30: 2021-08-28 | C30: 12 | D30: League 1 | E30: Rotherham | F30: Doncaster | G30: 2 | H30: 0 | I30: 13 | J30: 20 | K30: 11 | L30: 4 | M30: 9 | N30: 2 | O30: FALSE | Q30: Rotherham | R30: Doncaster | S30: 2 | T30: 0 | U30: Rotherham v Doncaster 13/20 11/4 9/2 | V30: Rotherham 2-0 Doncaster | W30: 13/20 11/4 9/2 | X30: 13/20 | Y30: 11/4 | Z30: 9/2 | AA30: 1.65 | AB30: 3.75 | AC30: 5.5
A31: 30 | B31: 2021-08-28 | C31: 12 | D31: League 1 | E31: Shrewsbury | F31: Gillingham | G31: 2 | H31: 1 | I31: 29 | J31: 20 | K31: 9 | L31: 4 | M31: 15 | N31: 8 | O31: FALSE | Q31: Shrewsbury | R31: Gillingham | S31: 2 | T31: 1 | U31: Shrewsbury v Gillingham 29/20 9/4 15/8 | V31: Shrewsbury 2-1 Gillingham | W31: 29/20 9/4 15/8 | X31: 29/20 | Y31: 9/4 | Z31: 15/8 | AA31: 2.45 | AB31: 3.25 | AC31: 2.875
A32: 31 | B32: 2021-08-28 | C32: 12 | D32: League 1 | E32: Sunderland | F32: Wycombe | G32: 3 | H32: 1 | I32: 1 | J32: 1 | K32: 12 | L32: 5 | M32: 14 | N32: 5 | O32: FALSE | Q32: Sunderland | R32: Wycombe | S32: 3 | T32: 1 | U32: Sunderland v Wycombe 1/1 12/5 14/5 | V32: Sunderland 3-1 Wycombe | W32: 1/1 12/5 14/5 | X32: 1/1 | Y32: 12/5 | Z32: 14/5 | AA32: 2 | AB32: 3.4 | AC32: 3.8
A33: 32 | B33: 2021-08-28 | C33: 12 | D33: League 1 | E33: Wigan | F33: Portsmouth | G33: 1 | H33: 0 | I33: 8 | J33: 5 | K33: 21 | L33: 10 | M33: 15 | N33: 8 | O33: FALSE | Q33: =TRIM(E33) -> Wigan | R33: =TRIM(F33) -> Portsmouth | S33: =TRIM(G33) -> 1 | T33: =TRIM(H33) -> 0 | U33: Wigan v Portsmouth 8/5 21/10 15/8 | V33: Wigan 1-0 Portsmouth | W33: 8/5 21/10 15/8 | X33: =CONCATENATE(I33,"/",J33) -> 8/5 | Y33: =CONCATENATE(K33,"/",L33) -> 21/10 | Z33: =CONCATENATE(M33,"/",N33) -> 15/8 | AA33: 2.6 | AB33: 3.1 | AC33: 2.875
A34: 33 | B34: 2021-08-28 | C34: 13 | D34: League 2 | E34: Barrow | F34: Bristol R | G34: 1 | H34: 1 | I34: 29 | J34: 20 | K34: 11 | L34: 5 | M34: 2 | N34: 1 | O34: FALSE | Q34: Barrow | R34: Bristol R | S34: 1 | T34: 1 | U34: Barrow v Bristol R 29/20 11/5 2/1 | V34: Barrow 1-1 Bristol R | W34: 29/20 11/5 2/1 | X34: 29/20 | Y34: 11/5 | Z34: 2/1 | AA34: 2.45 | AB34: 3.2 | AC34: 3
A35: 34 | B35: 2021-08-28 | C35: 13 | D35: League 2 | E35: Crawley | F35: Northampton | G35: 0 | H35: 0 | I35: 15 | J35: 8 | K35: 23 | L35: 10 | M35: 29 | N35: 20 | O35: FALSE | Q35: Crawley | R35: Northampton | S35: 0 | T35: 0 | U35: Crawley v Northampton 15/8 23/10 29/20 | V35: Crawley 0-0 Northampton | W35: 15/8 23/10 29/20 | X35: 15/8 | Y35: 23/10 | Z35: 29/20 | AA35: 2.875 | AB35: 3.3 | AC35: 2.45
A36: 35 | B36: 2021-08-28 | C36: 13 | D36: League 2 | E36: Forest Green | F36: Port Vale | G36: 0 | H36: 2 | I36: 23 | J36: 20 | K36: 21 | L36: 10 | M36: 27 | N36: 10 | O36: FALSE | Q36: Forest Green | R36: Port Vale | S36: 0 | T36: 2 | U36: Forest Green v Port Vale 23/20 21/10 27/10 | V36: Forest Green 0-2 Port Vale | W36: 23/20 21/10 27/10 | X36: 23/20 | Y36: 21/10 | Z36: 27/10 | AA36: 2.15 | AB36: 3.1 | AC36: 3.7
A37: 36 | B37: 2021-08-28 | C37: 13 | D37: League 2 | E37: Harrogate | F37: Exeter | G37: 1 | H37: 1 | I37: 8 | J37: 5 | K37: 12 | L37: 5 | M37: 13 | N37: 8 | O37: FALSE | Q37: Harrogate | R37: Exeter | S37: 1 | T37: 1 | U37: Harrogate v Exeter 8/5 12/5 13/8 | V37: Harrogate 1-1 Exeter | W37: 8/5 12/5 13/8 | X37: 8/5 | Y37: 12/5 | Z37: 13/8 | AA37: 2.6 | AB37: 3.4 | AC37: 2.625
A38: 37 | B38: 2021-08-28 | C38: 13 | D38: League 2 | E38: Hartlepool | F38: Carlisle | G38: 2 | H38: 1 | I38: 15 | J38: 8 | K38: 11 | L38: 5 | M38: 6 | N38: 4 | O38: FALSE | Q38: Hartlepool | R38: Carlisle | S38: 2 | T38: 1 | U38: Hartlepool v Carlisle 15/8 11/5 6/4 | V38: Hartlepool 2-1 Carlisle | W38: 15/8 11/5 6/4 | X38: 15/8 | Y38: 11/5 | Z38: 6/4 | AA38: 2.875 | AB38: 3.2 | AC38: 2.5
A39: 38 | B39: 2021-08-28 | C39: 13 | D39: League 2 | E39: Orient | F39: Bradford | G39: 2 | H39: 0 | I39: 2 | J39: 1 | K39: 21 | L39: 10 | M39: 21 | N39: 10 | O39: FALSE | Q39: Orient | R39: Bradford | S39: 2 | T39: 0 | U39: Orient v Bradford 2/1 21/10 21/10 | V39: Orient 2-0 Bradford | W39: 2/1 21/10 21/10 | X39: 2/1 | Y39: 21/10 | Z39: 21/10 | AA39: 3 | AB39: 3.1 | AC39: 3.1
A40: 39 | B40: 2021-08-28 | C40: 13 | D40: League 2 | E40: Salford | F40: Newport | G40: 3 | H40: 0 | I40: 7 | J40: 5 | K40: 21 | L40: 10 | M40: 29 | N40: 20 | O40: FALSE | Q40: Salford | R40: Newport | S40: 3 | T40: 0 | U40: Salford v Newport 7/5 21/10 29/20 | V40: Salford 3-0 Newport | W40: 7/5 21/10 29/20 | X40: 7/5 | Y40: 21/10 | Z40: 29/20 | AA40: 2.4 | AB40: 3.1 | AC40: 2.45
A41: 40 | B41: 2021-08-28 | C41: 13 | D41: League 2 | E41: Scunthorpe | F41: Tranmere | G41: 1 | H41: 0 | I41: 27 | J41: 10 | K41: 11 | L41: 5 | M41: 11 | N41: 10 | O41: FALSE | Q41: Scunthorpe | R41: Tranmere | S41: 1 | T41: 0 | U41: Scunthorpe v Tranmere 27/10 11/5 11/10 | V41: Scunthorpe 1-0 Tranmere | W41: 27/10 11/5 11/10 | X41: 27/10 | Y41: 11/5 | Z41: 11/10 | AA41: 3.7 | AB41: 3.2 | AC41: 2.1
A42: 41 | B42: 2021-08-28 | C42: 13 | D42: League 2 | E42: Sutton | F42: Oldham | G42: 1 | H42: 2 | I42: 11 | J42: 10 | K42: 9 | L42: 4 | M42: 13 | N42: 5 | O42: FALSE | Q42: Sutton | R42: Oldham | S42: 1 | T42: 2 | U42: Sutton v Oldham 11/10 9/4 13/5 | V42: Sutton 1-2 Oldham | W42: 11/10 9/4 13/5 | X42: 11/10 | Y42: 9/4 | Z42: 13/5 | AA42: 2.1 | AB42: 3.25 | AC42: 3.6
A43: 42 | B43: 2021-08-28 | C43: 13 | D43: League 2 | E43: Swindon | F43: Mansfield | G43: 1 | H43: 0 | I43: 21 | J43: 10 | K43: 23 | L43: 10 | M43: 13 | N43: 10 | O43: FALSE | Q43: Swindon | R43: Mansfield | S43: 1 | T43: 0 | U43: Swindon v Mansfield 21/10 23/10 13/10 | V43: Swindon 1-0 Mansfield | W43: 21/10 23/10 13/10 | X43: 21/10 | Y43: 23/10 | Z43: 13/10 | AA43: 3.1 | AB43: 3.3 | AC43: 2.3
A44: 43 | B44: 2021-08-28 | C44: 13 | D44: League 2 | E44: Walsall | F44: Stevenage | G44: 1 | H44: 0 | I44: 15 | J44: 8 | K44: 21 | L44: 10 | M44: 8 | N44: 5 | O44: FALSE | Q44: Walsall | R44: Stevenage | S44: 1 | T44: 0 | U44: Walsall v Stevenage 15/8 21/10 8/5 | V44: Walsall 1-0 Stevenage | W44: 15/8 21/10 8/5 | X44: 15/8 | Y44: 21/10 | Z44: 8/5 | AA44: 2.875 | AB44: 3.1 | AC44: 2.6
A45: 44 | B45: 2021-08-29 | C45: 10 | D45: Premier | E45: Burnley | F45: Leeds | G45: 1 | H45: 1 | I45: 21 | J45: 10 | K45: 5 | L45: 2 | M45: 5 | N45: 4 | O45: FALSE | Q45: Burnley | R45: Leeds | S45: 1 | T45: 1 | U45: Burnley v Leeds 21/10 5/2 5/4 | V45: Burnley 1-1 Leeds | W45: =X45&" "&Y45&" "&Z45 -> 21/10 5/2 5/4 | X45: 21/10 | Y45: 5/2 | Z45: 5/4 | AA45: 3.1 | AB45: 3.5 | AC45: 2.25
A46: 45 | B46: 2021-08-29 | C46: 10 | D46: Premier | E46: Spurs | F46: Watford | G46: 1 | H46: 0 | I46: 2 | J46: 5 | K46: 17 | L46: 5 | M46: 15 | N46: 2 | O46: FALSE | Q46: Spurs | R46: Watford | S46: 1 | T46: 0 | U46: Spurs v Watford 2/5 17/5 15/2 | V46: Spurs 1-0 Watford | W46: =X46&" "&Y46&" "&Z46 -> 2/5 17/5 15/2 | X46: 2/5 | Y46: 17/5 | Z46: 15/2 | AA46: 1.4 | AB46: 4.4 | AC46: 8.5
A47: 46 | B47: 2021-08-29 | C47: 10 | D47: Premier | E47: Wolves | F47: Man U | G47: 0 | H47: 1 | I47: 4 | J47: 1 | K47: 12 | L47: 5 | M47: 4 | N47: 5 | O47: FALSE | Q47: Wolves | R47: Man U | S47: 0 | T47: 1 | U47: Wolves v Man U 4/1 12/5 4/5 | V47: Wolves 0-1 Man U | W47: =X47&" "&Y47&" "&Z47 -> 4/1 12/5 4/5 | X47: 4/1 | Y47: 12/5 | Z47: 4/5 | AA47: 5 | AB47: 3.4 | AC47: 1.8
A48: 1 | X48: /
A49: 2 | X49: /
A50: 3 | X50: /
A51: 4 | X51: /
A52: 5
A53: 6
A54: 7
A55: 8
A56: 9
A57: 10
A58: 11
A59: 12
A60: 13
A61: 14
A62: 15
A63: 16
A64: 17
A65: 18
A66: 19
A67: 20
A68: 21
A69: 22
A70: 23
A71: 24
A72: 25
A73: 26
A74: 27
A75: 28
A76: 29
A77: 30
A78: 31
A79: 32
A80: 33
A81: 34
A82: 35
A83: 36
A84: 37
A85: 38
A86: 39
A87: 40
A88: 41
A89: 42
A90: 43
A91: 44
A92: 45
A93: 46
A94: 1
A95: 2
A96: 3
A97: 4
A98: 5
A99: 6
A100: 7
A101: 8
A102: 9
A103: 10
A104: 11
A105: 12
A106: 13
A107: 14
A108: 15
A109: 16
A110: 17
A111: 18
A112: 19
A113: 20
A114: 21
A115: 22
A116: 23
A117: 24
A118: 25
A119: 26
A120: 27
A121: 28
A122: 29
A123: 30
A124: 31
A125: 32
A126: 33
A127: 34
A128: 35
A129: 36
A130: 37
A131: 38
A132: 39
A133: 40
A134: 41
A135: 42
A136: 43
A137: 44
A138: 45
A139: 46

Sheet Odds
A1: Ref | B1: Date | D1: Competition | E1: Odds | F1: Result | G1: Choices | H1: Odds | I1: Dec | J1: Bet Up | K1: Played | L1: Home team | M1: Home win odds | N1: Away team | O1: Draw odds | P1: Away odds | Q1: Home dec | R1: Draw dec | S1: Away dec
A2: 1 | B2: =IF(Match!B2="","",Match!B2) -> 2021-08-27 | C2: =IF(B2="","",WEEKDAY(B2)) -> 1900-01-06 | D2: =IF(Match!D2="","",Match!D2) -> League 1 | E2: =IF(Match!U2="","",Match!U2) -> Burton v Cheltenham 1/1 5/2 27/10 | F2: =IF(Match!V2="","",Match!V2) -> Burton 1-1 Cheltenham | G2: =IF(E2="","",L2) -> Burton | H2: =IF(E2="","",M2) -> 1/1 | I2: =IF(E2="","",Q2) -> 2 | J2: =INDEX(Picks!T:T,MATCH(G2,Picks!R:R,0)) -> 0 | K2: =IF(INDEX(Match!P:P,MATCH(A2,Match!A:A,0))="OFF",0,1) -> 1 | L2: =INDEX(Match!Q:Q,MATCH(E2,Match!U:U,0)) -> Burton | M2: =INDEX(Match!X:X,MATCH(E2,Match!U:U,0)) -> 1/1 | N2: =INDEX(Match!R:R,MATCH(E2,Match!U:U,0)) -> Cheltenham | O2: =INDEX(Match!Y:Y,MATCH(E2,Match!U:U,0)) -> 5/2 | P2: =INDEX(Match!Z:Z,MATCH(E2,Match!U:U,0)) -> 27/10 | Q2: =INDEX(Match!AA:AA,MATCH(E2,Match!U:U,0)) -> 2 | R2: =INDEX(Match!AB:AB,MATCH(E2,Match!U:U,0)) -> 3.5 | S2: =INDEX(Match!AC:AC,MATCH(E2,Match!U:U,0)) -> 3.7
A3: 2 | B3: =IF(Match!B3="","",Match!B3) -> 2021-08-27 | C3: =IF(B3="","",WEEKDAY(B3)) -> 1900-01-06 | D3: =IF(Match!D3="","",Match!D3) -> League 2 | E3: =IF(Match!U3="","",Match!U3) -> Rochdale v Colchester 11/8 11/5 21/10 | F3: =IF(Match!V3="","",Match!V3) -> Rochdale 1-1 Colchester | G3: Rochdale | H3: 11/8 | I3: =IF(E3="","",Q3) -> 2.375 | J3: =INDEX(Picks!T:T,MATCH(G3,Picks!R:R,0)) -> 0 | K3: =IF(INDEX(Match!P:P,MATCH(A3,Match!A:A,0))="OFF",0,1) -> 1 | L3: =INDEX(Match!Q:Q,MATCH(E3,Match!U:U,0)) -> Rochdale | M3: =INDEX(Match!X:X,MATCH(E3,Match!U:U,0)) -> 11/8 | N3: =INDEX(Match!R:R,MATCH(E3,Match!U:U,0)) -> Colchester | O3: =INDEX(Match!Y:Y,MATCH(E3,Match!U:U,0)) -> 11/5 | P3: =INDEX(Match!Z:Z,MATCH(E3,Match!U:U,0)) -> 21/10 | Q3: =INDEX(Match!AA:AA,MATCH(E3,Match!U:U,0)) -> 2.375 | R3: =INDEX(Match!AB:AB,MATCH(E3,Match!U:U,0)) -> 3.2 | S3: =INDEX(Match!AC:AC,MATCH(E3,Match!U:U,0)) -> 3.1
A4: 3 | B4: =IF(Match!B4="","",Match!B4) -> 2021-08-28 | C4: 1900-01-07 | D4: =IF(Match!D4="","",Match!D4) -> Premier | E4: =IF(Match!U4="","",Match!U4) -> Brighton v Everton 11/8 11/5 11/5 | F4: =IF(Match!V4="","",Match!V4) -> Brighton 0-2 Everton | G4: Brighton | H4: 11/8 | I4: 2.375 | J4: =INDEX(Picks!T:T,MATCH(G4,Picks!R:R,0)) -> 0 | K4: =IF(INDEX(Match!P:P,MATCH(A4,Match!A:A,0))="OFF",0,1) -> 1 | L4: =INDEX(Match!Q:Q,MATCH(E4,Match!U:U,0)) -> Brighton | M4: =INDEX(Match!X:X,MATCH(E4,Match!U:U,0)) -> 11/8 | N4: =INDEX(Match!R:R,MATCH(E4,Match!U:U,0)) -> Everton | O4: =INDEX(Match!Y:Y,MATCH(E4,Match!U:U,0)) -> 11/5 | P4: =INDEX(Match!Z:Z,MATCH(E4,Match!U:U,0)) -> 11/5 | Q4: =INDEX(Match!AA:AA,MATCH(E4,Match!U:U,0)) -> 2.375 | R4: =INDEX(Match!AB:AB,MATCH(E4,Match!U:U,0)) -> 3.2 | S4: =INDEX(Match!AC:AC,MATCH(E4,Match!U:U,0)) -> 3.2
A5: 4 | B5: =IF(Match!B5="","",Match!B5) -> 2021-08-28 | C5: 1900-01-07 | D5: =IF(Match!D5="","",Match!D5) -> Premier | E5: =IF(Match!U5="","",Match!U5) -> Liverpool v Chelsea 8/5 23/10 7/4 | F5: =IF(Match!V5="","",Match!V5) -> Liverpool 1-1 Chelsea | G5: Liverpool | H5: 8/5 | I5: 2.6 | J5: =INDEX(Picks!T:T,MATCH(G5,Picks!R:R,0)) -> 0 | K5: =IF(INDEX(Match!P:P,MATCH(A5,Match!A:A,0))="OFF",0,1) -> 1 | L5: =INDEX(Match!Q:Q,MATCH(E5,Match!U:U,0)) -> Liverpool | M5: =INDEX(Match!X:X,MATCH(E5,Match!U:U,0)) -> 8/5 | N5: =INDEX(Match!R:R,MATCH(E5,Match!U:U,0)) -> Chelsea | O5: =INDEX(Match!Y:Y,MATCH(E5,Match!U:U,0)) -> 23/10 | P5: =INDEX(Match!Z:Z,MATCH(E5,Match!U:U,0)) -> 7/4 | Q5: =INDEX(Match!AA:AA,MATCH(E5,Match!U:U,0)) -> 2.6 | R5: =INDEX(Match!AB:AB,MATCH(E5,Match!U:U,0)) -> 3.3 | S5: =INDEX(Match!AC:AC,MATCH(E5,Match!U:U,0)) -> 2.75
A6: 5 | B6: =IF(Match!B6="","",Match!B6) -> 2021-08-28 | C6: 1900-01-07 | D6: =IF(Match!D6="","",Match!D6) -> Premier | E6: =IF(Match!U6="","",Match!U6) -> Man C v Arsenal 1/4 24/5 11/1 | F6: =IF(Match!V6="","",Match!V6) -> Man C 5-0 Arsenal | G6: Man C | H6: 1/4 | I6: 1.25 | J6: =INDEX(Picks!T:T,MATCH(G6,Picks!R:R,0)) -> 1 | K6: =IF(INDEX(Match!P:P,MATCH(A6,Match!A:A,0))="OFF",0,1) -> 1 | L6: =INDEX(Match!Q:Q,MATCH(E6,Match!U:U,0)) -> Man C | M6: =INDEX(Match!X:X,MATCH(E6,Match!U:U,0)) -> 1/4 | N6: =INDEX(Match!R:R,MATCH(E6,Match!U:U,0)) -> Arsenal | O6: =INDEX(Match!Y:Y,MATCH(E6,Match!U:U,0)) -> 24/5 | P6: =INDEX(Match!Z:Z,MATCH(E6,Match!U:U,0)) -> 11/1 | Q6: =INDEX(Match!AA:AA,MATCH(E6,Match!U:U,0)) -> 1.25 | R6: =INDEX(Match!AB:AB,MATCH(E6,Match!U:U,0)) -> 5.8 | S6: =INDEX(Match!AC:AC,MATCH(E6,Match!U:U,0)) -> 12
A7: 6 | B7: =IF(Match!B7="","",Match!B7) -> 2021-08-28 | C7: 1900-01-07 | D7: =IF(Match!D7="","",Match!D7) -> Premier | E7: =IF(Match!U7="","",Match!U7) -> Newcastle v Southampton 13/8 5/2 13/8 | F7: =IF(Match!V7="","",Match!V7) -> Newcastle 2-2 Southampton | G7: Newcastle | H7: 13/8 | I7: 2.625 | J7: =INDEX(Picks!T:T,MATCH(G7,Picks!R:R,0)) -> 0 | K7: =IF(INDEX(Match!P:P,MATCH(A7,Match!A:A,0))="OFF",0,1) -> 1 | L7: =INDEX(Match!Q:Q,MATCH(E7,Match!U:U,0)) -> Newcastle | M7: =INDEX(Match!X:X,MATCH(E7,Match!U:U,0)) -> 13/8 | N7: =INDEX(Match!R:R,MATCH(E7,Match!U:U,0)) -> Southampton | O7: =INDEX(Match!Y:Y,MATCH(E7,Match!U:U,0)) -> 5/2 | P7: =INDEX(Match!Z:Z,MATCH(E7,Match!U:U,0)) -> 13/8 | Q7: =INDEX(Match!AA:AA,MATCH(E7,Match!U:U,0)) -> 2.625 | R7: =INDEX(Match!AB:AB,MATCH(E7,Match!U:U,0)) -> 3.5 | S7: =INDEX(Match!AC:AC,MATCH(E7,Match!U:U,0)) -> 2.625
A8: 7 | B8: =IF(Match!B8="","",Match!B8) -> 2021-08-28 | C8: 1900-01-07 | D8: =IF(Match!D8="","",Match!D8) -> Premier | E8: =IF(Match!U8="","",Match!U8) -> Norwich v Leicester 4/1 27/10 8/11 | F8: =IF(Match!V8="","",Match!V8) -> Norwich 1-2 Leicester | G8: Norwich | H8: 4/1 | I8: 5 | J8: =INDEX(Picks!T:T,MATCH(G8,Picks!R:R,0)) -> 0 | K8: =IF(INDEX(Match!P:P,MATCH(A8,Match!A:A,0))="OFF",0,1) -> 1 | L8: =INDEX(Match!Q:Q,MATCH(E8,Match!U:U,0)) -> Norwich | M8: =INDEX(Match!X:X,MATCH(E8,Match!U:U,0)) -> 4/1 | N8: =INDEX(Match!R:R,MATCH(E8,Match!U:U,0)) -> Leicester | O8: =INDEX(Match!Y:Y,MATCH(E8,Match!U:U,0)) -> 27/10 | P8: =INDEX(Match!Z:Z,MATCH(E8,Match!U:U,0)) -> 8/11 | Q8: =INDEX(Match!AA:AA,MATCH(E8,Match!U:U,0)) -> 5 | R8: =INDEX(Match!AB:AB,MATCH(E8,Match!U:U,0)) -> 3.7 | S8: =INDEX(Match!AC:AC,MATCH(E8,Match!U:U,0)) -> 1.727272727
A9: 8 | B9: =IF(Match!B9="","",Match!B9) -> 2021-08-28 | C9: 1900-01-07 | D9: =IF(Match!D9="","",Match!D9) -> Premier | E9: =IF(Match!U9="","",Match!U9) -> Villa v Brentford 1/1 13/5 27/10 | F9: =IF(Match!V9="","",Match!V9) -> Villa 1-1 Brentford | G9: Villa | H9: 1/1 | I9: 2 | J9: =INDEX(Picks!T:T,MATCH(G9,Picks!R:R,0)) -> 0 | K9: =IF(INDEX(Match!P:P,MATCH(A9,Match!A:A,0))="OFF",0,1) -> 1 | L9: =INDEX(Match!Q:Q,MATCH(E9,Match!U:U,0)) -> Villa | M9: =INDEX(Match!X:X,MATCH(E9,Match!U:U,0)) -> 1/1 | N9: =INDEX(Match!R:R,MATCH(E9,Match!U:U,0)) -> Brentford | O9: =INDEX(Match!Y:Y,MATCH(E9,Match!U:U,0)) -> 13/5 | P9: =INDEX(Match!Z:Z,MATCH(E9,Match!U:U,0)) -> 27/10 | Q9: =INDEX(Match!AA:AA,MATCH(E9,Match!U:U,0)) -> 2 | R9: =INDEX(Match!AB:AB,MATCH(E9,Match!U:U,0)) -> 3.6 | S9: =INDEX(Match!AC:AC,MATCH(E9,Match!U:U,0)) -> 3.7
A10: 9 | B10: =IF(Match!B10="","",Match!B10) -> 2021-08-28 | C10: 1900-01-07 | D10: =IF(Match!D10="","",Match!D10) -> Premier | E10: =IF(Match!U10="","",Match!U10) -> West Ham v Palace 6/10 29/10 24/5 | F10: =IF(Match!V10="","",Match!V10) -> West Ham 2-2 Palace | G10: West Ham | H10: 6/10 | I10: 1.6 | J10: =INDEX(Picks!T:T,MATCH(G10,Picks!R:R,0)) -> 0 | K10: =IF(INDEX(Match!P:P,MATCH(A10,Match!A:A,0))="OFF",0,1) -> 1 | L10: =INDEX(Match!Q:Q,MATCH(E10,Match!U:U,0)) -> West Ham | M10: =INDEX(Match!X:X,MATCH(E10,Match!U:U,0)) -> 6/10 | N10: =INDEX(Match!R:R,MATCH(E10,Match!U:U,0)) -> Palace | O10: =INDEX(Match!Y:Y,MATCH(E10,Match!U:U,0)) -> 29/10 | P10: =INDEX(Match!Z:Z,MATCH(E10,Match!U:U,0)) -> 24/5 | Q10: =INDEX(Match!AA:AA,MATCH(E10,Match!U:U,0)) -> 1.6 | R10: =INDEX(Match!AB:AB,MATCH(E10,Match!U:U,0)) -> 3.9 | S10: =INDEX(Match!AC:AC,MATCH(E10,Match!U:U,0)) -> 5.8
A11: 10 | B11: =IF(Match!B11="","",Match!B11) -> 2021-08-28 | C11: 1900-01-07 | D11: =IF(Match!D11="","",Match!D11) -> Champ | E11: =IF(Match!U11="","",Match!U11) -> Barnsley v Birmingham 23/20 21/10 27/10 | F11: =IF(Match!V11="","",Match!V11) -> Barnsley 1-1 Birmingham | G11: Barnsley | H11: 23/20 | I11: 2.15 | J11: =INDEX(Picks!T:T,MATCH(G11,Picks!R:R,0)) -> 0 | K11: =IF(INDEX(Match!P:P,MATCH(A11,Match!A:A,0))="OFF",0,1) -> 1 | L11: =INDEX(Match!Q:Q,MATCH(E11,Match!U:U,0)) -> Barnsley | M11: =INDEX(Match!X:X,MATCH(E11,Match!U:U,0)) -> 23/20 | N11: =INDEX(Match!R:R,MATCH(E11,Match!U:U,0)) -> Birmingham | O11: =INDEX(Match!Y:Y,MATCH(E11,Match!U:U,0)) -> 21/10 | P11: =INDEX(Match!Z:Z,MATCH(E11,Match!U:U,0)) -> 27/10 | Q11: =INDEX(Match!AA:AA,MATCH(E11,Match!U:U,0)) -> 2.15 | R11: =INDEX(Match!AB:AB,MATCH(E11,Match!U:U,0)) -> 3.1 | S11: =INDEX(Match!AC:AC,MATCH(E11,Match!U:U,0)) -> 3.7
A12: 11 | B12: =IF(Match!B12="","",Match!B12) -> 2021-08-28 | C12: 1900-01-07 | D12: =IF(Match!D12="","",Match!D12) -> Champ | E12: =IF(Match!U12="","",Match!U12) -> Cardiff v Bristol C 19/20 23/10 16/5 | F12: =IF(Match!V12="","",Match!V12) -> Cardiff 1-2 Bristol C | G12: Cardiff | H12: 19/20 | I12: 1.95 | J12: =INDEX(Picks!T:T,MATCH(G12,Picks!R:R,0)) -> 0 | K12: =IF(INDEX(Match!P:P,MATCH(A12,Match!A:A,0))="OFF",0,1) -> 1 | L12: =INDEX(Match!Q:Q,MATCH(E12,Match!U:U,0)) -> Cardiff | M12: =INDEX(Match!X:X,MATCH(E12,Match!U:U,0)) -> 19/20 | N12: =INDEX(Match!R:R,MATCH(E12,Match!U:U,0)) -> Bristol C | O12: =INDEX(Match!Y:Y,MATCH(E12,Match!U:U,0)) -> 23/10 | P12: =INDEX(Match!Z:Z,MATCH(E12,Match!U:U,0)) -> 16/5 | Q12: =INDEX(Match!AA:AA,MATCH(E12,Match!U:U,0)) -> 1.95 | R12: =INDEX(Match!AB:AB,MATCH(E12,Match!U:U,0)) -> 3.3 | S12: =INDEX(Match!AC:AC,MATCH(E12,Match!U:U,0)) -> 4.2
A13: 12 | B13: =IF(Match!B13="","",Match!B13) -> 2021-08-28 | C13: 1900-01-07 | D13: =IF(Match!D13="","",Match!D13) -> Champ | E13: =IF(Match!U13="","",Match!U13) -> Derby v Forest 7/4 2/1 7/4 | F13: =IF(Match!V13="","",Match!V13) -> Derby 1-1 Forest | G13: Derby | H13: 7/4 | I13: 2.75 | J13: =INDEX(Picks!T:T,MATCH(G13,Picks!R:R,0)) -> 0 | K13: =IF(INDEX(Match!P:P,MATCH(A13,Match!A:A,0))="OFF",0,1) -> 1 | L13: =INDEX(Match!Q:Q,MATCH(E13,Match!U:U,0)) -> Derby | M13: =INDEX(Match!X:X,MATCH(E13,Match!U:U,0)) -> 7/4 | N13: =INDEX(Match!R:R,MATCH(E13,Match!U:U,0)) -> Forest | O13: =INDEX(Match!Y:Y,MATCH(E13,Match!U:U,0)) -> 2/1 | P13: =INDEX(Match!Z:Z,MATCH(E13,Match!U:U,0)) -> 7/4 | Q13: =INDEX(Match!AA:AA,MATCH(E13,Match!U:U,0)) -> 2.75 | R13: =INDEX(Match!AB:AB,MATCH(E13,Match!U:U,0)) -> 3 | S13: =INDEX(Match!AC:AC,MATCH(E13,Match!U:U,0)) -> 2.75
A14: 13 | B14: =IF(Match!B14="","",Match!B14) -> 2021-08-28 | C14: 1900-01-07 | D14: =IF(Match!D14="","",Match!D14) -> Champ | E14: =IF(Match!U14="","",Match!U14) -> Fulham v Stoke 1/1 11/5 3/1 | F14: =IF(Match!V14="","",Match!V14) -> Fulham 3-0 Stoke | G14: Fulham | H14: 1/1 | I14: 2 | J14: =INDEX(Picks!T:T,MATCH(G14,Picks!R:R,0)) -> 1 | K14: =IF(INDEX(Match!P:P,MATCH(A14,Match!A:A,0))="OFF",0,1) -> 1 | L14: =INDEX(Match!Q:Q,MATCH(E14,Match!U:U,0)) -> Fulham | M14: =INDEX(Match!X:X,MATCH(E14,Match!U:U,0)) -> 1/1 | N14: =INDEX(Match!R:R,MATCH(E14,Match!U:U,0)) -> Stoke | O14: =INDEX(Match!Y:Y,MATCH(E14,Match!U:U,0)) -> 11/5 | P14: =INDEX(Match!Z:Z,MATCH(E14,Match!U:U,0)) -> 3/1 | Q14: =INDEX(Match!AA:AA,MATCH(E14,Match!U:U,0)) -> 2 | R14: =INDEX(Match!AB:AB,MATCH(E14,Match!U:U,0)) -> 3.2 | S14: =INDEX(Match!AC:AC,MATCH(E14,Match!U:U,0)) -> 4
A15: 14 | B15: =IF(Match!B15="","",Match!B15) -> 2021-08-28 | C15: 1900-01-07 | D15: =IF(Match!D15="","",Match!D15) -> Champ | E15: =IF(Match!U15="","",Match!U15) -> Huddersfield v Reading 13/8 12/5 2/1 | F15: =IF(Match!V15="","",Match!V15) -> Huddersfield 4-0 Reading | G15: Huddersfield | H15: 13/8 | I15: 2.625 | J15: =INDEX(Picks!T:T,MATCH(G15,Picks!R:R,0)) -> 1 | K15: =IF(INDEX(Match!P:P,MATCH(A15,Match!A:A,0))="OFF",0,1) -> 1 | L15: =INDEX(Match!Q:Q,MATCH(E15,Match!U:U,0)) -> Huddersfield | M15: =INDEX(Match!X:X,MATCH(E15,Match!U:U,0)) -> 13/8 | N15: =INDEX(Match!R:R,MATCH(E15,Match!U:U,0)) -> Reading | O15: =INDEX(Match!Y:Y,MATCH(E15,Match!U:U,0)) -> 12/5 | P15: =INDEX(Match!Z:Z,MATCH(E15,Match!U:U,0)) -> 2/1 | Q15: =INDEX(Match!AA:AA,MATCH(E15,Match!U:U,0)) -> 2.625 | R15: =INDEX(Match!AB:AB,MATCH(E15,Match!U:U,0)) -> 3.4 | S15: =INDEX(Match!AC:AC,MATCH(E15,Match!U:U,0)) -> 3
A16: 15 | B16: =IF(Match!B16="","",Match!B16) -> 2021-08-28 | C16: 1900-01-07 | D16: =IF(Match!D16="","",Match!D16) -> Champ | E16: =IF(Match!U16="","",Match!U16) -> Hull v Bournemouth 9/4 11/5 13/10 | F16: =IF(Match!V16="","",Match!V16) -> Hull 0-0 Bournemouth | G16: Hull | H16: 9/4 | I16: 3.25 | J16: =INDEX(Picks!T:T,MATCH(G16,Picks!R:R,0)) -> 0 | K16: =IF(INDEX(Match!P:P,MATCH(A16,Match!A:A,0))="OFF",0,1) -> 1 | L16: =INDEX(Match!Q:Q,MATCH(E16,Match!U:U,0)) -> Hull | M16: =INDEX(Match!X:X,MATCH(E16,Match!U:U,0)) -> 9/4 | N16: =INDEX(Match!R:R,MATCH(E16,Match!U:U,0)) -> Bournemouth | O16: =INDEX(Match!Y:Y,MATCH(E16,Match!U:U,0)) -> 11/5 | P16: =INDEX(Match!Z:Z,MATCH(E16,Match!U:U,0)) -> 13/10 | Q16: =INDEX(Match!AA:AA,MATCH(E16,Match!U:U,0)) -> 3.25 | R16: =INDEX(Match!AB:AB,MATCH(E16,Match!U:U,0)) -> 3.2 | S16: =INDEX(Match!AC:AC,MATCH(E16,Match!U:U,0)) -> 2.3
A17: 16 | B17: =IF(Match!B17="","",Match!B17) -> 2021-08-28 | C17: 1900-01-07 | D17: =IF(Match!D17="","",Match!D17) -> Champ | E17: =IF(Match!U17="","",Match!U17) -> Luton v Sheff U 11/5 21/10 11/8 | F17: =IF(Match!V17="","",Match!V17) -> Luton 0-0 Sheff U | G17: Luton | H17: 11/5 | I17: 3.2 | J17: =INDEX(Picks!T:T,MATCH(G17,Picks!R:R,0)) -> 0 | K17: =IF(INDEX(Match!P:P,MATCH(A17,Match!A:A,0))="OFF",0,1) -> 1 | L17: =INDEX(Match!Q:Q,MATCH(E17,Match!U:U,0)) -> Luton | M17: =INDEX(Match!X:X,MATCH(E17,Match!U:U,0)) -> 11/5 | N17: =INDEX(Match!R:R,MATCH(E17,Match!U:U,0)) -> Sheff U | O17: =INDEX(Match!Y:Y,MATCH(E17,Match!U:U,0)) -> 21/10 | P17: =INDEX(Match!Z:Z,MATCH(E17,Match!U:U,0)) -> 11/8 | Q17: =INDEX(Match!AA:AA,MATCH(E17,Match!U:U,0)) -> 3.2 | R17: =INDEX(Match!AB:AB,MATCH(E17,Match!U:U,0)) -> 3.1 | S17: =INDEX(Match!AC:AC,MATCH(E17,Match!U:U,0)) -> 2.375
A18: 17 | B18: =IF(Match!B18="","",Match!B18) -> 2021-08-28 | C18: 1900-01-07 | D18: =IF(Match!D21="","",Match!D21) -> Champ | E18: =IF(Match!U18="","",Match!U18) -> Middlesbro v Blackburn 6/5 11/5 17/5 | F18: =IF(Match!V18="","",Match!V18) -> Middlesbro 1-1 Blackburn | G18: Middlesbro | H18: 6/5 | I18: 2.2 | J18: =INDEX(Picks!T:T,MATCH(G18,Picks!R:R,0)) -> 0 | K18: =IF(INDEX(Match!P:P,MATCH(A18,Match!A:A,0))="OFF",0,1) -> 1 | L18: =INDEX(Match!Q:Q,MATCH(E18,Match!U:U,0)) -> Middlesbro | M18: =INDEX(Match!X:X,MATCH(E18,Match!U:U,0)) -> 6/5 | N18: =INDEX(Match!R:R,MATCH(E18,Match!U:U,0)) -> Blackburn | O18: =INDEX(Match!Y:Y,MATCH(E18,Match!U:U,0)) -> 11/5 | P18: =INDEX(Match!Z:Z,MATCH(E18,Match!U:U,0)) -> 17/5 | Q18: =INDEX(Match!AA:AA,MATCH(E18,Match!U:U,0)) -> 2.2 | R18: =INDEX(Match!AB:AB,MATCH(E18,Match!U:U,0)) -> 3.2 | S18: =INDEX(Match!AC:AC,MATCH(E18,Match!U:U,0)) -> 4.4
A19: 18 | B19: =IF(Match!B19="","",Match!B19) -> 2021-08-28 | C19: 1900-01-07 | D19: =IF(Match!D19="","",Match!D19) -> Champ | E19: =IF(Match!U19="","",Match!U19) -> Millwall v Blackpool 10/11 11/5 17/5 | F19: =IF(Match!V19="","",Match!V19) -> Millwall 2-1 Blackpool | G19: Millwall | H19: 10/11 | I19: 1.909090909 | J19: =INDEX(Picks!T:T,MATCH(G19,Picks!R:R,0)) -> 1 | K19: =IF(INDEX(Match!P:P,MATCH(A19,Match!A:A,0))="OFF",0,1) -> 1 | L19: =INDEX(Match!Q:Q,MATCH(E19,Match!U:U,0)) -> Millwall | M19: =INDEX(Match!X:X,MATCH(E19,Match!U:U,0)) -> 10/11 | N19: =INDEX(Match!R:R,MATCH(E19,Match!U:U,0)) -> Blackpool | O19: =INDEX(Match!Y:Y,MATCH(E19,Match!U:U,0)) -> 11/5 | P19: =INDEX(Match!Z:Z,MATCH(E19,Match!U:U,0)) -> 17/5 | Q19: =INDEX(Match!AA:AA,MATCH(E19,Match!U:U,0)) -> 1.909090909 | R19: =INDEX(Match!AB:AB,MATCH(E19,Match!U:U,0)) -> 3.2 | S19: =INDEX(Match!AC:AC,MATCH(E19,Match!U:U,0)) -> 4.4
A20: 19 | B20: =IF(Match!B20="","",Match!B20) -> 2021-08-28 | C20: 1900-01-07 | D20: =IF(Match!D20="","",Match!D20) -> Champ | E20: =IF(Match!U20="","",Match!U20) -> Peterborough v West Brom 16/5 5/2 17/20 | F20: =IF(Match!V20="","",Match!V20) -> Peterborough 0-1 West Brom | G20: Peterborough | H20: 16/5 | I20: 4.2 | J20: =INDEX(Picks!T:T,MATCH(G20,Picks!R:R,0)) -> 0 | K20: =IF(INDEX(Match!P:P,MATCH(A20,Match!A:A,0))="OFF",0,1) -> 1 | L20: =INDEX(Match!Q:Q,MATCH(E20,Match!U:U,0)) -> Peterborough | M20: =INDEX(Match!X:X,MATCH(E20,Match!U:U,0)) -> 16/5 | N20: =INDEX(Match!R:R,MATCH(E20,Match!U:U,0)) -> West Brom | O20: =INDEX(Match!Y:Y,MATCH(E20,Match!U:U,0)) -> 5/2 | P20: =INDEX(Match!Z:Z,MATCH(E20,Match!U:U,0)) -> 17/20 | Q20: =INDEX(Match!AA:AA,MATCH(E20,Match!U:U,0)) -> 4.2 | R20: =INDEX(Match!AB:AB,MATCH(E20,Match!U:U,0)) -> 3.5 | S20: =INDEX(Match!AC:AC,MATCH(E20,Match!U:U,0)) -> 1.85
A21: 20 | B21: =IF(Match!B21="","",Match!B21) -> 2021-08-28 | C21: 1900-01-07 | D21: =IF(Match!D21="","",Match!D21) -> Champ | E21: =IF(Match!U21="","",Match!U21) -> Preston v Swansea 8/5 21/10 9/5 | F21: =IF(Match!V21="","",Match!V21) -> Preston 3-1 Swansea | G21: Preston | H21: 8/5 | I21: 2.6 | J21: =INDEX(Picks!T:T,MATCH(G21,Picks!R:R,0)) -> 1 | K21: =IF(INDEX(Match!P:P,MATCH(A21,Match!A:A,0))="OFF",0,1) -> 1 | L21: =INDEX(Match!Q:Q,MATCH(E21,Match!U:U,0)) -> Preston | M21: =INDEX(Match!X:X,MATCH(E21,Match!U:U,0)) -> 8/5 | N21: =INDEX(Match!R:R,MATCH(E21,Match!U:U,0)) -> Swansea | O21: =INDEX(Match!Y:Y,MATCH(E21,Match!U:U,0)) -> 21/10 | P21: =INDEX(Match!Z:Z,MATCH(E21,Match!U:U,0)) -> 9/5 | Q21: =INDEX(Match!AA:AA,MATCH(E21,Match!U:U,0)) -> 2.6 | R21: =INDEX(Match!AB:AB,MATCH(E21,Match!U:U,0)) -> 3.1 | S21: =INDEX(Match!AC:AC,MATCH(E21,Match!U:U,0)) -> 2.8
A22: 21 | B22: =IF(Match!B22="","",Match!B22) -> 2021-08-28 | C22: 1900-01-07 | D22: =IF(Match!D22="","",Match!D22) -> Champ | E22: =IF(Match!U22="","",Match!U22) -> QPR v Coventry 23/20 11/5 13/5 | F22: =IF(Match!V22="","",Match!V22) -> QPR 2-0 Coventry | G22: QPR | H22: 23/20 | I22: 2.15 | J22: =INDEX(Picks!T:T,MATCH(G22,Picks!R:R,0)) -> 1 | K22: =IF(INDEX(Match!P:P,MATCH(A22,Match!A:A,0))="OFF",0,1) -> 1 | L22: =INDEX(Match!Q:Q,MATCH(E22,Match!U:U,0)) -> QPR | M22: =INDEX(Match!X:X,MATCH(E22,Match!U:U,0)) -> 23/20 | N22: =INDEX(Match!R:R,MATCH(E22,Match!U:U,0)) -> Coventry | O22: =INDEX(Match!Y:Y,MATCH(E22,Match!U:U,0)) -> 11/5 | P22: =INDEX(Match!Z:Z,MATCH(E22,Match!U:U,0)) -> 13/5 | Q22: =INDEX(Match!AA:AA,MATCH(E22,Match!U:U,0)) -> 2.15 | R22: =INDEX(Match!AB:AB,MATCH(E22,Match!U:U,0)) -> 3.2 | S22: =INDEX(Match!AC:AC,MATCH(E22,Match!U:U,0)) -> 3.6
A23: 22 | B23: =IF(Match!B23="","",Match!B23) -> 2021-08-28 | C23: 1900-01-07 | D23: =IF(Match!D23="","",Match!D23) -> League 1 | E23: =IF(Match!U23="","",Match!U23) -> Cambridge v Bolton 2/1 12/5 13/10 | F23: =IF(Match!V23="","",Match!V23) -> Cambridge 1-0 Bolton | G23: Cambridge | H23: 2/1 | I23: 3 | J23: =INDEX(Picks!T:T,MATCH(G23,Picks!R:R,0)) -> 1 | K23: =IF(INDEX(Match!P:P,MATCH(A23,Match!A:A,0))="OFF",0,1) -> 1 | L23: =INDEX(Match!Q:Q,MATCH(E23,Match!U:U,0)) -> Cambridge | M23: =INDEX(Match!X:X,MATCH(E23,Match!U:U,0)) -> 2/1 | N23: =INDEX(Match!R:R,MATCH(E23,Match!U:U,0)) -> Bolton | O23: =INDEX(Match!Y:Y,MATCH(E23,Match!U:U,0)) -> 12/5 | P23: =INDEX(Match!Z:Z,MATCH(E23,Match!U:U,0)) -> 13/10 | Q23: =INDEX(Match!AA:AA,MATCH(E23,Match!U:U,0)) -> 3 | R23: =INDEX(Match!AB:AB,MATCH(E23,Match!U:U,0)) -> 3.4 | S23: =INDEX(Match!AC:AC,MATCH(E23,Match!U:U,0)) -> 2.3
A24: 23 | B24: =IF(Match!B24="","",Match!B24) -> 2021-08-28 | C24: 1900-01-07 | D24: =IF(Match!D24="","",Match!D24) -> League 1 | E24: =IF(Match!U24="","",Match!U24) -> Charlton v Crewe 17/20 5/2 16/5 | F24: =IF(Match!V24="","",Match!V24) -> Charlton 2-0 Crewe | G24: Charlton | H24: 17/20 | I24: 1.85 | J24: =INDEX(Picks!T:T,MATCH(G24,Picks!R:R,0)) -> 1 | K24: =IF(INDEX(Match!P:P,MATCH(A24,Match!A:A,0))="OFF",0,1) -> 1 | L24: =INDEX(Match!Q:Q,MATCH(E24,Match!U:U,0)) -> Charlton | M24: =INDEX(Match!X:X,MATCH(E24,Match!U:U,0)) -> 17/20 | N24: =INDEX(Match!R:R,MATCH(E24,Match!U:U,0)) -> Crewe | O24: =INDEX(Match!Y:Y,MATCH(E24,Match!U:U,0)) -> 5/2 | P24: =INDEX(Match!Z:Z,MATCH(E24,Match!U:U,0)) -> 16/5 | Q24: =INDEX(Match!AA:AA,MATCH(E24,Match!U:U,0)) -> 1.85 | R24: =INDEX(Match!AB:AB,MATCH(E24,Match!U:U,0)) -> 3.5 | S24: =INDEX(Match!AC:AC,MATCH(E24,Match!U:U,0)) -> 4.2
A25: 24 | B25: =IF(Match!B25="","",Match!B25) -> 2021-08-28 | C25: 1900-01-07 | D25: =IF(Match!D25="","",Match!D25) -> League 1 | E25: =IF(Match!U25="","",Match!U25) -> Ipswich v Wimbledon 1/1 23/10 29/10 | F25: =IF(Match!V25="","",Match!V25) -> Ipswich 2-2 Wimbledon | G25: Ipswich | H25: 1/1 | I25: 2 | J25: =INDEX(Picks!T:T,MATCH(G25,Picks!R:R,0)) -> 0 | K25: =IF(INDEX(Match!P:P,MATCH(A25,Match!A:A,0))="OFF",0,1) -> 1 | L25: =INDEX(Match!Q:Q,MATCH(E25,Match!U:U,0)) -> Ipswich | M25: =INDEX(Match!X:X,MATCH(E25,Match!U:U,0)) -> 1/1 | N25: =INDEX(Match!R:R,MATCH(E25,Match!U:U,0)) -> Wimbledon | O25: =INDEX(Match!Y:Y,MATCH(E25,Match!U:U,0)) -> 23/10 | P25: =INDEX(Match!Z:Z,MATCH(E25,Match!U:U,0)) -> 29/10 | Q25: =INDEX(Match!AA:AA,MATCH(E25,Match!U:U,0)) -> 2 | R25: =INDEX(Match!AB:AB,MATCH(E25,Match!U:U,0)) -> 3.3 | S25: =INDEX(Match!AC:AC,MATCH(E25,Match!U:U,0)) -> 3.9
A26: 25 | B26: =IF(Match!B26="","",Match!B26) -> 2021-08-28 | C26: 1900-01-07 | D26: =IF(Match!D26="","",Match!D26) -> League 1 | E26: =IF(Match!U26="","",Match!U26) -> MK Dons v Accrington 11/10 12/5 12/5 | F26: =IF(Match!V26="","",Match!V26) -> MK Dons 2-0 Accrington | G26: MK Dons | H26: 11/10 | I26: 2.1 | J26: =INDEX(Picks!T:T,MATCH(G26,Picks!R:R,0)) -> 1 | K26: =IF(INDEX(Match!P:P,MATCH(A26,Match!A:A,0))="OFF",0,1) -> 1 | L26: =INDEX(Match!Q:Q,MATCH(E26,Match!U:U,0)) -> MK Dons | M26: =INDEX(Match!X:X,MATCH(E26,Match!U:U,0)) -> 11/10 | N26: =INDEX(Match!R:R,MATCH(E26,Match!U:U,0)) -> Accrington | O26: =INDEX(Match!Y:Y,MATCH(E26,Match!U:U,0)) -> 12/5 | P26: =INDEX(Match!Z:Z,MATCH(E26,Match!U:U,0)) -> 12/5 | Q26: =INDEX(Match!AA:AA,MATCH(E26,Match!U:U,0)) -> 2.1 | R26: =INDEX(Match!AB:AB,MATCH(E26,Match!U:U,0)) -> 3.4 | S26: =INDEX(Match!AC:AC,MATCH(E26,Match!U:U,0)) -> 3.4
A27: 26 | B27: =IF(Match!B27="","",Match!B27) -> 2021-08-28 | C27: 1900-01-07 | D27: =IF(Match!D27="","",Match!D27) -> League 1 | E27: =IF(Match!U27="","",Match!U27) -> Morecambe v Sheff W 3/1 5/2 10/11 | F27: =IF(Match!V27="","",Match!V27) -> Morecambe 1-0 Sheff W | G27: Morecambe | H27: 3/1 | I27: 4 | J27: =INDEX(Picks!T:T,MATCH(G27,Picks!R:R,0)) -> 1 | K27: =IF(INDEX(Match!P:P,MATCH(A27,Match!A:A,0))="OFF",0,1) -> 1 | L27: =INDEX(Match!Q:Q,MATCH(E27,Match!U:U,0)) -> Morecambe | M27: =INDEX(Match!X:X,MATCH(E27,Match!U:U,0)) -> 3/1 | N27: =INDEX(Match!R:R,MATCH(E27,Match!U:U,0)) -> Sheff W | O27: =INDEX(Match!Y:Y,MATCH(E27,Match!U:U,0)) -> 5/2 | P27: =INDEX(Match!Z:Z,MATCH(E27,Match!U:U,0)) -> 10/11 | Q27: =INDEX(Match!AA:AA,MATCH(E27,Match!U:U,0)) -> 4 | R27: =INDEX(Match!AB:AB,MATCH(E27,Match!U:U,0)) -> 3.5 | S27: =INDEX(Match!AC:AC,MATCH(E27,Match!U:U,0)) -> 1.909090909
A28: 27 | B28: =IF(Match!B28="","",Match!B28) -> 2021-08-28 | C28: 1900-01-07 | D28: =IF(Match!D28="","",Match!D28) -> League 1 | E28: =IF(Match!U28="","",Match!U28) -> Oxford v Lincoln 11/10 12/5 12/5 | F28: =IF(Match!V28="","",Match!V28) -> Oxford 3-1 Lincoln | G28: Oxford | H28: 11/10 | I28: 2.1 | J28: =INDEX(Picks!T:T,MATCH(G28,Picks!R:R,0)) -> 1 | K28: =IF(INDEX(Match!P:P,MATCH(A28,Match!A:A,0))="OFF",0,1) -> 1 | L28: =INDEX(Match!Q:Q,MATCH(E28,Match!U:U,0)) -> Oxford | M28: =INDEX(Match!X:X,MATCH(E28,Match!U:U,0)) -> 11/10 | N28: =INDEX(Match!R:R,MATCH(E28,Match!U:U,0)) -> Lincoln | O28: =INDEX(Match!Y:Y,MATCH(E28,Match!U:U,0)) -> 12/5 | P28: =INDEX(Match!Z:Z,MATCH(E28,Match!U:U,0)) -> 12/5 | Q28: =INDEX(Match!AA:AA,MATCH(E28,Match!U:U,0)) -> 2.1 | R28: =INDEX(Match!AB:AB,MATCH(E28,Match!U:U,0)) -> 3.4 | S28: =INDEX(Match!AC:AC,MATCH(E28,Match!U:U,0)) -> 3.4
A29: 28 | B29: =IF(Match!B29="","",Match!B29) -> 2021-08-28 | C29: 1900-01-07 | D29: =IF(Match!D29="","",Match!D29) -> League 1 | E29: =IF(Match!U29="","",Match!U29) -> Plymouth v Fleetwood 29/20 9/4 19/10 | F29: =IF(Match!V29="","",Match!V29) -> Plymouth 1-1 Fleetwood | G29: Plymouth | H29: 29/20 | I29: 2.45 | J29: =INDEX(Picks!T:T,MATCH(G29,Picks!R:R,0)) -> 0 | K29: =IF(INDEX(Match!P:P,MATCH(A29,Match!A:A,0))="OFF",0,1) -> 1 | L29: =INDEX(Match!Q:Q,MATCH(E29,Match!U:U,0)) -> Plymouth | M29: =INDEX(Match!X:X,MATCH(E29,Match!U:U,0)) -> 29/20 | N29: =INDEX(Match!R:R,MATCH(E29,Match!U:U,0)) -> Fleetwood | O29: =INDEX(Match!Y:Y,MATCH(E29,Match!U:U,0)) -> 9/4 | P29: =INDEX(Match!Z:Z,MATCH(E29,Match!U:U,0)) -> 19/10 | Q29: =INDEX(Match!AA:AA,MATCH(E29,Match!U:U,0)) -> 2.45 | R29: =INDEX(Match!AB:AB,MATCH(E29,Match!U:U,0)) -> 3.25 | S29: =INDEX(Match!AC:AC,MATCH(E29,Match!U:U,0)) -> 2.9
A30: 29 | B30: =IF(Match!B30="","",Match!B30) -> 2021-08-28 | C30: 1900-01-07 | D30: =IF(Match!D30="","",Match!D30) -> League 1 | E30: =IF(Match!U30="","",Match!U30) -> Rotherham v Doncaster 13/20 11/4 9/2 | F30: =IF(Match!V30="","",Match!V30) -> Rotherham 2-0 Doncaster | G30: Rotherham | H30: 13/20 | I30: 1.65 | J30: =INDEX(Picks!T:T,MATCH(G30,Picks!R:R,0)) -> 1 | K30: =IF(INDEX(Match!P:P,MATCH(A30,Match!A:A,0))="OFF",0,1) -> 1 | L30: =INDEX(Match!Q:Q,MATCH(E30,Match!U:U,0)) -> Rotherham | M30: =INDEX(Match!X:X,MATCH(E30,Match!U:U,0)) -> 13/20 | N30: =INDEX(Match!R:R,MATCH(E30,Match!U:U,0)) -> Doncaster | O30: =INDEX(Match!Y:Y,MATCH(E30,Match!U:U,0)) -> 11/4 | P30: =INDEX(Match!Z:Z,MATCH(E30,Match!U:U,0)) -> 9/2 | Q30: =INDEX(Match!AA:AA,MATCH(E30,Match!U:U,0)) -> 1.65 | R30: =INDEX(Match!AB:AB,MATCH(E30,Match!U:U,0)) -> 3.75 | S30: =INDEX(Match!AC:AC,MATCH(E30,Match!U:U,0)) -> 5.5
A31: 30 | B31: =IF(Match!B31="","",Match!B31) -> 2021-08-28 | C31: 1900-01-07 | D31: =IF(Match!D31="","",Match!D31) -> League 1 | E31: =IF(Match!U31="","",Match!U31) -> Shrewsbury v Gillingham 29/20 9/4 15/8 | F31: =IF(Match!V31="","",Match!V31) -> Shrewsbury 2-1 Gillingham | G31: Shrewsbury | H31: 29/20 | I31: 2.45 | J31: =INDEX(Picks!T:T,MATCH(G31,Picks!R:R,0)) -> 1 | K31: =IF(INDEX(Match!P:P,MATCH(A31,Match!A:A,0))="OFF",0,1) -> 1 | L31: =INDEX(Match!Q:Q,MATCH(E31,Match!U:U,0)) -> Shrewsbury | M31: =INDEX(Match!X:X,MATCH(E31,Match!U:U,0)) -> 29/20 | N31: =INDEX(Match!R:R,MATCH(E31,Match!U:U,0)) -> Gillingham | O31: =INDEX(Match!Y:Y,MATCH(E31,Match!U:U,0)) -> 9/4 | P31: =INDEX(Match!Z:Z,MATCH(E31,Match!U:U,0)) -> 15/8 | Q31: =INDEX(Match!AA:AA,MATCH(E31,Match!U:U,0)) -> 2.45 | R31: =INDEX(Match!AB:AB,MATCH(E31,Match!U:U,0)) -> 3.25 | S31: =INDEX(Match!AC:AC,MATCH(E31,Match!U:U,0)) -> 2.875
A32: 31 | B32: =IF(Match!B32="","",Match!B32) -> 2021-08-28 | C32: 1900-01-07 | D32: =IF(Match!D32="","",Match!D32) -> League 1 | E32: =IF(Match!U32="","",Match!U32) -> Sunderland v Wycombe 1/1 12/5 14/5 | F32: =IF(Match!V32="","",Match!V32) -> Sunderland 3-1 Wycombe | G32: Sunderland | H32: 1/1 | I32: 2 | J32: =INDEX(Picks!T:T,MATCH(G32,Picks!R:R,0)) -> 1 | K32: =IF(INDEX(Match!P:P,MATCH(A32,Match!A:A,0))="OFF",0,1) -> 1 | L32: =INDEX(Match!Q:Q,MATCH(E32,Match!U:U,0)) -> Sunderland | M32: =INDEX(Match!X:X,MATCH(E32,Match!U:U,0)) -> 1/1 | N32: =INDEX(Match!R:R,MATCH(E32,Match!U:U,0)) -> Wycombe | O32: =INDEX(Match!Y:Y,MATCH(E32,Match!U:U,0)) -> 12/5 | P32: =INDEX(Match!Z:Z,MATCH(E32,Match!U:U,0)) -> 14/5 | Q32: =INDEX(Match!AA:AA,MATCH(E32,Match!U:U,0)) -> 2 | R32: =INDEX(Match!AB:AB,MATCH(E32,Match!U:U,0)) -> 3.4 | S32: =INDEX(Match!AC:AC,MATCH(E32,Match!U:U,0)) -> 3.8
A33: 32 | B33: =IF(Match!B33="","",Match!B33) -> 2021-08-28 | C33: 1900-01-07 | D33: =IF(Match!D33="","",Match!D33) -> League 1 | E33: =IF(Match!U33="","",Match!U33) -> Wigan v Portsmouth 8/5 21/10 15/8 | F33: =IF(Match!V33="","",Match!V33) -> Wigan 1-0 Portsmouth | G33: =IF(E33="","",L33) -> Wigan | H33: 8/5 | I33: 2.6 | J33: =INDEX(Picks!T:T,MATCH(G33,Picks!R:R,0)) -> 1 | K33: =IF(INDEX(Match!P:P,MATCH(A33,Match!A:A,0))="OFF",0,1) -> 1 | L33: =INDEX(Match!Q:Q,MATCH(E33,Match!U:U,0)) -> Wigan | M33: =INDEX(Match!X:X,MATCH(E33,Match!U:U,0)) -> 8/5 | N33: =INDEX(Match!R:R,MATCH(E33,Match!U:U,0)) -> Portsmouth | O33: =INDEX(Match!Y:Y,MATCH(E33,Match!U:U,0)) -> 21/10 | P33: =INDEX(Match!Z:Z,MATCH(E33,Match!U:U,0)) -> 15/8 | Q33: =INDEX(Match!AA:AA,MATCH(E33,Match!U:U,0)) -> 2.6 | R33: =INDEX(Match!AB:AB,MATCH(E33,Match!U:U,0)) -> 3.1 | S33: =INDEX(Match!AC:AC,MATCH(E33,Match!U:U,0)) -> 2.875
A34: 33 | B34: =IF(Match!B34="","",Match!B34) -> 2021-08-28 | C34: 1900-01-07 | D34: =IF(Match!D34="","",Match!D34) -> League 2 | E34: =IF(Match!U34="","",Match!U34) -> Barrow v Bristol R 29/20 11/5 2/1 | F34: =IF(Match!V34="","",Match!V34) -> Barrow 1-1 Bristol R | G34: Barrow | H34: 29/20 | I34: 2.45 | J34: =INDEX(Picks!T:T,MATCH(G34,Picks!R:R,0)) -> 0 | K34: =IF(INDEX(Match!P:P,MATCH(A34,Match!A:A,0))="OFF",0,1) -> 1 | L34: =INDEX(Match!Q:Q,MATCH(E34,Match!U:U,0)) -> Barrow | M34: =INDEX(Match!X:X,MATCH(E34,Match!U:U,0)) -> 29/20 | N34: =INDEX(Match!R:R,MATCH(E34,Match!U:U,0)) -> Bristol R | O34: =INDEX(Match!Y:Y,MATCH(E34,Match!U:U,0)) -> 11/5 | P34: =INDEX(Match!Z:Z,MATCH(E34,Match!U:U,0)) -> 2/1 | Q34: =INDEX(Match!AA:AA,MATCH(E34,Match!U:U,0)) -> 2.45 | R34: =INDEX(Match!AB:AB,MATCH(E34,Match!U:U,0)) -> 3.2 | S34: =INDEX(Match!AC:AC,MATCH(E34,Match!U:U,0)) -> 3
A35: 34 | B35: =IF(Match!B35="","",Match!B35) -> 2021-08-28 | C35: 1900-01-07 | D35: =IF(Match!D35="","",Match!D35) -> League 2 | E35: =IF(Match!U35="","",Match!U35) -> Crawley v Northampton 15/8 23/10 29/20 | F35: =IF(Match!V35="","",Match!V35) -> Crawley 0-0 Northampton | G35: Crawley | H35: 15/8 | I35: 2.875 | J35: =INDEX(Picks!T:T,MATCH(G35,Picks!R:R,0)) -> 0 | K35: =IF(INDEX(Match!P:P,MATCH(A35,Match!A:A,0))="OFF",0,1) -> 1 | L35: =INDEX(Match!Q:Q,MATCH(E35,Match!U:U,0)) -> Crawley | M35: =INDEX(Match!X:X,MATCH(E35,Match!U:U,0)) -> 15/8 | N35: =INDEX(Match!R:R,MATCH(E35,Match!U:U,0)) -> Northampton | O35: =INDEX(Match!Y:Y,MATCH(E35,Match!U:U,0)) -> 23/10 | P35: =INDEX(Match!Z:Z,MATCH(E35,Match!U:U,0)) -> 29/20 | Q35: =INDEX(Match!AA:AA,MATCH(E35,Match!U:U,0)) -> 2.875 | R35: =INDEX(Match!AB:AB,MATCH(E35,Match!U:U,0)) -> 3.3 | S35: =INDEX(Match!AC:AC,MATCH(E35,Match!U:U,0)) -> 2.45
A36: 35 | B36: =IF(Match!B36="","",Match!B36) -> 2021-08-28 | C36: 1900-01-07 | D36: =IF(Match!D36="","",Match!D36) -> League 2 | E36: =IF(Match!U36="","",Match!U36) -> Forest Green v Port Vale 23/20 21/10 27/10 | F36: =IF(Match!V36="","",Match!V36) -> Forest Green 0-2 Port Vale | G36: Forest Green | H36: 23/20 | I36: 2.15 | J36: =INDEX(Picks!T:T,MATCH(G36,Picks!R:R,0)) -> 0 | K36: =IF(INDEX(Match!P:P,MATCH(A36,Match!A:A,0))="OFF",0,1) -> 1 | L36: =INDEX(Match!Q:Q,MATCH(E36,Match!U:U,0)) -> Forest Green | M36: =INDEX(Match!X:X,MATCH(E36,Match!U:U,0)) -> 23/20 | N36: =INDEX(Match!R:R,MATCH(E36,Match!U:U,0)) -> Port Vale | O36: =INDEX(Match!Y:Y,MATCH(E36,Match!U:U,0)) -> 21/10 | P36: =INDEX(Match!Z:Z,MATCH(E36,Match!U:U,0)) -> 27/10 | Q36: =INDEX(Match!AA:AA,MATCH(E36,Match!U:U,0)) -> 2.15 | R36: =INDEX(Match!AB:AB,MATCH(E36,Match!U:U,0)) -> 3.1 | S36: =INDEX(Match!AC:AC,MATCH(E36,Match!U:U,0)) -> 3.7
A37: 36 | B37: =IF(Match!B37="","",Match!B37) -> 2021-08-28 | C37: 1900-01-07 | D37: =IF(Match!D37="","",Match!D37) -> League 2 | E37: =IF(Match!U37="","",Match!U37) -> Harrogate v Exeter 8/5 12/5 13/8 | F37: =IF(Match!V37="","",Match!V37) -> Harrogate 1-1 Exeter | G37: Harrogate | H37: 8/5 | I37: 2.6 | J37: =INDEX(Picks!T:T,MATCH(G37,Picks!R:R,0)) -> 0 | K37: =IF(INDEX(Match!P:P,MATCH(A37,Match!A:A,0))="OFF",0,1) -> 1 | L37: =INDEX(Match!Q:Q,MATCH(E37,Match!U:U,0)) -> Harrogate | M37: =INDEX(Match!X:X,MATCH(E37,Match!U:U,0)) -> 8/5 | N37: =INDEX(Match!R:R,MATCH(E37,Match!U:U,0)) -> Exeter | O37: =INDEX(Match!Y:Y,MATCH(E37,Match!U:U,0)) -> 12/5 | P37: =INDEX(Match!Z:Z,MATCH(E37,Match!U:U,0)) -> 13/8 | Q37: =INDEX(Match!AA:AA,MATCH(E37,Match!U:U,0)) -> 2.6 | R37: =INDEX(Match!AB:AB,MATCH(E37,Match!U:U,0)) -> 3.4 | S37: =INDEX(Match!AC:AC,MATCH(E37,Match!U:U,0)) -> 2.625
A38: 37 | B38: =IF(Match!B38="","",Match!B38) -> 2021-08-28 | C38: 1900-01-07 | D38: =IF(Match!D38="","",Match!D38) -> League 2 | E38: =IF(Match!U38="","",Match!U38) -> Hartlepool v Carlisle 15/8 11/5 6/4 | F38: =IF(Match!V38="","",Match!V38) -> Hartlepool 2-1 Carlisle | G38: Hartlepool | H38: 15/8 | I38: 2.875 | J38: =INDEX(Picks!T:T,MATCH(G38,Picks!R:R,0)) -> 1 | K38: =IF(INDEX(Match!P:P,MATCH(A38,Match!A:A,0))="OFF",0,1) -> 1 | L38: =INDEX(Match!Q:Q,MATCH(E38,Match!U:U,0)) -> Hartlepool | M38: =INDEX(Match!X:X,MATCH(E38,Match!U:U,0)) -> 15/8 | N38: =INDEX(Match!R:R,MATCH(E38,Match!U:U,0)) -> Carlisle | O38: =INDEX(Match!Y:Y,MATCH(E38,Match!U:U,0)) -> 11/5 | P38: =INDEX(Match!Z:Z,MATCH(E38,Match!U:U,0)) -> 6/4 | Q38: =INDEX(Match!AA:AA,MATCH(E38,Match!U:U,0)) -> 2.875 | R38: =INDEX(Match!AB:AB,MATCH(E38,Match!U:U,0)) -> 3.2 | S38: =INDEX(Match!AC:AC,MATCH(E38,Match!U:U,0)) -> 2.5
A39: 38 | B39: =IF(Match!B39="","",Match!B39) -> 2021-08-28 | C39: 1900-01-07 | D39: =IF(Match!D39="","",Match!D39) -> League 2 | E39: =IF(Match!U39="","",Match!U39) -> Orient v Bradford 2/1 21/10 21/10 | F39: =IF(Match!V39="","",Match!V39) -> Orient 2-0 Bradford | G39: Orient | H39: 2/1 | I39: 3 | J39: =INDEX(Picks!T:T,MATCH(G39,Picks!R:R,0)) -> 1 | K39: =IF(INDEX(Match!P:P,MATCH(A39,Match!A:A,0))="OFF",0,1) -> 1 | L39: =INDEX(Match!Q:Q,MATCH(E39,Match!U:U,0)) -> Orient | M39: =INDEX(Match!X:X,MATCH(E39,Match!U:U,0)) -> 2/1 | N39: =INDEX(Match!R:R,MATCH(E39,Match!U:U,0)) -> Bradford | O39: =INDEX(Match!Y:Y,MATCH(E39,Match!U:U,0)) -> 21/10 | P39: =INDEX(Match!Z:Z,MATCH(E39,Match!U:U,0)) -> 21/10 | Q39: =INDEX(Match!AA:AA,MATCH(E39,Match!U:U,0)) -> 3 | R39: =INDEX(Match!AB:AB,MATCH(E39,Match!U:U,0)) -> 3.1 | S39: =INDEX(Match!AC:AC,MATCH(E39,Match!U:U,0)) -> 3.1
A40: 39 | B40: =IF(Match!B40="","",Match!B40) -> 2021-08-28 | C40: 1900-01-07 | D40: =IF(Match!D40="","",Match!D40) -> League 2 | E40: =IF(Match!U40="","",Match!U40) -> Salford v Newport 7/5 21/10 29/20 | F40: =IF(Match!V40="","",Match!V40) -> Salford 3-0 Newport | G40: Salford | H40: 7/5 | I40: 2.4 | J40: =INDEX(Picks!T:T,MATCH(G40,Picks!R:R,0)) -> 1 | K40: =IF(INDEX(Match!P:P,MATCH(A40,Match!A:A,0))="OFF",0,1) -> 1 | L40: =INDEX(Match!Q:Q,MATCH(E40,Match!U:U,0)) -> Salford | M40: =INDEX(Match!X:X,MATCH(E40,Match!U:U,0)) -> 7/5 | N40: =INDEX(Match!R:R,MATCH(E40,Match!U:U,0)) -> Newport | O40: =INDEX(Match!Y:Y,MATCH(E40,Match!U:U,0)) -> 21/10 | P40: =INDEX(Match!Z:Z,MATCH(E40,Match!U:U,0)) -> 29/20 | Q40: =INDEX(Match!AA:AA,MATCH(E40,Match!U:U,0)) -> 2.4 | R40: =INDEX(Match!AB:AB,MATCH(E40,Match!U:U,0)) -> 3.1 | S40: =INDEX(Match!AC:AC,MATCH(E40,Match!U:U,0)) -> 2.45
A41: 40 | B41: =IF(Match!B41="","",Match!B41) -> 2021-08-28 | C41: 1900-01-07 | D41: =IF(Match!D41="","",Match!D41) -> League 2 | E41: =IF(Match!U41="","",Match!U41) -> Scunthorpe v Tranmere 27/10 11/5 11/10 | F41: =IF(Match!V41="","",Match!V41) -> Scunthorpe 1-0 Tranmere | G41: Scunthorpe | H41: 27/10 | I41: 3.7 | J41: =INDEX(Picks!T:T,MATCH(G41,Picks!R:R,0)) -> 1 | K41: =IF(INDEX(Match!P:P,MATCH(A41,Match!A:A,0))="OFF",0,1) -> 1 | L41: =INDEX(Match!Q:Q,MATCH(E41,Match!U:U,0)) -> Scunthorpe | M41: =INDEX(Match!X:X,MATCH(E41,Match!U:U,0)) -> 27/10 | N41: =INDEX(Match!R:R,MATCH(E41,Match!U:U,0)) -> Tranmere | O41: =INDEX(Match!Y:Y,MATCH(E41,Match!U:U,0)) -> 11/5 | P41: =INDEX(Match!Z:Z,MATCH(E41,Match!U:U,0)) -> 11/10 | Q41: =INDEX(Match!AA:AA,MATCH(E41,Match!U:U,0)) -> 3.7 | R41: =INDEX(Match!AB:AB,MATCH(E41,Match!U:U,0)) -> 3.2 | S41: =INDEX(Match!AC:AC,MATCH(E41,Match!U:U,0)) -> 2.1
A42: 41 | B42: =IF(Match!B42="","",Match!B42) -> 2021-08-28 | C42: 1900-01-07 | D42: =IF(Match!D42="","",Match!D42) -> League 2 | E42: =IF(Match!U42="","",Match!U42) -> Sutton v Oldham 11/10 9/4 13/5 | F42: =IF(Match!V42="","",Match!V42) -> Sutton 1-2 Oldham | G42: Sutton | H42: 11/10 | I42: 2.1 | J42: =INDEX(Picks!T:T,MATCH(G42,Picks!R:R,0)) -> 0 | K42: =IF(INDEX(Match!P:P,MATCH(A42,Match!A:A,0))="OFF",0,1) -> 1 | L42: =INDEX(Match!Q:Q,MATCH(E42,Match!U:U,0)) -> Sutton | M42: =INDEX(Match!X:X,MATCH(E42,Match!U:U,0)) -> 11/10 | N42: =INDEX(Match!R:R,MATCH(E42,Match!U:U,0)) -> Oldham | O42: =INDEX(Match!Y:Y,MATCH(E42,Match!U:U,0)) -> 9/4 | P42: =INDEX(Match!Z:Z,MATCH(E42,Match!U:U,0)) -> 13/5 | Q42: =INDEX(Match!AA:AA,MATCH(E42,Match!U:U,0)) -> 2.1 | R42: =INDEX(Match!AB:AB,MATCH(E42,Match!U:U,0)) -> 3.25 | S42: =INDEX(Match!AC:AC,MATCH(E42,Match!U:U,0)) -> 3.6
A43: 42 | B43: =IF(Match!B43="","",Match!B43) -> 2021-08-28 | C43: 1900-01-07 | D43: =IF(Match!D43="","",Match!D43) -> League 2 | E43: =IF(Match!U43="","",Match!U43) -> Swindon v Mansfield 21/10 23/10 13/10 | F43: =IF(Match!V43="","",Match!V43) -> Swindon 1-0 Mansfield | G43: Swindon | H43: 21/10 | I43: 3.1 | J43: =INDEX(Picks!T:T,MATCH(G43,Picks!R:R,0)) -> 1 | K43: =IF(INDEX(Match!P:P,MATCH(A43,Match!A:A,0))="OFF",0,1) -> 1 | L43: =INDEX(Match!Q:Q,MATCH(E43,Match!U:U,0)) -> Swindon | M43: =INDEX(Match!X:X,MATCH(E43,Match!U:U,0)) -> 21/10 | N43: =INDEX(Match!R:R,MATCH(E43,Match!U:U,0)) -> Mansfield | O43: =INDEX(Match!Y:Y,MATCH(E43,Match!U:U,0)) -> 23/10 | P43: =INDEX(Match!Z:Z,MATCH(E43,Match!U:U,0)) -> 13/10 | Q43: =INDEX(Match!AA:AA,MATCH(E43,Match!U:U,0)) -> 3.1 | R43: =INDEX(Match!AB:AB,MATCH(E43,Match!U:U,0)) -> 3.3 | S43: =INDEX(Match!AC:AC,MATCH(E43,Match!U:U,0)) -> 2.3
A44: 43 | B44: =IF(Match!B44="","",Match!B44) -> 2021-08-28 | C44: 1900-01-07 | D44: =IF(Match!D44="","",Match!D44) -> League 2 | E44: =IF(Match!U44="","",Match!U44) -> Walsall v Stevenage 15/8 21/10 8/5 | F44: =IF(Match!V44="","",Match!V44) -> Walsall 1-0 Stevenage | G44: Walsall | H44: 15/8 | I44: 2.875 | J44: =INDEX(Picks!T:T,MATCH(G44,Picks!R:R,0)) -> 1 | K44: =IF(INDEX(Match!P:P,MATCH(A44,Match!A:A,0))="OFF",0,1) -> 1 | L44: =INDEX(Match!Q:Q,MATCH(E44,Match!U:U,0)) -> Walsall | M44: =INDEX(Match!X:X,MATCH(E44,Match!U:U,0)) -> 15/8 | N44: =INDEX(Match!R:R,MATCH(E44,Match!U:U,0)) -> Stevenage | O44: =INDEX(Match!Y:Y,MATCH(E44,Match!U:U,0)) -> 21/10 | P44: =INDEX(Match!Z:Z,MATCH(E44,Match!U:U,0)) -> 8/5 | Q44: =INDEX(Match!AA:AA,MATCH(E44,Match!U:U,0)) -> 2.875 | R44: =INDEX(Match!AB:AB,MATCH(E44,Match!U:U,0)) -> 3.1 | S44: =INDEX(Match!AC:AC,MATCH(E44,Match!U:U,0)) -> 2.6
A45: 44 | B45: =IF(Match!B45="","",Match!B45) -> 2021-08-29 | C45: 1900-01-01 | D45: =IF(Match!D45="","",Match!D45) -> Premier | E45: =IF(Match!U45="","",Match!U45) -> Burnley v Leeds 21/10 5/2 5/4 | F45: =IF(Match!V45="","",Match!V45) -> Burnley 1-1 Leeds | G45: Burnley | H45: 21/10 | I45: 3.1 | J45: =INDEX(Picks!T:T,MATCH(G45,Picks!R:R,0)) -> 0 | K45: =IF(INDEX(Match!P:P,MATCH(A45,Match!A:A,0))="OFF",0,1) -> 1 | L45: =INDEX(Match!Q:Q,MATCH(E45,Match!U:U,0)) -> Burnley | M45: =INDEX(Match!X:X,MATCH(E45,Match!U:U,0)) -> 21/10 | N45: =INDEX(Match!R:R,MATCH(E45,Match!U:U,0)) -> Leeds | O45: =INDEX(Match!Y:Y,MATCH(E45,Match!U:U,0)) -> 5/2 | P45: =INDEX(Match!Z:Z,MATCH(E45,Match!U:U,0)) -> 5/4 | Q45: =INDEX(Match!AA:AA,MATCH(E45,Match!U:U,0)) -> 3.1 | R45: =INDEX(Match!AB:AB,MATCH(E45,Match!U:U,0)) -> 3.5 | S45: =INDEX(Match!AC:AC,MATCH(E45,Match!U:U,0)) -> 2.25
A46: 45 | B46: =IF(Match!B46="","",Match!B46) -> 2021-08-29 | C46: 1900-01-01 | D46: =IF(Match!D46="","",Match!D46) -> Premier | E46: =IF(Match!U46="","",Match!U46) -> Spurs v Watford 2/5 17/5 15/2 | F46: =IF(Match!V46="","",Match!V46) -> Spurs 1-0 Watford | G46: Spurs | H46: =IF(E46="","",M46) -> 2/5 | I46: 1.4 | J46: =INDEX(Picks!T:T,MATCH(G46,Picks!R:R,0)) -> 1 | K46: =IF(INDEX(Match!P:P,MATCH(A46,Match!A:A,0))="OFF",0,1) -> 1 | L46: =INDEX(Match!Q:Q,MATCH(E46,Match!U:U,0)) -> Spurs | M46: =INDEX(Match!X:X,MATCH(E46,Match!U:U,0)) -> 2/5 | N46: =INDEX(Match!R:R,MATCH(E46,Match!U:U,0)) -> Watford | O46: =INDEX(Match!Y:Y,MATCH(E46,Match!U:U,0)) -> 17/5 | P46: =INDEX(Match!Z:Z,MATCH(E46,Match!U:U,0)) -> 15/2 | Q46: =INDEX(Match!AA:AA,MATCH(E46,Match!U:U,0)) -> 1.4 | R46: =INDEX(Match!AB:AB,MATCH(E46,Match!U:U,0)) -> 4.4 | S46: =INDEX(Match!AC:AC,MATCH(E46,Match!U:U,0)) -> 8.5
A47: 46 | B47: =IF(Match!B47="","",Match!B47) -> 2021-08-29 | C47: 1900-01-01 | D47: =IF(Match!D47="","",Match!D47) -> Premier | E47: =IF(Match!U47="","",Match!U47) -> Wolves v Man U 4/1 12/5 4/5 | F47: =IF(Match!V47="","",Match!V47) -> Wolves 0-1 Man U | G47: =IF(E47="","",L47) -> Wolves | H47: =IF(E47="","",M47) -> 4/1 | I47: 5 | J47: =INDEX(Picks!T:T,MATCH(G47,Picks!R:R,0)) -> 0 | K47: =IF(INDEX(Match!P:P,MATCH(A47,Match!A:A,0))="OFF",0,1) -> 1 | L47: =INDEX(Match!Q:Q,MATCH(E47,Match!U:U,0)) -> Wolves | M47: =INDEX(Match!X:X,MATCH(E47,Match!U:U,0)) -> 4/1 | N47: =INDEX(Match!R:R,MATCH(E47,Match!U:U,0)) -> Man U | O47: =INDEX(Match!Y:Y,MATCH(E47,Match!U:U,0)) -> 12/5 | P47: =INDEX(Match!Z:Z,MATCH(E47,Match!U:U,0)) -> 4/5 | Q47: =INDEX(Match!AA:AA,MATCH(E47,Match!U:U,0)) -> 5 | R47: =INDEX(Match!AB:AB,MATCH(E47,Match!U:U,0)) -> 3.4 | S47: =INDEX(Match!AC:AC,MATCH(E47,Match!U:U,0)) -> 1.8
A48: 1 | B48: =IF(Match!B2="","",Match!B2) -> 2021-08-27 | C48: 1900-01-06 | G48: =IF(E2="","",L2&" draw") -> Burton draw | H48: =IF(E2="","",O2) -> 5/2 | I48: =IF(E2="","",R2) -> 3.5 | J48: =INDEX(Picks!T:T,MATCH(G48,Picks!R:R,0)) -> 1 | K48: =IF(INDEX(Match!P:P,MATCH(A48,Match!A:A,0))="OFF",0,1) -> 1
A49: 2 | B49: =IF(Match!B3="","",Match!B3) -> 2021-08-27 | C49: 1900-01-06 | G49: Rochdale draw | H49: 11/5 | I49: =IF(E3="","",R3) -> 3.2 | J49: =INDEX(Picks!T:T,MATCH(G49,Picks!R:R,0)) -> 1 | K49: =IF(INDEX(Match!P:P,MATCH(A49,Match!A:A,0))="OFF",0,1) -> 1
A50: 3 | B50: =IF(Match!B4="","",Match!B4) -> 2021-08-28 | C50: 1900-01-07 | G50: Brighton draw | H50: 11/5 | I50: 3.2 | J50: =INDEX(Picks!T:T,MATCH(G50,Picks!R:R,0)) -> 0 | K50: =IF(INDEX(Match!P:P,MATCH(A50,Match!A:A,0))="OFF",0,1) -> 1
A51: 4 | B51: =IF(Match!B5="","",Match!B5) -> 2021-08-28 | C51: 1900-01-07 | G51: Liverpool draw | H51: 23/10 | I51: 3.3 | J51: =INDEX(Picks!T:T,MATCH(G51,Picks!R:R,0)) -> 1 | K51: =IF(INDEX(Match!P:P,MATCH(A51,Match!A:A,0))="OFF",0,1) -> 1
A52: 5 | B52: =IF(Match!B6="","",Match!B6) -> 2021-08-28 | C52: 1900-01-07 | G52: Man C draw | H52: 24/5 | I52: 5.8 | J52: =INDEX(Picks!T:T,MATCH(G52,Picks!R:R,0)) -> 0 | K52: =IF(INDEX(Match!P:P,MATCH(A52,Match!A:A,0))="OFF",0,1) -> 1
A53: 6 | B53: =IF(Match!B7="","",Match!B7) -> 2021-08-28 | C53: 1900-01-07 | G53: Newcastle draw | H53: 5/2 | I53: 3.5 | J53: =INDEX(Picks!T:T,MATCH(G53,Picks!R:R,0)) -> 1 | K53: =IF(INDEX(Match!P:P,MATCH(A53,Match!A:A,0))="OFF",0,1) -> 1
A54: 7 | B54: =IF(Match!B8="","",Match!B8) -> 2021-08-28 | C54: 1900-01-07 | G54: Norwich draw | H54: 27/10 | I54: 3.7 | J54: =INDEX(Picks!T:T,MATCH(G54,Picks!R:R,0)) -> 0 | K54: =IF(INDEX(Match!P:P,MATCH(A54,Match!A:A,0))="OFF",0,1) -> 1
A55: 8 | B55: =IF(Match!B9="","",Match!B9) -> 2021-08-28 | C55: 1900-01-07 | G55: Villa draw | H55: 13/5 | I55: 3.6 | J55: =INDEX(Picks!T:T,MATCH(G55,Picks!R:R,0)) -> 1 | K55: =IF(INDEX(Match!P:P,MATCH(A55,Match!A:A,0))="OFF",0,1) -> 1
A56: 9 | B56: =IF(Match!B10="","",Match!B10) -> 2021-08-28 | C56: 1900-01-07 | G56: West Ham draw | H56: 29/10 | I56: 3.9 | J56: =INDEX(Picks!T:T,MATCH(G56,Picks!R:R,0)) -> 1 | K56: =IF(INDEX(Match!P:P,MATCH(A56,Match!A:A,0))="OFF",0,1) -> 1
A57: 10 | B57: =IF(Match!B11="","",Match!B11) -> 2021-08-28 | C57: 1900-01-07 | G57: Barnsley draw | H57: 21/10 | I57: 3.1 | J57: =INDEX(Picks!T:T,MATCH(G57,Picks!R:R,0)) -> 1 | K57: =IF(INDEX(Match!P:P,MATCH(A57,Match!A:A,0))="OFF",0,1) -> 1
A58: 11 | B58: =IF(Match!B12="","",Match!B12) -> 2021-08-28 | C58: 1900-01-07 | G58: Cardiff draw | H58: 23/10 | I58: 3.3 | J58: =INDEX(Picks!T:T,MATCH(G58,Picks!R:R,0)) -> 0 | K58: =IF(INDEX(Match!P:P,MATCH(A58,Match!A:A,0))="OFF",0,1) -> 1
A59: 12 | B59: =IF(Match!B13="","",Match!B13) -> 2021-08-28 | C59: 1900-01-07 | G59: Derby draw | H59: 2/1 | I59: 3 | J59: =INDEX(Picks!T:T,MATCH(G59,Picks!R:R,0)) -> 1 | K59: =IF(INDEX(Match!P:P,MATCH(A59,Match!A:A,0))="OFF",0,1) -> 1
A60: 13 | B60: =IF(Match!B14="","",Match!B14) -> 2021-08-28 | C60: 1900-01-07 | G60: Fulham draw | H60: 11/5 | I60: 3.2 | J60: =INDEX(Picks!T:T,MATCH(G60,Picks!R:R,0)) -> 0 | K60: =IF(INDEX(Match!P:P,MATCH(A60,Match!A:A,0))="OFF",0,1) -> 1
A61: 14 | B61: =IF(Match!B15="","",Match!B15) -> 2021-08-28 | C61: 1900-01-07 | G61: Huddersfield draw | H61: 12/5 | I61: 3.4 | J61: =INDEX(Picks!T:T,MATCH(G61,Picks!R:R,0)) -> 0 | K61: =IF(INDEX(Match!P:P,MATCH(A61,Match!A:A,0))="OFF",0,1) -> 1
A62: 15 | B62: =IF(Match!B16="","",Match!B16) -> 2021-08-28 | C62: 1900-01-07 | G62: Hull draw | H62: 11/5 | I62: 3.2 | J62: =INDEX(Picks!T:T,MATCH(G62,Picks!R:R,0)) -> 1 | K62: =IF(INDEX(Match!P:P,MATCH(A62,Match!A:A,0))="OFF",0,1) -> 1
A63: 16 | B63: =IF(Match!B17="","",Match!B17) -> 2021-08-28 | C63: 1900-01-07 | G63: Luton draw | H63: 21/10 | I63: 3.1 | J63: =INDEX(Picks!T:T,MATCH(G63,Picks!R:R,0)) -> 1 | K63: =IF(INDEX(Match!P:P,MATCH(A63,Match!A:A,0))="OFF",0,1) -> 1
A64: 17 | B64: =IF(Match!B18="","",Match!B18) -> 2021-08-28 | C64: 1900-01-07 | G64: Middlesbro draw | H64: 11/5 | I64: 3.2 | J64: =INDEX(Picks!T:T,MATCH(G64,Picks!R:R,0)) -> 1 | K64: =IF(INDEX(Match!P:P,MATCH(A64,Match!A:A,0))="OFF",0,1) -> 1
A65: 18 | B65: =IF(Match!B19="","",Match!B19) -> 2021-08-28 | C65: 1900-01-07 | G65: Millwall draw | H65: 11/5 | I65: 3.2 | J65: =INDEX(Picks!T:T,MATCH(G65,Picks!R:R,0)) -> 0 | K65: =IF(INDEX(Match!P:P,MATCH(A65,Match!A:A,0))="OFF",0,1) -> 1
A66: 19 | B66: =IF(Match!B20="","",Match!B20) -> 2021-08-28 | C66: 1900-01-07 | G66: Peterborough draw | H66: 5/2 | I66: 3.5 | J66: =INDEX(Picks!T:T,MATCH(G66,Picks!R:R,0)) -> 0 | K66: =IF(INDEX(Match!P:P,MATCH(A66,Match!A:A,0))="OFF",0,1) -> 1
A67: 20 | B67: =IF(Match!B21="","",Match!B21) -> 2021-08-28 | C67: =IF(B67="","",WEEKDAY(B67)) -> 1900-01-07 | G67: Preston draw | H67: 21/10 | I67: 3.1 | J67: =INDEX(Picks!T:T,MATCH(G67,Picks!R:R,0)) -> 0 | K67: =IF(INDEX(Match!P:P,MATCH(A67,Match!A:A,0))="OFF",0,1) -> 1
A68: 21 | B68: =IF(Match!B22="","",Match!B22) -> 2021-08-28 | C68: 1900-01-07 | G68: QPR draw | H68: 11/5 | I68: 3.2 | J68: =INDEX(Picks!T:T,MATCH(G68,Picks!R:R,0)) -> 0 | K68: =IF(INDEX(Match!P:P,MATCH(A68,Match!A:A,0))="OFF",0,1) -> 1
A69: 22 | B69: =IF(Match!B23="","",Match!B23) -> 2021-08-28 | C69: 1900-01-07 | G69: Cambridge draw | H69: 12/5 | I69: 3.4 | J69: =INDEX(Picks!T:T,MATCH(G69,Picks!R:R,0)) -> 0 | K69: =IF(INDEX(Match!P:P,MATCH(A69,Match!A:A,0))="OFF",0,1) -> 1
A70: 23 | B70: =IF(Match!B24="","",Match!B24) -> 2021-08-28 | C70: 1900-01-07 | G70: Charlton draw | H70: 5/2 | I70: 3.5 | J70: =INDEX(Picks!T:T,MATCH(G70,Picks!R:R,0)) -> 0 | K70: =IF(INDEX(Match!P:P,MATCH(A70,Match!A:A,0))="OFF",0,1) -> 1
A71: 24 | B71: =IF(Match!B25="","",Match!B25) -> 2021-08-28 | C71: 1900-01-07 | G71: Ipswich draw | H71: 23/10 | I71: 3.3 | J71: =INDEX(Picks!T:T,MATCH(G71,Picks!R:R,0)) -> 1 | K71: =IF(INDEX(Match!P:P,MATCH(A71,Match!A:A,0))="OFF",0,1) -> 1
A72: 25 | B72: =IF(Match!B26="","",Match!B26) -> 2021-08-28 | C72: 1900-01-07 | G72: MK Dons draw | H72: 12/5 | I72: 3.4 | J72: =INDEX(Picks!T:T,MATCH(G72,Picks!R:R,0)) -> 0 | K72: =IF(INDEX(Match!P:P,MATCH(A72,Match!A:A,0))="OFF",0,1) -> 1
A73: 26 | B73: =IF(Match!B27="","",Match!B27) -> 2021-08-28 | C73: 1900-01-07 | G73: Morecambe draw | H73: 5/2 | I73: 3.5 | J73: =INDEX(Picks!T:T,MATCH(G73,Picks!R:R,0)) -> 0 | K73: =IF(INDEX(Match!P:P,MATCH(A73,Match!A:A,0))="OFF",0,1) -> 1
A74: 27 | B74: =IF(Match!B28="","",Match!B28) -> 2021-08-28 | C74: 1900-01-07 | G74: Oxford draw | H74: 12/5 | I74: 3.4 | J74: =INDEX(Picks!T:T,MATCH(G74,Picks!R:R,0)) -> 0 | K74: =IF(INDEX(Match!P:P,MATCH(A74,Match!A:A,0))="OFF",0,1) -> 1
A75: 28 | B75: =IF(Match!B29="","",Match!B29) -> 2021-08-28 | C75: 1900-01-07 | G75: Plymouth draw | H75: 9/4 | I75: 3.25 | J75: =INDEX(Picks!T:T,MATCH(G75,Picks!R:R,0)) -> 1 | K75: =IF(INDEX(Match!P:P,MATCH(A75,Match!A:A,0))="OFF",0,1) -> 1
A76: 29 | B76: =IF(Match!B30="","",Match!B30) -> 2021-08-28 | C76: 1900-01-07 | G76: Rotherham draw | H76: 11/4 | I76: 3.75 | J76: =INDEX(Picks!T:T,MATCH(G76,Picks!R:R,0)) -> 0 | K76: =IF(INDEX(Match!P:P,MATCH(A76,Match!A:A,0))="OFF",0,1) -> 1
A77: 30 | B77: =IF(Match!B31="","",Match!B31) -> 2021-08-28 | C77: 1900-01-07 | G77: Shrewsbury draw | H77: 9/4 | I77: 3.25 | J77: =INDEX(Picks!T:T,MATCH(G77,Picks!R:R,0)) -> 0 | K77: =IF(INDEX(Match!P:P,MATCH(A77,Match!A:A,0))="OFF",0,1) -> 1
A78: 31 | B78: =IF(Match!B32="","",Match!B32) -> 2021-08-28 | C78: 1900-01-07 | G78: Sunderland draw | H78: 12/5 | I78: 3.4 | J78: =INDEX(Picks!T:T,MATCH(G78,Picks!R:R,0)) -> 0 | K78: =IF(INDEX(Match!P:P,MATCH(A78,Match!A:A,0))="OFF",0,1) -> 1
A79: 32 | B79: =IF(Match!B33="","",Match!B33) -> 2021-08-28 | C79: 1900-01-07 | G79: Wigan draw | H79: 21/10 | I79: 3.1 | J79: =INDEX(Picks!T:T,MATCH(G79,Picks!R:R,0)) -> 0 | K79: =IF(INDEX(Match!P:P,MATCH(A79,Match!A:A,0))="OFF",0,1) -> 1
A80: 33 | B80: =IF(Match!B34="","",Match!B34) -> 2021-08-28 | C80: 1900-01-07 | G80: Barrow draw | H80: 11/5 | I80: 3.2 | J80: =INDEX(Picks!T:T,MATCH(G80,Picks!R:R,0)) -> 1 | K80: =IF(INDEX(Match!P:P,MATCH(A80,Match!A:A,0))="OFF",0,1) -> 1
A81: 34 | B81: =IF(Match!B35="","",Match!B35) -> 2021-08-28 | C81: 1900-01-07 | G81: Crawley draw | H81: 23/10 | I81: 3.3 | J81: =INDEX(Picks!T:T,MATCH(G81,Picks!R:R,0)) -> 1 | K81: =IF(INDEX(Match!P:P,MATCH(A81,Match!A:A,0))="OFF",0,1) -> 1
A82: 35 | B82: =IF(Match!B36="","",Match!B36) -> 2021-08-28 | C82: 1900-01-07 | G82: Forest Green draw | H82: 21/10 | I82: 3.1 | J82: =INDEX(Picks!T:T,MATCH(G82,Picks!R:R,0)) -> 0 | K82: =IF(INDEX(Match!P:P,MATCH(A82,Match!A:A,0))="OFF",0,1) -> 1
A83: 36 | B83: =IF(Match!B37="","",Match!B37) -> 2021-08-28 | C83: 1900-01-07 | G83: Harrogate draw | H83: 12/5 | I83: 3.4 | J83: =INDEX(Picks!T:T,MATCH(G83,Picks!R:R,0)) -> 1 | K83: =IF(INDEX(Match!P:P,MATCH(A83,Match!A:A,0))="OFF",0,1) -> 1
A84: 37 | B84: =IF(Match!B38="","",Match!B38) -> 2021-08-28 | C84: 1900-01-07 | G84: Hartlepool draw | H84: 11/5 | I84: 3.2 | J84: =INDEX(Picks!T:T,MATCH(G84,Picks!R:R,0)) -> 0 | K84: =IF(INDEX(Match!P:P,MATCH(A84,Match!A:A,0))="OFF",0,1) -> 1
A85: 38 | B85: =IF(Match!B39="","",Match!B39) -> 2021-08-28 | C85: 1900-01-07 | G85: Orient draw | H85: 21/10 | I85: 3.1 | J85: =INDEX(Picks!T:T,MATCH(G85,Picks!R:R,0)) -> 0 | K85: =IF(INDEX(Match!P:P,MATCH(A85,Match!A:A,0))="OFF",0,1) -> 1
A86: 39 | B86: =IF(Match!B40="","",Match!B40) -> 2021-08-28 | C86: 1900-01-07 | G86: Salford draw | H86: 21/10 | I86: 3.1 | J86: =INDEX(Picks!T:T,MATCH(G86,Picks!R:R,0)) -> 0 | K86: =IF(INDEX(Match!P:P,MATCH(A86,Match!A:A,0))="OFF",0,1) -> 1
A87: 40 | B87: =IF(Match!B41="","",Match!B41) -> 2021-08-28 | C87: 1900-01-07 | G87: Scunthorpe draw | H87: 11/5 | I87: 3.2 | J87: =INDEX(Picks!T:T,MATCH(G87,Picks!R:R,0)) -> 0 | K87: =IF(INDEX(Match!P:P,MATCH(A87,Match!A:A,0))="OFF",0,1) -> 1
A88: 41 | B88: =IF(Match!B42="","",Match!B42) -> 2021-08-28 | C88: 1900-01-07 | G88: Sutton draw | H88: 9/4 | I88: 3.25 | J88: =INDEX(Picks!T:T,MATCH(G88,Picks!R:R,0)) -> 0 | K88: =IF(INDEX(Match!P:P,MATCH(A88,Match!A:A,0))="OFF",0,1) -> 1
A89: 42 | B89: =IF(Match!B43="","",Match!B43) -> 2021-08-28 | C89: 1900-01-07 | G89: Swindon draw | H89: 23/10 | I89: 3.3 | J89: =INDEX(Picks!T:T,MATCH(G89,Picks!R:R,0)) -> 0 | K89: =IF(INDEX(Match!P:P,MATCH(A89,Match!A:A,0))="OFF",0,1) -> 1
A90: 43 | B90: =IF(Match!B44="","",Match!B44) -> 2021-08-28 | C90: 1900-01-07 | G90: Walsall draw | H90: 21/10 | I90: 3.1 | J90: =INDEX(Picks!T:T,MATCH(G90,Picks!R:R,0)) -> 0 | K90: =IF(INDEX(Match!P:P,MATCH(A90,Match!A:A,0))="OFF",0,1) -> 1
A91: 44 | B91: =IF(Match!B45="","",Match!B45) -> 2021-08-29 | C91: 1900-01-01 | G91: Burnley draw | H91: 5/2 | I91: 3.5 | J91: =INDEX(Picks!T:T,MATCH(G91,Picks!R:R,0)) -> 1 | K91: =IF(INDEX(Match!P:P,MATCH(A91,Match!A:A,0))="OFF",0,1) -> 1
A92: 45 | B92: =IF(Match!B46="","",Match!B46) -> 2021-08-29 | C92: 1900-01-01 | G92: Spurs draw | H92: 17/5 | I92: 4.4 | J92: =INDEX(Picks!T:T,MATCH(G92,Picks!R:R,0)) -> 0 | K92: =IF(INDEX(Match!P:P,MATCH(A92,Match!A:A,0))="OFF",0,1) -> 1
A93: 46 | B93: =IF(Match!B47="","",Match!B47) -> 2021-08-29 | C93: 1900-01-01 | G93: Wolves draw | H93: 12/5 | I93: 3.4 | J93: =INDEX(Picks!T:T,MATCH(G93,Picks!R:R,0)) -> 0 | K93: =IF(INDEX(Match!P:P,MATCH(A93,Match!A:A,0))="OFF",0,1) -> 1
A94: 1 | B94: =IF(Match!B2="","",Match!B2) -> 2021-08-27 | C94: 1900-01-06 | G94: =IF(E2="","",N2) -> Cheltenham | H94: =IF(E2="","",P2) -> 27/10 | I94: =IF(E2="","",S2) -> 3.7 | J94: =INDEX(Picks!T:T,MATCH(G94,Picks!R:R,0)) -> 0 | K94: =IF(INDEX(Match!P:P,MATCH(A94,Match!A:A,0))="OFF",0,1) -> 1
A95: 2 | B95: =IF(Match!B3="","",Match!B3) -> 2021-08-27 | C95: 1900-01-06 | G95: Colchester | H95: 21/10 | I95: =IF(E3="","",S3) -> 3.1 | J95: =INDEX(Picks!T:T,MATCH(G95,Picks!R:R,0)) -> 0 | K95: =IF(INDEX(Match!P:P,MATCH(A95,Match!A:A,0))="OFF",0,1) -> 1
A96: 3 | B96: =IF(Match!B4="","",Match!B4) -> 2021-08-28 | C96: 1900-01-07 | G96: Everton | H96: 11/5 | I96: 3.2 | J96: =INDEX(Picks!T:T,MATCH(G96,Picks!R:R,0)) -> 1 | K96: =IF(INDEX(Match!P:P,MATCH(A96,Match!A:A,0))="OFF",0,1) -> 1
A97: 4 | B97: =IF(Match!B5="","",Match!B5) -> 2021-08-28 | C97: 1900-01-07 | G97: Chelsea | H97: 7/4 | I97: 2.75 | J97: =INDEX(Picks!T:T,MATCH(G97,Picks!R:R,0)) -> 0 | K97: =IF(INDEX(Match!P:P,MATCH(A97,Match!A:A,0))="OFF",0,1) -> 1
A98: 5 | B98: =IF(Match!B6="","",Match!B6) -> 2021-08-28 | C98: 1900-01-07 | G98: Arsenal | H98: 11/1 | I98: 12 | J98: =INDEX(Picks!T:T,MATCH(G98,Picks!R:R,0)) -> 0 | K98: =IF(INDEX(Match!P:P,MATCH(A98,Match!A:A,0))="OFF",0,1) -> 1
A99: 6 | B99: =IF(Match!B7="","",Match!B7) -> 2021-08-28 | C99: 1900-01-07 | G99: Southampton | H99: 13/8 | I99: 2.625 | J99: =INDEX(Picks!T:T,MATCH(G99,Picks!R:R,0)) -> 0 | K99: =IF(INDEX(Match!P:P,MATCH(A99,Match!A:A,0))="OFF",0,1) -> 1
A100: 7 | B100: =IF(Match!B8="","",Match!B8) -> 2021-08-28 | C100: 1900-01-07 | G100: Leicester | H100: 8/11 | I100: 1.727272727 | J100: =INDEX(Picks!T:T,MATCH(G100,Picks!R:R,0)) -> 1 | K100: =IF(INDEX(Match!P:P,MATCH(A100,Match!A:A,0))="OFF",0,1) -> 1
A101: 8 | B101: =IF(Match!B9="","",Match!B9) -> 2021-08-28 | C101: 1900-01-07 | G101: Brentford | H101: 27/10 | I101: 3.7 | J101: =INDEX(Picks!T:T,MATCH(G101,Picks!R:R,0)) -> 0 | K101: =IF(INDEX(Match!P:P,MATCH(A101,Match!A:A,0))="OFF",0,1) -> 1
A102: 9 | B102: =IF(Match!B10="","",Match!B10) -> 2021-08-28 | C102: 1900-01-07 | G102: Palace | H102: 24/5 | I102: 5.8 | J102: =INDEX(Picks!T:T,MATCH(G102,Picks!R:R,0)) -> 0 | K102: =IF(INDEX(Match!P:P,MATCH(A102,Match!A:A,0))="OFF",0,1) -> 1
A103: 10 | B103: =IF(Match!B11="","",Match!B11) -> 2021-08-28 | C103: 1900-01-07 | G103: Birmingham | H103: 27/10 | I103: 3.7 | J103: =INDEX(Picks!T:T,MATCH(G103,Picks!R:R,0)) -> 0 | K103: =IF(INDEX(Match!P:P,MATCH(A103,Match!A:A,0))="OFF",0,1) -> 1
A104: 11 | B104: =IF(Match!B12="","",Match!B12) -> 2021-08-28 | C104: 1900-01-07 | G104: Bristol C | H104: 16/5 | I104: 4.2 | J104: =INDEX(Picks!T:T,MATCH(G104,Picks!R:R,0)) -> 1 | K104: =IF(INDEX(Match!P:P,MATCH(A104,Match!A:A,0))="OFF",0,1) -> 1
A105: 12 | B105: =IF(Match!B13="","",Match!B13) -> 2021-08-28 | C105: 1900-01-07 | G105: Forest | H105: 7/4 | I105: 2.75 | J105: =INDEX(Picks!T:T,MATCH(G105,Picks!R:R,0)) -> 0 | K105: =IF(INDEX(Match!P:P,MATCH(A105,Match!A:A,0))="OFF",0,1) -> 1
A106: 13 | B106: =IF(Match!B14="","",Match!B14) -> 2021-08-28 | C106: 1900-01-07 | G106: Stoke | H106: 3/1 | I106: 4 | J106: =INDEX(Picks!T:T,MATCH(G106,Picks!R:R,0)) -> 0 | K106: =IF(INDEX(Match!P:P,MATCH(A106,Match!A:A,0))="OFF",0,1) -> 1
A107: 14 | B107: =IF(Match!B15="","",Match!B15) -> 2021-08-28 | C107: 1900-01-07 | G107: Reading | H107: 2/1 | I107: 3 | J107: =INDEX(Picks!T:T,MATCH(G107,Picks!R:R,0)) -> 0 | K107: =IF(INDEX(Match!P:P,MATCH(A107,Match!A:A,0))="OFF",0,1) -> 1
A108: 15 | B108: =IF(Match!B16="","",Match!B16) -> 2021-08-28 | C108: 1900-01-07 | G108: Bournemouth | H108: 13/10 | I108: 2.3 | J108: =INDEX(Picks!T:T,MATCH(G108,Picks!R:R,0)) -> 0 | K108: =IF(INDEX(Match!P:P,MATCH(A108,Match!A:A,0))="OFF",0,1) -> 1
A109: 16 | B109: =IF(Match!B17="","",Match!B17) -> 2021-08-28 | C109: 1900-01-07 | G109: Sheff U | H109: 11/8 | I109: 2.375 | J109: =INDEX(Picks!T:T,MATCH(G109,Picks!R:R,0)) -> 0 | K109: =IF(INDEX(Match!P:P,MATCH(A109,Match!A:A,0))="OFF",0,1) -> 1
A110: 17 | B110: =IF(Match!B18="","",Match!B18) -> 2021-08-28 | C110: 1900-01-07 | G110: Blackburn | H110: 17/5 | I110: 4.4 | J110: =INDEX(Picks!T:T,MATCH(G110,Picks!R:R,0)) -> 0 | K110: =IF(INDEX(Match!P:P,MATCH(A110,Match!A:A,0))="OFF",0,1) -> 1
A111: 18 | B111: =IF(Match!B19="","",Match!B19) -> 2021-08-28 | C111: 1900-01-07 | G111: Blackpool | H111: 17/5 | I111: 4.4 | J111: =INDEX(Picks!T:T,MATCH(G111,Picks!R:R,0)) -> 0 | K111: =IF(INDEX(Match!P:P,MATCH(A111,Match!A:A,0))="OFF",0,1) -> 1
A112: 19 | B112: =IF(Match!B20="","",Match!B20) -> 2021-08-28 | C112: 1900-01-07 | G112: West Brom | H112: 17/20 | I112: 1.85 | J112: =INDEX(Picks!T:T,MATCH(G112,Picks!R:R,0)) -> 1 | K112: =IF(INDEX(Match!P:P,MATCH(A112,Match!A:A,0))="OFF",0,1) -> 1
A113: 20 | B113: =IF(Match!B21="","",Match!B21) -> 2021-08-28 | C113: 1900-01-07 | G113: Swansea | H113: 9/5 | I113: 2.8 | J113: =INDEX(Picks!T:T,MATCH(G113,Picks!R:R,0)) -> 0 | K113: =IF(INDEX(Match!P:P,MATCH(A113,Match!A:A,0))="OFF",0,1) -> 1
A114: 21 | B114: =IF(Match!B22="","",Match!B22) -> 2021-08-28 | C114: 1900-01-07 | G114: Coventry | H114: 13/5 | I114: 3.6 | J114: =INDEX(Picks!T:T,MATCH(G114,Picks!R:R,0)) -> 0 | K114: =IF(INDEX(Match!P:P,MATCH(A114,Match!A:A,0))="OFF",0,1) -> 1
A115: 22 | B115: =IF(Match!B23="","",Match!B23) -> 2021-08-28 | C115: 1900-01-07 | G115: Bolton | H115: 13/10 | I115: 2.3 | J115: =INDEX(Picks!T:T,MATCH(G115,Picks!R:R,0)) -> 0 | K115: =IF(INDEX(Match!P:P,MATCH(A115,Match!A:A,0))="OFF",0,1) -> 1
A116: 23 | B116: =IF(Match!B24="","",Match!B24) -> 2021-08-28 | C116: 1900-01-07 | G116: Crewe | H116: 16/5 | I116: 4.2 | J116: =INDEX(Picks!T:T,MATCH(G116,Picks!R:R,0)) -> 0 | K116: =IF(INDEX(Match!P:P,MATCH(A116,Match!A:A,0))="OFF",0,1) -> 1
A117: 24 | B117: =IF(Match!B25="","",Match!B25) -> 2021-08-28 | C117: 1900-01-07 | G117: Wimbledon | H117: 29/10 | I117: 3.9 | J117: =INDEX(Picks!T:T,MATCH(G117,Picks!R:R,0)) -> 0 | K117: =IF(INDEX(Match!P:P,MATCH(A117,Match!A:A,0))="OFF",0,1) -> 1
A118: 25 | B118: =IF(Match!B26="","",Match!B26) -> 2021-08-28 | C118: 1900-01-07 | G118: Accrington | H118: 12/5 | I118: 3.4 | J118: =INDEX(Picks!T:T,MATCH(G118,Picks!R:R,0)) -> 0 | K118: =IF(INDEX(Match!P:P,MATCH(A118,Match!A:A,0))="OFF",0,1) -> 1
A119: 26 | B119: =IF(Match!B27="","",Match!B27) -> 2021-08-28 | C119: 1900-01-07 | G119: Sheff W | H119: 10/11 | I119: 1.909090909 | J119: =INDEX(Picks!T:T,MATCH(G119,Picks!R:R,0)) -> 0 | K119: =IF(INDEX(Match!P:P,MATCH(A119,Match!A:A,0))="OFF",0,1) -> 1
A120: 27 | B120: =IF(Match!B28="","",Match!B28) -> 2021-08-28 | C120: 1900-01-07 | G120: Lincoln | H120: 12/5 | I120: 3.4 | J120: =INDEX(Picks!T:T,MATCH(G120,Picks!R:R,0)) -> 0 | K120: =IF(INDEX(Match!P:P,MATCH(A120,Match!A:A,0))="OFF",0,1) -> 1
A121: 28 | B121: =IF(Match!B29="","",Match!B29) -> 2021-08-28 | C121: 1900-01-07 | G121: Fleetwood | H121: 19/10 | I121: 2.9 | J121: =INDEX(Picks!T:T,MATCH(G121,Picks!R:R,0)) -> 0 | K121: =IF(INDEX(Match!P:P,MATCH(A121,Match!A:A,0))="OFF",0,1) -> 1
A122: 29 | B122: =IF(Match!B30="","",Match!B30) -> 2021-08-28 | C122: 1900-01-07 | G122: Doncaster | H122: 9/2 | I122: 5.5 | J122: =INDEX(Picks!T:T,MATCH(G122,Picks!R:R,0)) -> 0 | K122: =IF(INDEX(Match!P:P,MATCH(A122,Match!A:A,0))="OFF",0,1) -> 1
A123: 30 | B123: =IF(Match!B31="","",Match!B31) -> 2021-08-28 | C123: 1900-01-07 | G123: Gillingham | H123: 15/8 | I123: 2.875 | J123: =INDEX(Picks!T:T,MATCH(G123,Picks!R:R,0)) -> 0 | K123: =IF(INDEX(Match!P:P,MATCH(A123,Match!A:A,0))="OFF",0,1) -> 1
A124: 31 | B124: =IF(Match!B32="","",Match!B32) -> 2021-08-28 | C124: 1900-01-07 | G124: Wycombe | H124: 14/5 | I124: 3.8 | J124: =INDEX(Picks!T:T,MATCH(G124,Picks!R:R,0)) -> 0 | K124: =IF(INDEX(Match!P:P,MATCH(A124,Match!A:A,0))="OFF",0,1) -> 1
A125: 32 | B125: =IF(Match!B33="","",Match!B33) -> 2021-08-28 | C125: 1900-01-07 | G125: Portsmouth | H125: 15/8 | I125: 2.875 | J125: =INDEX(Picks!T:T,MATCH(G125,Picks!R:R,0)) -> 0 | K125: =IF(INDEX(Match!P:P,MATCH(A125,Match!A:A,0))="OFF",0,1) -> 1
A126: 33 | B126: =IF(Match!B34="","",Match!B34) -> 2021-08-28 | C126: 1900-01-07 | G126: Bristol R | H126: 2/1 | I126: 3 | J126: =INDEX(Picks!T:T,MATCH(G126,Picks!R:R,0)) -> 0 | K126: =IF(INDEX(Match!P:P,MATCH(A126,Match!A:A,0))="OFF",0,1) -> 1
A127: 34 | B127: =IF(Match!B35="","",Match!B35) -> 2021-08-28 | C127: 1900-01-07 | G127: Northampton | H127: 29/20 | I127: 2.45 | J127: =INDEX(Picks!T:T,MATCH(G127,Picks!R:R,0)) -> 0 | K127: =IF(INDEX(Match!P:P,MATCH(A127,Match!A:A,0))="OFF",0,1) -> 1
A128: 35 | B128: =IF(Match!B36="","",Match!B36) -> 2021-08-28 | C128: 1900-01-07 | G128: Port Vale | H128: 27/10 | I128: 3.7 | J128: =INDEX(Picks!T:T,MATCH(G128,Picks!R:R,0)) -> 1 | K128: =IF(INDEX(Match!P:P,MATCH(A128,Match!A:A,0))="OFF",0,1) -> 1
A129: 36 | B129: =IF(Match!B37="","",Match!B37) -> 2021-08-28 | C129: 1900-01-07 | G129: Exeter | H129: 13/8 | I129: 2.625 | J129: =INDEX(Picks!T:T,MATCH(G129,Picks!R:R,0)) -> 0 | K129: =IF(INDEX(Match!P:P,MATCH(A129,Match!A:A,0))="OFF",0,1) -> 1
A130: 37 | B130: =IF(Match!B38="","",Match!B38) -> 2021-08-28 | C130: 1900-01-07 | G130: Carlisle | H130: 6/4 | I130: 2.5 | J130: =INDEX(Picks!T:T,MATCH(G130,Picks!R:R,0)) -> 0 | K130: =IF(INDEX(Match!P:P,MATCH(A130,Match!A:A,0))="OFF",0,1) -> 1
A131: 38 | B131: =IF(Match!B39="","",Match!B39) -> 2021-08-28 | C131: =IF(B131="","",WEEKDAY(B131)) -> 1900-01-07 | G131: Bradford | H131: 21/10 | I131: 3.1 | J131: =INDEX(Picks!T:T,MATCH(G131,Picks!R:R,0)) -> 0 | K131: =IF(INDEX(Match!P:P,MATCH(A131,Match!A:A,0))="OFF",0,1) -> 1
A132: 39 | B132: =IF(Match!B40="","",Match!B40) -> 2021-08-28 | C132: 1900-01-07 | G132: Newport | H132: 29/20 | I132: 2.45 | J132: =INDEX(Picks!T:T,MATCH(G132,Picks!R:R,0)) -> 0 | K132: =IF(INDEX(Match!P:P,MATCH(A132,Match!A:A,0))="OFF",0,1) -> 1
A133: 40 | B133: =IF(Match!B41="","",Match!B41) -> 2021-08-28 | C133: 1900-01-07 | G133: Tranmere | H133: 11/10 | I133: 2.1 | J133: =INDEX(Picks!T:T,MATCH(G133,Picks!R:R,0)) -> 0 | K133: =IF(INDEX(Match!P:P,MATCH(A133,Match!A:A,0))="OFF",0,1) -> 1
A134: 41 | B134: =IF(Match!B42="","",Match!B42) -> 2021-08-28 | C134: 1900-01-07 | G134: Oldham | H134: 13/5 | I134: 3.6 | J134: =INDEX(Picks!T:T,MATCH(G134,Picks!R:R,0)) -> 1 | K134: =IF(INDEX(Match!P:P,MATCH(A134,Match!A:A,0))="OFF",0,1) -> 1
A135: 42 | B135: =IF(Match!B43="","",Match!B43) -> 2021-08-28 | C135: 1900-01-07 | G135: Mansfield | H135: 13/10 | I135: 2.3 | J135: =INDEX(Picks!T:T,MATCH(G135,Picks!R:R,0)) -> 0 | K135: =IF(INDEX(Match!P:P,MATCH(A135,Match!A:A,0))="OFF",0,1) -> 1
A136: 43 | B136: =IF(Match!B44="","",Match!B44) -> 2021-08-28 | C136: 1900-01-07 | G136: Stevenage | H136: 8/5 | I136: 2.6 | J136: =INDEX(Picks!T:T,MATCH(G136,Picks!R:R,0)) -> 0 | K136: =IF(INDEX(Match!P:P,MATCH(A136,Match!A:A,0))="OFF",0,1) -> 1
A137: 44 | B137: =IF(Match!B45="","",Match!B45) -> 2021-08-29 | C137: 1900-01-01 | G137: Leeds | H137: 5/4 | I137: 2.25 | J137: =INDEX(Picks!T:T,MATCH(G137,Picks!R:R,0)) -> 0 | K137: =IF(INDEX(Match!P:P,MATCH(A137,Match!A:A,0))="OFF",0,1) -> 1
A138: 45 | B138: =IF(Match!B46="","",Match!B46) -> 2021-08-29 | C138: 1900-01-01 | G138: Watford | H138: 15/2 | I138: 8.5 | J138: =INDEX(Picks!T:T,MATCH(G138,Picks!R:R,0)) -> 0 | K138: =IF(INDEX(Match!P:P,MATCH(A138,Match!A:A,0))="OFF",0,1) -> 1
A139: 46 | B139: =IF(Match!B47="","",Match!B47) -> 2021-08-29 | C139: 1900-01-01 | G139: Man U | H139: 4/5 | I139: 1.8 | J139: =INDEX(Picks!T:T,MATCH(G139,Picks!R:R,0)) -> 1 | K139: =IF(INDEX(Match!P:P,MATCH(A139,Match!A:A,0))="OFF",0,1) -> 1

Sheet Picks
A1: Player | B1: Prediction | C1: Match Day | D1: Decimal | E1: Bet in? | F1: Score | G1: Max | H1: =entrants-SUM(H2:H187) -> 1 | I1: Week Rank | J1: Wk1 | K1: Frac | L1: Dec | M1: Bet up | N1: Points | O1: Wk2 | P1: Results | R1: Choices | S1: Odds | T1: Up | U1: Home team | V1: H Score | W1: Away team | X1: A Score | AC1: Week 1 Off/On? | AD1: ` | AE1: This Week Actual Score | AF1: This Week Correct | AG1: Rank | AI1: Player | AJ1: This Week Max Score | AK1: This Week Correct | AL1: Rank | AN1: =COUNTIF(F2:F175,-10) -> 1
A2: =Results!B2 -> Alan Bond | B2: =IF(J2="","",TRIM(CLEAN(J2))) -> Wigan | C2: =IF(J2="","",INDEX(Odds!C:C,MATCH(J2,Odds!G:G,0))) -> 1900-01-07 | D2: =IF(J2="","",L2) -> 2.6 | E2: =IF(J2="","",IF(M2=1,"√","x")) -> √ | F2: =IF(J2="",-10,INDEX(Results!T:T,MATCH(A2,Results!V:V,0))) -> -4.4 | G2: =IF(J2="","",INDEX(Results!AI:AI,MATCH(A2,Results!V:V,0))) -> 30.502 | H2: =IF(G2="",0,1) -> 1 | I2: =INDEX(Picks!AG:AG,MATCH(A2,Picks!AD:AD,0)) -> 31 | J2: Wigan | K2: =INDEX(Odds!H:H,MATCH(J2,Odds!G:G,0)) -> 8/5 | L2: =INDEX(Odds!I:I,MATCH(J2,Odds!G:G,0)) -> 2.6 | M2: =INDEX(Odds!J:J,MATCH(J2,Odds!G:G,0)) -> 1 | N2: =L2*M2 -> 2.6 | P2: =IF(Match!B2="","",Match!V2) -> Burton 1-1 Cheltenham | R2: =IF(Odds!G2="","",Odds!G2) -> Burton | S2: =INDEX(Odds!H:H,MATCH(R2,Odds!G:G,0)) -> 1/1 | T2: =IF(V2>X2,1,0) -> 0 | U2: =INDEX(Match!Q:Q,MATCH(P2,Match!V:V,0)) -> Burton | V2: =INDEX(Match!G:G,MATCH(P2,Match!V:V,0)) -> 1 | W2: =INDEX(Match!R:R,MATCH(P2,Match!V:V,0)) -> Cheltenham | X2: =INDEX(Match!H:H,MATCH(P2,Match!V:V,0)) -> 1 | AB2: =IF(O2="","",INDEX(Odds!H:H,MATCH(O2,Odds!G:G,0))) ->  | AC2: =IF(J2="","",INDEX(Odds!K:K,MATCH(J2,Odds!G:G,0))) -> 1 | AD2: Phil Miller | AE2: =INDEX(Picks!F:F,MATCH(AD2,Picks!A:A,0)) -> 37.81818182 | AF2: =INDEX(Weekly!I:I,MATCH(AD2,Weekly!E:E,0)) -> 3 | AG2: =IF(AE2="","",_xlfn.RANK.EQ(AE2,TopScores,0)) -> 1 | AI2: Andy Hargreaves | AJ2: =INDEX(Picks!G:G,MATCH(AI2,Picks!A:A,0)) ->  | AK2: =INDEX(Weekly!I:I,MATCH(AI2,Weekly!E:E,0)) -> 0 | AL2: =IF(AJ2="","",_xlfn.RANK.EQ(AJ2,TopMaxScores,0)) -> 
A3: =A2 -> Alan Bond | B3: =IF(J3="","",J3) -> Barrow | C3: =IF(J3="","",INDEX(Odds!C:C,MATCH(J3,Odds!G:G,0))) -> 1900-01-07 | D3: =IF(J3="","",L3) -> 2.45 | E3: =IF(J3="","",IF(M3=1,"√","x")) -> x | J3: Barrow | K3: =INDEX(Odds!H:H,MATCH(J3,Odds!G:G,0)) -> 29/20 | L3: =INDEX(Odds!I:I,MATCH(J3,Odds!G:G,0)) -> 2.45 | M3: =INDEX(Odds!J:J,MATCH(J3,Odds!G:G,0)) -> 0 | N3: =L3*M3 -> 0 | P3: =IF(Match!B3="","",Match!V3) -> Rochdale 1-1 Colchester | R3: =IF(Odds!G3="","",Odds!G3) -> Rochdale | S3: =INDEX(Odds!H:H,MATCH(R3,Odds!G:G,0)) -> 11/8 | T3: 0 | U3: =INDEX(Match!Q:Q,MATCH(P3,Match!V:V,0)) -> Rochdale | V3: =INDEX(Match!G:G,MATCH(P3,Match!V:V,0)) -> 1 | W3: =INDEX(Match!R:R,MATCH(P3,Match!V:V,0)) -> Colchester | X3: =INDEX(Match!H:H,MATCH(P3,Match!V:V,0)) -> 1 | AB3: =IF(O3="","",INDEX(Odds!H:H,MATCH(O3,Odds!G:G,0))) ->  | AC3: =IF(J3="","",INDEX(Odds!K:K,MATCH(J3,Odds!G:G,0))) -> 1 | AD3: Dan Gibbard | AE3: =INDEX(Picks!F:F,MATCH(AD3,Picks!A:A,0)) -> 22.47625 | AF3: =INDEX(Weekly!I:I,MATCH(AD3,Weekly!E:E,0)) -> 3 | AG3: =IF(AE3="","",_xlfn.RANK.EQ(AE3,TopScores,0)) -> 2 | AI3: Dave Bell | AJ3: =INDEX(Picks!G:G,MATCH(AI3,Picks!A:A,0)) -> 831.8 | AK3: =INDEX(Weekly!I:I,MATCH(AI3,Weekly!E:E,0)) -> 0 | AL3: =IF(AJ3="","",_xlfn.RANK.EQ(AJ3,TopMaxScores,0)) -> 1
A4: =A2 -> Alan Bond | B4: Sutton | C4: =IF(J4="","",INDEX(Odds!C:C,MATCH(J4,Odds!G:G,0))) -> 1900-01-07 | D4: 2.1 | E4: x | J4: Sutton | K4: =INDEX(Odds!H:H,MATCH(J4,Odds!G:G,0)) -> 11/10 | L4: =INDEX(Odds!I:I,MATCH(J4,Odds!G:G,0)) -> 2.1 | M4: =INDEX(Odds!J:J,MATCH(J4,Odds!G:G,0)) -> 0 | N4: =L4*M4 -> 0 | P4: =IF(Match!B4="","",Match!V4) -> Brighton 0-2 Everton | R4: =IF(Odds!G4="","",Odds!G4) -> Brighton | S4: =INDEX(Odds!H:H,MATCH(R4,Odds!G:G,0)) -> 11/8 | T4: 0 | U4: =INDEX(Match!Q:Q,MATCH(P4,Match!V:V,0)) -> Brighton | V4: =INDEX(Match!G:G,MATCH(P4,Match!V:V,0)) -> 0 | W4: =INDEX(Match!R:R,MATCH(P4,Match!V:V,0)) -> Everton | X4: =INDEX(Match!H:H,MATCH(P4,Match!V:V,0)) -> 2 | AB4: =IF(O4="","",INDEX(Odds!H:H,MATCH(O4,Odds!G:G,0))) ->  | AC4: =IF(J4="","",INDEX(Odds!K:K,MATCH(J4,Odds!G:G,0))) -> 1 | AD4: Nick Blocksidge | AE4: =INDEX(Picks!F:F,MATCH(AD4,Picks!A:A,0)) -> 22.24 | AF4: =INDEX(Weekly!I:I,MATCH(AD4,Weekly!E:E,0)) -> 3 | AG4: =IF(AE4="","",_xlfn.RANK.EQ(AE4,TopScores,0)) -> 3 | AI4: Paul Fairhurst | AJ4: =INDEX(Picks!G:G,MATCH(AI4,Picks!A:A,0)) -> 181.525 | AK4: =INDEX(Weekly!I:I,MATCH(AI4,Weekly!E:E,0)) -> 0 | AL4: =IF(AJ4="","",_xlfn.RANK.EQ(AJ4,TopMaxScores,0)) -> 2
A5: =Results!B5 -> Alan Rogers | B5: =IF(J5="","",J5) -> Crawley | C5: =IF(J5="","",INDEX(Odds!C:C,MATCH(J5,Odds!G:G,0))) -> 1900-01-07 | D5: 2.875 | E5: x | F5: =IF(J5="",-10,INDEX(Results!T:T,MATCH(A5,Results!V:V,0))) -> -4.6 | G5: =IF(J5="","",INDEX(Results!AI:AI,MATCH(A5,Results!V:V,0))) -> 46.0175 | H5: =IF(G5="",0,1) -> 1 | I5: =INDEX(Picks!AG:AG,MATCH(A5,Picks!AD:AD,0)) -> 33 | J5: Crawley | K5: =INDEX(Odds!H:H,MATCH(J5,Odds!G:G,0)) -> 15/8 | L5: =INDEX(Odds!I:I,MATCH(J5,Odds!G:G,0)) -> 2.875 | M5: =INDEX(Odds!J:J,MATCH(J5,Odds!G:G,0)) -> 0 | N5: =L5*M5 -> 0 | P5: =IF(Match!B5="","",Match!V5) -> Liverpool 1-1 Chelsea | R5: =IF(Odds!G5="","",Odds!G5) -> Liverpool | S5: =INDEX(Odds!H:H,MATCH(R5,Odds!G:G,0)) -> 8/5 | T5: 0 | U5: =INDEX(Match!Q:Q,MATCH(P5,Match!V:V,0)) -> Liverpool | V5: =INDEX(Match!G:G,MATCH(P5,Match!V:V,0)) -> 1 | W5: =INDEX(Match!R:R,MATCH(P5,Match!V:V,0)) -> Chelsea | X5: =INDEX(Match!H:H,MATCH(P5,Match!V:V,0)) -> 1 | AB5: =IF(O5="","",INDEX(Odds!H:H,MATCH(O5,Odds!G:G,0))) ->  | AC5: =IF(J5="","",INDEX(Odds!K:K,MATCH(J5,Odds!G:G,0))) -> 1 | AD5: Martin Molyneux | AE5: =INDEX(Picks!F:F,MATCH(AD5,Picks!A:A,0)) -> 15.22 | AF5: =INDEX(Weekly!I:I,MATCH(AD5,Weekly!E:E,0)) -> 3 | AG5: =IF(AE5="","",_xlfn.RANK.EQ(AE5,TopScores,0)) -> 4 | AI5: Chris Townsend | AJ5: =INDEX(Picks!G:G,MATCH(AI5,Picks!A:A,0)) -> 151.8 | AK5: =INDEX(Weekly!I:I,MATCH(AI5,Weekly!E:E,0)) -> 0 | AL5: =IF(AJ5="","",_xlfn.RANK.EQ(AJ5,TopMaxScores,0)) -> 3
A6: =A5 -> Alan Rogers | B6: Orient draw | C6: =IF(J6="","",INDEX(Odds!C:C,MATCH(J6,Odds!G:G,0))) -> 1900-01-07 | D6: 3.1 | E6: x | J6: Orient draw | K6: =INDEX(Odds!H:H,MATCH(J6,Odds!G:G,0)) -> 21/10 | L6: =INDEX(Odds!I:I,MATCH(J6,Odds!G:G,0)) -> 3.1 | M6: =INDEX(Odds!J:J,MATCH(J6,Odds!G:G,0)) -> 0 | N6: 0 | P6: =IF(Match!B6="","",Match!V6) -> Man C 5-0 Arsenal | R6: =IF(Odds!G6="","",Odds!G6) -> Man C | S6: =INDEX(Odds!H:H,MATCH(R6,Odds!G:G,0)) -> 1/4 | T6: 1 | U6: =INDEX(Match!Q:Q,MATCH(P6,Match!V:V,0)) -> Man C | V6: =INDEX(Match!G:G,MATCH(P6,Match!V:V,0)) -> 5 | W6: =INDEX(Match!R:R,MATCH(P6,Match!V:V,0)) -> Arsenal | X6: =INDEX(Match!H:H,MATCH(P6,Match!V:V,0)) -> 0 | AB6: =IF(O6="","",INDEX(Odds!H:H,MATCH(O6,Odds!G:G,0))) ->  | AC6: =IF(J6="","",INDEX(Odds!K:K,MATCH(J6,Odds!G:G,0))) -> 1 | AD6: Stephen Troop | AE6: =INDEX(Picks!F:F,MATCH(AD6,Picks!A:A,0)) -> 12.94545455 | AF6: =INDEX(Weekly!I:I,MATCH(AD6,Weekly!E:E,0)) -> 3 | AG6: =IF(AE6="","",_xlfn.RANK.EQ(AE6,TopScores,0)) -> 5 | AI6: Howard Bradley | AJ6: =INDEX(Picks!G:G,MATCH(AI6,Picks!A:A,0)) -> 98.92 | AK6: =INDEX(Weekly!I:I,MATCH(AI6,Weekly!E:E,0)) -> 1 | AL6: =IF(AJ6="","",_xlfn.RANK.EQ(AJ6,TopMaxScores,0)) -> 4
A7: =A5 -> Alan Rogers | B7: Salford | C7: =IF(J7="","",INDEX(Odds!C:C,MATCH(J7,Odds!G:G,0))) -> 1900-01-07 | D7: 2.4 | E7: √ | J7: Salford | K7: =INDEX(Odds!H:H,MATCH(J7,Odds!G:G,0)) -> 7/5 | L7: =INDEX(Odds!I:I,MATCH(J7,Odds!G:G,0)) -> 2.4 | M7: =INDEX(Odds!J:J,MATCH(J7,Odds!G:G,0)) -> 1 | N7: 2.4 | P7: =IF(Match!B7="","",Match!V7) -> Newcastle 2-2 Southampton | R7: =IF(Odds!G7="","",Odds!G7) -> Newcastle | S7: =INDEX(Odds!H:H,MATCH(R7,Odds!G:G,0)) -> 13/8 | T7: 0 | U7: =INDEX(Match!Q:Q,MATCH(P7,Match!V:V,0)) -> Newcastle | V7: =INDEX(Match!G:G,MATCH(P7,Match!V:V,0)) -> 2 | W7: =INDEX(Match!R:R,MATCH(P7,Match!V:V,0)) -> Southampton | X7: =INDEX(Match!H:H,MATCH(P7,Match!V:V,0)) -> 2 | AB7: =IF(O7="","",INDEX(Odds!H:H,MATCH(O7,Odds!G:G,0))) ->  | AC7: =IF(J7="","",INDEX(Odds!K:K,MATCH(J7,Odds!G:G,0))) -> 1 | AD7: Gareth Powell | AE7: =INDEX(Picks!F:F,MATCH(AD7,Picks!A:A,0)) -> 11.35 | AF7: =INDEX(Weekly!I:I,MATCH(AD7,Weekly!E:E,0)) -> 2 | AG7: =IF(AE7="","",_xlfn.RANK.EQ(AE7,TopScores,0)) -> 6 | AI7: Paul Allen | AJ7: =INDEX(Picks!G:G,MATCH(AI7,Picks!A:A,0)) -> 84.928 | AK7: =INDEX(Weekly!I:I,MATCH(AI7,Weekly!E:E,0)) -> 0 | AL7: =IF(AJ7="","",_xlfn.RANK.EQ(AJ7,TopMaxScores,0)) -> 5
A8: =Results!B8 -> Alan White | B8: Luton | C8: =IF(J8="","",INDEX(Odds!C:C,MATCH(J8,Odds!G:G,0))) -> 1900-01-07 | D8: 3.2 | E8: x | F8: =IF(J8="",-10,INDEX(Results!T:T,MATCH(A8,Results!V:V,0))) -> -7 | G8: =IF(J8="","",INDEX(Results!AI:AI,MATCH(A8,Results!V:V,0))) -> 39.628 | H8: =IF(G8="",0,1) -> 1 | I8: =INDEX(Picks!AG:AG,MATCH(A8,Picks!AD:AD,0)) -> 46 | J8: Luton | K8: =INDEX(Odds!H:H,MATCH(J8,Odds!G:G,0)) -> 11/5 | L8: =INDEX(Odds!I:I,MATCH(J8,Odds!G:G,0)) -> 3.2 | M8: =INDEX(Odds!J:J,MATCH(J8,Odds!G:G,0)) -> 0 | N8: 0 | P8: =IF(Match!B8="","",Match!V8) -> Norwich 1-2 Leicester | R8: =IF(Odds!G8="","",Odds!G8) -> Norwich | S8: =INDEX(Odds!H:H,MATCH(R8,Odds!G:G,0)) -> 4/1 | T8: 0 | U8: =INDEX(Match!Q:Q,MATCH(P8,Match!V:V,0)) -> Norwich | V8: =INDEX(Match!G:G,MATCH(P8,Match!V:V,0)) -> 1 | W8: =INDEX(Match!R:R,MATCH(P8,Match!V:V,0)) -> Leicester | X8: =INDEX(Match!H:H,MATCH(P8,Match!V:V,0)) -> 2 | AB8: =IF(O8="","",INDEX(Odds!H:H,MATCH(O8,Odds!G:G,0))) ->  | AC8: =IF(J8="","",INDEX(Odds!K:K,MATCH(J8,Odds!G:G,0))) -> 1 | AD8: Ben Rosser | AE8: =INDEX(Picks!F:F,MATCH(AD8,Picks!A:A,0)) -> 10.06 | AF8: =INDEX(Weekly!I:I,MATCH(AD8,Weekly!E:E,0)) -> 2 | AG8: =IF(AE8="","",_xlfn.RANK.EQ(AE8,TopScores,0)) -> 7 | AI8: Paul Barnes | AJ8: =INDEX(Picks!G:G,MATCH(AI8,Picks!A:A,0)) -> 79.72 | AK8: =INDEX(Weekly!I:I,MATCH(AI8,Weekly!E:E,0)) -> 2 | AL8: =IF(AJ8="","",_xlfn.RANK.EQ(AJ8,TopMaxScores,0)) -> 6
A9: =A8 -> Alan White | B9: Forest Green | C9: =IF(J9="","",INDEX(Odds!C:C,MATCH(J9,Odds!G:G,0))) -> 1900-01-07 | D9: 2.15 | E9: x | J9: Forest Green | K9: =INDEX(Odds!H:H,MATCH(J9,Odds!G:G,0)) -> 23/20 | L9: =INDEX(Odds!I:I,MATCH(J9,Odds!G:G,0)) -> 2.15 | M9: =INDEX(Odds!J:J,MATCH(J9,Odds!G:G,0)) -> 0 | N9: 0 | P9: =IF(Match!B9="","",Match!V9) -> Villa 1-1 Brentford | R9: =IF(Odds!G9="","",Odds!G9) -> Villa | S9: =INDEX(Odds!H:H,MATCH(R9,Odds!G:G,0)) -> 1/1 | T9: 0 | U9: =INDEX(Match!Q:Q,MATCH(P9,Match!V:V,0)) -> Villa | V9: =INDEX(Match!G:G,MATCH(P9,Match!V:V,0)) -> 1 | W9: =INDEX(Match!R:R,MATCH(P9,Match!V:V,0)) -> Brentford | X9: =INDEX(Match!H:H,MATCH(P9,Match!V:V,0)) -> 1 | AB9: =IF(O9="","",INDEX(Odds!H:H,MATCH(O9,Odds!G:G,0))) ->  | AC9: =IF(J9="","",INDEX(Odds!K:K,MATCH(J9,Odds!G:G,0))) -> 1 | AD9: Alick Rocca | AE9: =INDEX(Picks!F:F,MATCH(AD9,Picks!A:A,0)) -> 9.2 | AF9: =INDEX(Weekly!I:I,MATCH(AD9,Weekly!E:E,0)) -> 2 | AG9: =IF(AE9="","",_xlfn.RANK.EQ(AE9,TopScores,0)) -> 8 | AI9: Gareth Powell | AJ9: =INDEX(Picks!G:G,MATCH(AI9,Picks!A:A,0)) -> 77.14 | AK9: =INDEX(Weekly!I:I,MATCH(AI9,Weekly!E:E,0)) -> 2 | AL9: =IF(AJ9="","",_xlfn.RANK.EQ(AJ9,TopMaxScores,0)) -> 7
A10: =A8 -> Alan White | B10: Harrogate | C10: =IF(J10="","",INDEX(Odds!C:C,MATCH(J10,Odds!G:G,0))) -> 1900-01-07 | D10: 2.6 | E10: x | J10: Harrogate | K10: =INDEX(Odds!H:H,MATCH(J10,Odds!G:G,0)) -> 8/5 | L10: =INDEX(Odds!I:I,MATCH(J10,Odds!G:G,0)) -> 2.6 | M10: =INDEX(Odds!J:J,MATCH(J10,Odds!G:G,0)) -> 0 | N10: 0 | P10: =IF(Match!B10="","",Match!V10) -> West Ham 2-2 Palace | R10: =IF(Odds!G10="","",Odds!G10) -> West Ham | S10: =INDEX(Odds!H:H,MATCH(R10,Odds!G:G,0)) -> 6/10 | T10: 0 | U10: =INDEX(Match!Q:Q,MATCH(P10,Match!V:V,0)) -> West Ham | V10: =INDEX(Match!G:G,MATCH(P10,Match!V:V,0)) -> 2 | W10: =INDEX(Match!R:R,MATCH(P10,Match!V:V,0)) -> Palace | X10: =INDEX(Match!H:H,MATCH(P10,Match!V:V,0)) -> 2 | AB10: =IF(O10="","",INDEX(Odds!H:H,MATCH(O10,Odds!G:G,0))) ->  | AC10: =IF(J10="","",INDEX(Odds!K:K,MATCH(J10,Odds!G:G,0))) -> 1 | AD10: Pete Baron | AE10: =INDEX(Picks!F:F,MATCH(AD10,Picks!A:A,0)) -> 9.2 | AF10: =INDEX(Weekly!I:I,MATCH(AD10,Weekly!E:E,0)) -> 2 | AG10: =IF(AE10="","",_xlfn.RANK.EQ(AE10,TopScores,0)) -> 8 | AI10: Bob Bailey | AJ10: =INDEX(Picks!G:G,MATCH(AI10,Picks!A:A,0)) -> 65.2375 | AK10: =INDEX(Weekly!I:I,MATCH(AI10,Weekly!E:E,0)) -> 0 | AL10: =IF(AJ10="","",_xlfn.RANK.EQ(AJ10,TopMaxScores,0)) -> 8
A11: =Results!B11 -> Alfie Davies | B11: Blackpool | C11: =IF(J11="","",INDEX(Odds!C:C,MATCH(J11,Odds!G:G,0))) -> 1900-01-07 | D11: 4.4 | E11: x | F11: =IF(J11="",-10,INDEX(Results!T:T,MATCH(A11,Results!V:V,0))) -> -5.15 | G11: =IF(J11="","",INDEX(Results!AI:AI,MATCH(A11,Results!V:V,0))) -> 50.482 | H11: =IF(G11="",0,1) -> 1 | I11: =INDEX(Picks!AG:AG,MATCH(A11,Picks!AD:AD,0)) -> 39 | J11: Blackpool | K11: =INDEX(Odds!H:H,MATCH(J11,Odds!G:G,0)) -> 17/5 | L11: =INDEX(Odds!I:I,MATCH(J11,Odds!G:G,0)) -> 4.4 | M11: =INDEX(Odds!J:J,MATCH(J11,Odds!G:G,0)) -> 0 | N11: 0 | P11: =IF(Match!B11="","",Match!V11) -> Barnsley 1-1 Birmingham | R11: =IF(Odds!G11="","",Odds!G11) -> Barnsley | S11: =INDEX(Odds!H:H,MATCH(R11,Odds!G:G,0)) -> 23/20 | T11: 0 | U11: =INDEX(Match!Q:Q,MATCH(P11,Match!V:V,0)) -> Barnsley | V11: =INDEX(Match!G:G,MATCH(P11,Match!V:V,0)) -> 1 | W11: =INDEX(Match!R:R,MATCH(P11,Match!V:V,0)) -> Birmingham | X11: =INDEX(Match!H:H,MATCH(P11,Match!V:V,0)) -> 1 | AB11: =IF(O11="","",INDEX(Odds!H:H,MATCH(O11,Odds!G:G,0))) ->  | AC11: =IF(J11="","",INDEX(Odds!K:K,MATCH(J11,Odds!G:G,0))) -> 1 | AD11: Sally Williams | AE11: =INDEX(Picks!F:F,MATCH(AD11,Picks!A:A,0)) -> 8.8 | AF11: =INDEX(Weekly!I:I,MATCH(AD11,Weekly!E:E,0)) -> 2 | AG11: =IF(AE11="","",_xlfn.RANK.EQ(AE11,TopScores,0)) -> 10 | AI11: Alick Rocca | AJ11: =INDEX(Picks!G:G,MATCH(AI11,Picks!A:A,0)) -> 64.24 | AK11: =INDEX(Weekly!I:I,MATCH(AI11,Weekly!E:E,0)) -> 2 | AL11: =IF(AJ11="","",_xlfn.RANK.EQ(AJ11,TopMaxScores,0)) -> 9
A12: =A11 -> Alfie Davies | B12: Swansea | C12: =IF(J12="","",INDEX(Odds!C:C,MATCH(J12,Odds!G:G,0))) -> 1900-01-07 | D12: 2.8 | E12: x | J12: Swansea | K12: =INDEX(Odds!H:H,MATCH(J12,Odds!G:G,0)) -> 9/5 | L12: =INDEX(Odds!I:I,MATCH(J12,Odds!G:G,0)) -> 2.8 | M12: =INDEX(Odds!J:J,MATCH(J12,Odds!G:G,0)) -> 0 | N12: 0 | P12: =IF(Match!B12="","",Match!V12) -> Cardiff 1-2 Bristol C | R12: =IF(Odds!G12="","",Odds!G12) -> Cardiff | S12: =INDEX(Odds!H:H,MATCH(R12,Odds!G:G,0)) -> 19/20 | T12: 0 | U12: =INDEX(Match!Q:Q,MATCH(P12,Match!V:V,0)) -> Cardiff | V12: =INDEX(Match!G:G,MATCH(P12,Match!V:V,0)) -> 1 | W12: =INDEX(Match!R:R,MATCH(P12,Match!V:V,0)) -> Bristol C | X12: =INDEX(Match!H:H,MATCH(P12,Match!V:V,0)) -> 2 | AB12: =IF(O12="","",INDEX(Odds!H:H,MATCH(O12,Odds!G:G,0))) ->  | AC12: =IF(J12="","",INDEX(Odds!K:K,MATCH(J12,Odds!G:G,0))) -> 1 | AD12: Mark Saunders | AE12: =INDEX(Picks!F:F,MATCH(AD12,Picks!A:A,0)) -> 4.9 | AF12: =INDEX(Weekly!I:I,MATCH(AD12,Weekly!E:E,0)) -> 2 | AG12: =IF(AE12="","",_xlfn.RANK.EQ(AE12,TopScores,0)) -> 11 | AI12: Pete Baron | AJ12: =INDEX(Picks!G:G,MATCH(AI12,Picks!A:A,0)) -> 64.24 | AK12: =INDEX(Weekly!I:I,MATCH(AI12,Weekly!E:E,0)) -> 2 | AL12: =IF(AJ12="","",_xlfn.RANK.EQ(AJ12,TopMaxScores,0)) -> 9
A13: =A11 -> Alfie Davies | B13: =IF(J13="","",J13) -> West Brom | C13: =IF(J13="","",INDEX(Odds!C:C,MATCH(J13,Odds!G:G,0))) -> 1900-01-07 | D13: 1.85 | E13: √ | J13: West Brom | K13: =INDEX(Odds!H:H,MATCH(J13,Odds!G:G,0)) -> 17/20 | L13: =INDEX(Odds!I:I,MATCH(J13,Odds!G:G,0)) -> 1.85 | M13: =INDEX(Odds!J:J,MATCH(J13,Odds!G:G,0)) -> 1 | N13: 1.85 | P13: =IF(Match!B13="","",Match!V13) -> Derby 1-1 Forest | R13: =IF(Odds!G13="","",Odds!G13) -> Derby | S13: =INDEX(Odds!H:H,MATCH(R13,Odds!G:G,0)) -> 7/4 | T13: 0 | U13: =INDEX(Match!Q:Q,MATCH(P13,Match!V:V,0)) -> Derby | V13: =INDEX(Match!G:G,MATCH(P13,Match!V:V,0)) -> 1 | W13: =INDEX(Match!R:R,MATCH(P13,Match!V:V,0)) -> Forest | X13: =INDEX(Match!H:H,MATCH(P13,Match!V:V,0)) -> 1 | AB13: =IF(O13="","",INDEX(Odds!H:H,MATCH(O13,Odds!G:G,0))) ->  | AC13: =IF(J13="","",INDEX(Odds!K:K,MATCH(J13,Odds!G:G,0))) -> 1 | AD13: Paul Barnes | AE13: =INDEX(Picks!F:F,MATCH(AD13,Picks!A:A,0)) -> 4.9 | AF13: =INDEX(Weekly!I:I,MATCH(AD13,Weekly!E:E,0)) -> 2 | AG13: =IF(AE13="","",_xlfn.RANK.EQ(AE13,TopScores,0)) -> 11 | AI13: Sally Williams | AJ13: =INDEX(Picks!G:G,MATCH(AI13,Picks!A:A,0)) -> 62.56 | AK13: =INDEX(Weekly!I:I,MATCH(AI13,Weekly!E:E,0)) -> 2 | AL13: =IF(AJ13="","",_xlfn.RANK.EQ(AJ13,TopMaxScores,0)) -> 11
A14: =Results!B14 -> Alick Rocca | B14: Liverpool Draw | C14: =IF(J14="","",INDEX(Odds!C:C,MATCH(J14,Odds!G:G,0))) -> 1900-01-07 | D14: 3.3 | E14: √ | F14: =IF(J14="",-10,INDEX(Results!T:T,MATCH(A14,Results!V:V,0))) -> 9.2 | G14: =IF(J14="","",INDEX(Results!AI:AI,MATCH(A14,Results!V:V,0))) -> 64.24 | H14: =IF(G14="",0,1) -> 1 | I14: =INDEX(Picks!AG:AG,MATCH(A14,Picks!AD:AD,0)) -> 8 | J14: Liverpool Draw | K14: =INDEX(Odds!H:H,MATCH(J14,Odds!G:G,0)) -> 23/10 | L14: =INDEX(Odds!I:I,MATCH(J14,Odds!G:G,0)) -> 3.3 | M14: =INDEX(Odds!J:J,MATCH(J14,Odds!G:G,0)) -> 1 | N14: 3.3 | P14: =IF(Match!B14="","",Match!V14) -> Fulham 3-0 Stoke | R14: =IF(Odds!G14="","",Odds!G14) -> Fulham | S14: =INDEX(Odds!H:H,MATCH(R14,Odds!G:G,0)) -> 1/1 | T14: 1 | U14: =INDEX(Match!Q:Q,MATCH(P14,Match!V:V,0)) -> Fulham | V14: =INDEX(Match!G:G,MATCH(P14,Match!V:V,0)) -> 3 | W14: =INDEX(Match!R:R,MATCH(P14,Match!V:V,0)) -> Stoke | X14: =INDEX(Match!H:H,MATCH(P14,Match!V:V,0)) -> 0 | AB14: =IF(O14="","",INDEX(Odds!H:H,MATCH(O14,Odds!G:G,0))) ->  | AC14: =IF(J14="","",INDEX(Odds!K:K,MATCH(J14,Odds!G:G,0))) -> 1 | AD14: Stephen Barr | AE14: =INDEX(Picks!F:F,MATCH(AD14,Picks!A:A,0)) -> 4 | AF14: =INDEX(Weekly!I:I,MATCH(AD14,Weekly!E:E,0)) -> 2 | AG14: =IF(AE14="","",_xlfn.RANK.EQ(AE14,TopScores,0)) -> 13 | AI14: James Bell | AJ14: =INDEX(Picks!G:G,MATCH(AI14,Picks!A:A,0)) -> 60.921 | AK14: =INDEX(Weekly!I:I,MATCH(AI14,Weekly!E:E,0)) -> 0 | AL14: =IF(AJ14="","",_xlfn.RANK.EQ(AJ14,TopMaxScores,0)) -> 12
A15: =A14 -> Alick Rocca | B15: Derby Draw | C15: =IF(J15="","",INDEX(Odds!C:C,MATCH(J15,Odds!G:G,0))) -> 1900-01-07 | D15: 3 | E15: √ | J15: Derby Draw | K15: =INDEX(Odds!H:H,MATCH(J15,Odds!G:G,0)) -> 2/1 | L15: =INDEX(Odds!I:I,MATCH(J15,Odds!G:G,0)) -> 3 | M15: =INDEX(Odds!J:J,MATCH(J15,Odds!G:G,0)) -> 1 | N15: 3 | P15: =IF(Match!B15="","",Match!V15) -> Huddersfield 4-0 Reading | R15: =IF(Odds!G15="","",Odds!G15) -> Huddersfield | S15: =INDEX(Odds!H:H,MATCH(R15,Odds!G:G,0)) -> 13/8 | T15: 1 | U15: =INDEX(Match!Q:Q,MATCH(P15,Match!V:V,0)) -> Huddersfield | V15: =INDEX(Match!G:G,MATCH(P15,Match!V:V,0)) -> 4 | W15: =INDEX(Match!R:R,MATCH(P15,Match!V:V,0)) -> Reading | X15: =INDEX(Match!H:H,MATCH(P15,Match!V:V,0)) -> 0 | AB15: =IF(O15="","",INDEX(Odds!H:H,MATCH(O15,Odds!G:G,0))) ->  | AC15: =IF(J15="","",INDEX(Odds!K:K,MATCH(J15,Odds!G:G,0))) -> 1 | AD15: Nigel Heyes | AE15: =INDEX(Picks!F:F,MATCH(AD15,Picks!A:A,0)) -> 3.16 | AF15: =INDEX(Weekly!I:I,MATCH(AD15,Weekly!E:E,0)) -> 2 | AG15: =IF(AE15="","",_xlfn.RANK.EQ(AE15,TopScores,0)) -> 14 | AI15: Chris Griffin | AJ15: =INDEX(Picks!G:G,MATCH(AI15,Picks!A:A,0)) -> 59.725 | AK15: =INDEX(Weekly!I:I,MATCH(AI15,Weekly!E:E,0)) -> 1 | AL15: =IF(AJ15="","",_xlfn.RANK.EQ(AJ15,TopMaxScores,0)) -> 13
A16: =A14 -> Alick Rocca | B16: Brighton Draw | C16: =IF(J16="","",INDEX(Odds!C:C,MATCH(J16,Odds!G:G,0))) -> 1900-01-07 | D16: 3.2 | E16: x | J16: Brighton Draw | K16: =INDEX(Odds!H:H,MATCH(J16,Odds!G:G,0)) -> 11/5 | L16: =INDEX(Odds!I:I,MATCH(J16,Odds!G:G,0)) -> 3.2 | M16: =INDEX(Odds!J:J,MATCH(J16,Odds!G:G,0)) -> 0 | N16: 0 | P16: =IF(Match!B16="","",Match!V16) -> Hull 0-0 Bournemouth | R16: =IF(Odds!G16="","",Odds!G16) -> Hull | S16: =INDEX(Odds!H:H,MATCH(R16,Odds!G:G,0)) -> 9/4 | T16: 0 | U16: =INDEX(Match!Q:Q,MATCH(P16,Match!V:V,0)) -> Hull | V16: =INDEX(Match!G:G,MATCH(P16,Match!V:V,0)) -> 0 | W16: =INDEX(Match!R:R,MATCH(P16,Match!V:V,0)) -> Bournemouth | X16: =INDEX(Match!H:H,MATCH(P16,Match!V:V,0)) -> 0 | AB16: =IF(O16="","",INDEX(Odds!H:H,MATCH(O16,Odds!G:G,0))) ->  | AC16: =IF(J16="","",INDEX(Odds!K:K,MATCH(J16,Odds!G:G,0))) -> 1 | AD16: Chris Bow | AE16: =INDEX(Picks!F:F,MATCH(AD16,Picks!A:A,0)) -> 2.8 | AF16: =INDEX(Weekly!I:I,MATCH(AD16,Weekly!E:E,0)) -> 2 | AG16: =IF(AE16="","",_xlfn.RANK.EQ(AE16,TopScores,0)) -> 15 | AI16: Ben Rosser | AJ16: =INDEX(Picks!G:G,MATCH(AI16,Picks!A:A,0)) -> 57.4675 | AK16: =INDEX(Weekly!I:I,MATCH(AI16,Weekly!E:E,0)) -> 2 | AL16: =IF(AJ16="","",_xlfn.RANK.EQ(AJ16,TopMaxScores,0)) -> 14
A17: =Results!B17 -> Andy Charleston | B17: Leeds | C17: =IF(J17="","",INDEX(Odds!C:C,MATCH(J17,Odds!G:G,0))) -> 1900-01-01 | D17: 2.25 | E17: x | F17: =IF(J17="",-10,INDEX(Results!T:T,MATCH(A17,Results!V:V,0))) -> -5.6 | G17: =IF(J17="","",INDEX(Results!AI:AI,MATCH(A17,Results!V:V,0))) -> 38.8 | H17: =IF(G17="",0,1) -> 1 | I17: =INDEX(Picks!AG:AG,MATCH(A17,Picks!AD:AD,0)) -> 45 | J17: Leeds | K17: =INDEX(Odds!H:H,MATCH(J17,Odds!G:G,0)) -> 5/4 | L17: =INDEX(Odds!I:I,MATCH(J17,Odds!G:G,0)) -> 2.25 | M17: =INDEX(Odds!J:J,MATCH(J17,Odds!G:G,0)) -> 0 | N17: 0 | P17: =IF(Match!B17="","",Match!V17) -> Luton 0-0 Sheff U | R17: =IF(Odds!G17="","",Odds!G17) -> Luton | S17: =INDEX(Odds!H:H,MATCH(R17,Odds!G:G,0)) -> 11/5 | T17: 0 | U17: =INDEX(Match!Q:Q,MATCH(P17,Match!V:V,0)) -> Luton | V17: =INDEX(Match!G:G,MATCH(P17,Match!V:V,0)) -> 0 | W17: =INDEX(Match!R:R,MATCH(P17,Match!V:V,0)) -> Sheff U | X17: =INDEX(Match!H:H,MATCH(P17,Match!V:V,0)) -> 0 | AB17: =IF(O17="","",INDEX(Odds!H:H,MATCH(O17,Odds!G:G,0))) ->  | AC17: =IF(J17="","",INDEX(Odds!K:K,MATCH(J17,Odds!G:G,0))) -> 1 | AD17: Dave Orrell | AE17: =INDEX(Picks!F:F,MATCH(AD17,Picks!A:A,0)) -> 2.71 | AF17: =INDEX(Weekly!I:I,MATCH(AD17,Weekly!E:E,0)) -> 2 | AG17: =IF(AE17="","",_xlfn.RANK.EQ(AE17,TopScores,0)) -> 16 | AI17: Ian Davies | AJ17: =INDEX(Picks!G:G,MATCH(AI17,Picks!A:A,0)) -> 55.756 | AK17: =INDEX(Weekly!I:I,MATCH(AI17,Weekly!E:E,0)) -> 0 | AL17: =IF(AJ17="","",_xlfn.RANK.EQ(AJ17,TopMaxScores,0)) -> 15
A18: =A17 -> Andy Charleston | B18: =IF(J18="","",J18) -> Spurs | C18: =IF(J18="","",INDEX(Odds!C:C,MATCH(J18,Odds!G:G,0))) -> 1900-01-01 | D18: 1.4 | E18: √ | J18: Spurs | K18: =INDEX(Odds!H:H,MATCH(J18,Odds!G:G,0)) -> 2/5 | L18: =INDEX(Odds!I:I,MATCH(J18,Odds!G:G,0)) -> 1.4 | M18: =INDEX(Odds!J:J,MATCH(J18,Odds!G:G,0)) -> 1 | N18: 1.4 | P18: =IF(Match!B18="","",Match!V18) -> Middlesbro 1-1 Blackburn | R18: =IF(Odds!G18="","",Odds!G18) -> Middlesbro | S18: =INDEX(Odds!H:H,MATCH(R18,Odds!G:G,0)) -> 6/5 | T18: 0 | U18: =INDEX(Match!Q:Q,MATCH(P18,Match!V:V,0)) -> Middlesbro | V18: =INDEX(Match!G:G,MATCH(P18,Match!V:V,0)) -> 1 | W18: =INDEX(Match!R:R,MATCH(P18,Match!V:V,0)) -> Blackburn | X18: =INDEX(Match!H:H,MATCH(P18,Match!V:V,0)) -> 1 | AB18: =IF(O18="","",INDEX(Odds!H:H,MATCH(O18,Odds!G:G,0))) ->  | AC18: =IF(J18="","",INDEX(Odds!K:K,MATCH(J18,Odds!G:G,0))) -> 1 | AD18: David Dunn | AE18: =INDEX(Picks!F:F,MATCH(AD18,Picks!A:A,0)) -> 2.125 | AF18: =INDEX(Weekly!I:I,MATCH(AD18,Weekly!E:E,0)) -> 2 | AG18: =IF(AE18="","",_xlfn.RANK.EQ(AE18,TopScores,0)) -> 17 | AI18: Alfie Davies | AJ18: =INDEX(Picks!G:G,MATCH(AI18,Picks!A:A,0)) -> 50.482 | AK18: =INDEX(Weekly!I:I,MATCH(AI18,Weekly!E:E,0)) -> 1 | AL18: =IF(AJ18="","",_xlfn.RANK.EQ(AJ18,TopMaxScores,0)) -> 16
A19: =A17 -> Andy Charleston | B19: Wolves | C19: =IF(J19="","",INDEX(Odds!C:C,MATCH(J19,Odds!G:G,0))) -> 1900-01-01 | D19: 5 | E19: x | J19: Wolves | K19: =INDEX(Odds!H:H,MATCH(J19,Odds!G:G,0)) -> 4/1 | L19: =INDEX(Odds!I:I,MATCH(J19,Odds!G:G,0)) -> 5 | M19: =INDEX(Odds!J:J,MATCH(J19,Odds!G:G,0)) -> 0 | N19: 0 | P19: =IF(Match!B19="","",Match!V19) -> Millwall 2-1 Blackpool | R19: =IF(Odds!G19="","",Odds!G19) -> Millwall | S19: =INDEX(Odds!H:H,MATCH(R19,Odds!G:G,0)) -> 10/11 | T19: 1 | U19: =INDEX(Match!Q:Q,MATCH(P19,Match!V:V,0)) -> Millwall | V19: =INDEX(Match!G:G,MATCH(P19,Match!V:V,0)) -> 2 | W19: =INDEX(Match!R:R,MATCH(P19,Match!V:V,0)) -> Blackpool | X19: =INDEX(Match!H:H,MATCH(P19,Match!V:V,0)) -> 1 | AB19: =IF(O19="","",INDEX(Odds!H:H,MATCH(O19,Odds!G:G,0))) ->  | AC19: =IF(J19="","",INDEX(Odds!K:K,MATCH(J19,Odds!G:G,0))) -> 1 | AD19: Paul Adderley | AE19: =INDEX(Picks!F:F,MATCH(AD19,Picks!A:A,0)) -> 1.45 | AF19: =INDEX(Weekly!I:I,MATCH(AD19,Weekly!E:E,0)) -> 2 | AG19: =IF(AE19="","",_xlfn.RANK.EQ(AE19,TopScores,0)) -> 18 | AI19: Charlie Griffiths | AJ19: =INDEX(Picks!G:G,MATCH(AI19,Picks!A:A,0)) -> 48.265 | AK19: =INDEX(Weekly!I:I,MATCH(AI19,Weekly!E:E,0)) -> 0 | AL19: =IF(AJ19="","",_xlfn.RANK.EQ(AJ19,TopMaxScores,0)) -> 17
A20: =Results!B20 -> Andy Hargreaves | C20: =IF(J20="","",INDEX(Odds!C:C,MATCH(J20,Odds!G:G,0))) ->  | F20: =IF(J20="",-10,INDEX(Results!T:T,MATCH(A20,Results!V:V,0))) -> -10 | G20: =IF(J20="","",INDEX(Results!AI:AI,MATCH(A20,Results!V:V,0))) ->  | H20: =IF(G20="",0,1) -> 0 | I20: =INDEX(Picks!AG:AG,MATCH(A20,Picks!AD:AD,0)) ->  | K20: =INDEX(Odds!H:H,MATCH(J20,Odds!G:G,0)) ->  | L20: =INDEX(Odds!I:I,MATCH(J20,Odds!G:G,0)) ->  | M20: =INDEX(Odds!J:J,MATCH(J20,Odds!G:G,0)) ->  | P20: =IF(Match!B20="","",Match!V20) -> Peterborough 0-1 West Brom | R20: =IF(Odds!G20="","",Odds!G20) -> Peterborough | S20: =INDEX(Odds!H:H,MATCH(R20,Odds!G:G,0)) -> 16/5 | T20: 0 | U20: =INDEX(Match!Q:Q,MATCH(P20,Match!V:V,0)) -> Peterborough | V20: =INDEX(Match!G:G,MATCH(P20,Match!V:V,0)) -> 0 | W20: =INDEX(Match!R:R,MATCH(P20,Match!V:V,0)) -> West Brom | X20: =INDEX(Match!H:H,MATCH(P20,Match!V:V,0)) -> 1 | AB20: =IF(O20="","",INDEX(Odds!H:H,MATCH(O20,Odds!G:G,0))) ->  | AC20: =IF(J20="","",INDEX(Odds!K:K,MATCH(J20,Odds!G:G,0))) ->  | AD20: Kevin Carter | AE20: =INDEX(Picks!F:F,MATCH(AD20,Picks!A:A,0)) -> -0.2272727273 | AF20: =INDEX(Weekly!I:I,MATCH(AD20,Weekly!E:E,0)) -> 2 | AG20: =IF(AE20="","",_xlfn.RANK.EQ(AE20,TopScores,0)) -> 19 | AI20: Steve Carter | AJ20: =INDEX(Picks!G:G,MATCH(AI20,Picks!A:A,0)) -> 46.18 | AK20: =INDEX(Weekly!I:I,MATCH(AI20,Weekly!E:E,0)) -> 1 | AL20: =IF(AJ20="","",_xlfn.RANK.EQ(AJ20,TopMaxScores,0)) -> 18
A21: =A20 -> Andy Hargreaves | C21: =IF(J21="","",INDEX(Odds!C:C,MATCH(J21,Odds!G:G,0))) ->  | K21: =INDEX(Odds!H:H,MATCH(J21,Odds!G:G,0)) ->  | L21: =INDEX(Odds!I:I,MATCH(J21,Odds!G:G,0)) ->  | M21: =INDEX(Odds!J:J,MATCH(J21,Odds!G:G,0)) ->  | P21: =IF(Match!B21="","",Match!V21) -> Preston 3-1 Swansea | R21: =IF(Odds!G21="","",Odds!G21) -> Preston | S21: =INDEX(Odds!H:H,MATCH(R21,Odds!G:G,0)) -> 8/5 | T21: 1 | U21: =INDEX(Match!Q:Q,MATCH(P21,Match!V:V,0)) -> Preston | V21: =INDEX(Match!G:G,MATCH(P21,Match!V:V,0)) -> 3 | W21: =INDEX(Match!R:R,MATCH(P21,Match!V:V,0)) -> Swansea | X21: =INDEX(Match!H:H,MATCH(P21,Match!V:V,0)) -> 1 | AB21: =IF(O21="","",INDEX(Odds!H:H,MATCH(O21,Odds!G:G,0))) ->  | AC21: =IF(J21="","",INDEX(Odds!K:K,MATCH(J21,Odds!G:G,0))) ->  | AD21: Jack Walsh | AE21: =INDEX(Picks!F:F,MATCH(AD21,Picks!A:A,0)) -> -0.3636363636 | AF21: =INDEX(Weekly!I:I,MATCH(AD21,Weekly!E:E,0)) -> 2 | AG21: =IF(AE21="","",_xlfn.RANK.EQ(AE21,TopScores,0)) -> 20 | AI21: Alan Rogers | AJ21: =INDEX(Picks!G:G,MATCH(AI21,Picks!A:A,0)) -> 46.0175 | AK21: =INDEX(Weekly!I:I,MATCH(AI21,Weekly!E:E,0)) -> 1 | AL21: =IF(AJ21="","",_xlfn.RANK.EQ(AJ21,TopMaxScores,0)) -> 19
A22: =A20 -> Andy Hargreaves | C22: =IF(J22="","",INDEX(Odds!C:C,MATCH(J22,Odds!G:G,0))) ->  | K22: =INDEX(Odds!H:H,MATCH(J22,Odds!G:G,0)) ->  | L22: =INDEX(Odds!I:I,MATCH(J22,Odds!G:G,0)) ->  | M22: =INDEX(Odds!J:J,MATCH(J22,Odds!G:G,0)) ->  | P22: =IF(Match!B22="","",Match!V22) -> QPR 2-0 Coventry | R22: =IF(Odds!G22="","",Odds!G22) -> QPR | S22: =INDEX(Odds!H:H,MATCH(R22,Odds!G:G,0)) -> 23/20 | T22: 1 | U22: =INDEX(Match!Q:Q,MATCH(P22,Match!V:V,0)) -> QPR | V22: =INDEX(Match!G:G,MATCH(P22,Match!V:V,0)) -> 2 | W22: =INDEX(Match!R:R,MATCH(P22,Match!V:V,0)) -> Coventry | X22: =INDEX(Match!H:H,MATCH(P22,Match!V:V,0)) -> 0 | AB22: =IF(O22="","",INDEX(Odds!H:H,MATCH(O22,Odds!G:G,0))) ->  | AC22: =IF(J22="","",INDEX(Odds!K:K,MATCH(J22,Odds!G:G,0))) ->  | AD22: Rob England | AE22: =INDEX(Picks!F:F,MATCH(AD22,Picks!A:A,0)) -> -0.4475 | AF22: =INDEX(Weekly!I:I,MATCH(AD22,Weekly!E:E,0)) -> 2 | AG22: =IF(AE22="","",_xlfn.RANK.EQ(AE22,TopScores,0)) -> 21 | AI22: Vinny Topping | AJ22: =INDEX(Picks!G:G,MATCH(AI22,Picks!A:A,0)) -> 44.65 | AK22: =INDEX(Weekly!I:I,MATCH(AI22,Weekly!E:E,0)) -> 0 | AL22: =IF(AJ22="","",_xlfn.RANK.EQ(AJ22,TopMaxScores,0)) -> 20
A23: =Results!B23 -> Andy White | B23: Villa | C23: =IF(J23="","",INDEX(Odds!C:C,MATCH(J23,Odds!G:G,0))) -> 1900-01-07 | D23: 2 | E23: x | F23: =IF(J23="",-10,INDEX(Results!T:T,MATCH(A23,Results!V:V,0))) -> -5.272727273 | G23: =IF(J23="","",INDEX(Results!AI:AI,MATCH(A23,Results!V:V,0))) -> 22.68181818 | H23: =IF(G23="",0,1) -> 1 | I23: =INDEX(Picks!AG:AG,MATCH(A23,Picks!AD:AD,0)) -> 43 | J23: Villa | K23: =INDEX(Odds!H:H,MATCH(J23,Odds!G:G,0)) -> 1/1 | L23: =INDEX(Odds!I:I,MATCH(J23,Odds!G:G,0)) -> 2 | M23: =INDEX(Odds!J:J,MATCH(J23,Odds!G:G,0)) -> 0 | N23: 0 | P23: =IF(Match!B23="","",Match!V23) -> Cambridge 1-0 Bolton | R23: =IF(Odds!G23="","",Odds!G23) -> Cambridge | S23: =INDEX(Odds!H:H,MATCH(R23,Odds!G:G,0)) -> 2/1 | T23: 1 | U23: =INDEX(Match!Q:Q,MATCH(P23,Match!V:V,0)) -> Cambridge | V23: =INDEX(Match!G:G,MATCH(P23,Match!V:V,0)) -> 1 | W23: =INDEX(Match!R:R,MATCH(P23,Match!V:V,0)) -> Bolton | X23: =INDEX(Match!H:H,MATCH(P23,Match!V:V,0)) -> 0 | AB23: =IF(O23="","",INDEX(Odds!H:H,MATCH(O23,Odds!G:G,0))) ->  | AC23: =IF(J23="","",INDEX(Odds!K:K,MATCH(J23,Odds!G:G,0))) -> 1 | AD23: Liam Wah | AE23: =INDEX(Picks!F:F,MATCH(AD23,Picks!A:A,0)) -> -1.28 | AF23: =INDEX(Weekly!I:I,MATCH(AD23,Weekly!E:E,0)) -> 2 | AG23: =IF(AE23="","",_xlfn.RANK.EQ(AE23,TopScores,0)) -> 22 | AI23: Gerard Ventom | AJ23: =INDEX(Picks!G:G,MATCH(AI23,Picks!A:A,0)) -> 43.384375 | AK23: =INDEX(Weekly!I:I,MATCH(AI23,Weekly!E:E,0)) -> 1 | AL23: =IF(AJ23="","",_xlfn.RANK.EQ(AJ23,TopMaxScores,0)) -> 21
A24: =A23 -> Andy White | B24: Leicester | C24: =IF(J24="","",INDEX(Odds!C:C,MATCH(J24,Odds!G:G,0))) -> 1900-01-07 | D24: 1.727272727 | E24: √ | J24: Leicester | K24: =INDEX(Odds!H:H,MATCH(J24,Odds!G:G,0)) -> 8/11 | L24: =INDEX(Odds!I:I,MATCH(J24,Odds!G:G,0)) -> 1.727272727 | M24: =INDEX(Odds!J:J,MATCH(J24,Odds!G:G,0)) -> 1 | N24: 1.727272727 | P24: =IF(Match!B24="","",Match!V24) -> Charlton 2-0 Crewe | R24: =IF(Odds!G24="","",Odds!G24) -> Charlton | S24: =INDEX(Odds!H:H,MATCH(R24,Odds!G:G,0)) -> 17/20 | T24: 1 | U24: =INDEX(Match!Q:Q,MATCH(P24,Match!V:V,0)) -> Charlton | V24: =INDEX(Match!G:G,MATCH(P24,Match!V:V,0)) -> 2 | W24: =INDEX(Match!R:R,MATCH(P24,Match!V:V,0)) -> Crewe | X24: =INDEX(Match!H:H,MATCH(P24,Match!V:V,0)) -> 0 | AB24: =IF(O24="","",INDEX(Odds!H:H,MATCH(O24,Odds!G:G,0))) ->  | AC24: =IF(J24="","",INDEX(Odds!K:K,MATCH(J24,Odds!G:G,0))) -> 1 | AD24: Ashley Houghton | AE24: =INDEX(Picks!F:F,MATCH(AD24,Picks!A:A,0)) -> -1.28 | AF24: =INDEX(Weekly!I:I,MATCH(AD24,Weekly!E:E,0)) -> 2 | AG24: =IF(AE24="","",_xlfn.RANK.EQ(AE24,TopScores,0)) -> 22 | AI24: Mike Penk | AJ24: =INDEX(Picks!G:G,MATCH(AI24,Picks!A:A,0)) -> 42.635 | AK24: =INDEX(Weekly!I:I,MATCH(AI24,Weekly!E:E,0)) -> 0 | AL24: =IF(AJ24="","",_xlfn.RANK.EQ(AJ24,TopMaxScores,0)) -> 22
A25: =A23 -> Andy White | B25: Chelsea | C25: =IF(J25="","",INDEX(Odds!C:C,MATCH(J25,Odds!G:G,0))) -> 1900-01-07 | D25: 2.75 | E25: x | J25: Chelsea | K25: =INDEX(Odds!H:H,MATCH(J25,Odds!G:G,0)) -> 7/4 | L25: =INDEX(Odds!I:I,MATCH(J25,Odds!G:G,0)) -> 2.75 | M25: =INDEX(Odds!J:J,MATCH(J25,Odds!G:G,0)) -> 0 | N25: 0 | P25: =IF(Match!B25="","",Match!V25) -> Ipswich 2-2 Wimbledon | R25: =IF(Odds!G25="","",Odds!G25) -> Ipswich | S25: =INDEX(Odds!H:H,MATCH(R25,Odds!G:G,0)) -> 1/1 | T25: 0 | U25: =INDEX(Match!Q:Q,MATCH(P25,Match!V:V,0)) -> Ipswich | V25: =INDEX(Match!G:G,MATCH(P25,Match!V:V,0)) -> 2 | W25: =INDEX(Match!R:R,MATCH(P25,Match!V:V,0)) -> Wimbledon | X25: =INDEX(Match!H:H,MATCH(P25,Match!V:V,0)) -> 2 | AB25: =IF(O25="","",INDEX(Odds!H:H,MATCH(O25,Odds!G:G,0))) ->  | AC25: =IF(J25="","",INDEX(Odds!K:K,MATCH(J25,Odds!G:G,0))) -> 1 | AD25: Howard Bradley | AE25: =INDEX(Picks!F:F,MATCH(AD25,Picks!A:A,0)) -> -3.5 | AF25: =INDEX(Weekly!I:I,MATCH(AD25,Weekly!E:E,0)) -> 1 | AG25: =IF(AE25="","",_xlfn.RANK.EQ(AE25,TopScores,0)) -> 24 | AI25: Graham Miller | AJ25: =INDEX(Picks!G:G,MATCH(AI25,Picks!A:A,0)) -> 42.2425 | AK25: =INDEX(Weekly!I:I,MATCH(AI25,Weekly!E:E,0)) -> 1 | AL25: =IF(AJ25="","",_xlfn.RANK.EQ(AJ25,TopMaxScores,0)) -> 23
A26: =Results!B26 -> Ashley Houghton | B26: Leeds | C26: =IF(J26="","",INDEX(Odds!C:C,MATCH(J26,Odds!G:G,0))) -> 1900-01-01 | D26: 2.25 | E26: x | F26: =IF(J26="",-10,INDEX(Results!T:T,MATCH(A26,Results!V:V,0))) -> -1.28 | G26: =IF(J26="","",INDEX(Results!AI:AI,MATCH(A26,Results!V:V,0))) -> 13.84 | H26: =IF(G26="",0,1) -> 1 | I26: =INDEX(Picks!AG:AG,MATCH(A26,Picks!AD:AD,0)) -> 22 | J26: Leeds | K26: =INDEX(Odds!H:H,MATCH(J26,Odds!G:G,0)) -> 5/4 | L26: =INDEX(Odds!I:I,MATCH(J26,Odds!G:G,0)) -> 2.25 | M26: =INDEX(Odds!J:J,MATCH(J26,Odds!G:G,0)) -> 0 | N26: 0 | P26: =IF(Match!B26="","",Match!V26) -> MK Dons 2-0 Accrington | R26: =IF(Odds!G26="","",Odds!G26) -> MK Dons | S26: =INDEX(Odds!H:H,MATCH(R26,Odds!G:G,0)) -> 11/10 | T26: 1 | U26: =INDEX(Match!Q:Q,MATCH(P26,Match!V:V,0)) -> MK Dons | V26: =INDEX(Match!G:G,MATCH(P26,Match!V:V,0)) -> 2 | W26: =INDEX(Match!R:R,MATCH(P26,Match!V:V,0)) -> Accrington | X26: =INDEX(Match!H:H,MATCH(P26,Match!V:V,0)) -> 0 | AB26: =IF(O26="","",INDEX(Odds!H:H,MATCH(O26,Odds!G:G,0))) ->  | AC26: =IF(J26="","",INDEX(Odds!K:K,MATCH(J26,Odds!G:G,0))) -> 1 | AD26: Chris Griffin | AE26: =INDEX(Picks!F:F,MATCH(AD26,Picks!A:A,0)) -> -3.7 | AF26: =INDEX(Weekly!I:I,MATCH(AD26,Weekly!E:E,0)) -> 1 | AG26: =IF(AE26="","",_xlfn.RANK.EQ(AE26,TopScores,0)) -> 25 | AI26: Chris Luck | AJ26: =INDEX(Picks!G:G,MATCH(AI26,Picks!A:A,0)) -> 41.6125 | AK26: =INDEX(Weekly!I:I,MATCH(AI26,Weekly!E:E,0)) -> 1 | AL26: =IF(AJ26="","",_xlfn.RANK.EQ(AJ26,TopMaxScores,0)) -> 24
A27: =A26 -> Ashley Houghton | B27: Spurs | C27: =IF(J27="","",INDEX(Odds!C:C,MATCH(J27,Odds!G:G,0))) -> 1900-01-01 | D27: 1.4 | E27: √ | J27: Spurs | K27: =INDEX(Odds!H:H,MATCH(J27,Odds!G:G,0)) -> 2/5 | L27: =INDEX(Odds!I:I,MATCH(J27,Odds!G:G,0)) -> 1.4 | M27: =INDEX(Odds!J:J,MATCH(J27,Odds!G:G,0)) -> 1 | N27: 1.4 | P27: =IF(Match!B27="","",Match!V27) -> Morecambe 1-0 Sheff W | R27: =IF(Odds!G27="","",Odds!G27) -> Morecambe | S27: =INDEX(Odds!H:H,MATCH(R27,Odds!G:G,0)) -> 3/1 | T27: 1 | U27: =INDEX(Match!Q:Q,MATCH(P27,Match!V:V,0)) -> Morecambe | V27: =INDEX(Match!G:G,MATCH(P27,Match!V:V,0)) -> 1 | W27: =INDEX(Match!R:R,MATCH(P27,Match!V:V,0)) -> Sheff W | X27: =INDEX(Match!H:H,MATCH(P27,Match!V:V,0)) -> 0 | AB27: =IF(O27="","",INDEX(Odds!H:H,MATCH(O27,Odds!G:G,0))) ->  | AC27: =IF(J27="","",INDEX(Odds!K:K,MATCH(J27,Odds!G:G,0))) -> 1 | AD27: Steve Carter | AE27: =INDEX(Picks!F:F,MATCH(AD27,Picks!A:A,0)) -> -3.7 | AF27: =INDEX(Weekly!I:I,MATCH(AD27,Weekly!E:E,0)) -> 1 | AG27: =IF(AE27="","",_xlfn.RANK.EQ(AE27,TopScores,0)) -> 25 | AI27: Kei Lok Ma | AJ27: =INDEX(Picks!G:G,MATCH(AI27,Picks!A:A,0)) -> 41.48125 | AK27: =INDEX(Weekly!I:I,MATCH(AI27,Weekly!E:E,0)) -> 0 | AL27: =IF(AJ27="","",_xlfn.RANK.EQ(AJ27,TopMaxScores,0)) -> 25
A28: =A26 -> Ashley Houghton | B28: Man U | C28: =IF(J28="","",INDEX(Odds!C:C,MATCH(J28,Odds!G:G,0))) -> 1900-01-01 | D28: 1.8 | E28: √ | J28: Man U | K28: =INDEX(Odds!H:H,MATCH(J28,Odds!G:G,0)) -> 4/5 | L28: =INDEX(Odds!I:I,MATCH(J28,Odds!G:G,0)) -> 1.8 | M28: =INDEX(Odds!J:J,MATCH(J28,Odds!G:G,0)) -> 1 | N28: 1.8 | P28: =IF(Match!B28="","",Match!V28) -> Oxford 3-1 Lincoln | R28: =IF(Odds!G28="","",Odds!G28) -> Oxford | S28: =INDEX(Odds!H:H,MATCH(R28,Odds!G:G,0)) -> 11/10 | T28: 1 | U28: =INDEX(Match!Q:Q,MATCH(P28,Match!V:V,0)) -> Oxford | V28: =INDEX(Match!G:G,MATCH(P28,Match!V:V,0)) -> 3 | W28: =INDEX(Match!R:R,MATCH(P28,Match!V:V,0)) -> Lincoln | X28: =INDEX(Match!H:H,MATCH(P28,Match!V:V,0)) -> 1 | AB28: =IF(O28="","",INDEX(Odds!H:H,MATCH(O28,Odds!G:G,0))) ->  | AC28: =IF(J28="","",INDEX(Odds!K:K,MATCH(J28,Odds!G:G,0))) -> 1 | AD28: Gerard Ventom | AE28: =INDEX(Picks!F:F,MATCH(AD28,Picks!A:A,0)) -> -3.8 | AF28: =INDEX(Weekly!I:I,MATCH(AD28,Weekly!E:E,0)) -> 1 | AG28: =IF(AE28="","",_xlfn.RANK.EQ(AE28,TopScores,0)) -> 27 | AI28: Mark Bunn | AJ28: =INDEX(Picks!G:G,MATCH(AI28,Picks!A:A,0)) -> 39.628 | AK28: =INDEX(Weekly!I:I,MATCH(AI28,Weekly!E:E,0)) -> 1 | AL28: =IF(AJ28="","",_xlfn.RANK.EQ(AJ28,TopMaxScores,0)) -> 26
A29: =Results!B29 -> Barry Birchall | B29: Burton | C29: =IF(J29="","",INDEX(Odds!C:C,MATCH(J29,Odds!G:G,0))) -> 1900-01-06 | D29: 2 | E29: x | F29: =IF(J29="",-10,INDEX(Results!T:T,MATCH(A29,Results!V:V,0))) -> -5.35 | G29: =IF(J29="","",INDEX(Results!AI:AI,MATCH(A29,Results!V:V,0))) -> 24.595 | H29: =IF(G29="",0,1) -> 1 | I29: =INDEX(Picks!AG:AG,MATCH(A29,Picks!AD:AD,0)) -> 44 | J29: Burton | K29: =INDEX(Odds!H:H,MATCH(J29,Odds!G:G,0)) -> 1/1 | L29: =INDEX(Odds!I:I,MATCH(J29,Odds!G:G,0)) -> 2 | M29: =INDEX(Odds!J:J,MATCH(J29,Odds!G:G,0)) -> 0 | N29: 0 | P29: =IF(Match!B29="","",Match!V29) -> Plymouth 1-1 Fleetwood | R29: =IF(Odds!G29="","",Odds!G29) -> Plymouth | S29: =INDEX(Odds!H:H,MATCH(R29,Odds!G:G,0)) -> 29/20 | T29: 0 | U29: =INDEX(Match!Q:Q,MATCH(P29,Match!V:V,0)) -> Plymouth | V29: =INDEX(Match!G:G,MATCH(P29,Match!V:V,0)) -> 1 | W29: =INDEX(Match!R:R,MATCH(P29,Match!V:V,0)) -> Fleetwood | X29: =INDEX(Match!H:H,MATCH(P29,Match!V:V,0)) -> 1 | AB29: =IF(O29="","",INDEX(Odds!H:H,MATCH(O29,Odds!G:G,0))) ->  | AC29: =IF(J29="","",INDEX(Odds!K:K,MATCH(J29,Odds!G:G,0))) -> 1 | AD29: Chris Luck | AE29: =INDEX(Picks!F:F,MATCH(AD29,Picks!A:A,0)) -> -3.8 | AF29: =INDEX(Weekly!I:I,MATCH(AD29,Weekly!E:E,0)) -> 1 | AG29: =IF(AE29="","",_xlfn.RANK.EQ(AE29,TopScores,0)) -> 27 | AI29: Alan White | AJ29: =INDEX(Picks!G:G,MATCH(AI29,Picks!A:A,0)) -> 39.628 | AK29: =INDEX(Weekly!I:I,MATCH(AI29,Weekly!E:E,0)) -> 0 | AL29: =IF(AJ29="","",_xlfn.RANK.EQ(AJ29,TopMaxScores,0)) -> 26
A30: =A29 -> Barry Birchall | B30: Rotherham | C30: =IF(J30="","",INDEX(Odds!C:C,MATCH(J30,Odds!G:G,0))) -> 1900-01-07 | D30: 1.65 | E30: √ | J30: Rotherham | K30: =INDEX(Odds!H:H,MATCH(J30,Odds!G:G,0)) -> 13/20 | L30: =INDEX(Odds!I:I,MATCH(J30,Odds!G:G,0)) -> 1.65 | M30: =INDEX(Odds!J:J,MATCH(J30,Odds!G:G,0)) -> 1 | N30: 1.65 | P30: =IF(Match!B30="","",Match!V30) -> Rotherham 2-0 Doncaster | R30: =IF(Odds!G30="","",Odds!G30) -> Rotherham | S30: =INDEX(Odds!H:H,MATCH(R30,Odds!G:G,0)) -> 13/20 | T30: 1 | U30: =INDEX(Match!Q:Q,MATCH(P30,Match!V:V,0)) -> Rotherham | V30: =INDEX(Match!G:G,MATCH(P30,Match!V:V,0)) -> 2 | W30: =INDEX(Match!R:R,MATCH(P30,Match!V:V,0)) -> Doncaster | X30: =INDEX(Match!H:H,MATCH(P30,Match!V:V,0)) -> 0 | AB30: =IF(O30="","",INDEX(Odds!H:H,MATCH(O30,Odds!G:G,0))) ->  | AC30: =IF(J30="","",INDEX(Odds!K:K,MATCH(J30,Odds!G:G,0))) -> 1 | AD30: Mark Bunn | AE30: =INDEX(Picks!F:F,MATCH(AD30,Picks!A:A,0)) -> -3.8 | AF30: =INDEX(Weekly!I:I,MATCH(AD30,Weekly!E:E,0)) -> 1 | AG30: =IF(AE30="","",_xlfn.RANK.EQ(AE30,TopScores,0)) -> 27 | AI30: Andy Charleston | AJ30: =INDEX(Picks!G:G,MATCH(AI30,Picks!A:A,0)) -> 38.8 | AK30: =INDEX(Weekly!I:I,MATCH(AI30,Weekly!E:E,0)) -> 1 | AL30: =IF(AJ30="","",_xlfn.RANK.EQ(AJ30,TopMaxScores,0)) -> 28
A31: =A29 -> Barry Birchall | B31: Bradford | C31: =IF(J31="","",INDEX(Odds!C:C,MATCH(J31,Odds!G:G,0))) -> 1900-01-07 | D31: 3.1 | E31: x | J31: Bradford | K31: =INDEX(Odds!H:H,MATCH(J31,Odds!G:G,0)) -> 21/10 | L31: =INDEX(Odds!I:I,MATCH(J31,Odds!G:G,0)) -> 3.1 | M31: =INDEX(Odds!J:J,MATCH(J31,Odds!G:G,0)) -> 0 | N31: 0 | P31: =IF(Match!B31="","",Match!V31) -> Shrewsbury 2-1 Gillingham | R31: =IF(Odds!G31="","",Odds!G31) -> Shrewsbury | S31: =INDEX(Odds!H:H,MATCH(R31,Odds!G:G,0)) -> 29/20 | T31: 1 | U31: =INDEX(Match!Q:Q,MATCH(P31,Match!V:V,0)) -> Shrewsbury | V31: =INDEX(Match!G:G,MATCH(P31,Match!V:V,0)) -> 2 | W31: =INDEX(Match!R:R,MATCH(P31,Match!V:V,0)) -> Gillingham | X31: =INDEX(Match!H:H,MATCH(P31,Match!V:V,0)) -> 1 | AB31: =IF(O31="","",INDEX(Odds!H:H,MATCH(O31,Odds!G:G,0))) ->  | AC31: =IF(J31="","",INDEX(Odds!K:K,MATCH(J31,Odds!G:G,0))) -> 1 | AD31: Graham Miller | AE31: =INDEX(Picks!F:F,MATCH(AD31,Picks!A:A,0)) -> -4.375 | AF31: =INDEX(Weekly!I:I,MATCH(AD31,Weekly!E:E,0)) -> 1 | AG31: =IF(AE31="","",_xlfn.RANK.EQ(AE31,TopScores,0)) -> 30 | AI31: Phil Miller | AJ31: =INDEX(Picks!G:G,MATCH(AI31,Picks!A:A,0)) -> 37.81818182 | AK31: =INDEX(Weekly!I:I,MATCH(AI31,Weekly!E:E,0)) -> 3 | AL31: =IF(AJ31="","",_xlfn.RANK.EQ(AJ31,TopMaxScores,0)) -> 29
A32: =Results!B32 -> Ben Rosser | B32: Everton | C32: =IF(J32="","",INDEX(Odds!C:C,MATCH(J32,Odds!G:G,0))) -> 1900-01-07 | D32: 3.2 | E32: √ | F32: =IF(J32="",-10,INDEX(Results!T:T,MATCH(A32,Results!V:V,0))) -> 10.06 | G32: =IF(J32="","",INDEX(Results!AI:AI,MATCH(A32,Results!V:V,0))) -> 57.4675 | H32: =IF(G32="",0,1) -> 1 | I32: =INDEX(Picks!AG:AG,MATCH(A32,Picks!AD:AD,0)) -> 7 | J32: Everton | K32: =INDEX(Odds!H:H,MATCH(J32,Odds!G:G,0)) -> 11/5 | L32: =INDEX(Odds!I:I,MATCH(J32,Odds!G:G,0)) -> 3.2 | M32: =INDEX(Odds!J:J,MATCH(J32,Odds!G:G,0)) -> 1 | N32: 3.2 | P32: =IF(Match!B32="","",Match!V32) -> Sunderland 3-1 Wycombe | R32: =IF(Odds!G32="","",Odds!G32) -> Sunderland | S32: =INDEX(Odds!H:H,MATCH(R32,Odds!G:G,0)) -> 1/1 | T32: 1 | U32: =INDEX(Match!Q:Q,MATCH(P32,Match!V:V,0)) -> Sunderland | V32: =INDEX(Match!G:G,MATCH(P32,Match!V:V,0)) -> 3 | W32: =INDEX(Match!R:R,MATCH(P32,Match!V:V,0)) -> Wycombe | X32: =INDEX(Match!H:H,MATCH(P32,Match!V:V,0)) -> 1 | AB32: =IF(O32="","",INDEX(Odds!H:H,MATCH(O32,Odds!G:G,0))) ->  | AC32: =IF(J32="","",INDEX(Odds!K:K,MATCH(J32,Odds!G:G,0))) -> 1 | AD32: Alan Bond | AE32: =INDEX(Picks!F:F,MATCH(AD32,Picks!A:A,0)) -> -4.4 | AF32: =INDEX(Weekly!I:I,MATCH(AD32,Weekly!E:E,0)) -> 1 | AG32: =IF(AE32="","",_xlfn.RANK.EQ(AE32,TopScores,0)) -> 31 | AI32: Chris Bow | AJ32: =INDEX(Picks!G:G,MATCH(AI32,Picks!A:A,0)) -> 37.36 | AK32: =INDEX(Weekly!I:I,MATCH(AI32,Weekly!E:E,0)) -> 2 | AL32: =IF(AJ32="","",_xlfn.RANK.EQ(AJ32,TopMaxScores,0)) -> 30
A33: =A32 -> Ben Rosser | B33: Liverpool draw | C33: =IF(J33="","",INDEX(Odds!C:C,MATCH(J33,Odds!G:G,0))) -> 1900-01-07 | D33: 3.3 | E33: √ | J33: Liverpool draw | K33: =INDEX(Odds!H:H,MATCH(J33,Odds!G:G,0)) -> 23/10 | L33: =INDEX(Odds!I:I,MATCH(J33,Odds!G:G,0)) -> 3.3 | M33: =INDEX(Odds!J:J,MATCH(J33,Odds!G:G,0)) -> 1 | N33: 3.3 | P33: =IF(Match!B33="","",Match!V33) -> Wigan 1-0 Portsmouth | R33: =IF(Odds!G33="","",Odds!G33) -> Wigan | S33: =INDEX(Odds!H:H,MATCH(R33,Odds!G:G,0)) -> 8/5 | T33: 1 | U33: =INDEX(Match!Q:Q,MATCH(P33,Match!V:V,0)) -> Wigan | V33: =INDEX(Match!G:G,MATCH(P33,Match!V:V,0)) -> 1 | W33: =INDEX(Match!R:R,MATCH(P33,Match!V:V,0)) -> Portsmouth | X33: =INDEX(Match!H:H,MATCH(P33,Match!V:V,0)) -> 0 | AB33: =IF(O33="","",INDEX(Odds!H:H,MATCH(O33,Odds!G:G,0))) ->  | AC33: =IF(J33="","",INDEX(Odds!K:K,MATCH(J33,Odds!G:G,0))) -> 1 | AD33: Mo Sudell | AE33: =INDEX(Picks!F:F,MATCH(AD33,Picks!A:A,0)) -> -4.4 | AF33: =INDEX(Weekly!I:I,MATCH(AD33,Weekly!E:E,0)) -> 1 | AG33: =IF(AE33="","",_xlfn.RANK.EQ(AE33,TopScores,0)) -> 31 | AI33: John Ronan | AJ33: =INDEX(Picks!G:G,MATCH(AI33,Picks!A:A,0)) -> 33.85 | AK33: =INDEX(Weekly!I:I,MATCH(AI33,Weekly!E:E,0)) -> 1 | AL33: =IF(AJ33="","",_xlfn.RANK.EQ(AJ33,TopMaxScores,0)) -> 31
A34: =A32 -> Ben Rosser | B34: Newcastle | C34: =IF(J34="","",INDEX(Odds!C:C,MATCH(J34,Odds!G:G,0))) -> 1900-01-07 | D34: 2.625 | E34: x | J34: Newcastle | K34: =INDEX(Odds!H:H,MATCH(J34,Odds!G:G,0)) -> 13/8 | L34: =INDEX(Odds!I:I,MATCH(J34,Odds!G:G,0)) -> 2.625 | M34: =INDEX(Odds!J:J,MATCH(J34,Odds!G:G,0)) -> 0 | N34: 0 | P34: =IF(Match!B34="","",Match!V34) -> Barrow 1-1 Bristol R | R34: =IF(Odds!G34="","",Odds!G34) -> Barrow | S34: =INDEX(Odds!H:H,MATCH(R34,Odds!G:G,0)) -> 29/20 | T34: 0 | U34: =INDEX(Match!Q:Q,MATCH(P34,Match!V:V,0)) -> Barrow | V34: =INDEX(Match!G:G,MATCH(P34,Match!V:V,0)) -> 1 | W34: =INDEX(Match!R:R,MATCH(P34,Match!V:V,0)) -> Bristol R | X34: =INDEX(Match!H:H,MATCH(P34,Match!V:V,0)) -> 1 | AB34: =IF(O34="","",INDEX(Odds!H:H,MATCH(O34,Odds!G:G,0))) ->  | AC34: =IF(J34="","",INDEX(Odds!K:K,MATCH(J34,Odds!G:G,0))) -> 1 | AD34: Alan Rogers | AE34: =INDEX(Picks!F:F,MATCH(AD34,Picks!A:A,0)) -> -4.6 | AF34: =INDEX(Weekly!I:I,MATCH(AD34,Weekly!E:E,0)) -> 1 | AG34: =IF(AE34="","",_xlfn.RANK.EQ(AE34,TopScores,0)) -> 33 | AI34: Mark Saunders | AJ34: =INDEX(Picks!G:G,MATCH(AI34,Picks!A:A,0)) -> 30.7 | AK34: =INDEX(Weekly!I:I,MATCH(AI34,Weekly!E:E,0)) -> 2 | AL34: =IF(AJ34="","",_xlfn.RANK.EQ(AJ34,TopMaxScores,0)) -> 32
